Workbook

Sheet Vejledning
B10: Version 2.4
B12: Velkommen til Indsatstrappens Udgiftsmodel. Indsatstrappens Udgiftsmodel er et redskab til at fordele de kommunale udgifter på indsatstrappens trin. Redskabet indeholder kommunale regnskabstal for området for udsatte børn og unge fra 2007 og frem til nyeste offentliggjorte regnskabsår. Data stammer fra et særtræk af de godkendte årsregnskaber fra Danmarks Statistik. Du har mulighed for at se en enkelt kommunes udgifter samt at sammenligne med udvalgte sammenligningskommuner og hele landet. Du kan desuden se udgiftsudviklingen over tid samt lave en analyse af ændringen i udgifter på området. Indsatstrappens trin er illustreret i figuren til højre. Du kan se, hvordan det enkelte års poster i regnskabet er fordelt på trappen under de enkelte regnskabsår. På Socialstyrelsens hjemmeside kan du finde en vejledning til, hvordan du bruger redskabet. Du kan tilgå siden ved at trykke på globussen til højre. I selve redskabet er der også vejledninger til hvert trin, ligesom du kan få yderligere informationer ved at trykke på info-boksene.
M26: Anm.: Nederste trin på indsatstrappen (forebyggende indsatser i almen) kan ikke udskilles som selvstændig udgift i den autoriserede kontoplan. Derfor indgår dette trin ikke i Indsatstrappens Udgiftsmodel.
B32: Version
B34: Version | C34: Dato | D34: Ændring
B36: Version 2.3 | C36: oktober 2024 | D36: Modellen er opdateret med regnskabstal for 2023
D37: Befolkningstallet er opdateret.
D38: Den kommunale service-PL er opdateret.
B40: Version 2.3 | C40: september 2023 | D40: Modellen er opdateret med regnskabstal for 2022
D41: Befolkningstallet er opdateret.
D42: Den kommunale service-PL er opdateret.
B44: Version 2.2 | C44: september 2021 | D44: Modellen indeholder nu regnskabstal for 2020.
D45: Befolkningstallet er opdateret.
D46: Den kommunale service-PL er opdateret.
D47: Der er tilføjet en ny resultatside "Fordeling", der viser udgiftsfordelingen over tid.
B49: Version 2.1 | C49: 20. maj 2020 | D49: Modellen indeholder nu regnskabstal for 2019.
D50: Udgifter til 5.28.21, gruppering 004 er flyttet fra trinnet "Anbringelse på institution" til trinnet "Hjemmebaserede foranstaltninger".
D51: Den kommunale service-PL er opdateret.
D52: Befolkningstallet er opdateret.
D53: Rapporten til udskrift har fået en forside.
B55: Version 2.0 | C55: 22. oktober 2019 | D55: Modellen indeholder nu data fra de kommunale regnskaber fra 2007 til 2018.
D56: Modellens brugerflade er tilpasset.
D57: Der er nu mulighed for at sammenligne med hele landet og med en gruppe af sammenligningskommuner.
D58: Der er nu mulighed for at vælge de regnskabsår, som man ønsker at lave analyse for.
D59: Den kommunale service-PL er opdateret.
B61: Version 1.1 | C61: 20. februar 2019 | D61: Modellen er opdateret med en indtastningstabel for 2018.
D62: PL er opdateret.
B64: Version 1.0 | C64: 28. februar 2018 | D64: Første version
D65: Beregningsramme, hvor indtastning er nødvendig.
D66: Indtastningstabeller fra 2007-2017.
D67: Mulighed for analyser for hvert regnskabsår, over alle år og af merudgifter.
D68: Mulighed for at printe en rapport med resultaterne til PDF.

Sheet Dine valg
B3: Dine valg
B4: Før du går igang med at bruge redskabet, skal du tage stilling til en række forudsætninger for, hvordan udgifterne bliver præsenteret. Du skal foretage dine valg i de fire rullemenuer nedenfor. Du skal vælge den kommune, som du ønsker skal være udgangspunktet for din analyse. Du skal desuden vælge det prisår, som du ønsker udgifterne skal præsenteres i. Omregning af prisniveauet tager udgangspunkt i den kommunale service-PL. Du har mulighed for at vælge ét eller flere regnskabsår, som vil fremgå af din analyse. Når du har valgt de år, du ønsker, skal du vælge "Dan gruppe" for at se, hvilke regnskabsår du har valgt at bruge i din analyse. Det er kun de år, som fremgår under "Valgte regnskabsår", som indgår i analysen. Du har også mulighed for at vælge en gruppe af kommuner, som du ønsker at sammenligne med. Du kan vælge 1-7 kommuner , som vil fremgå som én gruppe baseret på de gennemsnitlige udgifter. Når du har valgt de kommuner, som du ønsker at sammenligne med, skal du vælge "Dan gruppe" for at se, hvilke kommuner, der indgår i sammenligningsgruppen. Det er kun de kommuner, der fremgår under "Valgte kommuner", som indgår i analysen. Når du har foretaget dine valg, kan du se resultatet som udgiftsudvikling ved at bruge knappen "Gå til Udgiftsudvikling", eller du kan gå videre til at lave en analyse af merudgifter ved at bruge knappen "Gå til Udgiftsændring". Hvis du foretager ændringer under "Dine valg", så skal du lade redskabet beregne på ny, når du vælger at gå videre.
X7: 2007 | Y7: Allerød
X8: 2008
B9: Vælg kommune | D9: Vælg regnskabsperiode | J9: Valgte regnskabsår | R9: Valgte kommuner: | X9: 2009
B10: =VLOOKUP(kom_valg,Hjælpeark!B11:C108,2,FALSE) -> Fredericia | J10: =IF($X$7="","",$X$7) -> 2007 | K10: =IF($X$14="","",$X$14) -> 2014 | L10: =IF($X$21="","",$X$21) -> 2021 | X10: 2010
J11: =IF($X$8="","",$X$8) -> 2008 | K11: =IF($X$15="","",$X$15) -> 2015 | L11: =IF($X$22="","",$X$22) -> 2022 | X11: 2011
J12: =IF($X$9="","",$X$9) -> 2009 | K12: =IF($X$16="","",$X$16) -> 2016 | L12: =IF($X$23="","",$X$23) -> 2023 | X12: 2012
B13: Vælg prisår | J13: =IF($X$10="","",$X$10) -> 2010 | K13: =IF($X$17="","",$X$17) -> 2017 | L13: =IF($X$24="","",$X$24) ->  | X13: 2013
B14: =VLOOKUP(PL_valg,Hjælpeark!I11:J28,2,FALSE) -> 2023 | J14: =IF($X$11="","",$X$11) -> 2011 | K14: =IF($X$18="","",$X$18) -> 2018 | L14: =IF($X$25="","",$X$25) ->  | X14: 2014
J15: =IF($X$12="","",$X$12) -> 2012 | K15: =IF($X$19="","",$X$19) -> 2019 | L15: =IF($X$26="","",$X$26) ->  | X15: 2015
J16: =IF($X$13="","",$X$13) -> 2013 | K16: =IF($X$20="","",$X$20) -> 2020 | L16: =IF($X$27="","",$X$27) ->  | X16: 2016
R17: =IF(V17="","",V17) ->  | S17: =IF(V25="","",V25) ->  | X17: 2017
X18: 2018
D19: Vælg sammenligningsgruppe | J19: Valgte kommuner | X19: 2019
J20: =IF($Y$7="","",$Y$7) -> Allerød | K20: =IF($Y$14="","",$Y$14) ->  | L20: =IF($Y$21="","",$Y$21) ->  | X20: 2020
J21: =IF($Y$8="","",$Y$8) ->  | K21: =IF($Y$15="","",$Y$15) ->  | L21: =IF($Y$22="","",$Y$22) ->  | X21: 2021
J22: =IF($Y$9="","",$Y$9) ->  | K22: =IF($Y$16="","",$Y$16) ->  | L22: =IF($Y$23="","",$Y$23) ->  | X22: 2022
J23: =IF($Y$10="","",$Y$10) ->  | K23: =IF($Y$17="","",$Y$17) ->  | L23: =IF($Y$24="","",$Y$24) ->  | X23: 2023
J24: =IF($Y$11="","",$Y$11) ->  | K24: =IF($Y$18="","",$Y$18) ->  | L24: =IF($Y$25="","",$Y$25) -> 
J25: =IF($Y$12="","",$Y$12) ->  | K25: =IF($Y$19="","",$Y$19) ->  | L25: =IF($Y$26="","",$Y$26) -> 
J26: =IF($Y$13="","",$Y$13) ->  | K26: =IF($Y$20="","",$Y$20) ->  | L26: =IF($Y$27="","",$Y$27) -> 

Sheet vælg_basisperiode
B3: Vælg basisperiode for analysen
B5: Når du vil lave en analyse af udgifterne fordelt på indsatstrappen, kan du i dette redskab lave en analyse af merudgifter. Analysen vil vise, hvordan din kommunes økonomi er blevet påvirket af en given ændring i lokale forhold. Merudgifter er ændringen i udgifter sammenlignet med en given basisperiode. Basisperioden er et gennemsnitligt udgiftsniveau over ét eller flere år, som du vurderer, repræsenterer et godt udgangspunkt for en ændring. Det kan fx være en årrække, der ligger før en omlægning af indsatsen på området. Før du kan se resultatet af din analyse, skal du derfor vælge den basisperiode, som analysen skal tage udgangspunkt i. Det gør du i de to tabeller nedenfor. Basisperioden skal være ét eller flere år før din analyse påbegyndes. Basisperioden for administration kan tidligst starte i 2013, da administrationsudgifter ikke blev registreret for sig før 2013. Slutåret for basisperioden skal være det samme for både service og administration.
B14: Vælg startår for basisperiode
B15: For service | C15: 2015
B16: For administration | C16: 2015
B18: Vælg slutår for basisperiode
B19: For service og administration | C19: 2021

Sheet Analyse
B6: På denne side fremgår en analyse af en ændring i udgiftsniveauet (merudgifter). Merudgifterne er udgifter, der overstiger udgiftsniveauet i den basisperiode, som du har valgt på forrige side. Du kan se merudgifterne for den kommune, som du har valgt som udgangspunkt for din analyse. Du kan ikke sammenligne merudgifter med merudgifter for hverken sammenliningsgruppen, regionen eller hele landet. Det skyldes, at den basisperiode, som du har valgt, ikke kan forventes at være relevant for andre kommuner. Det vil altid bero på lokalt kendskab, hvilken periode, der er relevant at benytte som en basisperiode. Du kan se udviklingen i merudgifter i alt, for administration og service samt fordelt indenfor og udenfor indsatstrappen. Udviklingen i merudgifter er præsenteret både i tabeller og grafisk. Nederst på siden kan du se, de årlige udgifter og udgiftsniveauet i basisperioden, som analysen baseres på. Du kan tilføje næste regnskabsår, hvis du ønsker at bruge regnskabs- eller budgettal, som endnu ikke er offentliggjorte. Du skal vælge "Tilføj tomt" i den røde bjælke ovenfor. Du kan gå tilbage til valget af basisperioden ved at benytte knappen til højre.
B15: Merudgifter for service, administration og i alt
B17: ="Merudgifter for service, administration og i alt for "&Kommune&", 1.000 kr., "&Prisår&"-priser" -> Merudgifter for service, administration og i alt for Fredericia, 1.000 kr., 2023-priser
AB19: =Slut+1 -> 2022 | AC19: =IF(AB19="","",IF(Hjælpeark!$G$25="",IF(AB19+1<=2023,AB19+1,""),IF(AB19+1<=2024,AB19+1,""))) -> 2023 | AD19: =IF(AC19="","",IF(Hjælpeark!$G$25="",IF(AC19+1<=2023,AC19+1,""),IF(AC19+1<=2024,AC19+1,""))) -> 2024 | AE19: =IF(AD19="","",IF(Hjælpeark!$G$25="",IF(AD19+1<=2023,AD19+1,""),IF(AD19+1<=2024,AD19+1,""))) ->  | AF19: =IF(AE19="","",IF(Hjælpeark!$G$25="",IF(AE19+1<=2023,AE19+1,""),IF(AE19+1<=2024,AE19+1,""))) ->  | AG19: =IF(AF19="","",IF(Hjælpeark!$G$25="",IF(AF19+1<=2023,AF19+1,""),IF(AF19+1<=2024,AF19+1,""))) ->  | AH19: =IF(AG19="","",IF(Hjælpeark!$G$25="",IF(AG19+1<=2023,AG19+1,""),IF(AG19+1<=2024,AG19+1,""))) ->  | AI19: =IF(AH19="","",IF(Hjælpeark!$G$25="",IF(AH19+1<=2023,AH19+1,""),IF(AH19+1<=2024,AH19+1,""))) ->  | AJ19: =IF(AI19="","",IF(Hjælpeark!$G$25="",IF(AI19+1<=2023,AI19+1,""),IF(AI19+1<=2024,AI19+1,""))) ->  | AK19: =IF(AJ19="","",IF(Hjælpeark!$G$25="",IF(AJ19+1<=2023,AJ19+1,""),IF(AJ19+1<=2024,AJ19+1,""))) -> 
AA20: I alt | AB20: =IF(AB19="","",IF(AB$19<=MAX(ÅR),IF(HLOOKUP(AB$19,$C$104:$T$114,2,FALSE)<>0,HLOOKUP(AB$19,$C$104:$T$114,2,FALSE)-$C118,"Ikke udfyldt"),"år er ikke tilføjet")) -> 20749.98257 | AC20: 36892.91857 | AD20: år er ikke tilføjet
AA21: Administration | AB21: =IF(AB$19="","",IF(AB$19<=MAX(ÅR),IF(HLOOKUP(AB$19,$C$104:$T$114,3,FALSE)<>0,HLOOKUP(AB$19,$C$104:$T$114,3,FALSE)-$D119,"Ikke udfyldt"),"år er ikke tilføjet")) -> 3718.248865 | AC21: 9090.768865 | AD21: år er ikke tilføjet
AA22: Service | AB22: =IF(AB$19="","",IF(AB$19<=MAX(ÅR),IF(HLOOKUP(AB$19,$C$104:$T$114,4,FALSE)<>0,HLOOKUP(AB$19,$C$104:$T$114,4,FALSE)-$E120,"Ikke udfyldt"),"år er ikke tilføjet")) -> 17031.7337 | AC22: 27802.1497 | AD22: år er ikke tilføjet
B32: =B41 -> Note: Merudgifterne er beregnet ud fra følgende basisperioder: Basisperioden for administration er 2015-2021, basisperioden for service er 2015-2021, og basisperioden for de samlede udgifter er 2015-2021. Udgifterne er defineret som art>0 og inkl. refusioner.
B34: ="Tabel - Merudgifter for service, administration og i alt for "&Kommune&", 1.000 kr., "&Prisår&"-priser" -> Tabel - Merudgifter for service, administration og i alt for Fredericia, 1.000 kr., 2023-priser
B36: ="Merudgifter for service, administration og i alt for "&Kommune&", 1.000 kr., "&Prisår&"-priser" -> Merudgifter for service, administration og i alt for Fredericia, 1.000 kr., 2023-priser
C37: =Slut+1 -> 2022 | D37: =IF(C37="","",IF(Hjælpeark!$G$28="",IF(C37+1<=2023,C37+1,""),IF(C37+1<=2024,C37+1,""))) -> 2023 | E37: =IF(D37="","",IF(Hjælpeark!$G$28="",IF(D37+1<=2023,D37+1,""),IF(D37+1<=2024,D37+1,""))) ->  | F37: =IF(E37="","",IF(Hjælpeark!$G$28="",IF(E37+1<=2023,E37+1,""),IF(E37+1<=2024,E37+1,""))) ->  | G37: =IF(F37="","",IF(Hjælpeark!$G$28="",IF(F37+1<=2023,F37+1,""),IF(F37+1<=2024,F37+1,""))) ->  | H37: =IF(G37="","",IF(Hjælpeark!$G$28="",IF(G37+1<=2023,G37+1,""),IF(G37+1<=2024,G37+1,""))) ->  | I37: =IF(H37="","",IF(Hjælpeark!$G$28="",IF(H37+1<=2023,H37+1,""),IF(H37+1<=2024,H37+1,""))) ->  | J37: =IF(I37="","",IF(Hjælpeark!$G$28="",IF(I37+1<=2023,I37+1,""),IF(I37+1<=2024,I37+1,""))) ->  | K37: =IF(J37="","",IF(Hjælpeark!$G$28="",IF(J37+1<=2023,J37+1,""),IF(J37+1<=2024,J37+1,""))) -> 
B38: I alt | C38: =IF(C37="","",IF(C$37<=MAX(regnskab_liste),IF(HLOOKUP(C$37,$C$104:$S$114,2,FALSE)<>0,HLOOKUP(C$37,$C$104:$S$114,2,FALSE)-$C118,"Ikke udfyldt"),"år er ikke tilføjet")) -> 20749.98257 | D38: =IF(D37="","",IF(D$37<=MAX(regnskab_liste),IF(HLOOKUP(D$37,$C$104:$S$114,2,FALSE)<>0,HLOOKUP(D$37,$C$104:$S$114,2,FALSE)-$C118,"Ikke udfyldt"),"år er ikke tilføjet")) -> 36892.91857 | E38: =IF(E37="","",IF(E$37<=MAX(regnskab_liste),IF(HLOOKUP(E$37,$C$104:$S$114,2,FALSE)<>0,HLOOKUP(E$37,$C$104:$S$114,2,FALSE)-$C118,"Ikke udfyldt"),"år er ikke tilføjet")) ->  | F38: =IF(F37="","",IF(F$37<=MAX(regnskab_liste),IF(HLOOKUP(F$37,$C$104:$S$114,2,FALSE)<>0,HLOOKUP(F$37,$C$104:$S$114,2,FALSE)-$C118,"Ikke udfyldt"),"år er ikke tilføjet")) ->  | G38: =IF(G37="","",IF(G$37<=MAX(regnskab_liste),IF(Start>=2015,IF(HLOOKUP(G$37,$C$104:$S$114,2,FALSE)<>0,HLOOKUP(G$37,$C$104:$S$114,2,FALSE))-$C118,"Ikke udfyldt"),"år er ikke tilføjet")) ->  | H38: =IF(H37="","",IF(H$37<=MAX(regnskab_liste),IF(HLOOKUP(H$37,$C$104:$S$114,2,FALSE)<>0,HLOOKUP(H$37,$C$104:$S$114,2,FALSE)-$C118,"Ikke udfyldt"),"år er ikke tilføjet")) ->  | I38: =IF(I37="","",IF(I$37<=MAX(regnskab_liste),IF(HLOOKUP(I$37,$C$104:$S$114,2,FALSE)<>0,HLOOKUP(I$37,$C$104:$S$114,2,FALSE)-$C118,"Ikke udfyldt"),"år er ikke tilføjet")) ->  | J38: =IF(J37="","",IF(J$37<=MAX(regnskab_liste),IF(HLOOKUP(J$37,$C$104:$S$114,2,FALSE)<>0,HLOOKUP(J$37,$C$104:$S$114,2,FALSE)-$C118,"Ikke udfyldt"),"år er ikke tilføjet")) ->  | K38: =IF(K37="","",IF(K$37<=MAX(regnskab_liste),IF(HLOOKUP(K$37,$C$104:$S$114,2,FALSE)<>0,HLOOKUP(K$37,$C$104:$S$114,2,FALSE)-$C118,"Ikke udfyldt"),"år er ikke tilføjet")) -> 
B39: Administration | C39: =IF(C$37="","",IF(C$37<=MAX(regnskab_liste),IF(HLOOKUP(C$37,$C$104:$S$114,3,FALSE)<>0,HLOOKUP(C$37,$C$104:$S$114,3,FALSE)-$D119,"Ikke udfyldt"),"år er ikke tilføjet")) -> 3718.248865 | D39: =IF(D$37="","",IF(D$37<=MAX(regnskab_liste),IF(HLOOKUP(D$37,$C$104:$S$114,3,FALSE)<>0,HLOOKUP(D$37,$C$104:$S$114,3,FALSE)-$D119,"Ikke udfyldt"),"år er ikke tilføjet")) -> 9090.768865 | E39: =IF(E$37="","",IF(E$37<=MAX(regnskab_liste),IF(HLOOKUP(E$37,$C$104:$S$114,3,FALSE)<>0,HLOOKUP(E$37,$C$104:$S$114,3,FALSE)-$D119,"Ikke udfyldt"),"år er ikke tilføjet")) ->  | F39: =IF(F$37="","",IF(F$37<=MAX(regnskab_liste),IF(HLOOKUP(F$37,$C$104:$S$114,3,FALSE)<>0,HLOOKUP(F$37,$C$104:$S$114,3,FALSE)-$D119,"Ikke udfyldt"),"år er ikke tilføjet")) ->  | G39: =IF(G38="","",IF(G$37<=MAX(regnskab_liste),IF(Start>=2015,IF(HLOOKUP(G$37,$C$104:$S$114,2,FALSE)<>0,HLOOKUP(G$37,$C$104:$S$114,2,FALSE))-$C119,"Ikke udfyldt"),"år er ikke tilføjet")) ->  | H39: =IF(H$37="","",IF(H$37<=MAX(regnskab_liste),IF(HLOOKUP(H$37,$C$104:$S$114,3,FALSE)<>0,HLOOKUP(H$37,$C$104:$S$114,3,FALSE)-$D119,"Ikke udfyldt"),"år er ikke tilføjet")) ->  | I39: =IF(I$37="","",IF(I$37<=MAX(regnskab_liste),IF(HLOOKUP(I$37,$C$104:$S$114,3,FALSE)<>0,HLOOKUP(I$37,$C$104:$S$114,3,FALSE)-$D119,"Ikke udfyldt"),"år er ikke tilføjet")) ->  | J39: =IF(J$37="","",IF(J$37<=MAX(regnskab_liste),IF(HLOOKUP(J$37,$C$104:$S$114,3,FALSE)<>0,HLOOKUP(J$37,$C$104:$S$114,3,FALSE)-$D119,"Ikke udfyldt"),"år er ikke tilføjet")) ->  | K39: =IF(K$37="","",IF(K$37<=MAX(regnskab_liste),IF(HLOOKUP(K$37,$C$104:$S$114,3,FALSE)<>0,HLOOKUP(K$37,$C$104:$S$114,3,FALSE)-$D119,"Ikke udfyldt"),"år er ikke tilføjet")) -> 
B40: Service | C40: =IF(C$37="","",IF(C$37<=MAX(regnskab_liste),IF(HLOOKUP(C$37,$C$104:$S$114,4,FALSE)<>0,HLOOKUP(C$37,$C$104:$S$114,4,FALSE)-$E120,"Ikke udfyldt"),"år er ikke tilføjet")) -> 17031.7337 | D40: =IF(D$37="","",IF(D$37<=MAX(regnskab_liste),IF(HLOOKUP(D$37,$C$104:$S$114,4,FALSE)<>0,HLOOKUP(D$37,$C$104:$S$114,4,FALSE)-$E120,"Ikke udfyldt"),"år er ikke tilføjet")) -> 27802.1497 | E40: =IF(E$37="","",IF(E$37<=MAX(regnskab_liste),IF(HLOOKUP(E$37,$C$104:$S$114,4,FALSE)<>0,HLOOKUP(E$37,$C$104:$S$114,4,FALSE)-$E120,"Ikke udfyldt"),"år er ikke tilføjet")) ->  | F40: =IF(F$37="","",IF(F$37<=MAX(regnskab_liste),IF(HLOOKUP(F$37,$C$104:$S$114,4,FALSE)<>0,HLOOKUP(F$37,$C$104:$S$114,4,FALSE)-$E120,"Ikke udfyldt"),"år er ikke tilføjet")) ->  | G40: =IF(G39="","",IF(G$37<=MAX(regnskab_liste),IF(Start>=2015,IF(HLOOKUP(G$37,$C$104:$S$114,2,FALSE)<>0,HLOOKUP(G$37,$C$104:$S$114,2,FALSE))-$C120,"Ikke udfyldt"),"år er ikke tilføjet")) ->  | H40: =IF(H$37="","",IF(H$37<=MAX(regnskab_liste),IF(HLOOKUP(H$37,$C$104:$S$114,4,FALSE)<>0,HLOOKUP(H$37,$C$104:$S$114,4,FALSE)-$E120,"Ikke udfyldt"),"år er ikke tilføjet")) ->  | I40: =IF(I$37="","",IF(I$37<=MAX(regnskab_liste),IF(HLOOKUP(I$37,$C$104:$S$114,4,FALSE)<>0,HLOOKUP(I$37,$C$104:$S$114,4,FALSE)-$E120,"Ikke udfyldt"),"år er ikke tilføjet")) ->  | J40: =IF(J$37="","",IF(J$37<=MAX(regnskab_liste),IF(HLOOKUP(J$37,$C$104:$S$114,4,FALSE)<>0,HLOOKUP(J$37,$C$104:$S$114,4,FALSE)-$E120,"Ikke udfyldt"),"år er ikke tilføjet")) ->  | K40: =IF(K$37="","",IF(K$37<=MAX(regnskab_liste),IF(HLOOKUP(K$37,$C$104:$S$114,4,FALSE)<>0,HLOOKUP(K$37,$C$104:$S$114,4,FALSE)-$E120,"Ikke udfyldt"),"år er ikke tilføjet")) -> 
B41: ="Note: Merudgifterne er beregnet ud fra følgende basisperioder: Basisperioden for administration er "&Start_adm&"-"&Slut&", basisperioden for service er "&Start&"-"&Slut&", og basisperioden for de samlede udgifter er "&Start&"-"&Slut&". Udgifterne er defineret som art>0 og inkl. refusioner." -> Note: Merudgifterne er beregnet ud fra følgende basisperioder: Basisperioden for administration er 2015-2021, basisperioden for service er 2015-2021, og basisperioden for de samlede udgifter er 2015-2021. Udgifterne er defineret som art>0 og inkl. refusioner.
B44: Merudgifter indenfor og udenfor indsatstrappen
B46: ="Merudgifter fordelt på indsatstrappen for "&Kommune&", 1.000 kr., "&Prisår&"-priser" -> Merudgifter fordelt på indsatstrappen for Fredericia, 1.000 kr., 2023-priser
AB48: =Slut+1 -> 2022 | AC48: =IF(AB48="","",IF(Hjælpeark!$G$25="",IF(AB48+1<=2023,AB48+1,""),IF(AB48+1<=2024,AB48+1,""))) -> 2023 | AD48: =IF(AC48="","",IF(Hjælpeark!$G$25="",IF(AC48+1<=2023,AC48+1,""),IF(AC48+1<=2024,AC48+1,""))) -> 2024 | AE48: =IF(AD48="","",IF(Hjælpeark!$G$25="",IF(AD48+1<=2023,AD48+1,""),IF(AD48+1<=2024,AD48+1,""))) ->  | AF48: =IF(AE48="","",IF(Hjælpeark!$G$25="",IF(AE48+1<=2023,AE48+1,""),IF(AE48+1<=2024,AE48+1,""))) ->  | AG48: =IF(AF48="","",IF(Hjælpeark!$G$25="",IF(AF48+1<=2023,AF48+1,""),IF(AF48+1<=2024,AF48+1,""))) ->  | AH48: =IF(AG48="","",IF(Hjælpeark!$G$25="",IF(AG48+1<=2023,AG48+1,""),IF(AG48+1<=2024,AG48+1,""))) ->  | AI48: =IF(AH48="","",IF(Hjælpeark!$G$25="",IF(AH48+1<=2023,AH48+1,""),IF(AH48+1<=2024,AH48+1,""))) ->  | AJ48: =IF(AI48="","",IF(Hjælpeark!$G$25="",IF(AI48+1<=2023,AI48+1,""),IF(AI48+1<=2024,AI48+1,""))) -> 
AA49: Forebyggende indsatser | AB49: =IF(AB$48="","",IF(AB$48<=MAX(ÅR),IF(Start>=2015,IF(HLOOKUP(AB$48,$C$104:$T$114,5,FALSE)<>0,HLOOKUP(AB$48,$C$104:$T$114,5,FALSE)-$E121,"Ikke udfyldt"),"-"),"år er ikke tilføjet")) -> 592.5672177 | AC49: 480.2152177 | AD49: år er ikke tilføjet
AA50: Hjemmebaserede foranstaltninger | AB50: =IF(AB$48="","",IF(AB$48<=MAX(ÅR),IF(Start>=2015,IF(HLOOKUP(AB$48,$C$104:$T$114,6,FALSE)<>0,HLOOKUP(AB$48,$C$104:$T$114,6,FALSE)-$E122,"Ikke udfyldt"),"-"),"år er ikke tilføjet")) -> 11540.8386 | AC50: 17605.1066 | AD50: år er ikke tilføjet
AA51: Slægt- eller netværkspleje | AB51: =IF(AB$48="","",IF(AB$48<=MAX(ÅR),IF(HLOOKUP(AB$48,$C$104:$T$114,7,FALSE)<>0,HLOOKUP(AB$48,$C$104:$T$114,7,FALSE)-$E123,"Ikke udfyldt"),"år er ikke tilføjet")) -> 107.7656132 | AC51: 435.3216132 | AD51: år er ikke tilføjet
AA52: Familiepleje | AB52: =IF(AB$48="","",IF(AB$48<=MAX(ÅR),IF(HLOOKUP(AB$48,$C$104:$T$114,8,FALSE)<>0,HLOOKUP(AB$48,$C$104:$T$114,8,FALSE)-$E124,"Ikke udfyldt"),"år er ikke tilføjet")) -> 5738.520212 | AC52: 10274.61621 | AD52: år er ikke tilføjet
AA53: Institutionsanbringelser | AB53: =IF(AB$48="","",IF(AB$48<=MAX(ÅR),IF(HLOOKUP(AB$48,$C$104:$T$114,9,FALSE)<>0,HLOOKUP(AB$48,$C$104:$T$114,9,FALSE)-$E125,"Ikke udfyldt"),"år er ikke tilføjet")) -> 7524.321677 | AC53: 19251.50168 | AD53: år er ikke tilføjet
AB54: =AB48 -> 2022 | AC54: 2023 | AD54: 2024 | AH54: =AH48 ->  | AI54: =AI48 -> 
AA55: ikke-trinspecifikke grupperinger | AB55: =IF(AB$48="","",IF(AB$48<=MAX(ÅR),IF(HLOOKUP(AB$48,$C$104:$T$114,10,FALSE)<>0,HLOOKUP(AB$48,$C$104:$T$114,10,FALSE)-$E126,"Ikke udfyldt"),"år er ikke tilføjet")) -> 2410.267203 | AC55: 5610.459203 | AD55: år er ikke tilføjet
AA56: Refusioner | AB56: =IF(AB$48="","",IF(AB$48<=MAX(ÅR),IF(HLOOKUP(AB$48,$C$104:$T$114,11,FALSE)<>0,HLOOKUP(AB$48,$C$104:$T$114,11,FALSE)-$E127,"Ikke udfyldt"),"år er ikke tilføjet")) -> -14923.476 | AC56: -29896 | AD56: år er ikke tilføjet
B61: =B96 -> Note: Merudgifterne er beregnet ud fra basisperioden 2015-2021. Note: Udgifterne er defineret som art>0 og ekskl. refusioner.
B64: ="Merudgifter for ikke-trinspecifikke grupperinger og refusion for "&Kommune&", 1.000 kr., "&Prisår&"-priser" -> Merudgifter for ikke-trinspecifikke grupperinger og refusion for Fredericia, 1.000 kr., 2023-priser
B80: ="Note: Merudgifterne er beregnet ud fra basisperioden "&Start&"-"&Slut&". Note: Udgifterne er defineret som art>0 og ekskl. refusioner." -> Note: Merudgifterne er beregnet ud fra basisperioden 2015-2021. Note: Udgifterne er defineret som art>0 og ekskl. refusioner.
B83: ="Tabel - Merudgifter indenfor og udenfor indsatstrappen for "&Kommune&", 1.000 kr., "&Prisår&"-priser" -> Tabel - Merudgifter indenfor og udenfor indsatstrappen for Fredericia, 1.000 kr., 2023-priser
B85: ="Merudgifter indenfor og udenfor indsatstrappen for "&Kommune&", 1.000 kr., "&Prisår&"-priser" -> Merudgifter indenfor og udenfor indsatstrappen for Fredericia, 1.000 kr., 2023-priser
C86: =Slut+1 -> 2022 | D86: =IF(C86="","",IF(Hjælpeark!$G$28="",IF(C86+1<=2023,C86+1,""),IF(C86+1<=2024,C86+1,""))) -> 2023 | E86: =IF(D86="","",IF(Hjælpeark!$G$28="",IF(D86+1<=2023,D86+1,""),IF(D86+1<=2024,D86+1,""))) ->  | F86: =IF(E86="","",IF(Hjælpeark!$G$28="",IF(E86+1<=2023,E86+1,""),IF(E86+1<=2024,E86+1,""))) ->  | G86: =IF(F86="","",IF(Hjælpeark!$G$28="",IF(F86+1<=2023,F86+1,""),IF(F86+1<=2024,F86+1,""))) ->  | H86: =IF(G86="","",IF(Hjælpeark!$G$28="",IF(G86+1<=2023,G86+1,""),IF(G86+1<=2024,G86+1,""))) ->  | I86: =IF(H86="","",IF(Hjælpeark!$G$28="",IF(H86+1<=2023,H86+1,""),IF(H86+1<=2024,H86+1,""))) ->  | J86: =IF(I86="","",IF(Hjælpeark!$G$28="",IF(I86+1<=2023,I86+1,""),IF(I86+1<=2024,I86+1,""))) ->  | K86: =IF(J86="","",IF(Hjælpeark!$G$28="",IF(J86+1<=2023,J86+1,""),IF(J86+1<=2024,J86+1,""))) -> 
B87: Indenfor indsatstrappen | C87: ="" ->  | D87: ="" ->  | E87: ="" ->  | F87: ="" ->  | G87: ="" ->  | H87: ="" ->  | I87: ="" ->  | J87: ="" ->  | K87: ="" -> 
B88: Trin 2: Forebyggende indsatser | C88: =IF(C$86="","",IF(C$86<=MAX(regnskab_liste),IF(Start>=2015,IF(HLOOKUP(C$86,$C$104:$S$114,5,FALSE)<>0,HLOOKUP(C$86,$C$104:$S$114,5,FALSE)-$E121,"Ikke udfyldt"),"-"),"år er ikke tilføjet")) -> 592.5672177 | D88: 480.2152177
B89: Trin 3: Hjemmebaserede foranstaltninger | C89: =IF(C$86="","",IF(C$86<=MAX(regnskab_liste),IF(Start>=2015,IF(HLOOKUP(C$86,$C$104:$S$114,6,FALSE)<>0,HLOOKUP(C$86,$C$104:$S$114,6,FALSE)-$E122,"Ikke udfyldt"),"-"),"år er ikke tilføjet")) -> 11540.8386 | D89: 17605.1066
B90: Trin 4: Slægt- eller netværkspleje | C90: =IF(C$86="","",IF(C$86<=MAX(regnskab_liste),IF(HLOOKUP(C$86,$C$104:$S$114,7,FALSE)<>0,HLOOKUP(C$86,$C$104:$S$114,7,FALSE)-$E123,"Ikke udfyldt"),"år er ikke tilføjet")) -> 107.7656132 | D90: 435.3216132
B91: Trin 5: Familiepleje | C91: =IF(C$86="","",IF(C$86<=MAX(regnskab_liste),IF(HLOOKUP(C$86,$C$104:$S$114,8,FALSE)<>0,HLOOKUP(C$86,$C$104:$S$114,8,FALSE)-$E124,"Ikke udfyldt"),"år er ikke tilføjet")) -> 5738.520212 | D91: 10274.61621
B92: Trin 6: Institutionsanbringelser | C92: =IF(C$86="","",IF(C$86<=MAX(regnskab_liste),IF(HLOOKUP(C$86,$C$104:$S$114,9,FALSE)<>0,HLOOKUP(C$86,$C$104:$S$114,9,FALSE)-$E125,"Ikke udfyldt"),"år er ikke tilføjet")) -> 7524.321677 | D92: 19251.50168
B93: Udenfor indsatstrappen | C93: ="" ->  | D93: ="" ->  | E93: ="" ->  | F93: ="" ->  | G93: ="" ->  | H93: ="" ->  | I93: ="" ->  | J93: ="" ->  | K93: ="" -> 
B94: Ikke-trinspecifikke grupperinger | C94: =IF(C$86="","",IF(C$86<=MAX(regnskab_liste),IF(HLOOKUP(C$86,$C$104:$S$114,10,FALSE)<>0,HLOOKUP(C$86,$C$104:$S$114,10,FALSE)-$E126,"Ikke udfyldt"),"år er ikke tilføjet")) -> 2410.267203 | D94: 5610.459203
B95: Refusioner | C95: =IF(C$86="","",IF(C$86<=MAX(regnskab_liste),IF(HLOOKUP(C$86,$C$104:$S$114,11,FALSE)<>0,HLOOKUP(C$86,$C$104:$S$114,11,FALSE)-$E127,"Ikke udfyldt"),"år er ikke tilføjet")) -> -14923.476 | D95: -29896
B96: =IF(Start<2015,"Note: Merudgifterne er beregnet ud fra basisperioden "&Start&"-"&Slut&"."&" Merudgifter for forebyggende indsatser og hjemmebaserede foranstaltninger kan ikke beregnes, når basisperioden starter før 2015. "&CONCATENATE("Det skyldes, at forebyggende indsatser indgår som en del af hjemmebaserede foranstaltninger før 2015."," Det er således ikke muligt, at lave en gennemsnitlig udgift i en basisperiode for hver af de to opgørelser forud for 2015."," Udgifterne er defineret som art>0 og ekskl. refusioner."),"Note: Merudgifterne er beregnet ud fra basisperioden "&Start&"-"&Slut&". Note: Udgifterne er defineret som art>0 og ekskl. refusioner.") -> Note: Merudgifterne er beregnet ud fra basisperioden 2015-2021. Note: Udgifterne er defineret som art>0 og ekskl. refusioner.
B101: Udgifter og definition af basisperiode
B103: ="Udgifter til det specialiserede børneområde for "&Kommune&", 1.000 kr., "&Prisår&"-priser" -> Udgifter til det specialiserede børneområde for Fredericia, 1.000 kr., 2023-priser
C104: 2007 | D104: 2008 | E104: 2009 | F104: 2010 | G104: 2011 | H104: 2012 | I104: 2013 | J104: 2014 | K104: 2015 | L104: 2016 | M104: 2017 | N104: 2018 | O104: 2019 | P104: 2020 | Q104: 2021 | R104: 2022 | S104: 2023 | T104: 2024
B105: I alt | C105: =INDIRECT("200"&COLUMN()+4&"!Samlede_NDU")*INDEX(PL!$F$11:$F$58,COLUMN()-2) -> 110549.1918 | D105: =INDIRECT("200"&COLUMN()+4&"!Samlede_NDU")*INDEX(PL!$F$11:$F$58,COLUMN()-2) -> 105110.8225 | E105: =INDIRECT("200"&COLUMN()+4&"!Samlede_NDU")*INDEX(PL!$F$11:$F$58,COLUMN()-2) -> 108935.5813 | F105: =INDIRECT("20"&COLUMN()+4&"!Samlede_NDU")*INDEX(PL!$F$11:$F$58,COLUMN()-2) -> 105398.8409 | G105: =INDIRECT("20"&COLUMN()+4&"!Samlede_NDU")*INDEX(PL!$F$11:$F$58,COLUMN()-2) -> 106089.1356 | H105: =INDIRECT("20"&COLUMN()+4&"!Samlede_NDU")*INDEX(PL!$F$11:$F$58,COLUMN()-2) -> 97342.57688 | I105: =INDIRECT("20"&COLUMN()+4&"!Samlede_NDU")*INDEX(PL!$F$11:$F$58,COLUMN()-2) -> 131167.3804 | J105: =INDIRECT("20"&COLUMN()+4&"!Samlede_NDU")*INDEX(PL!$F$11:$F$58,COLUMN()-2) -> 115873.2374 | K105: =INDIRECT("20"&COLUMN()+4&"!Samlede_NDU")*INDEX(PL!$F$11:$F$58,COLUMN()-2) -> 116535.8765 | L105: =INDIRECT("20"&COLUMN()+4&"!Samlede_NDU")*INDEX(PL!$F$11:$F$58,COLUMN()-2) -> 125539.7518 | M105: =INDIRECT("20"&COLUMN()+4&"!Samlede_NDU")*INDEX(PL!$F$11:$F$58,COLUMN()-2) -> 133564.9513 | N105: =INDIRECT("20"&COLUMN()+4&"!Samlede_NDU")*INDEX(PL!$F$11:$F$58,COLUMN()-2) -> 137134.3721 | O105: =INDIRECT("20"&COLUMN()+4&"!Samlede_NDU")*INDEX(PL!$F$11:$F$58,COLUMN()-2) -> 129393.7196 | P105: =INDIRECT("20"&COLUMN()+4&"!Samlede_NDU")*INDEX(PL!$F$11:$F$58,COLUMN()-2) -> 132302.6311 | Q105: =INDIRECT("20"&COLUMN()+4&"!Samlede_NDU")*INDEX(PL!$F$11:$F$58,COLUMN()-2) -> 131168.2675 | R105: =INDIRECT("20"&COLUMN()+4&"!Samlede_NDU")*INDEX(PL!$F$11:$F$58,COLUMN()-2) -> 150127.064 | S105: =INDIRECT("20"&COLUMN()+4&"!Samlede_NDU")*INDEX(PL!$F$11:$F$58,COLUMN()-2) -> 166270 | T105: =INDIRECT("20"&COLUMN()+4&"!Samlede_NDU")*INDEX(PL!$F$11:$F$58,COLUMN()-2) -> 0
B106: Administration | C106: =INDIRECT("200"&COLUMN()+4&"!Administration")*INDEX(PL!$F$11:$F$58,COLUMN()-2) -> 0 | D106: =INDIRECT("200"&COLUMN()+4&"!Administration")*INDEX(PL!$F$11:$F$58,COLUMN()-2) -> 0 | E106: =INDIRECT("200"&COLUMN()+4&"!Administration")*INDEX(PL!$F$11:$F$58,COLUMN()-2) -> 0 | F106: =INDIRECT("20"&COLUMN()+4&"!Administration")*INDEX(PL!$F$11:$F$58,COLUMN()-2) -> 0 | G106: =INDIRECT("20"&COLUMN()+4&"!Administration")*INDEX(PL!$F$11:$F$58,COLUMN()-2) -> 0 | H106: =INDIRECT("20"&COLUMN()+4&"!Administration")*INDEX(PL!$F$11:$F$58,COLUMN()-2) -> 0 | I106: =INDIRECT("20"&COLUMN()+4&"!Administration")*INDEX(PL!$F$11:$F$58,COLUMN()-2) -> 19700.58456 | J106: =INDIRECT("20"&COLUMN()+4&"!Administration")*INDEX(PL!$F$11:$F$58,COLUMN()-2) -> 22203.7554 | K106: =INDIRECT("20"&COLUMN()+4&"!Administration")*INDEX(PL!$F$11:$F$58,COLUMN()-2) -> 20471.67576 | L106: =INDIRECT("20"&COLUMN()+4&"!Administration")*INDEX(PL!$F$11:$F$58,COLUMN()-2) -> 22142.80638 | M106: =INDIRECT("20"&COLUMN()+4&"!Administration")*INDEX(PL!$F$11:$F$58,COLUMN()-2) -> 21729.93757 | N106: =INDIRECT("20"&COLUMN()+4&"!Administration")*INDEX(PL!$F$11:$F$58,COLUMN()-2) -> 22755.63718 | O106: =INDIRECT("20"&COLUMN()+4&"!Administration")*INDEX(PL!$F$11:$F$58,COLUMN()-2) -> 21218.41818 | P106: =INDIRECT("20"&COLUMN()+4&"!Administration")*INDEX(PL!$F$11:$F$58,COLUMN()-2) -> 21598.33176 | Q106: =INDIRECT("20"&COLUMN()+4&"!Administration")*INDEX(PL!$F$11:$F$58,COLUMN()-2) -> 23307.8111 | R106: =INDIRECT("20"&COLUMN()+4&"!Administration")*INDEX(PL!$F$11:$F$58,COLUMN()-2) -> 25607.48 | S106: =INDIRECT("20"&COLUMN()+4&"!Administration")*INDEX(PL!$F$11:$F$58,COLUMN()-2) -> 30980 | T106: =INDIRECT("20"&COLUMN()+4&"!Administration")*INDEX(PL!$F$11:$F$58,COLUMN()-2) -> 0
B107: Service | C107: =INDIRECT("200"&COLUMN()+4&"!NDU_Service")*INDEX(PL!$F$11:$F$58,COLUMN()-2) -> 110549.1918 | D107: =INDIRECT("200"&COLUMN()+4&"!NDU_Service")*INDEX(PL!$F$11:$F$58,COLUMN()-2) -> 105110.8225 | E107: =INDIRECT("200"&COLUMN()+4&"!NDU_Service")*INDEX(PL!$F$11:$F$58,COLUMN()-2) -> 108935.5813 | F107: =INDIRECT("20"&COLUMN()+4&"!NDU_Service")*INDEX(PL!$F$11:$F$58,COLUMN()-2) -> 105398.8409 | G107: =INDIRECT("20"&COLUMN()+4&"!NDU_Service")*INDEX(PL!$F$11:$F$58,COLUMN()-2) -> 106089.1356 | H107: =INDIRECT("20"&COLUMN()+4&"!NDU_Service")*INDEX(PL!$F$11:$F$58,COLUMN()-2) -> 97342.57688 | I107: =INDIRECT("20"&COLUMN()+4&"!NDU_Service")*INDEX(PL!$F$11:$F$58,COLUMN()-2) -> 111466.7958 | J107: =INDIRECT("20"&COLUMN()+4&"!NDU_Service")*INDEX(PL!$F$11:$F$58,COLUMN()-2) -> 93669.48203 | K107: =INDIRECT("20"&COLUMN()+4&"!NDU_Service")*INDEX(PL!$F$11:$F$58,COLUMN()-2) -> 96064.20077 | L107: =INDIRECT("20"&COLUMN()+4&"!NDU_Service")*INDEX(PL!$F$11:$F$58,COLUMN()-2) -> 103396.9454 | M107: =INDIRECT("20"&COLUMN()+4&"!NDU_Service")*INDEX(PL!$F$11:$F$58,COLUMN()-2) -> 111835.0137 | N107: =INDIRECT("20"&COLUMN()+4&"!NDU_Service")*INDEX(PL!$F$11:$F$58,COLUMN()-2) -> 114378.735 | O107: =INDIRECT("20"&COLUMN()+4&"!NDU_Service")*INDEX(PL!$F$11:$F$58,COLUMN()-2) -> 108175.3015 | P107: =INDIRECT("20"&COLUMN()+4&"!NDU_Service")*INDEX(PL!$F$11:$F$58,COLUMN()-2) -> 110704.2994 | Q107: =INDIRECT("20"&COLUMN()+4&"!NDU_Service")*INDEX(PL!$F$11:$F$58,COLUMN()-2) -> 107860.4564 | R107: =INDIRECT("20"&COLUMN()+4&"!NDU_Service")*INDEX(PL!$F$11:$F$58,COLUMN()-2) -> 124519.584 | S107: =INDIRECT("20"&COLUMN()+4&"!NDU_Service")*INDEX(PL!$F$11:$F$58,COLUMN()-2) -> 135290 | T107: =INDIRECT("20"&COLUMN()+4&"!NDU_Service")*INDEX(PL!$F$11:$F$58,COLUMN()-2) -> 0
B108: Heraf trin 2: Forebyggende indsatser | C108: =INDIRECT("200"&COLUMN()+4&"!BDU_forebyggende")*INDEX(PL!$F$11:$F$58,COLUMN()-2) -> 0 | D108: =INDIRECT("200"&COLUMN()+4&"!BDU_forebyggende")*INDEX(PL!$F$11:$F$58,COLUMN()-2) -> 0 | E108: =INDIRECT("200"&COLUMN()+4&"!BDU_forebyggende")*INDEX(PL!$F$11:$F$58,COLUMN()-2) -> 0 | F108: =INDIRECT("20"&COLUMN()+4&"!BDU_forebyggende")*INDEX(PL!$F$11:$F$58,COLUMN()-2) -> 0 | G108: =INDIRECT("20"&COLUMN()+4&"!BDU_forebyggende")*INDEX(PL!$F$11:$F$58,COLUMN()-2) -> 0 | H108: =INDIRECT("20"&COLUMN()+4&"!BDU_forebyggende")*INDEX(PL!$F$11:$F$58,COLUMN()-2) -> 0 | I108: =INDIRECT("20"&COLUMN()+4&"!BDU_forebyggende")*INDEX(PL!$F$11:$F$58,COLUMN()-2) -> 0 | J108: =INDIRECT("20"&COLUMN()+4&"!BDU_forebyggende")*INDEX(PL!$F$11:$F$58,COLUMN()-2) -> 0 | K108: =INDIRECT("20"&COLUMN()+4&"!BDU_forebyggende")*INDEX(PL!$F$11:$F$58,COLUMN()-2) -> 0 | L108: =INDIRECT("20"&COLUMN()+4&"!BDU_forebyggende")*INDEX(PL!$F$11:$F$58,COLUMN()-2) -> 5.804447516 | M108: =INDIRECT("20"&COLUMN()+4&"!BDU_forebyggende")*INDEX(PL!$F$11:$F$58,COLUMN()-2) -> 1674.688488 | N108: =INDIRECT("20"&COLUMN()+4&"!BDU_forebyggende")*INDEX(PL!$F$11:$F$58,COLUMN()-2) -> 1214.593662 | O108: =INDIRECT("20"&COLUMN()+4&"!BDU_forebyggende")*INDEX(PL!$F$11:$F$58,COLUMN()-2) -> 1856.293353 | P108: =INDIRECT("20"&COLUMN()+4&"!BDU_forebyggende")*INDEX(PL!$F$11:$F$58,COLUMN()-2) -> 1392.568157 | Q108: =INDIRECT("20"&COLUMN()+4&"!BDU_forebyggende")*INDEX(PL!$F$11:$F$58,COLUMN()-2) -> 1106.545368 | R108: =INDIRECT("20"&COLUMN()+4&"!BDU_forebyggende")*INDEX(PL!$F$11:$F$58,COLUMN()-2) -> 1628.352 | S108: =INDIRECT("20"&COLUMN()+4&"!BDU_forebyggende")*INDEX(PL!$F$11:$F$58,COLUMN()-2) -> 1516 | T108: =INDIRECT("20"&COLUMN()+4&"!BDU_forebyggende")*INDEX(PL!$F$11:$F$58,COLUMN()-2) -> 0
B109: Heraf trin 3: Hjemmebaserede foranstaltninger | C109: =INDIRECT("200"&COLUMN()+4&"!BDU_hjemme")*INDEX(PL!$F$11:$F$58,COLUMN()-2) -> 17631.0173 | D109: =INDIRECT("200"&COLUMN()+4&"!BDU_hjemme")*INDEX(PL!$F$11:$F$58,COLUMN()-2) -> 17134.8048 | E109: =INDIRECT("200"&COLUMN()+4&"!BDU_hjemme")*INDEX(PL!$F$11:$F$58,COLUMN()-2) -> 13949.8401 | F109: =INDIRECT("20"&COLUMN()+4&"!BDU_hjemme")*INDEX(PL!$F$11:$F$58,COLUMN()-2) -> 13866.09951 | G109: =INDIRECT("20"&COLUMN()+4&"!BDU_hjemme")*INDEX(PL!$F$11:$F$58,COLUMN()-2) -> 12587.84378 | H109: =INDIRECT("20"&COLUMN()+4&"!BDU_hjemme")*INDEX(PL!$F$11:$F$58,COLUMN()-2) -> 8947.008919 | I109: =INDIRECT("20"&COLUMN()+4&"!BDU_hjemme")*INDEX(PL!$F$11:$F$58,COLUMN()-2) -> 13628.34565 | J109: =INDIRECT("20"&COLUMN()+4&"!BDU_hjemme")*INDEX(PL!$F$11:$F$58,COLUMN()-2) -> 12815.91881 | K109: =INDIRECT("20"&COLUMN()+4&"!BDU_hjemme")*INDEX(PL!$F$11:$F$58,COLUMN()-2) -> 12204.6078 | L109: =INDIRECT("20"&COLUMN()+4&"!BDU_hjemme")*INDEX(PL!$F$11:$F$58,COLUMN()-2) -> 12990.35354 | M109: =INDIRECT("20"&COLUMN()+4&"!BDU_hjemme")*INDEX(PL!$F$11:$F$58,COLUMN()-2) -> 17486.25416 | N109: =INDIRECT("20"&COLUMN()+4&"!BDU_hjemme")*INDEX(PL!$F$11:$F$58,COLUMN()-2) -> 20766.17774 | O109: =INDIRECT("20"&COLUMN()+4&"!BDU_hjemme")*INDEX(PL!$F$11:$F$58,COLUMN()-2) -> 16766.41349 | P109: =INDIRECT("20"&COLUMN()+4&"!BDU_hjemme")*INDEX(PL!$F$11:$F$58,COLUMN()-2) -> 22590.5501 | Q109: =INDIRECT("20"&COLUMN()+4&"!BDU_hjemme")*INDEX(PL!$F$11:$F$58,COLUMN()-2) -> 22711.89698 | R109: =INDIRECT("20"&COLUMN()+4&"!BDU_hjemme")*INDEX(PL!$F$11:$F$58,COLUMN()-2) -> 29471.732 | S109: =INDIRECT("20"&COLUMN()+4&"!BDU_hjemme")*INDEX(PL!$F$11:$F$58,COLUMN()-2) -> 35536 | T109: =INDIRECT("20"&COLUMN()+4&"!BDU_hjemme")*INDEX(PL!$F$11:$F$58,COLUMN()-2) -> 0
B110: Heraf trin 4: Slægt- eller netværkspleje | C110: =INDIRECT("200"&COLUMN()+4&"!BDU_netværk")*INDEX(PL!$F$11:$F$58,COLUMN()-2) -> 0 | D110: =INDIRECT("200"&COLUMN()+4&"!BDU_netværk")*INDEX(PL!$F$11:$F$58,COLUMN()-2) -> 0 | E110: =INDIRECT("200"&COLUMN()+4&"!BDU_netværk")*INDEX(PL!$F$11:$F$58,COLUMN()-2) -> 0 | F110: =INDIRECT("20"&COLUMN()+4&"!BDU_netværk")*INDEX(PL!$F$11:$F$58,COLUMN()-2) -> 0 | G110: =INDIRECT("20"&COLUMN()+4&"!BDU_netværk")*INDEX(PL!$F$11:$F$58,COLUMN()-2) -> 0 | H110: =INDIRECT("20"&COLUMN()+4&"!BDU_netværk")*INDEX(PL!$F$11:$F$58,COLUMN()-2) -> 0 | I110: =INDIRECT("20"&COLUMN()+4&"!BDU_netværk")*INDEX(PL!$F$11:$F$58,COLUMN()-2) -> 703.2032702 | J110: =INDIRECT("20"&COLUMN()+4&"!BDU_netværk")*INDEX(PL!$F$11:$F$58,COLUMN()-2) -> 1384.601455 | K110: =INDIRECT("20"&COLUMN()+4&"!BDU_netværk")*INDEX(PL!$F$11:$F$58,COLUMN()-2) -> 1637.404461 | L110: =INDIRECT("20"&COLUMN()+4&"!BDU_netværk")*INDEX(PL!$F$11:$F$58,COLUMN()-2) -> 1790.091614 | M110: =INDIRECT("20"&COLUMN()+4&"!BDU_netværk")*INDEX(PL!$F$11:$F$58,COLUMN()-2) -> 1969.752651 | N110: =INDIRECT("20"&COLUMN()+4&"!BDU_netværk")*INDEX(PL!$F$11:$F$58,COLUMN()-2) -> 1674.56478 | O110: =INDIRECT("20"&COLUMN()+4&"!BDU_netværk")*INDEX(PL!$F$11:$F$58,COLUMN()-2) -> 1482.156708 | P110: =INDIRECT("20"&COLUMN()+4&"!BDU_netværk")*INDEX(PL!$F$11:$F$58,COLUMN()-2) -> 2198.677929 | Q110: =INDIRECT("20"&COLUMN()+4&"!BDU_netværk")*INDEX(PL!$F$11:$F$58,COLUMN()-2) -> 1971.100564 | R110: =INDIRECT("20"&COLUMN()+4&"!BDU_netværk")*INDEX(PL!$F$11:$F$58,COLUMN()-2) -> 1925.444 | S110: =INDIRECT("20"&COLUMN()+4&"!BDU_netværk")*INDEX(PL!$F$11:$F$58,COLUMN()-2) -> 2253 | T110: =INDIRECT("20"&COLUMN()+4&"!BDU_netværk")*INDEX(PL!$F$11:$F$58,COLUMN()-2) -> 0
B111: Heraf trin 5: Familiepleje | C111: =INDIRECT("200"&COLUMN()+4&"!BDU_familiepleje")*INDEX(PL!$F$11:$F$58,COLUMN()-2) -> 41939.91773 | D111: =INDIRECT("200"&COLUMN()+4&"!BDU_familiepleje")*INDEX(PL!$F$11:$F$58,COLUMN()-2) -> 39659.90819 | E111: =INDIRECT("200"&COLUMN()+4&"!BDU_familiepleje")*INDEX(PL!$F$11:$F$58,COLUMN()-2) -> 43284.82326 | F111: =INDIRECT("20"&COLUMN()+4&"!BDU_familiepleje")*INDEX(PL!$F$11:$F$58,COLUMN()-2) -> 45784.12334 | G111: =INDIRECT("20"&COLUMN()+4&"!BDU_familiepleje")*INDEX(PL!$F$11:$F$58,COLUMN()-2) -> 48807.93722 | H111: =INDIRECT("20"&COLUMN()+4&"!BDU_familiepleje")*INDEX(PL!$F$11:$F$58,COLUMN()-2) -> 47919.49031 | I111: =INDIRECT("20"&COLUMN()+4&"!BDU_familiepleje")*INDEX(PL!$F$11:$F$58,COLUMN()-2) -> 42440.3144 | J111: =INDIRECT("20"&COLUMN()+4&"!BDU_familiepleje")*INDEX(PL!$F$11:$F$58,COLUMN()-2) -> 38802.26215 | K111: =INDIRECT("20"&COLUMN()+4&"!BDU_familiepleje")*INDEX(PL!$F$11:$F$58,COLUMN()-2) -> 35532.02995 | L111: =INDIRECT("20"&COLUMN()+4&"!BDU_familiepleje")*INDEX(PL!$F$11:$F$58,COLUMN()-2) -> 38135.22018 | M111: =INDIRECT("20"&COLUMN()+4&"!BDU_familiepleje")*INDEX(PL!$F$11:$F$58,COLUMN()-2) -> 38179.47981 | N111: =INDIRECT("20"&COLUMN()+4&"!BDU_familiepleje")*INDEX(PL!$F$11:$F$58,COLUMN()-2) -> 41109.49695 | O111: =INDIRECT("20"&COLUMN()+4&"!BDU_familiepleje")*INDEX(PL!$F$11:$F$58,COLUMN()-2) -> 39448.17085 | P111: =INDIRECT("20"&COLUMN()+4&"!BDU_familiepleje")*INDEX(PL!$F$11:$F$58,COLUMN()-2) -> 38937.80707 | Q111: =INDIRECT("20"&COLUMN()+4&"!BDU_familiepleje")*INDEX(PL!$F$11:$F$58,COLUMN()-2) -> 40204.4817 | R111: =INDIRECT("20"&COLUMN()+4&"!BDU_familiepleje")*INDEX(PL!$F$11:$F$58,COLUMN()-2) -> 44530.904 | S111: =INDIRECT("20"&COLUMN()+4&"!BDU_familiepleje")*INDEX(PL!$F$11:$F$58,COLUMN()-2) -> 49067 | T111: =INDIRECT("20"&COLUMN()+4&"!BDU_familiepleje")*INDEX(PL!$F$11:$F$58,COLUMN()-2) -> 0
B112: Heraf trin 6: Institutionsanbringelser | C112: =INDIRECT("200"&COLUMN()+4&"!BDU_institution")*INDEX(PL!$F$11:$F$58,COLUMN()-2) -> 69005.72947 | D112: =INDIRECT("200"&COLUMN()+4&"!BDU_institution")*INDEX(PL!$F$11:$F$58,COLUMN()-2) -> 63318.38422 | E112: =INDIRECT("200"&COLUMN()+4&"!BDU_institution")*INDEX(PL!$F$11:$F$58,COLUMN()-2) -> 41097.94346 | F112: =INDIRECT("20"&COLUMN()+4&"!BDU_institution")*INDEX(PL!$F$11:$F$58,COLUMN()-2) -> 28993.90628 | G112: =INDIRECT("20"&COLUMN()+4&"!BDU_institution")*INDEX(PL!$F$11:$F$58,COLUMN()-2) -> 28381.4819 | H112: =INDIRECT("20"&COLUMN()+4&"!BDU_institution")*INDEX(PL!$F$11:$F$58,COLUMN()-2) -> 24706.65354 | I112: =INDIRECT("20"&COLUMN()+4&"!BDU_institution")*INDEX(PL!$F$11:$F$58,COLUMN()-2) -> 31258.05104 | J112: =INDIRECT("20"&COLUMN()+4&"!BDU_institution")*INDEX(PL!$F$11:$F$58,COLUMN()-2) -> 23568.06528 | K112: =INDIRECT("20"&COLUMN()+4&"!BDU_institution")*INDEX(PL!$F$11:$F$58,COLUMN()-2) -> 21447.52644 | L112: =INDIRECT("20"&COLUMN()+4&"!BDU_institution")*INDEX(PL!$F$11:$F$58,COLUMN()-2) -> 23259.58209 | M112: =INDIRECT("20"&COLUMN()+4&"!BDU_institution")*INDEX(PL!$F$11:$F$58,COLUMN()-2) -> 26833.75011 | N112: =INDIRECT("20"&COLUMN()+4&"!BDU_institution")*INDEX(PL!$F$11:$F$58,COLUMN()-2) -> 23600.22962 | O112: =INDIRECT("20"&COLUMN()+4&"!BDU_institution")*INDEX(PL!$F$11:$F$58,COLUMN()-2) -> 23147.7678 | P112: =INDIRECT("20"&COLUMN()+4&"!BDU_institution")*INDEX(PL!$F$11:$F$58,COLUMN()-2) -> 18482.09533 | Q112: =INDIRECT("20"&COLUMN()+4&"!BDU_institution")*INDEX(PL!$F$11:$F$58,COLUMN()-2) -> 17911.53687 | R112: =INDIRECT("20"&COLUMN()+4&"!BDU_institution")*INDEX(PL!$F$11:$F$58,COLUMN()-2) -> 29621.82 | S112: =INDIRECT("20"&COLUMN()+4&"!BDU_institution")*INDEX(PL!$F$11:$F$58,COLUMN()-2) -> 41349 | T112: =INDIRECT("20"&COLUMN()+4&"!BDU_institution")*INDEX(PL!$F$11:$F$58,COLUMN()-2) -> 0
B113: Heraf Ikke-trinspecifikke grupperinger | C113: =INDIRECT("200"&COLUMN()+4&"!BDU_universal")*INDEX(PL!$F$11:$F$58,COLUMN()-2) -> -9337.789405 | D113: =INDIRECT("200"&COLUMN()+4&"!BDU_universal")*INDEX(PL!$F$11:$F$58,COLUMN()-2) -> -7309.982394 | E113: =INDIRECT("200"&COLUMN()+4&"!BDU_universal")*INDEX(PL!$F$11:$F$58,COLUMN()-2) -> 14088.15111 | F113: =INDIRECT("20"&COLUMN()+4&"!BDU_universal")*INDEX(PL!$F$11:$F$58,COLUMN()-2) -> 18819.09307 | G113: =INDIRECT("20"&COLUMN()+4&"!BDU_universal")*INDEX(PL!$F$11:$F$58,COLUMN()-2) -> 17742.65092 | H113: =INDIRECT("20"&COLUMN()+4&"!BDU_universal")*INDEX(PL!$F$11:$F$58,COLUMN()-2) -> 17323.14024 | I113: =INDIRECT("20"&COLUMN()+4&"!BDU_universal")*INDEX(PL!$F$11:$F$58,COLUMN()-2) -> 27947.79124 | J113: =INDIRECT("20"&COLUMN()+4&"!BDU_universal")*INDEX(PL!$F$11:$F$58,COLUMN()-2) -> 20611.46372 | K113: =INDIRECT("20"&COLUMN()+4&"!BDU_universal")*INDEX(PL!$F$11:$F$58,COLUMN()-2) -> 27479.20183 | L113: =INDIRECT("20"&COLUMN()+4&"!BDU_universal")*INDEX(PL!$F$11:$F$58,COLUMN()-2) -> 31446.17486 | M113: =INDIRECT("20"&COLUMN()+4&"!BDU_universal")*INDEX(PL!$F$11:$F$58,COLUMN()-2) -> 29436.92235 | N113: =INDIRECT("20"&COLUMN()+4&"!BDU_universal")*INDEX(PL!$F$11:$F$58,COLUMN()-2) -> 29335.8108 | O113: =INDIRECT("20"&COLUMN()+4&"!BDU_universal")*INDEX(PL!$F$11:$F$58,COLUMN()-2) -> 29810.27805 | P113: =INDIRECT("20"&COLUMN()+4&"!BDU_universal")*INDEX(PL!$F$11:$F$58,COLUMN()-2) -> 30758.76845 | Q113: =INDIRECT("20"&COLUMN()+4&"!BDU_universal")*INDEX(PL!$F$11:$F$58,COLUMN()-2) -> 30714.62923 | R113: =INDIRECT("20"&COLUMN()+4&"!BDU_universal")*INDEX(PL!$F$11:$F$58,COLUMN()-2) -> 32264.808 | S113: =INDIRECT("20"&COLUMN()+4&"!BDU_universal")*INDEX(PL!$F$11:$F$58,COLUMN()-2) -> 35465 | T113: =INDIRECT("20"&COLUMN()+4&"!BDU_universal")*INDEX(PL!$F$11:$F$58,COLUMN()-2) -> 0
B114: Heraf refusioner | C114: =INDIRECT("200"&COLUMN()+4&"!Ref")*INDEX(PL!$F$11:$F$58,COLUMN()-2) -> -8689.683275 | D114: =INDIRECT("200"&COLUMN()+4&"!Ref")*INDEX(PL!$F$11:$F$58,COLUMN()-2) -> -7692.292304 | E114: =INDIRECT("200"&COLUMN()+4&"!Ref")*INDEX(PL!$F$11:$F$58,COLUMN()-2) -> -3485.176587 | F114: =INDIRECT("20"&COLUMN()+4&"!Ref")*INDEX(PL!$F$11:$F$58,COLUMN()-2) -> -2064.381344 | G114: =INDIRECT("20"&COLUMN()+4&"!Ref")*INDEX(PL!$F$11:$F$58,COLUMN()-2) -> -1430.778186 | H114: =INDIRECT("20"&COLUMN()+4&"!Ref")*INDEX(PL!$F$11:$F$58,COLUMN()-2) -> -1553.716127 | I114: =INDIRECT("20"&COLUMN()+4&"!Ref")*INDEX(PL!$F$11:$F$58,COLUMN()-2) -> -4510.90979 | J114: =INDIRECT("20"&COLUMN()+4&"!Ref")*INDEX(PL!$F$11:$F$58,COLUMN()-2) -> -3512.82938 | K114: =INDIRECT("20"&COLUMN()+4&"!Ref")*INDEX(PL!$F$11:$F$58,COLUMN()-2) -> -2236.569717 | L114: =INDIRECT("20"&COLUMN()+4&"!Ref")*INDEX(PL!$F$11:$F$58,COLUMN()-2) -> -4230.28135 | M114: =INDIRECT("20"&COLUMN()+4&"!Ref")*INDEX(PL!$F$11:$F$58,COLUMN()-2) -> -3745.833844 | N114: =INDIRECT("20"&COLUMN()+4&"!Ref")*INDEX(PL!$F$11:$F$58,COLUMN()-2) -> -3322.138589 | O114: =INDIRECT("20"&COLUMN()+4&"!Ref")*INDEX(PL!$F$11:$F$58,COLUMN()-2) -> -4335.77881 | P114: =INDIRECT("20"&COLUMN()+4&"!Ref")*INDEX(PL!$F$11:$F$58,COLUMN()-2) -> -3656.167679 | Q114: =INDIRECT("20"&COLUMN()+4&"!Ref")*INDEX(PL!$F$11:$F$58,COLUMN()-2) -> -6759.734276 | R114: =INDIRECT("20"&COLUMN()+4&"!Ref")*INDEX(PL!$F$11:$F$58,COLUMN()-2) -> -14923.476 | S114: =INDIRECT("20"&COLUMN()+4&"!Ref")*INDEX(PL!$F$11:$F$58,COLUMN()-2) -> -29896 | T114: =INDIRECT("20"&COLUMN()+4&"!Ref")*INDEX(PL!$F$11:$F$58,COLUMN()-2) -> 0
B116: Basisperiode
C117: =IF(Start<Start_adm,"Gennemsnitlige udgifter i alt "&Start_adm&" - "&Slut,IF(Start>Start_adm,"Gennemsnitlige udgifter i alt "&Start&" - "&Slut,"Gennemsnitlige udgifter i alt "&Start&" - "&Slut)) -> Gennemsnitlige udgifter i alt 2015 - 2021 | D117: ="Gennemsnitlige administrations-udgifter "&Start_adm&" - "&Slut -> Gennemsnitlige administrations-udgifter 2015 - 2021 | E117: ="Gennemsnitlige serviceudgifter "&Start&" - "&Slut -> Gennemsnitlige serviceudgifter 2015 - 2021
B118: I alt | C118: =IF(AND(Start<=Slut,Start_adm<=Slut),IF(Start<Start_adm,AVERAGEIFS(Sam_NDU,ÅR,">="&Start_adm,ÅR,"<="&Slut),IF(Start>Start_adm,AVERAGEIFS(Sam_NDU,ÅR,">="&Start,ÅR,"<="&Slut),AVERAGEIFS(Sam_NDU,ÅR,">="&Start,ÅR,"<="&Slut))),"Fejl i slutår") -> 129377.0814
B119: Administration | D119: =IF(Start_adm<=Slut,AVERAGEIFS(Adm,ÅR,">="&Start_adm,ÅR,"<="&Slut),"Fejl i slutår") -> 21889.23113
B120: Service | E120: =IF(Start<=Slut,AVERAGEIFS(Service,ÅR,">="&Start,ÅR,"<="&Slut),"Fejl i slutår") -> 107487.8503
B121: Heraf trin 2: Forebyggende indsatser | E121: =IF(Start<=Slut,AVERAGEIFS(Forebyggende,ÅR,">="&Start,ÅR,"<="&Slut),"Fejl i slutår") -> 1035.784782
B122: Heraf trin 3: Hjemmebaserede foranstaltninger | E122: =IF(Start<=Slut,AVERAGEIFS(Hjemme,ÅR,">="&Start,ÅR,"<="&Slut),"Fejl i slutår") -> 17930.8934
B123: Heraf trin 4: Slægt- eller netværkspleje | E123: =IF(Start<=Slut,AVERAGEIFS(Netværks,ÅR,">="&Start,ÅR,"<="&Slut),"Fejl i slutår") -> 1817.678387
B124: Heraf trin 5: Familiepleje | E124: =IF(Start<=Slut,AVERAGEIFS(Pleje,ÅR,">="&Start,ÅR,"<="&Slut),"Fejl i slutår") -> 38792.38379
B125: Heraf trin 6: Institutionsanbringelser | E125: =IF(Start<=Slut,AVERAGEIFS(Institution,ÅR,">="&Start,ÅR,"<="&Slut),"Fejl i slutår") -> 22097.49832
B126: Heraf Ikke-trinspecifikke grupperinger | E126: =IF(Start<=Slut,AVERAGEIFS(Universale,ÅR,">="&Start,ÅR,"<="&Slut),"Fejl i slutår") -> 29854.5408
B127: Heraf refusioner | E127: 0

Sheet Alle år
B8: På denne side kan du se udgiftsudviklingen fordelt indenfor og udenfor indsatstrappen og sammenligne med din sammenligningsgruppe, region og hele landet. Udgiftsudviklingen præsenteres på to måder: 1) Du kan vælge at se udgiftsudviklingen for enten din valgte kommune, sammenligningsgruppen, regionen eller hele landet. For hver aktør kan du sammenligne udgiftsopgørelserne med hinanden og se, hvordan fordelingen ændres over tid. 2) Du kan vælge at se hver enkelt opgørelse for alle aktører over tid. Det giver dig mulighed for, at sammenligne den enkelte opgørelse over tid for de forskellige aktører. Du kan se beregningen af de enkelte regnskabsår ved at bruge knappen "Regnskabsår" i den øverste røde bjælke. For hvert regnskabsår kan du se udgiftsfordelingen for din valgte kommune. Du kan også se hvordan serviceudgifternes fordeling på de enkelte trin ændrer sig over tid, ved at vælge knappen ”Fordeling”, eller du kan lave en analyse af udgiftsændringer ved at vælge knappen "Ændring". Begge knapper er placeret i den røde bjælke. Du kan altid ændre på dine valg ved at bruge knappen "Dine valg" ligeledes placeret i den røde bjælke.
B11: Udgiftsudvikling for hver aktør
B13: Vælg aktør
B17: Udgifter til service, administration og i alt
B19: ="Udgifter til service, administration og i alt for "&alle_aar_tekst_valg&", 1.000 kr., "&Prisår&"-priser" -> Udgifter til service, administration og i alt for Fredericia, 1.000 kr., 2023-priser
B40: ="Note: Udgifterne er defineret som art>0. De valgte sammenligningskommuner er "&Samkom1&" "&Samkom2&" "&Samkom3&" "&Samkom4&" "&Samkom5&" "&Samkom6&" "&Samkom7&" "&Samkom8&" "&Samkom9&" "&Samkom10&" "&Samkom11&" "&Samkom12&" "&Samkom13&" "&Samkom14&" "&Samkom15&" "&Samkom16&" "&Samkom17&" "&Samkom18&" " -> Note: Udgifterne er defineret som art>0. De valgte sammenligningskommuner er Allerød
B41: Kilde: Danmarks Statistik
B43: ="Tabel - Udgifter til service, administration og i alt for "&alle_aar_tekst_valg&"" -> Tabel - Udgifter til service, administration og i alt for Fredericia
B45: ="Udgifter til service, administration og i alt for "&alle_aar_tekst_valg&", 1.000 kr., "&Prisår&"-priser" -> Udgifter til service, administration og i alt for Fredericia, 1.000 kr., 2023-priser
C46: ='Udgifter til figur'!C6 -> 2007 | D46: ='Udgifter til figur'!D6 -> 2008 | E46: ='Udgifter til figur'!E6 -> 2009 | F46: ='Udgifter til figur'!F6 -> 2010 | G46: ='Udgifter til figur'!G6 -> 2011 | H46: ='Udgifter til figur'!H6 -> 2012 | I46: ='Udgifter til figur'!I6 -> 2013 | J46: ='Udgifter til figur'!J6 -> 2014 | K46: ='Udgifter til figur'!K6 -> 2015 | L46: ='Udgifter til figur'!L6 -> 2016 | M46: ='Udgifter til figur'!M6 -> 2017 | N46: ='Udgifter til figur'!N6 -> 2018 | O46: ='Udgifter til figur'!O6 -> 2019 | P46: ='Udgifter til figur'!P6 -> 2020 | Q46: ='Dine valg'!L10 -> 2021 | R46: ='Dine valg'!L11 -> 2022 | S46: ='Dine valg'!L12 -> 2023 | T46: ='Dine valg'!L13 ->  | U46: ='Dine valg'!L14 ->  | V46: ='Dine valg'!L15 ->  | W46: ='Dine valg'!L16 -> 
B47: =""&alle_aar_tekst_valg&"" -> Fredericia | C47: ="" ->  | D47: ="" ->  | E47: ="" ->  | F47: ="" ->  | G47: ="" ->  | H47: ="" ->  | I47: ="" ->  | J47: ="" ->  | K47: ="" ->  | L47: ="" ->  | M47: ="" ->  | N47: ="" ->  | O47: ="" ->  | P47: ="" ->  | Q47: ="" ->  | R47: ="" ->  | S47: ="" ->  | T47: ="" ->  | U47: ="" ->  | V47: ="" ->  | W47: ="" -> 
B48: I alt | C48: ='Udgifter til figur'!C8 -> 110549.1918 | D48: ='Udgifter til figur'!D8 -> 105110.8225 | E48: ='Udgifter til figur'!E8 -> 108935.5813 | F48: ='Udgifter til figur'!F8 -> 105398.8409 | G48: ='Udgifter til figur'!G8 -> 106089.1356 | H48: ='Udgifter til figur'!H8 -> 97342.57688 | I48: ='Udgifter til figur'!I8 -> 131167.3804 | J48: ='Udgifter til figur'!J8 -> 115873.2374 | K48: ='Udgifter til figur'!K8 -> 116535.8765 | L48: ='Udgifter til figur'!L8 -> 125539.7518 | M48: ='Udgifter til figur'!M8 -> 133564.9513 | N48: ='Udgifter til figur'!N8 -> 137134.3721 | O48: ='Udgifter til figur'!O8 -> 129393.7196 | P48: ='Udgifter til figur'!P8 -> 132302.6311 | Q48: =IF(Q46="","",IF(Q46='2024'!$B$2,(IF(alle_aar_valg=1,Samlede_NDU*INDEX(PL!$F$11:$F$58,MATCH(Q46,PL!$C$11:$C$58,0)),"Kan ikke vises")),IF(alle_aar_valg=1,INDIRECT(Q46&"!Samlede_NDU")*INDEX(PL!$F$11:$F$58,MATCH(Q46,PL!$C$11:$C$58,0)),IF(alle_aar_valg=2,INDIRECT(Q46&"_sam!Samlede_NDU_sam")*INDEX(PL!$F$11:$F$58,MATCH(Q46,PL!$C$11:$C$58,0)),INDIRECT(Q46&"_sam!Samlede_NDU")*INDEX(PL!$F$11:$F$58,MATCH(Q46,PL!$C$11:$C$58,0)))))) -> 131168.2675 | R48: =IF(R46="","",IF(R46='2024'!$B$2,(IF(alle_aar_valg=1,Samlede_NDU*INDEX(PL!$F$11:$F$58,MATCH(R46,PL!$C$11:$C$58,0)),"Kan ikke vises")),IF(alle_aar_valg=1,INDIRECT(R46&"!Samlede_NDU")*INDEX(PL!$F$11:$F$58,MATCH(R46,PL!$C$11:$C$58,0)),IF(alle_aar_valg=2,INDIRECT(R46&"_sam!Samlede_NDU_sam")*INDEX(PL!$F$11:$F$58,MATCH(R46,PL!$C$11:$C$58,0)),INDIRECT(R46&"_sam!Samlede_NDU")*INDEX(PL!$F$11:$F$58,MATCH(R46,PL!$C$11:$C$58,0)))))) -> 150127.064 | S48: =IF(S46="","",IF(S46='2024'!$B$2,(IF(alle_aar_valg=1,Samlede_NDU*INDEX(PL!$F$11:$F$58,MATCH(S46,PL!$C$11:$C$58,0)),"Kan ikke vises")),IF(alle_aar_valg=1,INDIRECT(S46&"!Samlede_NDU")*INDEX(PL!$F$11:$F$58,MATCH(S46,PL!$C$11:$C$58,0)),IF(alle_aar_valg=2,INDIRECT(S46&"_sam!Samlede_NDU_sam")*INDEX(PL!$F$11:$F$58,MATCH(S46,PL!$C$11:$C$58,0)),INDIRECT(S46&"_sam!Samlede_NDU")*INDEX(PL!$F$11:$F$58,MATCH(S46,PL!$C$11:$C$58,0)))))) -> 166270 | T48: =IF(T46="","",IF(T46='2024'!$B$2,(IF(alle_aar_valg=1,Samlede_NDU*INDEX(PL!$F$11:$F$58,MATCH(T46,PL!$C$11:$C$58,0)),"Kan ikke vises")),IF(alle_aar_valg=1,INDIRECT(T46&"!Samlede_NDU")*INDEX(PL!$F$11:$F$58,MATCH(T46,PL!$C$11:$C$58,0)),IF(alle_aar_valg=2,INDIRECT(T46&"_sam!Samlede_NDU_sam")*INDEX(PL!$F$11:$F$58,MATCH(T46,PL!$C$11:$C$58,0)),INDIRECT(T46&"_sam!Samlede_NDU")*INDEX(PL!$F$11:$F$58,MATCH(T46,PL!$C$11:$C$58,0)))))) ->  | U48: =IF(U46="","",IF(U46='2024'!$B$2,(IF(alle_aar_valg=1,Samlede_NDU*INDEX(PL!$F$11:$F$58,MATCH(U46,PL!$C$11:$C$58,0)),"Kan ikke vises")),IF(alle_aar_valg=1,INDIRECT(U46&"!Samlede_NDU")*INDEX(PL!$F$11:$F$58,MATCH(U46,PL!$C$11:$C$58,0)),IF(alle_aar_valg=2,INDIRECT(U46&"_sam!Samlede_NDU_sam")*INDEX(PL!$F$11:$F$58,MATCH(U46,PL!$C$11:$C$58,0)),INDIRECT(U46&"_sam!Samlede_NDU")*INDEX(PL!$F$11:$F$58,MATCH(U46,PL!$C$11:$C$58,0)))))) ->  | V48: =IF(V46="","",IF(V46='2024'!$B$2,(IF(alle_aar_valg=1,Samlede_NDU*INDEX(PL!$F$11:$F$58,MATCH(V46,PL!$C$11:$C$58,0)),"Kan ikke vises")),IF(alle_aar_valg=1,INDIRECT(V46&"!Samlede_NDU")*INDEX(PL!$F$11:$F$58,MATCH(V46,PL!$C$11:$C$58,0)),IF(alle_aar_valg=2,INDIRECT(V46&"_sam!Samlede_NDU_sam")*INDEX(PL!$F$11:$F$58,MATCH(V46,PL!$C$11:$C$58,0)),INDIRECT(V46&"_sam!Samlede_NDU")*INDEX(PL!$F$11:$F$58,MATCH(V46,PL!$C$11:$C$58,0)))))) ->  | W48: =IF(W46="","",IF(W46='2024'!$B$2,(IF(alle_aar_valg=1,Samlede_NDU*INDEX(PL!$F$11:$F$58,MATCH(W46,PL!$C$11:$C$58,0)),"Kan ikke vises")),IF(alle_aar_valg=1,INDIRECT(W46&"!Samlede_NDU")*INDEX(PL!$F$11:$F$58,MATCH(W46,PL!$C$11:$C$58,0)),IF(alle_aar_valg=2,INDIRECT(W46&"_sam!Samlede_NDU_sam")*INDEX(PL!$F$11:$F$58,MATCH(W46,PL!$C$11:$C$58,0)),INDIRECT(W46&"_sam!Samlede_NDU")*INDEX(PL!$F$11:$F$58,MATCH(W46,PL!$C$11:$C$58,0)))))) -> 
B49: Administration | C49: ='Udgifter til figur'!C9 -> 0 | D49: ='Udgifter til figur'!D9 -> 0 | E49: ='Udgifter til figur'!E9 -> 0 | F49: ='Udgifter til figur'!F9 -> 0 | G49: ='Udgifter til figur'!G9 -> 0 | H49: ='Udgifter til figur'!H9 -> 0 | I49: ='Udgifter til figur'!I9 -> 19700.58456 | J49: ='Udgifter til figur'!J9 -> 22203.7554 | K49: ='Udgifter til figur'!K9 -> 20471.67576 | L49: ='Udgifter til figur'!L9 -> 22142.80638 | M49: ='Udgifter til figur'!M9 -> 21729.93757 | N49: ='Udgifter til figur'!N9 -> 22755.63718 | O49: ='Udgifter til figur'!O9 -> 21218.41818 | P49: ='Udgifter til figur'!P9 -> 21598.33176 | Q49: =IF(Q46="","",IF(Q46='2024'!$B$2,(IF(alle_aar_valg=1,Administration*INDEX(PL!$F$11:$F$58,MATCH(Q46,PL!$C$11:$C$58,0)),"Kan ikke vises")),IF(alle_aar_valg=1,INDIRECT(Q46&"!Administration")*INDEX(PL!$F$11:$F$58,MATCH(Q46,PL!$C$11:$C$58,0)),IF(alle_aar_valg=2,INDIRECT(Q46&"_sam!Administration_sam")*INDEX(PL!$F$11:$F$58,MATCH(Q46,PL!$C$11:$C$58,0)),INDIRECT(Q46&"_sam!Administration")*INDEX(PL!$F$11:$F$58,MATCH(Q46,PL!$C$11:$C$58,0)))))) -> 23307.8111 | R49: =IF(R46="","",IF(R46='2024'!$B$2,(IF(alle_aar_valg=1,Administration*INDEX(PL!$F$11:$F$58,MATCH(R46,PL!$C$11:$C$58,0)),"Kan ikke vises")),IF(alle_aar_valg=1,INDIRECT(R46&"!Administration")*INDEX(PL!$F$11:$F$58,MATCH(R46,PL!$C$11:$C$58,0)),IF(alle_aar_valg=2,INDIRECT(R46&"_sam!Administration_sam")*INDEX(PL!$F$11:$F$58,MATCH(R46,PL!$C$11:$C$58,0)),INDIRECT(R46&"_sam!Administration")*INDEX(PL!$F$11:$F$58,MATCH(R46,PL!$C$11:$C$58,0)))))) -> 25607.48 | S49: =IF(S46="","",IF(S46='2024'!$B$2,(IF(alle_aar_valg=1,Administration*INDEX(PL!$F$11:$F$58,MATCH(S46,PL!$C$11:$C$58,0)),"Kan ikke vises")),IF(alle_aar_valg=1,INDIRECT(S46&"!Administration")*INDEX(PL!$F$11:$F$58,MATCH(S46,PL!$C$11:$C$58,0)),IF(alle_aar_valg=2,INDIRECT(S46&"_sam!Administration_sam")*INDEX(PL!$F$11:$F$58,MATCH(S46,PL!$C$11:$C$58,0)),INDIRECT(S46&"_sam!Administration")*INDEX(PL!$F$11:$F$58,MATCH(S46,PL!$C$11:$C$58,0)))))) -> 30980 | T49: =IF(T46="","",IF(T46='2024'!$B$2,(IF(alle_aar_valg=1,Administration*INDEX(PL!$F$11:$F$58,MATCH(T46,PL!$C$11:$C$58,0)),"Kan ikke vises")),IF(alle_aar_valg=1,INDIRECT(T46&"!Administration")*INDEX(PL!$F$11:$F$58,MATCH(T46,PL!$C$11:$C$58,0)),IF(alle_aar_valg=2,INDIRECT(T46&"_sam!Administration_sam")*INDEX(PL!$F$11:$F$58,MATCH(T46,PL!$C$11:$C$58,0)),INDIRECT(T46&"_sam!Administration")*INDEX(PL!$F$11:$F$58,MATCH(T46,PL!$C$11:$C$58,0)))))) ->  | U49: =IF(U46="","",IF(U46='2024'!$B$2,(IF(alle_aar_valg=1,Administration*INDEX(PL!$F$11:$F$58,MATCH(U46,PL!$C$11:$C$58,0)),"Kan ikke vises")),IF(alle_aar_valg=1,INDIRECT(U46&"!Administration")*INDEX(PL!$F$11:$F$58,MATCH(U46,PL!$C$11:$C$58,0)),IF(alle_aar_valg=2,INDIRECT(U46&"_sam!Administration_sam")*INDEX(PL!$F$11:$F$58,MATCH(U46,PL!$C$11:$C$58,0)),INDIRECT(U46&"_sam!Administration")*INDEX(PL!$F$11:$F$58,MATCH(U46,PL!$C$11:$C$58,0)))))) ->  | V49: =IF(V46="","",IF(V46='2024'!$B$2,(IF(alle_aar_valg=1,Administration*INDEX(PL!$F$11:$F$58,MATCH(V46,PL!$C$11:$C$58,0)),"Kan ikke vises")),IF(alle_aar_valg=1,INDIRECT(V46&"!Administration")*INDEX(PL!$F$11:$F$58,MATCH(V46,PL!$C$11:$C$58,0)),IF(alle_aar_valg=2,INDIRECT(V46&"_sam!Administration_sam")*INDEX(PL!$F$11:$F$58,MATCH(V46,PL!$C$11:$C$58,0)),INDIRECT(V46&"_sam!Administration")*INDEX(PL!$F$11:$F$58,MATCH(V46,PL!$C$11:$C$58,0)))))) ->  | W49: =IF(W46="","",IF(W46='2024'!$B$2,(IF(alle_aar_valg=1,Administration*INDEX(PL!$F$11:$F$58,MATCH(W46,PL!$C$11:$C$58,0)),"Kan ikke vises")),IF(alle_aar_valg=1,INDIRECT(W46&"!Administration")*INDEX(PL!$F$11:$F$58,MATCH(W46,PL!$C$11:$C$58,0)),IF(alle_aar_valg=2,INDIRECT(W46&"_sam!Administration_sam")*INDEX(PL!$F$11:$F$58,MATCH(W46,PL!$C$11:$C$58,0)),INDIRECT(W46&"_sam!Administration")*INDEX(PL!$F$11:$F$58,MATCH(W46,PL!$C$11:$C$58,0)))))) -> 
B50: Service | C50: ='Udgifter til figur'!C10 -> 110549.1918 | D50: ='Udgifter til figur'!D10 -> 105110.8225 | E50: ='Udgifter til figur'!E10 -> 108935.5813 | F50: ='Udgifter til figur'!F10 -> 105398.8409 | G50: ='Udgifter til figur'!G10 -> 106089.1356 | H50: ='Udgifter til figur'!H10 -> 97342.57688 | I50: ='Udgifter til figur'!I10 -> 111466.7958 | J50: ='Udgifter til figur'!J10 -> 93669.48203 | K50: ='Udgifter til figur'!K10 -> 96064.20077 | L50: ='Udgifter til figur'!L10 -> 103396.9454 | M50: ='Udgifter til figur'!M10 -> 111835.0137 | N50: ='Udgifter til figur'!N10 -> 114378.735 | O50: ='Udgifter til figur'!O10 -> 108175.3015 | P50: ='Udgifter til figur'!P10 -> 110704.2994 | Q50: =IF(Q46="","",IF(Q46='2024'!$B$2,(IF(alle_aar_valg=1,NDU_service*INDEX(PL!$F$11:$F$58,MATCH(Q46,PL!$C$11:$C$58,0)),"Kan ikke vises")),IF(alle_aar_valg=1,INDIRECT(Q46&"!NDU_service")*INDEX(PL!$F$11:$F$58,MATCH(Q46,PL!$C$11:$C$58,0)),IF(alle_aar_valg=2,INDIRECT(Q46&"_sam!NDU_service_sam")*INDEX(PL!$F$11:$F$58,MATCH(Q46,PL!$C$11:$C$58,0)),INDIRECT(Q46&"_sam!NDU_service")*INDEX(PL!$F$11:$F$58,MATCH(Q46,PL!$C$11:$C$58,0)))))) -> 107860.4564 | R50: =IF(R46="","",IF(R46='2024'!$B$2,(IF(alle_aar_valg=1,NDU_service*INDEX(PL!$F$11:$F$58,MATCH(R46,PL!$C$11:$C$58,0)),"Kan ikke vises")),IF(alle_aar_valg=1,INDIRECT(R46&"!NDU_service")*INDEX(PL!$F$11:$F$58,MATCH(R46,PL!$C$11:$C$58,0)),IF(alle_aar_valg=2,INDIRECT(R46&"_sam!NDU_service_sam")*INDEX(PL!$F$11:$F$58,MATCH(R46,PL!$C$11:$C$58,0)),INDIRECT(R46&"_sam!NDU_service")*INDEX(PL!$F$11:$F$58,MATCH(R46,PL!$C$11:$C$58,0)))))) -> 124519.584 | S50: =IF(S46="","",IF(S46='2024'!$B$2,(IF(alle_aar_valg=1,NDU_service*INDEX(PL!$F$11:$F$58,MATCH(S46,PL!$C$11:$C$58,0)),"Kan ikke vises")),IF(alle_aar_valg=1,INDIRECT(S46&"!NDU_service")*INDEX(PL!$F$11:$F$58,MATCH(S46,PL!$C$11:$C$58,0)),IF(alle_aar_valg=2,INDIRECT(S46&"_sam!NDU_service_sam")*INDEX(PL!$F$11:$F$58,MATCH(S46,PL!$C$11:$C$58,0)),INDIRECT(S46&"_sam!NDU_service")*INDEX(PL!$F$11:$F$58,MATCH(S46,PL!$C$11:$C$58,0)))))) -> 135290 | T50: =IF(T46="","",IF(T46='2024'!$B$2,(IF(alle_aar_valg=1,NDU_service*INDEX(PL!$F$11:$F$58,MATCH(T46,PL!$C$11:$C$58,0)),"Kan ikke vises")),IF(alle_aar_valg=1,INDIRECT(T46&"!NDU_service")*INDEX(PL!$F$11:$F$58,MATCH(T46,PL!$C$11:$C$58,0)),IF(alle_aar_valg=2,INDIRECT(T46&"_sam!NDU_service_sam")*INDEX(PL!$F$11:$F$58,MATCH(T46,PL!$C$11:$C$58,0)),INDIRECT(T46&"_sam!NDU_service")*INDEX(PL!$F$11:$F$58,MATCH(T46,PL!$C$11:$C$58,0)))))) ->  | U50: =IF(U46="","",IF(U46='2024'!$B$2,(IF(alle_aar_valg=1,NDU_service*INDEX(PL!$F$11:$F$58,MATCH(U46,PL!$C$11:$C$58,0)),"Kan ikke vises")),IF(alle_aar_valg=1,INDIRECT(U46&"!NDU_service")*INDEX(PL!$F$11:$F$58,MATCH(U46,PL!$C$11:$C$58,0)),IF(alle_aar_valg=2,INDIRECT(U46&"_sam!NDU_service_sam")*INDEX(PL!$F$11:$F$58,MATCH(U46,PL!$C$11:$C$58,0)),INDIRECT(U46&"_sam!NDU_service")*INDEX(PL!$F$11:$F$58,MATCH(U46,PL!$C$11:$C$58,0)))))) ->  | V50: =IF(V46="","",IF(V46='2024'!$B$2,(IF(alle_aar_valg=1,NDU_service*INDEX(PL!$F$11:$F$58,MATCH(V46,PL!$C$11:$C$58,0)),"Kan ikke vises")),IF(alle_aar_valg=1,INDIRECT(V46&"!NDU_service")*INDEX(PL!$F$11:$F$58,MATCH(V46,PL!$C$11:$C$58,0)),IF(alle_aar_valg=2,INDIRECT(V46&"_sam!NDU_service_sam")*INDEX(PL!$F$11:$F$58,MATCH(V46,PL!$C$11:$C$58,0)),INDIRECT(V46&"_sam!NDU_service")*INDEX(PL!$F$11:$F$58,MATCH(V46,PL!$C$11:$C$58,0)))))) ->  | W50: =IF(W46="","",IF(W46='2024'!$B$2,(IF(alle_aar_valg=1,NDU_service*INDEX(PL!$F$11:$F$58,MATCH(W46,PL!$C$11:$C$58,0)),"Kan ikke vises")),IF(alle_aar_valg=1,INDIRECT(W46&"!NDU_service")*INDEX(PL!$F$11:$F$58,MATCH(W46,PL!$C$11:$C$58,0)),IF(alle_aar_valg=2,INDIRECT(W46&"_sam!NDU_service_sam")*INDEX(PL!$F$11:$F$58,MATCH(W46,PL!$C$11:$C$58,0)),INDIRECT(W46&"_sam!NDU_service")*INDEX(PL!$F$11:$F$58,MATCH(W46,PL!$C$11:$C$58,0)))))) -> 
B51: ="Note: Udgifterne er defineret som art>0. De valgte sammenligningskommuner er "&Samkom1&" "&Samkom2&" "&Samkom3&" "&Samkom4&" "&Samkom5&" "&Samkom6&" "&Samkom7&" "&Samkom8&" "&Samkom9&" "&Samkom10&" "&Samkom11&" "&Samkom12&" "&Samkom13&" "&Samkom14&" "&Samkom15&" "&Samkom16&" "&Samkom17&" "&Samkom18&" " -> Note: Udgifterne er defineret som art>0. De valgte sammenligningskommuner er Allerød
B52: Kilde: Danmarks Statistik
B54: Udgifter fordelt på indsatstrappen
B56: ="Udgifter fordelt på indsatstrappen for "&alle_aar_tekst_valg&", 1.000 kr., "&Prisår&"-priser" -> Udgifter fordelt på indsatstrappen for Fredericia, 1.000 kr., 2023-priser
B78: ="Note: Udgifterne er defineret som art>0. De valgte sammenligningskommuner er "&Samkom1&" "&Samkom2&" "&Samkom3&" "&Samkom4&" "&Samkom5&" "&Samkom6&" "&Samkom7&" "&Samkom8&" "&Samkom9&" "&Samkom10&" "&Samkom11&" "&Samkom12&" "&Samkom13&" "&Samkom14&" "&Samkom15&" "&Samkom16&" "&Samkom17&" "&Samkom18&" " -> Note: Udgifterne er defineret som art>0. De valgte sammenligningskommuner er Allerød
B79: Kilde: Danmarks Statistik
B81: ="Tabel - Udgifter fordelt på indsatstrappen for "&alle_aar_tekst_valg&"" -> Tabel - Udgifter fordelt på indsatstrappen for Fredericia
B83: ="Udgifter fordelt på indsatstrappen for "&alle_aar_tekst_valg&", 1.000 kr., "&Prisår&"-priser" -> Udgifter fordelt på indsatstrappen for Fredericia, 1.000 kr., 2023-priser
C84: ='Dine valg'!J10 -> 2007 | D84: ='Dine valg'!J11 -> 2008 | E84: ='Dine valg'!J12 -> 2009 | F84: ='Dine valg'!J13 -> 2010 | G84: ='Dine valg'!J14 -> 2011 | H84: ='Dine valg'!J15 -> 2012 | I84: ='Dine valg'!J16 -> 2013 | J84: ='Dine valg'!K10 -> 2014 | K84: ='Dine valg'!K11 -> 2015 | L84: ='Dine valg'!K12 -> 2016 | M84: ='Dine valg'!K13 -> 2017 | N84: ='Dine valg'!K14 -> 2018 | O84: ='Dine valg'!K15 -> 2019 | P84: ='Dine valg'!K16 -> 2020 | Q84: ='Dine valg'!L10 -> 2021 | R84: ='Dine valg'!L11 -> 2022 | S84: ='Dine valg'!L12 -> 2023 | T84: ='Dine valg'!L13 ->  | U84: ='Dine valg'!L14 ->  | V84: ='Dine valg'!L15 ->  | W84: ='Dine valg'!L16 -> 
B85: =""&alle_aar_tekst_valg&"" -> Fredericia | C85: ="" ->  | D85: ="" ->  | E85: ="" ->  | F85: ="" ->  | G85: ="" ->  | H85: ="" ->  | I85: ="" ->  | J85: ="" ->  | K85: ="" ->  | L85: ="" ->  | M85: ="" ->  | N85: ="" ->  | O85: ="" ->  | P85: ="" ->  | Q85: ="" ->  | R85: ="" ->  | S85: ="" ->  | T85: ="" ->  | U85: ="" ->  | V85: ="" ->  | W85: ="" -> 
B86: Trin 2: Forebyggende indsatser | C86: ='Udgifter til figur'!C16 -> 0 | D86: ='Udgifter til figur'!D16 -> 0 | E86: ='Udgifter til figur'!E16 -> 0 | F86: ='Udgifter til figur'!F16 -> 0 | G86: ='Udgifter til figur'!G16 -> 0 | H86: ='Udgifter til figur'!H16 -> 0 | I86: ='Udgifter til figur'!I16 -> 0 | J86: ='Udgifter til figur'!J16 -> 0 | K86: ='Udgifter til figur'!K16 -> 0 | L86: ='Udgifter til figur'!L16 -> 5.804447516 | M86: ='Udgifter til figur'!M16 -> 1674.688488 | N86: ='Udgifter til figur'!N16 -> 1214.593662 | O86: ='Udgifter til figur'!O16 -> 1856.293353 | P86: ='Udgifter til figur'!P16 -> 1392.568157 | Q86: ='Udgifter til figur'!Q16 -> 1106.545368 | R86: ='Udgifter til figur'!R16 -> 1628.352 | S86: ='Udgifter til figur'!S16 -> 1516 | T86: ='Udgifter til figur'!T16 ->  | U86: ='Udgifter til figur'!U16 ->  | V86: ='Udgifter til figur'!V16 ->  | W86: ='Udgifter til figur'!W16 -> 
B87: Trin 3: Hjemmebaserede foranstaltninger | C87: ='Udgifter til figur'!C17 -> 17631.0173 | D87: ='Udgifter til figur'!D17 -> 17134.8048 | E87: ='Udgifter til figur'!E17 -> 13949.8401 | F87: ='Udgifter til figur'!F17 -> 13866.09951 | G87: ='Udgifter til figur'!G17 -> 12587.84378 | H87: ='Udgifter til figur'!H17 -> 8947.008919 | I87: ='Udgifter til figur'!I17 -> 13628.34565 | J87: ='Udgifter til figur'!J17 -> 12815.91881 | K87: ='Udgifter til figur'!K17 -> 12204.6078 | L87: ='Udgifter til figur'!L17 -> 12990.35354 | M87: ='Udgifter til figur'!M17 -> 17486.25416 | N87: ='Udgifter til figur'!N17 -> 20766.17774 | O87: ='Udgifter til figur'!O17 -> 16766.41349 | P87: ='Udgifter til figur'!P17 -> 22590.5501 | Q87: ='Udgifter til figur'!Q17 -> 22711.89698 | R87: ='Udgifter til figur'!R17 -> 29471.732 | S87: ='Udgifter til figur'!S17 -> 35536 | T87: ='Udgifter til figur'!T17 ->  | U87: ='Udgifter til figur'!U17 ->  | V87: ='Udgifter til figur'!V17 ->  | W87: ='Udgifter til figur'!W17 -> 
B88: Trin 4: Slægt- eller netværkspleje | C88: ='Udgifter til figur'!C18 -> 0 | D88: ='Udgifter til figur'!D18 -> 0 | E88: ='Udgifter til figur'!E18 -> 0 | F88: ='Udgifter til figur'!F18 -> 0 | G88: ='Udgifter til figur'!G18 -> 0 | H88: ='Udgifter til figur'!H18 -> 0 | I88: ='Udgifter til figur'!I18 -> 703.2032702 | J88: ='Udgifter til figur'!J18 -> 1384.601455 | K88: ='Udgifter til figur'!K18 -> 1637.404461 | L88: ='Udgifter til figur'!L18 -> 1790.091614 | M88: ='Udgifter til figur'!M18 -> 1969.752651 | N88: ='Udgifter til figur'!N18 -> 1674.56478 | O88: ='Udgifter til figur'!O18 -> 1482.156708 | P88: ='Udgifter til figur'!P18 -> 2198.677929 | Q88: ='Udgifter til figur'!Q18 -> 1971.100564 | R88: ='Udgifter til figur'!R18 -> 1925.444 | S88: ='Udgifter til figur'!S18 -> 2253 | T88: ='Udgifter til figur'!T18 ->  | U88: ='Udgifter til figur'!U18 ->  | V88: ='Udgifter til figur'!V18 ->  | W88: ='Udgifter til figur'!W18 -> 
B89: Trin 5: Familiepleje | C89: ='Udgifter til figur'!C19 -> 41939.91773 | D89: ='Udgifter til figur'!D19 -> 39659.90819 | E89: ='Udgifter til figur'!E19 -> 43284.82326 | F89: ='Udgifter til figur'!F19 -> 45784.12334 | G89: ='Udgifter til figur'!G19 -> 48807.93722 | H89: ='Udgifter til figur'!H19 -> 47919.49031 | I89: ='Udgifter til figur'!I19 -> 42440.3144 | J89: ='Udgifter til figur'!J19 -> 38802.26215 | K89: ='Udgifter til figur'!K19 -> 35532.02995 | L89: ='Udgifter til figur'!L19 -> 38135.22018 | M89: ='Udgifter til figur'!M19 -> 38179.47981 | N89: ='Udgifter til figur'!N19 -> 41109.49695 | O89: ='Udgifter til figur'!O19 -> 39448.17085 | P89: ='Udgifter til figur'!P19 -> 38937.80707 | Q89: ='Udgifter til figur'!Q19 -> 40204.4817 | R89: ='Udgifter til figur'!R19 -> 44530.904 | S89: ='Udgifter til figur'!S19 -> 49067 | T89: ='Udgifter til figur'!T19 ->  | U89: ='Udgifter til figur'!U19 ->  | V89: ='Udgifter til figur'!V19 ->  | W89: ='Udgifter til figur'!W19 -> 
B90: Trin 6: Institutionsanbringelser | C90: ='Udgifter til figur'!C20 -> 69005.72947 | D90: ='Udgifter til figur'!D20 -> 63318.38422 | E90: ='Udgifter til figur'!E20 -> 41097.94346 | F90: ='Udgifter til figur'!F20 -> 28993.90628 | G90: ='Udgifter til figur'!G20 -> 28381.4819 | H90: ='Udgifter til figur'!H20 -> 24706.65354 | I90: ='Udgifter til figur'!I20 -> 31258.05104 | J90: ='Udgifter til figur'!J20 -> 23568.06528 | K90: ='Udgifter til figur'!K20 -> 21447.52644 | L90: ='Udgifter til figur'!L20 -> 23259.58209 | M90: ='Udgifter til figur'!M20 -> 26833.75011 | N90: ='Udgifter til figur'!N20 -> 23600.22962 | O90: ='Udgifter til figur'!O20 -> 23147.7678 | P90: ='Udgifter til figur'!P20 -> 18482.09533 | Q90: ='Udgifter til figur'!Q20 -> 17911.53687 | R90: ='Udgifter til figur'!R20 -> 29621.82 | S90: ='Udgifter til figur'!S20 -> 41349 | T90: ='Udgifter til figur'!T20 ->  | U90: ='Udgifter til figur'!U20 ->  | V90: ='Udgifter til figur'!V20 ->  | W90: ='Udgifter til figur'!W20 -> 
B91: Ikke-trinspecifikke grupperinger | C91: ='Udgifter til figur'!C21 -> -9337.789405 | D91: ='Udgifter til figur'!D21 -> -7309.982394 | E91: ='Udgifter til figur'!E21 -> 14088.15111 | F91: ='Udgifter til figur'!F21 -> 18819.09307 | G91: ='Udgifter til figur'!G21 -> 17742.65092 | H91: ='Udgifter til figur'!H21 -> 17323.14024 | I91: ='Udgifter til figur'!I21 -> 27947.79124 | J91: ='Udgifter til figur'!J21 -> 20611.46372 | K91: ='Udgifter til figur'!K21 -> 27479.20183 | L91: ='Udgifter til figur'!L21 -> 31446.17486 | M91: ='Udgifter til figur'!M21 -> 29436.92235 | N91: ='Udgifter til figur'!N21 -> 29335.8108 | O91: ='Udgifter til figur'!O21 -> 29810.27805 | P91: ='Udgifter til figur'!P21 -> 30758.76845 | Q91: ='Udgifter til figur'!Q21 -> 30714.62923 | R91: ='Udgifter til figur'!R21 -> 32264.808 | S91: ='Udgifter til figur'!S21 -> 35465 | T91: ='Udgifter til figur'!T21 ->  | U91: ='Udgifter til figur'!U21 ->  | V91: ='Udgifter til figur'!V21 ->  | W91: ='Udgifter til figur'!W21 -> 
B92: Refusioner | C92: ='Udgifter til figur'!C22 -> -8689.683275 | D92: ='Udgifter til figur'!D22 -> -7692.292304 | E92: ='Udgifter til figur'!E22 -> -3485.176587 | F92: ='Udgifter til figur'!F22 -> -2064.381344 | G92: ='Udgifter til figur'!G22 -> -1430.778186 | H92: ='Udgifter til figur'!H22 -> -1553.716127 | I92: ='Udgifter til figur'!I22 -> -4510.90979 | J92: ='Udgifter til figur'!J22 -> -3512.82938 | K92: ='Udgifter til figur'!K22 -> -2236.569717 | L92: ='Udgifter til figur'!L22 -> -4230.28135 | M92: ='Udgifter til figur'!M22 -> -3745.833844 | N92: ='Udgifter til figur'!N22 -> -3322.138589 | O92: ='Udgifter til figur'!O22 -> -4335.77881 | P92: ='Udgifter til figur'!P22 -> -3656.167679 | Q92: ='Udgifter til figur'!Q22 -> -6759.734276 | R92: ='Udgifter til figur'!R22 -> -14923.476 | S92: ='Udgifter til figur'!S22 -> -29896 | T92: ='Udgifter til figur'!T22 ->  | U92: ='Udgifter til figur'!U22 ->  | V92: ='Udgifter til figur'!V22 ->  | W92: ='Udgifter til figur'!W22 -> 
B93: ="Note: Udgifterne er defineret som art>0. De valgte sammenligningskommuner er "&Samkom1&" "&Samkom2&" "&Samkom3&" "&Samkom4&" "&Samkom5&" "&Samkom6&" "&Samkom7&" "&Samkom8&" "&Samkom9&" "&Samkom10&" "&Samkom11&" "&Samkom12&" "&Samkom13&" "&Samkom14&" "&Samkom15&" "&Samkom16&" "&Samkom17&" "&Samkom18&" " -> Note: Udgifterne er defineret som art>0. De valgte sammenligningskommuner er Allerød
B94: Kilde: Danmarks Statistik
B96: Udgiftsudvikling på tværs af aktører
B98: Udgiftsudvikling på overordnede opgørelser
B100: Vælg opgørelse
B103: =IF(figur4_valg=1,"Udgifter i alt pr. barn, kr., "&Prisår&"-priser",IF(figur4_valg=2,"Administrationsudgifter pr. barn, kr., "&Prisår&"-priser","Serviceudgifter pr. barn, kr., "&Prisår&"-priser")) -> Serviceudgifter pr. barn, kr., 2023-priser
B120: Note: Antal børn er defineret som antallet af 0-22 årige pr. 1. januar i regnskabsåret.
B121: ="Note: Udgifterne er defineret som art>0. De valgte sammenligningskommuner er "&Samkom1&" "&Samkom2&" "&Samkom3&" "&Samkom4&" "&Samkom5&" "&Samkom6&" "&Samkom7&" "&Samkom8&" "&Samkom9&" "&Samkom10&" "&Samkom11&" "&Samkom12&" "&Samkom13&" "&Samkom14&" "&Samkom15&" "&Samkom16&" "&Samkom17&" "&Samkom18&" " -> Note: Udgifterne er defineret som art>0. De valgte sammenligningskommuner er Allerød
B122: Kilde: Danmarks Statistik.
B124: =IF(figur4_valg=1,"Tabel - Udgifter i alt pr. barn, kr., "&Prisår&"-priser",IF(figur4_valg=2,"Tabel - Administrationsudgifter pr. barn, kr., "&Prisår&"-priser","Tabel - Serviceudgifter pr. barn, kr., "&Prisår&"-priser")) -> Tabel - Serviceudgifter pr. barn, kr., 2023-priser
B126: =IF(figur4_valg=1,"Udgifter i alt pr. barn, kr., "&Prisår&"-priser",IF(figur4_valg=2,"Administrationsudgifter pr. barn, kr., "&Prisår&"-priser","Serviceudgifter pr. barn, kr., "&Prisår&"-priser")) -> Serviceudgifter pr. barn, kr., 2023-priser
C127: ='Dine valg'!$J$10 -> 2007 | D127: ='Dine valg'!$J$11 -> 2008 | E127: ='Dine valg'!$J$12 -> 2009 | F127: ='Dine valg'!$J$13 -> 2010 | G127: ='Dine valg'!$J$14 -> 2011 | H127: ='Dine valg'!$J$15 -> 2012 | I127: ='Dine valg'!$J$16 -> 2013 | J127: ='Dine valg'!$K$10 -> 2014 | K127: ='Dine valg'!$K$11 -> 2015 | L127: ='Dine valg'!$K$12 -> 2016 | M127: ='Dine valg'!$K$13 -> 2017 | N127: ='Dine valg'!$K$14 -> 2018 | O127: ='Dine valg'!$K$15 -> 2019 | P127: ='Dine valg'!$K$16 -> 2020 | Q127: ='Dine valg'!L10 -> 2021 | R127: ='Dine valg'!L11 -> 2022 | S127: ='Dine valg'!L12 -> 2023
B128: =""&Kommune&"" -> Fredericia | C128: ="" ->  | D128: ="" ->  | E128: ="" ->  | F128: ="" ->  | G128: ="" ->  | H128: ="" ->  | I128: ="" ->  | J128: ="" ->  | K128: ="" ->  | L128: ="" ->  | M128: ="" ->  | N128: ="" ->  | O128: ="" ->  | P128: ="" ->  | Q128: ="" ->  | R128: ="" ->  | S128: ="" -> 
B129: =IF(figur4_valg=1,"Udgifter i alt pr. barn",IF(figur4_valg=2,"Administrationsudgifter pr. barn","Serviceudgifter pr. barn")) -> Serviceudgifter pr. barn | C129: ='Udgifter til figur'!C29 -> 5768.339202 | D129: ='Udgifter til figur'!D29 -> 5613.37967 | E129: ='Udgifter til figur'!E29 -> 5979.587452 | F129: ='Udgifter til figur'!F29 -> 5924.798631 | G129: ='Udgifter til figur'!G29 -> 5989.04671 | H129: ='Udgifter til figur'!H29 -> 5661.168776 | I129: ='Udgifter til figur'!I29 -> 6530.704865 | J129: ='Udgifter til figur'!J29 -> 5622.223814 | K129: ='Udgifter til figur'!K29 -> 5901.648828 | L129: ='Udgifter til figur'!L29 -> 6515.508413 | M129: ='Udgifter til figur'!M29 -> 7180.601273 | N129: ='Udgifter til figur'!N29 -> 7475.486953 | O129: ='Udgifter til figur'!O29 -> 7271.89523 | P129: ='Udgifter til figur'!P29 -> 7725.158562 | Q129: ='Udgifter til figur'!Q29 -> 7848.200434 | R129: ='Udgifter til figur'!R29 -> 9363.636364 | S129: ='Udgifter til figur'!S29 -> 10386.94818
B130: Antal 0-22-årige | C130: ='Udgifter til figur'!C30 -> 13632 | D130: ='Udgifter til figur'!D30 -> 13812 | E130: ='Udgifter til figur'!E30 -> 13962 | F130: ='Udgifter til figur'!F30 -> 14029 | G130: ='Udgifter til figur'!G30 -> 14151 | H130: ='Udgifter til figur'!H30 -> 14066 | I130: ='Udgifter til figur'!I30 -> 14102 | J130: ='Udgifter til figur'!J30 -> 13958 | K130: ='Udgifter til figur'!K30 -> 13828 | L130: ='Udgifter til figur'!L30 -> 13670 | M130: ='Udgifter til figur'!M30 -> 13671 | N130: ='Udgifter til figur'!N30 -> 13605 | O130: ='Udgifter til figur'!O30 -> 13439 | P130: ='Udgifter til figur'!P30 -> 13244 | Q130: ='Udgifter til figur'!Q30 -> 12892 | R130: ='Udgifter til figur'!R30 -> 12936 | S130: ='Udgifter til figur'!S30 -> 13025
B131: Sammenligningsgruppe, gns. | C131: ="" ->  | D131: ="" ->  | E131: ="" ->  | F131: ="" ->  | G131: ="" ->  | H131: ="" ->  | I131: ="" ->  | J131: ="" ->  | K131: ="" ->  | L131: ="" ->  | M131: ="" ->  | N131: ="" ->  | O131: ="" ->  | P131: ="" ->  | Q131: ="" ->  | R131: ="" ->  | S131: ="" -> 
B132: =IF(figur4_valg=1,"Udgifter i alt pr. barn",IF(figur4_valg=2,"Administrationsudgifter pr. barn","Serviceudgifter pr. barn")) -> Serviceudgifter pr. barn | C132: ='Udgifter til figur'!C32 -> 5641.445587 | D132: ='Udgifter til figur'!D32 -> 5412.655489 | E132: ='Udgifter til figur'!E32 -> 5761.481285 | F132: ='Udgifter til figur'!F32 -> 5836.865515 | G132: ='Udgifter til figur'!G32 -> 3431.480031 | H132: ='Udgifter til figur'!H32 -> 2736.946203 | I132: ='Udgifter til figur'!I32 -> 2516.06479 | J132: ='Udgifter til figur'!J32 -> 3368.442184 | K132: ='Udgifter til figur'!K32 -> 3989.581942 | L132: ='Udgifter til figur'!L32 -> 5392.966158 | M132: ='Udgifter til figur'!M32 -> 5333.155721 | N132: ='Udgifter til figur'!N32 -> 5088.691502 | O132: ='Udgifter til figur'!O32 -> 5001.442056 | P132: ='Udgifter til figur'!P32 -> 5364.349329 | Q132: ='Udgifter til figur'!Q32 -> 5230.870887 | R132: ='Udgifter til figur'!R32 -> 5675.825627 | S132: ='Udgifter til figur'!S32 -> 6199.270168
B133: Antal 0-22-årige | C133: ='Udgifter til figur'!C33 -> 7388 | D133: ='Udgifter til figur'!D33 -> 7396 | E133: ='Udgifter til figur'!E33 -> 7534 | F133: ='Udgifter til figur'!F33 -> 7644 | G133: ='Udgifter til figur'!G33 -> 7662 | H133: ='Udgifter til figur'!H33 -> 7584 | I133: ='Udgifter til figur'!I33 -> 7532 | J133: ='Udgifter til figur'!J33 -> 7472 | K133: ='Udgifter til figur'!K33 -> 7487 | L133: ='Udgifter til figur'!L33 -> 7535 | M133: ='Udgifter til figur'!M33 -> 7507 | N133: ='Udgifter til figur'!N33 -> 7543 | O133: ='Udgifter til figur'!O33 -> 7628 | P133: ='Udgifter til figur'!P33 -> 7523 | Q133: ='Udgifter til figur'!Q33 -> 7567 | R133: ='Udgifter til figur'!R33 -> 7570 | S133: ='Udgifter til figur'!S33 -> 7673
B134: =""&Region&"" -> Region Syddanmark | C134: ="" ->  | D134: ="" ->  | E134: ="" ->  | F134: ="" ->  | G134: ="" ->  | H134: ="" ->  | I134: ="" ->  | J134: ="" ->  | K134: ="" ->  | L134: ="" ->  | M134: ="" ->  | N134: ="" ->  | O134: ="" ->  | P134: ="" ->  | Q134: ="" ->  | R134: ="" ->  | S134: ="" -> 
B135: =IF(figur4_valg=1,"Udgifter i alt pr. barn",IF(figur4_valg=2,"Administrationsudgifter pr. barn","Serviceudgifter pr. barn")) -> Serviceudgifter pr. barn | C135: ='Udgifter til figur'!C35 -> 5781.913962 | D135: ='Udgifter til figur'!D35 -> 6449.836095 | E135: ='Udgifter til figur'!E35 -> 7286.820499 | F135: ='Udgifter til figur'!F35 -> 7500.410124 | G135: ='Udgifter til figur'!G35 -> 7093.095233 | H135: ='Udgifter til figur'!H35 -> 7216.518485 | I135: ='Udgifter til figur'!I35 -> 7557.365859 | J135: ='Udgifter til figur'!J35 -> 7653.687784 | K135: ='Udgifter til figur'!K35 -> 7833.124102 | L135: ='Udgifter til figur'!L35 -> 7831.379094 | M135: ='Udgifter til figur'!M35 -> 8048.447877 | N135: ='Udgifter til figur'!N35 -> 8431.921987 | O135: ='Udgifter til figur'!O35 -> 8883.521478 | P135: ='Udgifter til figur'!P35 -> 9431.582333 | Q135: ='Udgifter til figur'!Q35 -> 9621.717107 | R135: ='Udgifter til figur'!R35 -> 9897.332307 | S135: ='Udgifter til figur'!S35 -> 10528.46319
B136: Antal 0-22-årige | C136: ='Udgifter til figur'!C36 -> 336945 | D136: ='Udgifter til figur'!D36 -> 338610 | E136: ='Udgifter til figur'!E36 -> 340544 | F136: ='Udgifter til figur'!F36 -> 340141 | G136: ='Udgifter til figur'!G36 -> 339577 | H136: ='Udgifter til figur'!H36 -> 337985 | I136: ='Udgifter til figur'!I36 -> 335487 | J136: ='Udgifter til figur'!J36 -> 332232 | K136: ='Udgifter til figur'!K36 -> 329778 | L136: ='Udgifter til figur'!L36 -> 328346 | M136: ='Udgifter til figur'!M36 -> 327197 | N136: ='Udgifter til figur'!N36 -> 324253 | O136: ='Udgifter til figur'!O36 -> 320763 | P136: ='Udgifter til figur'!P36 -> 317133 | Q136: ='Udgifter til figur'!Q36 -> 313900 | R136: ='Udgifter til figur'!R36 -> 313117 | S136: ='Udgifter til figur'!S36 -> 313598
B137: Hele landet | C137: ="" ->  | D137: ="" ->  | E137: ="" ->  | F137: ="" ->  | G137: ="" ->  | H137: ="" ->  | I137: ="" ->  | J137: ="" ->  | K137: ="" ->  | L137: ="" ->  | M137: ="" ->  | N137: ="" ->  | O137: ="" ->  | P137: ="" ->  | Q137: ="" ->  | R137: ="" ->  | S137: ="" -> 
B138: =IF(figur4_valg=1,"Udgifter i alt pr. barn",IF(figur4_valg=2,"Administrationsudgifter pr. barn","Serviceudgifter pr. barn")) -> Serviceudgifter pr. barn | C138: ='Udgifter til figur'!C38 -> 6146.101165 | D138: ='Udgifter til figur'!D38 -> 6629.473706 | E138: ='Udgifter til figur'!E38 -> 7518.922766 | F138: ='Udgifter til figur'!F38 -> 7781.067103 | G138: ='Udgifter til figur'!G38 -> 7283.395497 | H138: ='Udgifter til figur'!H38 -> 7279.529641 | I138: ='Udgifter til figur'!I38 -> 7371.686739 | J138: ='Udgifter til figur'!J38 -> 7525.325274 | K138: ='Udgifter til figur'!K38 -> 7841.094065 | L138: ='Udgifter til figur'!L38 -> 7949.048548 | M138: ='Udgifter til figur'!M38 -> 8184.608788 | N138: ='Udgifter til figur'!N38 -> 8491.852999 | O138: ='Udgifter til figur'!O38 -> 8728.601967 | P138: ='Udgifter til figur'!P38 -> 8838.78898 | Q138: ='Udgifter til figur'!Q38 -> 9069.186442 | R138: ='Udgifter til figur'!R38 -> 9500.22516 | S138: ='Udgifter til figur'!S38 -> 9951.044172
B139: Antal 0-22-årige | C139: ='Udgifter til figur'!C39 -> 1515491 | D139: ='Udgifter til figur'!D39 -> 1529241 | E139: ='Udgifter til figur'!E39 -> 1542877 | F139: ='Udgifter til figur'!F39 -> 1550740 | G139: ='Udgifter til figur'!G39 -> 1557710 | H139: ='Udgifter til figur'!H39 -> 1558214 | I139: ='Udgifter til figur'!I39 -> 1554473 | J139: ='Udgifter til figur'!J39 -> 1547466 | K139: ='Udgifter til figur'!K39 -> 1543089 | L139: ='Udgifter til figur'!L39 -> 1543273 | M139: ='Udgifter til figur'!M39 -> 1543946 | N139: ='Udgifter til figur'!N39 -> 1537130 | O139: ='Udgifter til figur'!O39 -> 1527804 | P139: ='Udgifter til figur'!P39 -> 1518885 | Q139: ='Udgifter til figur'!Q39 -> 1510267 | R139: ='Udgifter til figur'!R39 -> 1510040 | S139: ='Udgifter til figur'!S39 -> 1516081
B140: Note: Antal børn er defineret som antallet af 0-22 årige pr. 1. januar i regnskabsåret.
B141: ="Note: Udgifterne er defineret som art>0. De valgte sammenligningskommuner er "&Samkom1&" "&Samkom2&" "&Samkom3&" "&Samkom4&" "&Samkom5&" "&Samkom6&" "&Samkom7&" "&Samkom8&" "&Samkom9&" "&Samkom10&" "&Samkom11&" "&Samkom12&" "&Samkom13&" "&Samkom14&" "&Samkom15&" "&Samkom16&" "&Samkom17&" "&Samkom18&" " -> Note: Udgifterne er defineret som art>0. De valgte sammenligningskommuner er Allerød
B142: Kilde: Danmarks Statistik.
B147: Udgiftsudvikling fordelt på trin
B149: Vælg opgørelse
B152: =IF(figur5_valg=1,"Udgifter til forebyggende indsatser pr. barn, kr., "&Prisår&"-priser",IF(figur5_valg=2,"Udgifter til hjemmebaserede foranstaltninger pr. barn, kr., "&Prisår&"-priser",IF(figur5_valg=3,"Udgifter til slægts- eller netværkspleje pr. barn, kr., "&Prisår&"-priser",IF(figur5_valg=4,"Udgifter til familiepleje pr. barn, kr., "&Prisår&"-priser",IF(figur5_valg=5,"Udgifter til institutionsanbringelser pr. barn, kr., "&Prisår&"-priser",IF(figur5_valg=6,"Udgifter til ikke-trinspecifikke grupperinger pr. barn, kr., "&Prisår&"-priser","Refusioner pr. barn, kr., "&Prisår&"-priser")))))) -> Udgifter til hjemmebaserede foranstaltninger pr. barn, kr., 2023-priser
B169: Anm.: Antal børn er defineret som antallet af 0-22 årige pr. 1. januar i regnskabsåret.
B170: ="Note: Udgifterne er defineret som art>0. De valgte sammenligningskommuner er "&Samkom1&" "&Samkom2&" "&Samkom3&" "&Samkom4&" "&Samkom5&" "&Samkom6&" "&Samkom7&" "&Samkom8&" "&Samkom9&" "&Samkom10&" "&Samkom11&" "&Samkom12&" "&Samkom13&" "&Samkom14&" "&Samkom15&" "&Samkom16&" "&Samkom17&" "&Samkom18&" " -> Note: Udgifterne er defineret som art>0. De valgte sammenligningskommuner er Allerød
B171: Kilde: Danmarks Statistik.
B174: =IF(figur5_valg=1,"Tabel - Udgifter til forebyggende indsatser pr. barn, kr., "&Prisår&"-priser",IF(figur5_valg=2,"Tabel - Udgifter til hjemmebaserede foranstaltninger pr. barn, kr., "&Prisår&"-priser",IF(figur5_valg=3,"Tabel - Udgifter til slægts- eller netværkspleje pr. barn, kr., "&Prisår&"-priser",IF(figur5_valg=4,"Tabel - Udgifter til familiepleje pr. barn, kr., "&Prisår&"-priser",IF(figur5_valg=5,"Tabel - Udgifter til institutionsanbringelser pr. barn, kr., "&Prisår&"-priser",IF(figur5_valg=6,"Tabel - Udgifter til ikke-trinspecifikke grupperinger pr. barn, kr., "&Prisår&"-priser","Tabel - Refusioner pr. barn, kr., "&Prisår&"-priser")))))) -> Tabel - Udgifter til hjemmebaserede foranstaltninger pr. barn, kr., 2023-priser
B176: =IF(figur5_valg=1,"Udgifter til forebyggende indsatser pr. barn, kr., "&Prisår&"-priser",IF(figur5_valg=2,"Udgifter til hjemmebaserede foranstaltninger pr. barn, kr., "&Prisår&"-priser",IF(figur5_valg=3,"Udgifter til slægts- eller netværkspleje pr. barn, kr., "&Prisår&"-priser",IF(figur5_valg=4,"Udgifter til familiepleje pr. barn, kr., "&Prisår&"-priser",IF(figur5_valg=5,"Udgifter til institutionsanbringelser pr. barn, kr., "&Prisår&"-priser",IF(figur5_valg=6,"Udgifter til ikke-trinspecifikke grupperinger pr. barn, kr., "&Prisår&"-priser","Refusioner pr. barn, kr., "&Prisår&"-priser")))))) -> Udgifter til hjemmebaserede foranstaltninger pr. barn, kr., 2023-priser
C177: ='Dine valg'!$J$10 -> 2007 | D177: ='Dine valg'!$J$11 -> 2008 | E177: ='Dine valg'!$J$12 -> 2009 | F177: ='Dine valg'!$J$13 -> 2010 | G177: ='Dine valg'!$J$14 -> 2011 | H177: ='Dine valg'!$J$15 -> 2012 | I177: ='Dine valg'!$J$16 -> 2013 | J177: ='Dine valg'!$K$10 -> 2014 | K177: ='Dine valg'!$K$11 -> 2015 | L177: ='Dine valg'!$K$12 -> 2016 | M177: ='Dine valg'!$K$13 -> 2017 | N177: ='Dine valg'!$K$14 -> 2018 | O177: ='Dine valg'!$K$15 -> 2019 | P177: ='Dine valg'!$K$16 -> 2020 | Q177: ='Dine valg'!$L$10 -> 2021 | R177: ='Dine valg'!$L$11 -> 2022 | S177: ='Dine valg'!$L$12 -> 2023
B178: =""&Kommune&"" -> Fredericia | C178: ="" ->  | D178: ="" ->  | E178: ="" ->  | F178: ="" ->  | G178: ="" ->  | H178: ="" ->  | I178: ="" ->  | J178: ="" ->  | K178: ="" ->  | L178: ="" ->  | M178: ="" ->  | N178: ="" ->  | O178: ="" ->  | P178: ="" ->  | Q178: ="" ->  | R178: ="" ->  | S178: ="" -> 
B179: Udgifter pr. barn | C179: ='Udgifter til figur'!C45 -> 919.967723 | D179: ='Udgifter til figur'!D45 -> 915.0738488 | E179: ='Udgifter til figur'!E45 -> 765.7212434 | F179: ='Udgifter til figur'!F45 -> 779.4568394 | G179: ='Udgifter til figur'!G45 -> 710.6211575 | H179: ='Udgifter til figur'!H45 -> 520.3327172 | I179: ='Udgifter til figur'!I45 -> 798.4683024 | J179: ='Udgifter til figur'!J45 -> 769.2362803 | K179: ='Udgifter til figur'!K45 -> 749.7830489 | L179: ='Udgifter til figur'!L45 -> 818.5808339 | M179: ='Udgifter til figur'!M45 -> 1122.74157 | N179: ='Udgifter til figur'!N45 -> 1357.22161 | O179: ='Udgifter til figur'!O45 -> 1127.09279 | P179: ='Udgifter til figur'!P45 -> 1576.41196 | Q179: ='Udgifter til figur'!Q45 -> 1652.57524 | R179: ='Udgifter til figur'!R45 -> 2216.218306 | S179: ='Udgifter til figur'!S45 -> 2728.291747
B180: Antal 0-22-årige | C180: ='Udgifter til figur'!C46 -> 13632 | D180: ='Udgifter til figur'!D46 -> 13812 | E180: ='Udgifter til figur'!E46 -> 13962 | F180: ='Udgifter til figur'!F46 -> 14029 | G180: ='Udgifter til figur'!G46 -> 14151 | H180: ='Udgifter til figur'!H46 -> 14066 | I180: ='Udgifter til figur'!I46 -> 14102 | J180: ='Udgifter til figur'!J46 -> 13958 | K180: ='Udgifter til figur'!K46 -> 13828 | L180: ='Udgifter til figur'!L46 -> 13670 | M180: ='Udgifter til figur'!M46 -> 13671 | N180: ='Udgifter til figur'!N46 -> 13605 | O180: ='Udgifter til figur'!O46 -> 13439 | P180: ='Udgifter til figur'!P46 -> 13244 | Q180: ='Udgifter til figur'!Q46 -> 12892 | R180: ='Udgifter til figur'!R46 -> 12936 | S180: ='Udgifter til figur'!S46 -> 13025
B181: Sammenligningsgruppe, gns. | C181: ="" ->  | D181: ="" ->  | E181: ="" ->  | F181: ="" ->  | G181: ="" ->  | H181: ="" ->  | I181: ="" ->  | J181: ="" ->  | K181: ="" ->  | L181: ="" ->  | M181: ="" ->  | N181: ="" ->  | O181: ="" ->  | P181: ="" ->  | Q181: ="" ->  | R181: ="" ->  | S181: ="" -> 
B182: Udgifter pr. barn | C182: ='Udgifter til figur'!C48 -> 2432.322685 | D182: ='Udgifter til figur'!D48 -> 2647.241752 | E182: ='Udgifter til figur'!E48 -> 2659.676135 | F182: ='Udgifter til figur'!F48 -> 2811.486133 | G182: ='Udgifter til figur'!G48 -> 1478.204124 | H182: ='Udgifter til figur'!H48 -> 1020.833333 | I182: ='Udgifter til figur'!I48 -> 1039.962825 | J182: ='Udgifter til figur'!J48 -> 1435.894004 | K182: ='Udgifter til figur'!K48 -> 868.438627 | L182: ='Udgifter til figur'!L48 -> 1579.562044 | M182: ='Udgifter til figur'!M48 -> 1994.405222 | N182: ='Udgifter til figur'!N48 -> 1904.679836 | O182: ='Udgifter til figur'!O48 -> 2147.614053 | P182: ='Udgifter til figur'!P48 -> 2380.167486 | Q182: ='Udgifter til figur'!Q48 -> 3185.806793 | R182: ='Udgifter til figur'!R48 -> 3397.093791 | S182: ='Udgifter til figur'!S48 -> 2965.072332
B183: Antal 0-22-årige | C183: ='Udgifter til figur'!C49 -> 7388 | D183: ='Udgifter til figur'!D49 -> 7396 | E183: ='Udgifter til figur'!E49 -> 7534 | F183: ='Udgifter til figur'!F49 -> 7644 | G183: ='Udgifter til figur'!G49 -> 7662 | H183: ='Udgifter til figur'!H49 -> 7584 | I183: ='Udgifter til figur'!I49 -> 7532 | J183: ='Udgifter til figur'!J49 -> 7472 | K183: ='Udgifter til figur'!K49 -> 7487 | L183: ='Udgifter til figur'!L49 -> 7535 | M183: ='Udgifter til figur'!M49 -> 7507 | N183: ='Udgifter til figur'!N49 -> 7543 | O183: ='Udgifter til figur'!O49 -> 7628 | P183: ='Udgifter til figur'!P49 -> 7523 | Q183: ='Udgifter til figur'!Q49 -> 7567 | R183: ='Udgifter til figur'!R49 -> 7570 | S183: ='Udgifter til figur'!S49 -> 7673
B184: =""&Region&"" -> Region Syddanmark | C184: ="" ->  | D184: ="" ->  | E184: ="" ->  | F184: ="" ->  | G184: ="" ->  | H184: ="" ->  | I184: ="" ->  | J184: ="" ->  | K184: ="" ->  | L184: ="" ->  | M184: ="" ->  | N184: ="" ->  | O184: ="" ->  | P184: ="" ->  | Q184: ="" ->  | R184: ="" ->  | S184: ="" -> 
B185: Udgifter pr. barn | C185: ='Udgifter til figur'!C51 -> 1742.198282 | D185: ='Udgifter til figur'!D51 -> 1874.22108 | E185: ='Udgifter til figur'!E51 -> 2026.636793 | F185: ='Udgifter til figur'!F51 -> 2195.380739 | G185: ='Udgifter til figur'!G51 -> 1984.993094 | H185: ='Udgifter til figur'!H51 -> 2129.801618 | I185: ='Udgifter til figur'!I51 -> 2267.929905 | J185: ='Udgifter til figur'!J51 -> 2389.056442 | K185: ='Udgifter til figur'!K51 -> 2483.155335 | L185: ='Udgifter til figur'!L51 -> 2502.588733 | M185: ='Udgifter til figur'!M51 -> 2652.249257 | N185: ='Udgifter til figur'!N51 -> 2786.179311 | O185: ='Udgifter til figur'!O51 -> 2886.15894 | P185: ='Udgifter til figur'!P51 -> 3017.667666 | Q185: ='Udgifter til figur'!Q51 -> 3241.784008 | R185: ='Udgifter til figur'!R51 -> 3359.817576 | S185: ='Udgifter til figur'!S51 -> 3614.315142
B186: Antal 0-22-årige | C186: ='Udgifter til figur'!C52 -> 336945 | D186: ='Udgifter til figur'!D52 -> 338610 | E186: ='Udgifter til figur'!E52 -> 340544 | F186: ='Udgifter til figur'!F52 -> 340141 | G186: ='Udgifter til figur'!G52 -> 339577 | H186: ='Udgifter til figur'!H52 -> 337985 | I186: ='Udgifter til figur'!I52 -> 335487 | J186: ='Udgifter til figur'!J52 -> 332232 | K186: ='Udgifter til figur'!K52 -> 329778 | L186: ='Udgifter til figur'!L52 -> 328346 | M186: ='Udgifter til figur'!M52 -> 327197 | N186: ='Udgifter til figur'!N52 -> 324253 | O186: ='Udgifter til figur'!O52 -> 320763 | P186: ='Udgifter til figur'!P52 -> 317133 | Q186: ='Udgifter til figur'!Q52 -> 313900 | R186: ='Udgifter til figur'!R52 -> 313117 | S186: ='Udgifter til figur'!S52 -> 313598
B187: Hele landet | C187: ="" ->  | D187: ="" ->  | E187: ="" ->  | F187: ="" ->  | G187: ="" ->  | H187: ="" ->  | I187: ="" ->  | J187: ="" ->  | K187: ="" ->  | L187: ="" ->  | M187: ="" ->  | N187: ="" ->  | O187: ="" ->  | P187: ="" ->  | Q187: ="" ->  | R187: ="" ->  | S187: ="" -> 
B188: Udgifter pr. barn | C188: ='Udgifter til figur'!C54 -> 2061.886214 | D188: ='Udgifter til figur'!D54 -> 2248.623337 | E188: ='Udgifter til figur'!E54 -> 2486.29476 | F188: ='Udgifter til figur'!F54 -> 2621.885036 | G188: ='Udgifter til figur'!G54 -> 2346.583767 | H188: ='Udgifter til figur'!H54 -> 2441.370697 | I188: ='Udgifter til figur'!I54 -> 2552.241821 | J188: ='Udgifter til figur'!J54 -> 2682.576548 | K188: ='Udgifter til figur'!K54 -> 2889.001218 | L188: ='Udgifter til figur'!L54 -> 3024.664463 | M188: ='Udgifter til figur'!M54 -> 3100.525537 | N188: ='Udgifter til figur'!N54 -> 3241.943752 | O188: ='Udgifter til figur'!O54 -> 3343.272435 | P188: ='Udgifter til figur'!P54 -> 3433.485089 | Q188: ='Udgifter til figur'!Q54 -> 3642.40429 | R188: ='Udgifter til figur'!R54 -> 3919.472994 | S188: ='Udgifter til figur'!S54 -> 4193.598495
B189: Antal 0-22-årige | C189: ='Udgifter til figur'!C55 -> 1515491 | D189: ='Udgifter til figur'!D55 -> 1529241 | E189: ='Udgifter til figur'!E55 -> 1542877 | F189: ='Udgifter til figur'!F55 -> 1550740 | G189: ='Udgifter til figur'!G55 -> 1557710 | H189: ='Udgifter til figur'!H55 -> 1558214 | I189: ='Udgifter til figur'!I55 -> 1554473 | J189: ='Udgifter til figur'!J55 -> 1547466 | K189: ='Udgifter til figur'!K55 -> 1543089 | L189: ='Udgifter til figur'!L55 -> 1543273 | M189: ='Udgifter til figur'!M55 -> 1543946 | N189: ='Udgifter til figur'!N55 -> 1537130 | O189: ='Udgifter til figur'!O55 -> 1527804 | P189: ='Udgifter til figur'!P55 -> 1518885 | Q189: ='Udgifter til figur'!Q55 -> 1510267 | R189: ='Udgifter til figur'!R55 -> 1510040 | S189: ='Udgifter til figur'!S55 -> 1516081
B190: Anm.: Antal børn er defineret som antallet af 0-22 årige pr. 1. januar i regnskabsåret.
B191: ="Note: Udgifterne er defineret som art>0. De valgte sammenligningskommuner er "&Samkom1&" "&Samkom2&" "&Samkom3&" "&Samkom4&" "&Samkom5&" "&Samkom6&" "&Samkom7&" "&Samkom8&" "&Samkom9&" "&Samkom10&" "&Samkom11&" "&Samkom12&" "&Samkom13&" "&Samkom14&" "&Samkom15&" "&Samkom16&" "&Samkom17&" "&Samkom18&" " -> Note: Udgifterne er defineret som art>0. De valgte sammenligningskommuner er Allerød
B192: Kilde: Danmarks Statistik.

Sheet Udgiftsfordeling
B3: Udgiftsfordeling
B6: På denne side kan du se, hvordan serviceudgifternes fordeling på de enkelte trin, ændrer sig over tid. Serviceudgifterne er opgjort som andele fordelt på indsatstrappens trin og på ikke-trinspecifikke grupperinger. Udgiftsfordelingen præsenteres på to måder: 1) Du kan vælge at se udgiftsfordelingen for enten din valgte kommune, sammenligningsgruppen, regionen eller hele landet. For hver aktør kan du sammenligne udgiftsandelene med hinanden og se, hvordan fordelingen ændres over tid. 2) Du kan vælge at se hver enkelt udgiftsandel for alle aktører over tid. Det giver dig mulighed for, at sammenligne den enkelte udgiftsandel over tid for de forskellige aktører. Du kan se beregningen af de enkelte regnskabsår ved at bruge knappen "Regnskabsår" i den øverste røde bjælke. For hvert regnskabsår kan du se udgiftsfordelingen for din valgte kommune. Du kan også se udgiftsudviklingen indenfor og udenfor indsatstrappen over tid, ved at vælge knappen ”Udvikling” eller du kan lave en analyse af udgiftsændringer ved at vælge knappen "Ændring". Begge knapper er placeret i den røde bjælke. Du kan altid ændre på dine valg ved at bruge knappen "Dine valg" ligeledes placeret i den røde bjælke.
B12: Udgiftsfordeling for hver aktør
B14: Vælg aktør
B17: ="Fordeling af serviceudgifter for "&fordeling_tekst&"" -> Fordeling af serviceudgifter for Fredericia
B42: ="Note: Udgifterne er defineret som art>0. De valgte sammenligningskommuner er "&Samkom1&" "&Samkom2&" "&Samkom3&" "&Samkom4&" "&Samkom5&" "&Samkom6&" "&Samkom7&" "&Samkom8&" "&Samkom9&" "&Samkom10&" "&Samkom11&" "&Samkom12&" "&Samkom13&" "&Samkom14&" "&Samkom15&" "&Samkom16&" "&Samkom17&" "&Samkom18&" " -> Note: Udgifterne er defineret som art>0. De valgte sammenligningskommuner er Allerød
B43: Kilde: Danmarks Statistik
B45: ="Tabel - Fordeling af serviceudgifter for "&fordeling_tekst&"" -> Tabel - Fordeling af serviceudgifter for Fredericia
B47: ="Fordeling af serviceudgifter for "&fordeling_tekst&"" -> Fordeling af serviceudgifter for Fredericia
C48: ='Dine valg'!$J$10 -> 2007 | D48: ='Dine valg'!$J$11 -> 2008 | E48: ='Dine valg'!$J$12 -> 2009 | F48: ='Dine valg'!$J$13 -> 2010 | G48: ='Dine valg'!$J$14 -> 2011 | H48: ='Dine valg'!$J$15 -> 2012 | I48: ='Dine valg'!$J$16 -> 2013 | J48: ='Dine valg'!$K$10 -> 2014 | K48: ='Dine valg'!$K$11 -> 2015 | L48: ='Dine valg'!$K$12 -> 2016 | M48: ='Dine valg'!$K$13 -> 2017 | N48: ='Dine valg'!$K$14 -> 2018 | O48: ='Dine valg'!$K$15 -> 2019 | P48: ='Dine valg'!$L$10 -> 2021 | Q48: ='Dine valg'!$L$10 -> 2021 | R48: ='Dine valg'!$L$11 -> 2022
B49: =""&fordeling_tekst&"" -> Fredericia | C49: ="" ->  | D49: ="" ->  | E49: ="" ->  | F49: ="" ->  | G49: ="" ->  | H49: ="" ->  | I49: ="" ->  | J49: ="" ->  | K49: ="" ->  | L49: ="" ->  | M49: ="" ->  | N49: ="" ->  | O49: ="" ->  | P49: ="" ->  | Q49: ="" ->  | R49: ="" ->  | S49: ="" ->  | T49: ="" ->  | U49: ="" ->  | V49: ="" ->  | W49: ="" -> 
B50: Trin 2: Forebyggende indsatser | C50: ='Udgifter til figur'!C62 -> 0 | D50: ='Udgifter til figur'!D62 -> 0 | E50: ='Udgifter til figur'!E62 -> 0 | F50: ='Udgifter til figur'!F62 -> 0 | G50: ='Udgifter til figur'!G62 -> 0 | H50: ='Udgifter til figur'!H62 -> 0 | I50: ='Udgifter til figur'!I62 -> 0 | J50: ='Udgifter til figur'!J62 -> 0 | K50: ='Udgifter til figur'!K62 -> 0 | L50: ='Udgifter til figur'!L62 -> 5.3931033e-05 | M50: ='Udgifter til figur'!M62 -> 0.01448932521 | N50: ='Udgifter til figur'!N62 -> 0.0103193258 | O50: ='Udgifter til figur'!O62 -> 0.01649876038 | P50: ='Udgifter til figur'!P62 -> 0.01217700656 | Q50: ='Udgifter til figur'!Q62 -> 0.009654017857 | R50: ='Udgifter til figur'!R62 -> 0.01167754064 | S50: ='Udgifter til figur'!S62 -> 0.009177533205 | T50: ='Udgifter til figur'!T62 -> 0 | U50: ='Udgifter til figur'!U62 -> 0 | V50: ='Udgifter til figur'!V62 -> 0 | W50: ='Udgifter til figur'!W62 -> 0
B51: Trin 3: Hjemmebaserede foranstaltninger | C51: ='Udgifter til figur'!C63 -> 0.1478629959 | D51: ='Udgifter til figur'!D63 -> 0.1519001034 | E51: ='Udgifter til figur'!E63 -> 0.1240859816 | F51: ='Udgifter til figur'!F63 -> 0.1290311161 | G51: ='Udgifter til figur'!G63 -> 0.1170745337 | H51: ='Udgifter til figur'!H63 -> 0.09046859742 | I51: ='Udgifter til figur'!I63 -> 0.1175083226 | J51: ='Udgifter til figur'!J63 -> 0.1318750154 | K51: ='Udgifter til figur'!K63 -> 0.1241557695 | L51: ='Udgifter til figur'!L63 -> 0.1206976518 | M51: ='Udgifter til figur'!M63 -> 0.1512902399 | N51: ='Udgifter til figur'!N63 -> 0.1764318065 | O51: ='Udgifter til figur'!O63 -> 0.1490201094 | P51: ='Udgifter til figur'!P63 -> 0.1975381064 | Q51: ='Udgifter til figur'!Q63 -> 0.1981491815 | R51: ='Udgifter til figur'!R63 -> 0.2113531645 | S51: ='Udgifter til figur'!S63 -> 0.21512719 | T51: ='Udgifter til figur'!T63 -> 0 | U51: ='Udgifter til figur'!U63 -> 0 | V51: ='Udgifter til figur'!V63 -> 0 | W51: ='Udgifter til figur'!W63 -> 0
B52: Trin 4: Slægts- og netværkspleje | C52: ='Udgifter til figur'!C64 -> 0 | D52: ='Udgifter til figur'!D64 -> 0 | E52: ='Udgifter til figur'!E64 -> 0 | F52: ='Udgifter til figur'!F64 -> 0 | G52: ='Udgifter til figur'!G64 -> 0 | H52: ='Udgifter til figur'!H64 -> 0 | I52: ='Udgifter til figur'!I64 -> 0.006063262474 | J52: ='Udgifter til figur'!J64 -> 0.01424746371 | K52: ='Udgifter til figur'!K64 -> 0.01665708675 | L52: ='Udgifter til figur'!L64 -> 0.01663233058 | M52: ='Udgifter til figur'!M64 -> 0.01704220632 | N52: ='Udgifter til figur'!N64 -> 0.01422729271 | O52: ='Udgifter til figur'!O64 -> 0.01317342883 | P52: ='Udgifter til figur'!P64 -> 0.01922585651 | Q52: ='Udgifter til figur'!Q64 -> 0.0171968006 | R52: ='Udgifter til figur'!R64 -> 0.01380810203 | S52: ='Udgifter til figur'!S64 -> 0.01363917039 | T52: ='Udgifter til figur'!T64 -> 0 | U52: ='Udgifter til figur'!U64 -> 0 | V52: ='Udgifter til figur'!V64 -> 0 | W52: ='Udgifter til figur'!W64 -> 0
B53: Trin 5: Familiepleje | C53: ='Udgifter til figur'!C65 -> 0.3517302364 | D53: ='Udgifter til figur'!D65 -> 0.3515852222 | E53: ='Udgifter til figur'!E65 -> 0.3850251863 | F53: ='Udgifter til figur'!F65 -> 0.4260445797 | G53: ='Udgifter til figur'!G65 -> 0.4539432324 | H53: ='Udgifter til figur'!H65 -> 0.4845428363 | I53: ='Udgifter til figur'!I65 -> 0.3659351095 | J53: ='Udgifter til figur'!J65 -> 0.3992728881 | K53: ='Udgifter til figur'!K65 -> 0.3614623749 | L53: ='Udgifter til figur'!L65 -> 0.3543268868 | M53: ='Udgifter til figur'!M65 -> 0.3303270448 | N53: ='Udgifter til figur'!N65 -> 0.3492709587 | O53: ='Udgifter til figur'!O65 -> 0.350615875 | P53: ='Udgifter til figur'!P65 -> 0.3404831064 | Q53: ='Udgifter til figur'!Q65 -> 0.3507626488 | R53: ='Udgifter til figur'!R65 -> 0.3193482989 | S53: ='Udgifter til figur'!S65 -> 0.2970409115 | T53: ='Udgifter til figur'!T65 -> 0 | U53: ='Udgifter til figur'!U65 -> 0 | V53: ='Udgifter til figur'!V65 -> 0 | W53: ='Udgifter til figur'!W65 -> 0
B54: Trin 6: Institutionsanbringelser | C54: ='Udgifter til figur'!C66 -> 0.5787183871 | D54: ='Udgifter til figur'!D66 -> 0.5613176934 | E54: ='Udgifter til figur'!E66 -> 0.3655725528 | F54: ='Udgifter til figur'!F66 -> 0.2698030609 | G54: ='Udgifter til figur'!G66 -> 0.263964887 | H54: ='Udgifter til figur'!H66 -> 0.2498238588 | I54: ='Udgifter til figur'!I66 -> 0.2695177567 | J54: ='Udgifter til figur'!J66 -> 0.2425139404 | K54: ='Udgifter til figur'!K66 -> 0.2181826891 | L54: ='Udgifter til figur'!L66 -> 0.2161124354 | M54: ='Udgifter til figur'!M66 -> 0.2321643306 | N54: ='Udgifter til figur'!N66 -> 0.2005102333 | O54: ='Udgifter til figur'!O66 -> 0.2057376727 | P54: ='Udgifter til figur'!P66 -> 0.1616126255 | Q54: ='Udgifter til figur'!Q66 -> 0.1562686012 | R54: ='Udgifter til figur'!R66 -> 0.2124295035 | S54: ='Udgifter til figur'!S66 -> 0.2503178235 | T54: ='Udgifter til figur'!T66 -> 0 | U54: ='Udgifter til figur'!U66 -> 0 | V54: ='Udgifter til figur'!V66 -> 0 | W54: ='Udgifter til figur'!W66 -> 0
B55: Ikke-trinspecifikke grupperinger | C55: ='Udgifter til figur'!C67 -> -0.07831161941 | D55: ='Udgifter til figur'!D67 -> -0.06480301901 | E55: ='Udgifter til figur'!E67 -> 0.1253162794 | F55: ='Udgifter til figur'!F67 -> 0.1751212432 | G55: ='Udgifter til figur'!G67 -> 0.165017347 | H55: ='Udgifter til figur'!H67 -> 0.1751647075 | I55: ='Udgifter til figur'!I67 -> 0.2409755487 | J55: ='Udgifter til figur'!J67 -> 0.2120906925 | K55: ='Udgifter til figur'!K67 -> 0.2795420798 | L55: ='Udgifter til figur'!L67 -> 0.2921767644 | M55: ='Udgifter til figur'!M67 -> 0.2546868532 | N55: ='Udgifter til figur'!N67 -> 0.249240383 | O55: ='Udgifter til figur'!O67 -> 0.2649541537 | P55: ='Udgifter til figur'!P67 -> 0.2689632987 | Q55: ='Udgifter til figur'!Q67 -> 0.26796875 | R55: ='Udgifter til figur'!R67 -> 0.2313833905 | S55: ='Udgifter til figur'!S67 -> 0.2146973714 | T55: ='Udgifter til figur'!T67 -> 0 | U55: ='Udgifter til figur'!U67 -> 0 | V55: ='Udgifter til figur'!V67 -> 0 | W55: ='Udgifter til figur'!W67 -> 0
B56: I alt | C56: ='Udgifter til figur'!C68 -> 1 | D56: ='Udgifter til figur'!D68 -> 1 | E56: ='Udgifter til figur'!E68 -> 1 | F56: ='Udgifter til figur'!F68 -> 1 | G56: ='Udgifter til figur'!G68 -> 1 | H56: ='Udgifter til figur'!H68 -> 1 | I56: ='Udgifter til figur'!I68 -> 1 | J56: ='Udgifter til figur'!J68 -> 1 | K56: ='Udgifter til figur'!K68 -> 1 | L56: ='Udgifter til figur'!L68 -> 1 | M56: ='Udgifter til figur'!M68 -> 1 | N56: ='Udgifter til figur'!N68 -> 1 | O56: ='Udgifter til figur'!O68 -> 1 | P56: ='Udgifter til figur'!P68 -> 1 | Q56: ='Udgifter til figur'!Q68 -> 1 | R56: ='Udgifter til figur'!R68 -> 1 | S56: ='Udgifter til figur'!S68 -> 1 | T56: ='Udgifter til figur'!T68 -> 0 | U56: ='Udgifter til figur'!U68 -> 0 | V56: ='Udgifter til figur'!V68 -> 0 | W56: ='Udgifter til figur'!W68 -> 0
B57: ="Note: Udgifterne er defineret som art>0. De valgte sammenligningskommuner er "&Samkom1&" "&Samkom2&" "&Samkom3&" "&Samkom4&" "&Samkom5&" "&Samkom6&" "&Samkom7&" "&Samkom8&" "&Samkom9&" "&Samkom10&" "&Samkom11&" "&Samkom12&" "&Samkom13&" "&Samkom14&" "&Samkom15&" "&Samkom16&" "&Samkom17&" "&Samkom18&" " -> Note: Udgifterne er defineret som art>0. De valgte sammenligningskommuner er Allerød
B58: Kilde: Danmarks Statistik
B61: Udgiftsfordeling på tværs af aktører
B63: Vælg opgørelse
B66: =IF(fordeling_trin_valg=1,"Andel udgifter til forebyggende indsatser",IF(fordeling_trin_valg=2,"Andel udgifter til hjemmebaserede foranstaltninger",IF(fordeling_trin_valg=3,"Andel udgifter til slægts- eller netværkspleje",IF(fordeling_trin_valg=4,"Andel udgifter til familiepleje",IF(fordeling_trin_valg=5,"Andel udgifter til institutionsanbringelser","Andel udgifter til ikke-trinspecifikke grupperinger"))))) -> Andel udgifter til slægts- eller netværkspleje
B90: ="Note: Udgifterne er defineret som art>0. De valgte sammenligningskommuner er "&Samkom1&" "&Samkom2&" "&Samkom3&" "&Samkom4&" "&Samkom5&" "&Samkom6&" "&Samkom7&" "&Samkom8&" "&Samkom9&" "&Samkom10&" "&Samkom11&" "&Samkom12&" "&Samkom13&" "&Samkom14&" "&Samkom15&" "&Samkom16&" "&Samkom17&" "&Samkom18&" " -> Note: Udgifterne er defineret som art>0. De valgte sammenligningskommuner er Allerød
B91: Kilde: Danmarks Statistik
B93: =IF(fordeling_trin_valg=1,"Tabel - Andel udgifter til forebyggende indsatser",IF(fordeling_trin_valg=2,"Tabel - Andel udgifter til hjemmebaserede foranstaltninger",IF(fordeling_trin_valg=3,"Tabel - Andel udgifter til slægts- eller netværkspleje",IF(fordeling_trin_valg=4,"Tabel - Andel udgifter til familiepleje",IF(fordeling_trin_valg=5,"Tabel - Andel udgifter til institutionsanbringelser","Tabel - Andel udgifter til ikke-trinspecifikke grupperinger"))))) -> Tabel - Andel udgifter til slægts- eller netværkspleje
B95: =IF(fordeling_trin_valg=1,"Andel udgifter til forebyggende indsatser",IF(fordeling_trin_valg=2,"Andel udgifter til hjemmebaserede foranstaltninger",IF(fordeling_trin_valg=3,"Andel udgifter til slægts- eller netværkspleje",IF(fordeling_trin_valg=4,"Andel udgifter til familiepleje",IF(fordeling_trin_valg=5,"Andel udgifter til institutionsanbringelser","Andel udgifter til ikke-trinspecifikke grupperinger"))))) -> Andel udgifter til slægts- eller netværkspleje
C96: ='Dine valg'!$J$10 -> 2007 | D96: ='Dine valg'!$J$11 -> 2008 | E96: ='Dine valg'!$J$12 -> 2009 | F96: ='Dine valg'!$J$13 -> 2010 | G96: ='Dine valg'!$J$14 -> 2011 | H96: ='Dine valg'!$J$15 -> 2012 | I96: ='Dine valg'!$J$16 -> 2013 | J96: ='Dine valg'!$K$10 -> 2014 | K96: ='Dine valg'!$K$11 -> 2015 | L96: ='Dine valg'!$K$12 -> 2016 | M96: ='Dine valg'!$K$13 -> 2017 | N96: ='Dine valg'!$K$14 -> 2018 | O96: ='Dine valg'!$K$15 -> 2019 | P96: ='Dine valg'!$K$16 -> 2020 | Q96: ='Dine valg'!$L$10 -> 2021 | R96: ='Dine valg'!$L$11 -> 2022
B97: =""&Kommune&"" -> Fredericia | C97: ="" ->  | D97: ="" ->  | E97: ="" ->  | F97: ="" ->  | G97: ="" ->  | H97: ="" ->  | I97: ="" ->  | J97: ="" ->  | K97: ="" ->  | L97: ="" ->  | M97: ="" ->  | N97: ="" ->  | O97: ="" ->  | P97: ="" ->  | Q97: ="" ->  | R97: ="" -> 
B98: =""&fordeling_trin_tekst&"" -> Trin 4: Slægt- eller netværkspleje | C98: ='Udgifter til figur'!C75 -> 0 | D98: ='Udgifter til figur'!D75 -> 0 | E98: ='Udgifter til figur'!E75 -> 0 | F98: ='Udgifter til figur'!F75 -> 0 | G98: ='Udgifter til figur'!G75 -> 0 | H98: ='Udgifter til figur'!H75 -> 0 | I98: ='Udgifter til figur'!I75 -> 0.006063262474 | J98: ='Udgifter til figur'!J75 -> 0.01424746371 | K98: ='Udgifter til figur'!K75 -> 0.01665708675 | L98: ='Udgifter til figur'!L75 -> 0.01663233058 | M98: ='Udgifter til figur'!M75 -> 0.01704220632 | N98: ='Udgifter til figur'!N75 -> 0.01422729271 | O98: ='Udgifter til figur'!O75 -> 0.01317342883 | P98: ='Udgifter til figur'!P75 -> 0.01922585651 | Q98: ='Udgifter til figur'!Q75 -> 0.0171968006 | R98: ='Udgifter til figur'!R75 -> 0.01380810203
B99: Sammenligningsgruppe, gns. | C99: ="" ->  | D99: ="" ->  | E99: ="" ->  | F99: ="" ->  | G99: ="" ->  | H99: ="" ->  | I99: ="" ->  | J99: ="" ->  | K99: ="" ->  | L99: ="" ->  | M99: ="" ->  | N99: ="" ->  | O99: ="" ->  | P99: ="" ->  | Q99: ="" ->  | R99: ="" -> 
B100: =""&fordeling_trin_tekst&"" -> Trin 4: Slægt- eller netværkspleje | C100: ='Udgifter til figur'!C77 -> 1.984638895e-05 | D100: ='Udgifter til figur'!D77 -> 0 | E100: ='Udgifter til figur'!E77 -> 0 | F100: ='Udgifter til figur'!F77 -> 0 | G100: ='Udgifter til figur'!G77 -> 0 | H100: ='Udgifter til figur'!H77 -> 0.001880933899 | I100: ='Udgifter til figur'!I77 -> 0.002251418702 | J100: ='Udgifter til figur'!J77 -> 0.001957713391 | K100: ='Udgifter til figur'!K77 -> 0.001771148916 | L100: ='Udgifter til figur'!L77 -> 0.001114464825 | M100: ='Udgifter til figur'!M77 -> 0.0007225749945 | N100: ='Udgifter til figur'!N77 -> 0.02314337604 | O100: ='Udgifter til figur'!O77 -> 0.004475992404 | P100: ='Udgifter til figur'!P77 -> 0.005405294311 | Q100: ='Udgifter til figur'!Q77 -> 0.004204543243 | R100: ='Udgifter til figur'!R77 -> 0.003821223863
B101: =""&Region&"" -> Region Syddanmark | C101: ="" ->  | D101: ="" ->  | E101: ="" ->  | F101: ="" ->  | G101: ="" ->  | H101: ="" ->  | I101: ="" ->  | J101: ="" ->  | K101: ="" ->  | L101: ="" ->  | M101: ="" ->  | N101: ="" ->  | O101: ="" ->  | P101: ="" ->  | Q101: ="" ->  | R101: ="" -> 
B102: =""&fordeling_trin_tekst&"" -> Trin 4: Slægt- eller netværkspleje | C102: ='Udgifter til figur'!C79 -> 0.003218134861 | D102: ='Udgifter til figur'!D79 -> 0.004751581776 | E102: ='Udgifter til figur'!E79 -> 0.005814631623 | F102: ='Udgifter til figur'!F79 -> 0.005603493484 | G102: ='Udgifter til figur'!G79 -> 0.00656362302 | H102: ='Udgifter til figur'!H79 -> 0.007487246801 | I102: ='Udgifter til figur'!I79 -> 0.00899617088 | J102: ='Udgifter til figur'!J79 -> 0.0101374717 | K102: ='Udgifter til figur'!K79 -> 0.01109935896 | L102: ='Udgifter til figur'!L79 -> 0.01163518273 | M102: ='Udgifter til figur'!M79 -> 0.01170024352 | N102: ='Udgifter til figur'!N79 -> 0.01118206657 | O102: ='Udgifter til figur'!O79 -> 0.01130455108 | P102: ='Udgifter til figur'!P79 -> 0.01148182082 | Q102: ='Udgifter til figur'!Q79 -> 0.01096155323 | R102: ='Udgifter til figur'!R79 -> 0.01133355298
B103: Hele landet | C103: ="" ->  | D103: ="" ->  | E103: ="" ->  | F103: ="" ->  | G103: ="" ->  | H103: ="" ->  | I103: ="" ->  | J103: ="" ->  | K103: ="" ->  | L103: ="" ->  | M103: ="" ->  | N103: ="" ->  | O103: ="" ->  | P103: ="" ->  | Q103: ="" ->  | R103: ="" -> 
B104: =""&fordeling_trin_tekst&"" -> Trin 4: Slægt- eller netværkspleje | C104: ='Udgifter til figur'!C81 -> 0.005984310521 | D104: ='Udgifter til figur'!D81 -> 0.006846566303 | E104: ='Udgifter til figur'!E81 -> 0.004837802788 | F104: ='Udgifter til figur'!F81 -> 0.009438064196 | G104: ='Udgifter til figur'!G81 -> 0.007307873962 | H104: ='Udgifter til figur'!H81 -> 0.008270920669 | I104: ='Udgifter til figur'!I81 -> 0.009071199281 | J104: ='Udgifter til figur'!J81 -> 0.009650174746 | K104: ='Udgifter til figur'!K81 -> 0.01050950566 | L104: ='Udgifter til figur'!L81 -> 0.01039387663 | M104: ='Udgifter til figur'!M81 -> 0.01053459716 | N104: ='Udgifter til figur'!N81 -> 0.01094424849 | O104: ='Udgifter til figur'!O81 -> 0.01080757358 | P104: ='Udgifter til figur'!P81 -> 0.01152415921 | Q104: ='Udgifter til figur'!Q81 -> 0.01223168347 | R104: ='Udgifter til figur'!R81 -> 0.01187165593
B105: ="Note: Udgifterne er defineret som art>0. De valgte sammenligningskommuner er "&Samkom1&" "&Samkom2&" "&Samkom3&" "&Samkom4&" "&Samkom5&" "&Samkom6&" "&Samkom7&" "&Samkom8&" "&Samkom9&" "&Samkom10&" "&Samkom11&" "&Samkom12&" "&Samkom13&" "&Samkom14&" "&Samkom15&" "&Samkom16&" "&Samkom17&" "&Samkom18&" " -> Note: Udgifterne er defineret som art>0. De valgte sammenligningskommuner er Allerød
B106: Kilde: Danmarks Statistik

Sheet Udskrift
A25: Udgiftsudvikling på det specialiserede børneområde
A28: ='Alle år'!B45 -> Udgifter til service, administration og i alt for Fredericia, 1.000 kr., 2023-priser
A29: =IF('Alle år'!B46="","",'Alle år'!B46) ->  | B29: ='Alle år'!K46 -> 2015 | C29: ='Alle år'!L46 -> 2016 | D29: ='Alle år'!M46 -> 2017 | E29: ='Alle år'!N46 -> 2018 | F29: ='Alle år'!O46 -> 2019 | G29: ='Alle år'!P46 -> 2020 | H29: ='Alle år'!Q46 -> 2021 | I29: ='Alle år'!R46 -> 2022 | J29: ='Alle år'!S46 -> 2023
A30: =IF('Alle år'!B47="","",'Alle år'!B47) -> Fredericia | B30: ='Alle år'!K47 ->  | C30: ='Alle år'!L47 ->  | D30: ='Alle år'!M47 ->  | E30: ='Alle år'!N47 ->  | F30: ='Alle år'!O47 ->  | G30: ='Alle år'!P47 ->  | H30: ='Alle år'!Q47 ->  | I30: ='Alle år'!R47 ->  | J30: ='Alle år'!S47 -> 
A31: =IF('Alle år'!B48="","",'Alle år'!B48) -> I alt | B31: ='Alle år'!K48 -> 116535.8765 | C31: ='Alle år'!L48 -> 125539.7518 | D31: ='Alle år'!M48 -> 133564.9513 | E31: ='Alle år'!N48 -> 137134.3721 | F31: ='Alle år'!O48 -> 129393.7196 | G31: ='Alle år'!P48 -> 132302.6311 | H31: ='Alle år'!Q48 -> 131168.2675 | I31: ='Alle år'!R48 -> 150127.064 | J31: ='Alle år'!S48 -> 166270
A32: =IF('Alle år'!B49="","",'Alle år'!B49) -> Administration | B32: ='Alle år'!K49 -> 20471.67576 | C32: ='Alle år'!L49 -> 22142.80638 | D32: ='Alle år'!M49 -> 21729.93757 | E32: ='Alle år'!N49 -> 22755.63718 | F32: ='Alle år'!O49 -> 21218.41818 | G32: ='Alle år'!P49 -> 21598.33176 | H32: ='Alle år'!Q49 -> 23307.8111 | I32: ='Alle år'!R49 -> 25607.48 | J32: ='Alle år'!S49 -> 30980
A33: =IF('Alle år'!B50="","",'Alle år'!B50) -> Service | B33: ='Alle år'!K50 -> 96064.20077 | C33: ='Alle år'!L50 -> 103396.9454 | D33: ='Alle år'!M50 -> 111835.0137 | E33: ='Alle år'!N50 -> 114378.735 | F33: ='Alle år'!O50 -> 108175.3015 | G33: ='Alle år'!P50 -> 110704.2994 | H33: ='Alle år'!Q50 -> 107860.4564 | I33: ='Alle år'!R50 -> 124519.584 | J33: ='Alle år'!S50 -> 135290
A35: =IF('Alle år'!B83="","",'Alle år'!B83) -> Udgifter fordelt på indsatstrappen for Fredericia, 1.000 kr., 2023-priser
A36: =IF('Alle år'!B84="","",'Alle år'!B84) ->  | B36: ='Alle år'!K84 -> 2015 | C36: ='Alle år'!L84 -> 2016 | D36: ='Alle år'!M84 -> 2017 | E36: ='Alle år'!N84 -> 2018 | F36: ='Alle år'!O84 -> 2019 | G36: ='Alle år'!P84 -> 2020 | H36: ='Alle år'!Q84 -> 2021 | I36: ='Alle år'!R84 -> 2022 | J36: ='Alle år'!S84 -> 2023
A37: =IF('Alle år'!B85="","",'Alle år'!B85) -> Fredericia | B37: ='Alle år'!K85 ->  | C37: ='Alle år'!L85 ->  | D37: ='Alle år'!M85 ->  | E37: ='Alle år'!N85 ->  | F37: ='Alle år'!O85 ->  | G37: ='Alle år'!P85 ->  | H37: ='Alle år'!Q85 ->  | I37: ='Alle år'!R85 ->  | J37: ='Alle år'!S85 -> 
A38: =IF('Alle år'!B86="","",'Alle år'!B86) -> Trin 2: Forebyggende indsatser | B38: ='Alle år'!K86 -> 0 | C38: ='Alle år'!L86 -> 5.804447516 | D38: ='Alle år'!M86 -> 1674.688488 | E38: ='Alle år'!N86 -> 1214.593662 | F38: ='Alle år'!O86 -> 1856.293353 | G38: ='Alle år'!P86 -> 1392.568157 | H38: ='Alle år'!Q86 -> 1106.545368 | I38: ='Alle år'!R86 -> 1628.352 | J38: ='Alle år'!S86 -> 1516
A39: =IF('Alle år'!B87="","",'Alle år'!B87) -> Trin 3: Hjemmebaserede foranstaltninger | B39: ='Alle år'!K87 -> 12204.6078 | C39: ='Alle år'!L87 -> 12990.35354 | D39: ='Alle år'!M87 -> 17486.25416 | E39: ='Alle år'!N87 -> 20766.17774 | F39: ='Alle år'!O87 -> 16766.41349 | G39: ='Alle år'!P87 -> 22590.5501 | H39: ='Alle år'!Q87 -> 22711.89698 | I39: ='Alle år'!R87 -> 29471.732 | J39: ='Alle år'!S87 -> 35536
A40: =IF('Alle år'!B88="","",'Alle år'!B88) -> Trin 4: Slægt- eller netværkspleje | B40: ='Alle år'!K88 -> 1637.404461 | C40: ='Alle år'!L88 -> 1790.091614 | D40: ='Alle år'!M88 -> 1969.752651 | E40: ='Alle år'!N88 -> 1674.56478 | F40: ='Alle år'!O88 -> 1482.156708 | G40: ='Alle år'!P88 -> 2198.677929 | H40: ='Alle år'!Q88 -> 1971.100564 | I40: ='Alle år'!R88 -> 1925.444 | J40: ='Alle år'!S88 -> 2253
A41: =IF('Alle år'!B89="","",'Alle år'!B89) -> Trin 5: Familiepleje | B41: ='Alle år'!K89 -> 35532.02995 | C41: ='Alle år'!L89 -> 38135.22018 | D41: ='Alle år'!M89 -> 38179.47981 | E41: ='Alle år'!N89 -> 41109.49695 | F41: ='Alle år'!O89 -> 39448.17085 | G41: ='Alle år'!P89 -> 38937.80707 | H41: ='Alle år'!Q89 -> 40204.4817 | I41: ='Alle år'!R89 -> 44530.904 | J41: ='Alle år'!S89 -> 49067
A42: =IF('Alle år'!B90="","",'Alle år'!B90) -> Trin 6: Institutionsanbringelser | B42: ='Alle år'!K90 -> 21447.52644 | C42: ='Alle år'!L90 -> 23259.58209 | D42: ='Alle år'!M90 -> 26833.75011 | E42: ='Alle år'!N90 -> 23600.22962 | F42: ='Alle år'!O90 -> 23147.7678 | G42: ='Alle år'!P90 -> 18482.09533 | H42: ='Alle år'!Q90 -> 17911.53687 | I42: ='Alle år'!R90 -> 29621.82 | J42: ='Alle år'!S90 -> 41349
A43: =IF('Alle år'!B91="","",'Alle år'!B91) -> Ikke-trinspecifikke grupperinger | B43: ='Alle år'!K91 -> 27479.20183 | C43: ='Alle år'!L91 -> 31446.17486 | D43: ='Alle år'!M91 -> 29436.92235 | E43: ='Alle år'!N91 -> 29335.8108 | F43: ='Alle år'!O91 -> 29810.27805 | G43: ='Alle år'!P91 -> 30758.76845 | H43: ='Alle år'!Q91 -> 30714.62923 | I43: ='Alle år'!R91 -> 32264.808 | J43: ='Alle år'!S91 -> 35465
A44: =IF('Alle år'!B92="","",'Alle år'!B92) -> Refusioner | B44: ='Alle år'!K92 -> -2236.569717 | C44: ='Alle år'!L92 -> -4230.28135 | D44: ='Alle år'!M92 -> -3745.833844 | E44: ='Alle år'!N92 -> -3322.138589 | F44: ='Alle år'!O92 -> -4335.77881 | G44: ='Alle år'!P92 -> -3656.167679 | H44: ='Alle år'!Q92 -> -6759.734276 | I44: ='Alle år'!R92 -> -14923.476 | J44: ='Alle år'!S92 -> -29896
A46: =LEFT('Alle år'!B93,40) -> Note: Udgifterne er defineret som art>0.
A47: =A93 -> Kilde: Danmarks Statistik.
A64: Sammenligning af udgiftsudvikling for udvalgte opgørelser
A67: ='Alle år'!B103 -> Serviceudgifter pr. barn, kr., 2023-priser
A91: ='Alle år'!B120 -> Note: Antal børn er defineret som antallet af 0-22 årige pr. 1. januar i regnskabsåret.
A92: ='Alle år'!B121 -> Note: Udgifterne er defineret som art>0. De valgte sammenligningskommuner er Allerød
A93: ='Alle år'!B122 -> Kilde: Danmarks Statistik.
A98: Sammenligning af udgiftsudvikling for udvalgte opgørelser
A101: ='Alle år'!$B$152 -> Udgifter til hjemmebaserede foranstaltninger pr. barn, kr., 2023-priser
A125: ='Alle år'!B169 -> Anm.: Antal børn er defineret som antallet af 0-22 årige pr. 1. januar i regnskabsåret.
A126: ='Alle år'!B170 -> Note: Udgifterne er defineret som art>0. De valgte sammenligningskommuner er Allerød
A127: ='Alle år'!B171 -> Kilde: Danmarks Statistik.
A135: Udgiftsændringer (merudgifter) på det specialiserede børneområde
A138: =Analyse!B36 -> Merudgifter for service, administration og i alt for Fredericia, 1.000 kr., 2023-priser
B139: =Analyse!C37 -> 2022 | C139: =Analyse!D37 -> 2023 | D139: =Analyse!E37 ->  | E139: =Analyse!F37 ->  | F139: =Analyse!G37 ->  | G139: =Analyse!H37 ->  | H139: =Analyse!I37 ->  | I139: =Analyse!J37 ->  | J139: =Analyse!K37 -> 
A140: =Analyse!B38 -> I alt | B140: =Analyse!C38 -> 20749.98257 | C140: =Analyse!D38 -> 36892.91857 | D140: =Analyse!E38 ->  | E140: =Analyse!F38 ->  | F140: =Analyse!G38 ->  | G140: =Analyse!H38 ->  | H140: =Analyse!I38 ->  | I140: =Analyse!J38 ->  | J140: =Analyse!K38 -> 
A141: =Analyse!B39 -> Administration | B141: =Analyse!C39 -> 3718.248865 | C141: =Analyse!D39 -> 9090.768865 | D141: =Analyse!E39 ->  | E141: =Analyse!F39 ->  | F141: =Analyse!G39 ->  | G141: =Analyse!H39 ->  | H141: =Analyse!I39 ->  | I141: =Analyse!J39 ->  | J141: =Analyse!K39 -> 
A142: =Analyse!B40 -> Service | B142: =Analyse!C40 -> 17031.7337 | C142: =Analyse!D40 -> 27802.1497 | D142: =Analyse!E40 ->  | E142: =Analyse!F40 ->  | F142: =Analyse!G40 ->  | G142: =Analyse!H40 ->  | H142: =Analyse!I40 ->  | I142: =Analyse!J40 ->  | J142: =Analyse!K40 -> 
A143: =Analyse!B41 -> Note: Merudgifterne er beregnet ud fra følgende basisperioder: Basisperioden for administration er 2015-2021, basisperioden for service er 2015-2021, og basisperioden for de samlede udgifter er 2015-2021. Udgifterne er defineret som art>0 og inkl. refusioner.
A145: =Analyse!B85 -> Merudgifter indenfor og udenfor indsatstrappen for Fredericia, 1.000 kr., 2023-priser
B146: =Analyse!C86 -> 2022 | C146: =Analyse!D86 -> 2023 | D146: =Analyse!E86 ->  | E146: =Analyse!F86 ->  | F146: =Analyse!G86 ->  | G146: =Analyse!H86 ->  | H146: =Analyse!I86 ->  | I146: =Analyse!J86 ->  | J146: =Analyse!K86 -> 
A147: Indenfor indsatstrappen | B147: =Analyse!C87 ->  | C147: =Analyse!D87 ->  | D147: =Analyse!E87 ->  | E147: =Analyse!F87 ->  | F147: =Analyse!G87 ->  | G147: =Analyse!H87 ->  | H147: =Analyse!I87 ->  | I147: =Analyse!J87 ->  | J147: =Analyse!K87 -> 
A148: =Analyse!B88 -> Trin 2: Forebyggende indsatser | B148: =Analyse!C88 -> 592.5672177 | C148: =Analyse!D88 -> 480.2152177 | D148: =Analyse!E88 ->  | E148: =Analyse!F88 ->  | F148: =Analyse!G88 ->  | G148: =Analyse!H88 ->  | H148: =Analyse!I88 ->  | I148: =Analyse!J88 ->  | J148: =Analyse!K88 -> 
A149: =Analyse!B89 -> Trin 3: Hjemmebaserede foranstaltninger | B149: =Analyse!C89 -> 11540.8386 | C149: =Analyse!D89 -> 17605.1066 | D149: =Analyse!E89 ->  | E149: =Analyse!F89 ->  | F149: =Analyse!G89 ->  | G149: =Analyse!H89 ->  | H149: =Analyse!I89 ->  | I149: =Analyse!J89 ->  | J149: =Analyse!K89 -> 
A150: =Analyse!B90 -> Trin 4: Slægt- eller netværkspleje | B150: =Analyse!C90 -> 107.7656132 | C150: =Analyse!D90 -> 435.3216132 | D150: =Analyse!E90 ->  | E150: =Analyse!F90 ->  | F150: =Analyse!G90 ->  | G150: =Analyse!H90 ->  | H150: =Analyse!I90 ->  | I150: =Analyse!J90 ->  | J150: =Analyse!K90 -> 
A151: =Analyse!B91 -> Trin 5: Familiepleje | B151: =Analyse!C91 -> 5738.520212 | C151: =Analyse!D91 -> 10274.61621 | D151: =Analyse!E91 ->  | E151: =Analyse!F91 ->  | F151: =Analyse!G91 ->  | G151: =Analyse!H91 ->  | H151: =Analyse!I91 ->  | I151: =Analyse!J91 ->  | J151: =Analyse!K91 -> 
A152: =Analyse!B92 -> Trin 6: Institutionsanbringelser | B152: =Analyse!C92 -> 7524.321677 | C152: =Analyse!D92 -> 19251.50168 | D152: =Analyse!E92 ->  | E152: =Analyse!F92 ->  | F152: =Analyse!G92 ->  | G152: =Analyse!H92 ->  | H152: =Analyse!I92 ->  | I152: =Analyse!J92 ->  | J152: =Analyse!K92 -> 
A153: Udenfor indsatstrappen | B153: =Analyse!C93 ->  | C153: =Analyse!D93 ->  | D153: =Analyse!E93 ->  | E153: =Analyse!F93 ->  | F153: =Analyse!G93 ->  | G153: =Analyse!H93 ->  | H153: =Analyse!I93 ->  | I153: =Analyse!J93 ->  | J153: =Analyse!K93 -> 
A154: =Analyse!B94 -> Ikke-trinspecifikke grupperinger | B154: =Analyse!C94 -> 2410.267203 | C154: =Analyse!D94 -> 5610.459203 | D154: =Analyse!E94 ->  | E154: =Analyse!F94 ->  | F154: =Analyse!G94 ->  | G154: =Analyse!H94 ->  | H154: =Analyse!I94 ->  | I154: =Analyse!J94 ->  | J154: =Analyse!K94 -> 
A155: =Analyse!B95 -> Refusioner | B155: =Analyse!C95 -> -14923.476 | C155: =Analyse!D95 -> -29896 | D155: =Analyse!E95 ->  | E155: =Analyse!F95 ->  | F155: =Analyse!G95 ->  | G155: =Analyse!H95 ->  | H155: =Analyse!I95 ->  | I155: =Analyse!J95 ->  | J155: =Analyse!K95 -> 
A157: =Analyse!B96 -> Note: Merudgifterne er beregnet ud fra basisperioden 2015-2021. Note: Udgifterne er defineret som art>0 og ekskl. refusioner.
A163: Illustration af udgiftsændringer (merudgifter): Service, administration og i alt
A166: =Analyse!B17 -> Merudgifter for service, administration og i alt for Fredericia, 1.000 kr., 2023-priser
A182: =Analyse!B41 -> Note: Merudgifterne er beregnet ud fra følgende basisperioder: Basisperioden for administration er 2015-2021, basisperioden for service er 2015-2021, og basisperioden for de samlede udgifter er 2015-2021. Udgifterne er defineret som art>0 og inkl. refusioner.
A194: Illustration af udgiftsændringer (merudgifter): Indsatstrappen
A197: =Analyse!B46 -> Merudgifter fordelt på indsatstrappen for Fredericia, 1.000 kr., 2023-priser
A214: =Analyse!B96 -> Note: Merudgifterne er beregnet ud fra basisperioden 2015-2021. Note: Udgifterne er defineret som art>0 og ekskl. refusioner.
A231: Illustration af udgiftsændringer (merudgifter): Udenfor indsatstrappen
A234: =Analyse!B64 -> Merudgifter for ikke-trinspecifikke grupperinger og refusion for Fredericia, 1.000 kr., 2023-priser
A253: =Analyse!B80 -> Note: Merudgifterne er beregnet ud fra basisperioden 2015-2021. Note: Udgifterne er defineret som art>0 og ekskl. refusioner.

Sheet Udskrift test
A35: Indsatstrappens Udgiftsmodel
A39: =""&Kommune&" Kommune" -> Fredericia Kommune
B75: Baseret på registerdata fra Danmarks Statistik
A79: ="Udgiftsudvikling for den valgte aktør: "&alle_aar_tekst_valg&"" -> Udgiftsudvikling for den valgte aktør: Fredericia
A81: Udgifter til service, administration og i alt
A83: ="Figur: Udgifter til service, administration og i alt for "&alle_aar_tekst_valg&", 1.000 kr., "&Prisår&"-priser" -> Figur: Udgifter til service, administration og i alt for Fredericia, 1.000 kr., 2023-priser
A101: Note: Udgifterne er defineret som art>0
A102: Kilde: Danmarks Statistik
A104: ="Tabel: Udgifter til service, administration og i alt for "&alle_aar_tekst_valg&", 1.000 kr., "&Prisår&"-priser" -> Tabel: Udgifter til service, administration og i alt for Fredericia, 1.000 kr., 2023-priser
A105: =IF('Alle år'!B97="","",'Alle år'!B97) ->  | B105: ='Udgifter til figur'!K6 -> 2015 | C105: ='Udgifter til figur'!L6 -> 2016 | D105: ='Udgifter til figur'!M6 -> 2017 | E105: ='Udgifter til figur'!N6 -> 2018 | F105: ='Udgifter til figur'!O6 -> 2019 | G105: ='Udgifter til figur'!P6 -> 2020 | H105: ='Udgifter til figur'!Q6 -> 2021 | I105: ='Udgifter til figur'!R6 -> 2022 | J105: ='Udgifter til figur'!S6 -> 2023 | K105: ='Udgifter til figur'!B6 -> 0 | L105: ='Udgifter til figur'!C6 -> 2007
A106: =""&alle_aar_tekst_valg&"" -> Fredericia | B106: ='Udgifter til figur'!K7 ->  | C106: ='Udgifter til figur'!L7 ->  | D106: ='Udgifter til figur'!M7 ->  | E106: ='Udgifter til figur'!N7 ->  | F106: ='Udgifter til figur'!O7 ->  | G106: ='Udgifter til figur'!P7 ->  | H106: ='Udgifter til figur'!Q7 ->  | I106: ='Udgifter til figur'!R7 -> 0 | J106: ='Udgifter til figur'!S7 -> 0 | K106: ='Udgifter til figur'!B7 -> Fredericia | L106: ='Udgifter til figur'!C7 -> 
A107: I alt | B107: ='Udgifter til figur'!K8 -> 116535.8765 | C107: ='Udgifter til figur'!L8 -> 125539.7518 | D107: ='Udgifter til figur'!M8 -> 133564.9513 | E107: ='Udgifter til figur'!N8 -> 137134.3721 | F107: ='Udgifter til figur'!O8 -> 129393.7196 | G107: ='Udgifter til figur'!P8 -> 132302.6311 | H107: ='Udgifter til figur'!Q8 -> 131168.2675 | I107: ='Udgifter til figur'!R8 -> 150127.064 | J107: ='Udgifter til figur'!S8 -> 166270 | K107: ='Udgifter til figur'!B8 -> I alt | L107: ='Udgifter til figur'!C8 -> 110549.1918
A108: Administration | B108: ='Udgifter til figur'!K9 -> 20471.67576 | C108: ='Udgifter til figur'!L9 -> 22142.80638 | D108: ='Udgifter til figur'!M9 -> 21729.93757 | E108: ='Udgifter til figur'!N9 -> 22755.63718 | F108: ='Udgifter til figur'!O9 -> 21218.41818 | G108: ='Udgifter til figur'!P9 -> 21598.33176 | H108: ='Udgifter til figur'!Q9 -> 23307.8111 | I108: ='Udgifter til figur'!R9 -> 25607.48 | J108: ='Udgifter til figur'!S9 -> 30980 | K108: ='Udgifter til figur'!B9 -> Administration | L108: ='Udgifter til figur'!C9 -> 0
A109: Service | B109: ='Udgifter til figur'!K10 -> 96064.20077 | C109: ='Udgifter til figur'!L10 -> 103396.9454 | D109: ='Udgifter til figur'!M10 -> 111835.0137 | E109: ='Udgifter til figur'!N10 -> 114378.735 | F109: ='Udgifter til figur'!O10 -> 108175.3015 | G109: ='Udgifter til figur'!P10 -> 110704.2994 | H109: ='Udgifter til figur'!Q10 -> 107860.4564 | I109: ='Udgifter til figur'!R10 -> 124519.584 | J109: ='Udgifter til figur'!S10 -> 135290 | K109: ='Udgifter til figur'!B10 -> Service | L109: ='Udgifter til figur'!C10 -> 110549.1918
A110: Note: Udgifterne er defineret som art>0
A111: Kilde: Danmarks Statistik
A114: Udgifter fordelt på indsatstrappen
A116: ="Figur: Udgifter fordelt på indsatstrappen for "&alle_aar_tekst_valg&", 1.000 kr., "&Prisår&"-priser" -> Figur: Udgifter fordelt på indsatstrappen for Fredericia, 1.000 kr., 2023-priser
A136: Note: Udgifterne er defineret som art>0
A137: Kilde: Danmarks Statistik
A139: ="Tabel: Udgifter fordelt på indsatstrappen for "&alle_aar_tekst_valg&", 1.000 kr., "&Prisår&"-priser" -> Tabel: Udgifter fordelt på indsatstrappen for Fredericia, 1.000 kr., 2023-priser
B140: ='Udgifter til figur'!K14 -> 2015 | C140: ='Udgifter til figur'!L14 -> 2016 | D140: ='Udgifter til figur'!M14 -> 2017 | E140: ='Udgifter til figur'!N14 -> 2018 | F140: ='Udgifter til figur'!O14 -> 2019 | G140: ='Udgifter til figur'!P14 -> 2020 | H140: ='Udgifter til figur'!Q14 -> 2021 | I140: ='Udgifter til figur'!R14 -> 2022 | J140: ='Udgifter til figur'!S14 -> 2023 | K140: ='Udgifter til figur'!B14 -> 0 | L140: ='Udgifter til figur'!C14 -> 2007
A141: =""&alle_aar_tekst_valg&"" -> Fredericia | B141: ='Udgifter til figur'!K15 ->  | C141: ='Udgifter til figur'!L15 ->  | D141: ='Udgifter til figur'!M15 ->  | E141: ='Udgifter til figur'!N15 ->  | F141: ='Udgifter til figur'!O15 ->  | G141: ='Udgifter til figur'!P15 ->  | H141: ='Udgifter til figur'!Q15 ->  | I141: ='Udgifter til figur'!R15 -> 0 | J141: ='Udgifter til figur'!S15 -> 0 | K141: ='Udgifter til figur'!B15 -> Fredericia | L141: ='Udgifter til figur'!C15 -> 
A142: Trin 2: Forebyggende indsatser | B142: ='Udgifter til figur'!K16 -> 0 | C142: ='Udgifter til figur'!L16 -> 5.804447516 | D142: ='Udgifter til figur'!M16 -> 1674.688488 | E142: ='Udgifter til figur'!N16 -> 1214.593662 | F142: ='Udgifter til figur'!O16 -> 1856.293353 | G142: ='Udgifter til figur'!P16 -> 1392.568157 | H142: ='Udgifter til figur'!Q16 -> 1106.545368 | I142: ='Udgifter til figur'!R16 -> 1628.352 | J142: ='Udgifter til figur'!S16 -> 1516 | K142: ='Udgifter til figur'!B16 -> Trin 2: Forebyggende indsatser | L142: ='Udgifter til figur'!C16 -> 0
A143: Trin 3: Hjemmebaserede foranstaltninger | B143: ='Udgifter til figur'!K17 -> 12204.6078 | C143: ='Udgifter til figur'!L17 -> 12990.35354 | D143: ='Udgifter til figur'!M17 -> 17486.25416 | E143: ='Udgifter til figur'!N17 -> 20766.17774 | F143: ='Udgifter til figur'!O17 -> 16766.41349 | G143: ='Udgifter til figur'!P17 -> 22590.5501 | H143: ='Udgifter til figur'!Q17 -> 22711.89698 | I143: ='Udgifter til figur'!R17 -> 29471.732 | J143: ='Udgifter til figur'!S17 -> 35536 | K143: ='Udgifter til figur'!B17 -> Trin 3: Hjemmebaserede foranstaltninger | L143: ='Udgifter til figur'!C17 -> 17631.0173
A144: Trin 4: Slægt- eller netværkspleje | B144: ='Udgifter til figur'!K18 -> 1637.404461 | C144: ='Udgifter til figur'!L18 -> 1790.091614 | D144: ='Udgifter til figur'!M18 -> 1969.752651 | E144: ='Udgifter til figur'!N18 -> 1674.56478 | F144: ='Udgifter til figur'!O18 -> 1482.156708 | G144: ='Udgifter til figur'!P18 -> 2198.677929 | H144: ='Udgifter til figur'!Q18 -> 1971.100564 | I144: ='Udgifter til figur'!R18 -> 1925.444 | J144: ='Udgifter til figur'!S18 -> 2253 | K144: ='Udgifter til figur'!B18 -> Trin 4: Slægt- eller netværkspleje | L144: ='Udgifter til figur'!C18 -> 0
A145: Trin 5: Familiepleje | B145: ='Udgifter til figur'!K19 -> 35532.02995 | C145: ='Udgifter til figur'!L19 -> 38135.22018 | D145: ='Udgifter til figur'!M19 -> 38179.47981 | E145: ='Udgifter til figur'!N19 -> 41109.49695 | F145: ='Udgifter til figur'!O19 -> 39448.17085 | G145: ='Udgifter til figur'!P19 -> 38937.80707 | H145: ='Udgifter til figur'!Q19 -> 40204.4817 | I145: ='Udgifter til figur'!R19 -> 44530.904 | J145: ='Udgifter til figur'!S19 -> 49067 | K145: ='Udgifter til figur'!B19 -> Trin 5: Familiepleje | L145: ='Udgifter til figur'!C19 -> 41939.91773
A146: Trin 6: Institutionsanbringelser | B146: ='Udgifter til figur'!K20 -> 21447.52644 | C146: ='Udgifter til figur'!L20 -> 23259.58209 | D146: ='Udgifter til figur'!M20 -> 26833.75011 | E146: ='Udgifter til figur'!N20 -> 23600.22962 | F146: ='Udgifter til figur'!O20 -> 23147.7678 | G146: ='Udgifter til figur'!P20 -> 18482.09533 | H146: ='Udgifter til figur'!Q20 -> 17911.53687 | I146: ='Udgifter til figur'!R20 -> 29621.82 | J146: ='Udgifter til figur'!S20 -> 41349 | K146: ='Udgifter til figur'!B20 -> Trin 6: Institutionsanbringelser | L146: ='Udgifter til figur'!C20 -> 69005.72947
A147: Ikke-trinspecifikke grupperinger | B147: ='Udgifter til figur'!K21 -> 27479.20183 | C147: ='Udgifter til figur'!L21 -> 31446.17486 | D147: ='Udgifter til figur'!M21 -> 29436.92235 | E147: ='Udgifter til figur'!N21 -> 29335.8108 | F147: ='Udgifter til figur'!O21 -> 29810.27805 | G147: ='Udgifter til figur'!P21 -> 30758.76845 | H147: ='Udgifter til figur'!Q21 -> 30714.62923 | I147: ='Udgifter til figur'!R21 -> 32264.808 | J147: ='Udgifter til figur'!S21 -> 35465 | K147: ='Udgifter til figur'!B21 -> Ikke-trinspecifikke grupperinger | L147: ='Udgifter til figur'!C21 -> -9337.789405
A148: Refusioner | B148: ='Udgifter til figur'!K22 -> -2236.569717 | C148: ='Udgifter til figur'!L22 -> -4230.28135 | D148: ='Udgifter til figur'!M22 -> -3745.833844 | E148: ='Udgifter til figur'!N22 -> -3322.138589 | F148: ='Udgifter til figur'!O22 -> -4335.77881 | G148: ='Udgifter til figur'!P22 -> -3656.167679 | H148: ='Udgifter til figur'!Q22 -> -6759.734276 | I148: ='Udgifter til figur'!R22 -> -14923.476 | J148: ='Udgifter til figur'!S22 -> -29896 | K148: ='Udgifter til figur'!B22 -> Refusioner | L148: ='Udgifter til figur'!C22 -> -8689.683275
A149: Note: Udgifterne er defineret som art>0
A150: Kilde: Danmarks Statistik
A155: Udgiftsudvikling på tværs af aktører
A157: Udgiftsudvikling på overordnede opgørelser
A159: =IF(figur4_valg=1,"Figur: Udgifter i alt pr. barn, kr., "&Prisår&"-priser",IF(figur4_valg=2,"Figur: Administrationsudgifter pr. barn, kr., "&Prisår&"-priser","Figur: Serviceudgifter pr. barn, kr., "&Prisår&"-priser")) -> Figur: Serviceudgifter pr. barn, kr., 2023-priser
A181: Note: Antal børn er defineret som antallet af 0-22 årige pr. 1. januar i regnskabsåret.
A182: ="Note: Udgifterne er defineret som art>0. De valgte sammenligningskommuner er "&Samkom1&" "&Samkom2&" "&Samkom3&" "&Samkom4&" "&Samkom5&" "&Samkom6&" "&Samkom7&" "&Samkom8&" "&Samkom9&" "&Samkom10&" "&Samkom11&" "&Samkom12&" "&Samkom13&" "&Samkom14&" "&Samkom15&" "&Samkom16&" "&Samkom17&" "&Samkom18&" " -> Note: Udgifterne er defineret som art>0. De valgte sammenligningskommuner er Allerød
A183: Kilde: Danmarks Statistik.
A186: =IF(figur4_valg=1,"Tabel: Udgifter i alt pr. barn, kr., "&Prisår&"-priser",IF(figur4_valg=2,"Tabel: Administrationsudgifter pr. barn, kr., "&Prisår&"-priser","Tabel: Serviceudgifter pr. barn, kr., "&Prisår&"-priser")) -> Tabel: Serviceudgifter pr. barn, kr., 2023-priser
B187: ='Udgifter til figur'!K27 -> 2015 | C187: ='Udgifter til figur'!L27 -> 2016 | D187: ='Udgifter til figur'!M27 -> 2017 | E187: ='Udgifter til figur'!N27 -> 2018 | F187: ='Udgifter til figur'!O27 -> 2019 | G187: ='Udgifter til figur'!P27 -> 2020 | H187: ='Udgifter til figur'!Q27 -> 2021 | I187: ='Udgifter til figur'!R27 -> 2022 | J187: ='Udgifter til figur'!S27 -> 2023 | K187: ='Udgifter til figur'!B27 -> 0 | L187: ='Udgifter til figur'!C27 -> 2007
A188: =""&Kommune&"" -> Fredericia | B188: ='Udgifter til figur'!K28 ->  | C188: ='Udgifter til figur'!L28 ->  | D188: ='Udgifter til figur'!M28 ->  | E188: ='Udgifter til figur'!N28 ->  | F188: ='Udgifter til figur'!O28 ->  | G188: ='Udgifter til figur'!P28 ->  | H188: ='Udgifter til figur'!Q28 ->  | I188: ='Udgifter til figur'!R28 -> 0 | J188: ='Udgifter til figur'!S28 -> 0 | K188: ='Udgifter til figur'!B28 -> Fredericia | L188: ='Udgifter til figur'!C28 -> 
A189: Udgifter pr. barn | B189: ='Udgifter til figur'!K29 -> 5901.648828 | C189: ='Udgifter til figur'!L29 -> 6515.508413 | D189: ='Udgifter til figur'!M29 -> 7180.601273 | E189: ='Udgifter til figur'!N29 -> 7475.486953 | F189: ='Udgifter til figur'!O29 -> 7271.89523 | G189: ='Udgifter til figur'!P29 -> 7725.158562 | H189: ='Udgifter til figur'!Q29 -> 7848.200434 | I189: ='Udgifter til figur'!R29 -> 9363.636364 | J189: ='Udgifter til figur'!S29 -> 10386.94818 | K189: ='Udgifter til figur'!B29 -> Serviceudgifter pr. barn, kr., 2023-priser | L189: ='Udgifter til figur'!C29 -> 5768.339202
A190: Antal 0-22-årige | B190: ='Udgifter til figur'!K30 -> 13828 | C190: ='Udgifter til figur'!L30 -> 13670 | D190: ='Udgifter til figur'!M30 -> 13671 | E190: ='Udgifter til figur'!N30 -> 13605 | F190: ='Udgifter til figur'!O30 -> 13439 | G190: ='Udgifter til figur'!P30 -> 13244 | H190: ='Udgifter til figur'!Q30 -> 12892 | I190: ='Udgifter til figur'!R30 -> 12936 | J190: ='Udgifter til figur'!S30 -> 13025 | K190: ='Udgifter til figur'!B30 -> Antal 0-22-årige | L190: ='Udgifter til figur'!C30 -> 13632
A191: Sammenligningsgruppe, gns. | B191: ='Udgifter til figur'!K31 ->  | C191: ='Udgifter til figur'!L31 ->  | D191: ='Udgifter til figur'!M31 ->  | E191: ='Udgifter til figur'!N31 ->  | F191: ='Udgifter til figur'!O31 ->  | G191: ='Udgifter til figur'!P31 ->  | H191: ='Udgifter til figur'!Q31 ->  | I191: ='Udgifter til figur'!R31 -> 0 | J191: ='Udgifter til figur'!S31 -> 0 | K191: ='Udgifter til figur'!B31 -> Sammenligningsgruppe, gns. | L191: ='Udgifter til figur'!C31 -> 
A192: Udgifter pr. barn | B192: ='Udgifter til figur'!K32 -> 3989.581942 | C192: ='Udgifter til figur'!L32 -> 5392.966158 | D192: ='Udgifter til figur'!M32 -> 5333.155721 | E192: ='Udgifter til figur'!N32 -> 5088.691502 | F192: ='Udgifter til figur'!O32 -> 5001.442056 | G192: ='Udgifter til figur'!P32 -> 5364.349329 | H192: ='Udgifter til figur'!Q32 -> 5230.870887 | I192: ='Udgifter til figur'!R32 -> 5675.825627 | J192: ='Udgifter til figur'!S32 -> 6199.270168 | K192: ='Udgifter til figur'!B32 -> Serviceudgifter pr. barn, kr., 2023-priser | L192: ='Udgifter til figur'!C32 -> 5641.445587
A193: Antal 0-22-årige | B193: ='Udgifter til figur'!K33 -> 7487 | C193: ='Udgifter til figur'!L33 -> 7535 | D193: ='Udgifter til figur'!M33 -> 7507 | E193: ='Udgifter til figur'!N33 -> 7543 | F193: ='Udgifter til figur'!O33 -> 7628 | G193: ='Udgifter til figur'!P33 -> 7523 | H193: ='Udgifter til figur'!Q33 -> 7567 | I193: ='Udgifter til figur'!R33 -> 7570 | J193: ='Udgifter til figur'!S33 -> 7673 | K193: ='Udgifter til figur'!B33 -> Antal 0-22-årige | L193: ='Udgifter til figur'!C33 -> 7388
A194: =""&Region&"" -> Region Syddanmark | B194: ='Udgifter til figur'!K34 ->  | C194: ='Udgifter til figur'!L34 ->  | D194: ='Udgifter til figur'!M34 ->  | E194: ='Udgifter til figur'!N34 ->  | F194: ='Udgifter til figur'!O34 ->  | G194: ='Udgifter til figur'!P34 ->  | H194: ='Udgifter til figur'!Q34 ->  | I194: ='Udgifter til figur'!R34 -> 0 | J194: ='Udgifter til figur'!S34 -> 0 | K194: ='Udgifter til figur'!B34 -> Region Syddanmark | L194: ='Udgifter til figur'!C34 -> 
A195: Udgifter pr. barn | B195: ='Udgifter til figur'!K35 -> 7833.124102 | C195: ='Udgifter til figur'!L35 -> 7831.379094 | D195: ='Udgifter til figur'!M35 -> 8048.447877 | E195: ='Udgifter til figur'!N35 -> 8431.921987 | F195: ='Udgifter til figur'!O35 -> 8883.521478 | G195: ='Udgifter til figur'!P35 -> 9431.582333 | H195: ='Udgifter til figur'!Q35 -> 9621.717107 | I195: ='Udgifter til figur'!R35 -> 9897.332307 | J195: ='Udgifter til figur'!S35 -> 10528.46319 | K195: ='Udgifter til figur'!B35 -> Serviceudgifter pr. barn, kr., 2023-priser | L195: ='Udgifter til figur'!C35 -> 5781.913962
A196: Antal 0-22-årige | B196: ='Udgifter til figur'!K36 -> 329778 | C196: ='Udgifter til figur'!L36 -> 328346 | D196: ='Udgifter til figur'!M36 -> 327197 | E196: ='Udgifter til figur'!N36 -> 324253 | F196: ='Udgifter til figur'!O36 -> 320763 | G196: ='Udgifter til figur'!P36 -> 317133 | H196: ='Udgifter til figur'!Q36 -> 313900 | I196: ='Udgifter til figur'!R36 -> 313117 | J196: ='Udgifter til figur'!S36 -> 313598 | K196: ='Udgifter til figur'!B36 -> Antal 0-22-årige | L196: ='Udgifter til figur'!C36 -> 336945
A197: Hele landet | B197: ='Udgifter til figur'!K37 ->  | C197: ='Udgifter til figur'!L37 ->  | D197: ='Udgifter til figur'!M37 ->  | E197: ='Udgifter til figur'!N37 ->  | F197: ='Udgifter til figur'!O37 ->  | G197: ='Udgifter til figur'!P37 ->  | H197: ='Udgifter til figur'!Q37 ->  | I197: ='Udgifter til figur'!R37 -> 0 | J197: ='Udgifter til figur'!S37 -> 0 | K197: ='Udgifter til figur'!B37 -> Hele landet | L197: ='Udgifter til figur'!C37 -> 
A198: Udgifter pr. barn | B198: ='Udgifter til figur'!K38 -> 7841.094065 | C198: ='Udgifter til figur'!L38 -> 7949.048548 | D198: ='Udgifter til figur'!M38 -> 8184.608788 | E198: ='Udgifter til figur'!N38 -> 8491.852999 | F198: ='Udgifter til figur'!O38 -> 8728.601967 | G198: ='Udgifter til figur'!P38 -> 8838.78898 | H198: ='Udgifter til figur'!Q38 -> 9069.186442 | I198: ='Udgifter til figur'!R38 -> 9500.22516 | J198: ='Udgifter til figur'!S38 -> 9951.044172 | K198: ='Udgifter til figur'!B38 -> Serviceudgifter pr. barn, kr., 2023-priser | L198: ='Udgifter til figur'!C38 -> 6146.101165
A199: Antal 0-22-årige | B199: ='Udgifter til figur'!K39 -> 1543089 | C199: ='Udgifter til figur'!L39 -> 1543273 | D199: ='Udgifter til figur'!M39 -> 1543946 | E199: ='Udgifter til figur'!N39 -> 1537130 | F199: ='Udgifter til figur'!O39 -> 1527804 | G199: ='Udgifter til figur'!P39 -> 1518885 | H199: ='Udgifter til figur'!Q39 -> 1510267 | I199: ='Udgifter til figur'!R39 -> 1510040 | J199: ='Udgifter til figur'!S39 -> 1516081 | K199: ='Udgifter til figur'!B39 -> Antal 0-22-årige | L199: ='Udgifter til figur'!C39 -> 1515491
A200: Note: Antal børn er defineret som antallet af 0-22 årige pr. 1. januar i regnskabsåret.
A201: ="Note: Udgifterne er defineret som art>0. De valgte sammenligningskommuner er "&Samkom1&" "&Samkom2&" "&Samkom3&" "&Samkom4&" "&Samkom5&" "&Samkom6&" "&Samkom7&" "&Samkom8&" "&Samkom9&" "&Samkom10&" "&Samkom11&" "&Samkom12&" "&Samkom13&" "&Samkom14&" "&Samkom15&" "&Samkom16&" "&Samkom17&" "&Samkom18&" " -> Note: Udgifterne er defineret som art>0. De valgte sammenligningskommuner er Allerød
A202: Kilde: Danmarks Statistik.
A232: Udgiftsudvikling på tværs af aktører
A234: Udgiftsudvikling fordelt på trin
A236: =IF(figur5_valg=1,"Figur: Udgifter til forebyggende indsatser pr. barn, kr., "&Prisår&"-priser",IF(figur5_valg=2,"Figur: Udgifter til hjemmebaserede foranstaltninger pr. barn, kr., "&Prisår&"-priser",IF(figur5_valg=3,"Figur: Udgifter til slægts- eller netværkspleje pr. barn, kr., "&Prisår&"-priser",IF(figur5_valg=4,"Figur: Udgifter til familiepleje pr. barn, kr., "&Prisår&"-priser",IF(figur5_valg=5,"Figur: Udgifter til institutionsanbringelser pr. barn, kr., "&Prisår&"-priser",IF(figur5_valg=6,"Figur: Udgifter til ikke-trinspecifikke grupperinger pr. barn, kr., "&Prisår&"-priser","Figur: Refusioner pr. barn, kr., "&Prisår&"-priser")))))) -> Figur: Udgifter til hjemmebaserede foranstaltninger pr. barn, kr., 2023-priser
A260: Anm.: Antal børn er defineret som antallet af 0-22 årige pr. 1. januar i regnskabsåret.
A261: Note: Udgifterne er defineret som art>0. De valgte sammenligningskommuner er Assens Ballerup
A262: Kilde: Danmarks Statistik.
A265: =IF(figur5_valg=1,"Tabel: Udgifter til forebyggende indsatser pr. barn, kr., "&Prisår&"-priser",IF(figur5_valg=2,"Tabel: Udgifter til hjemmebaserede foranstaltninger pr. barn, kr., "&Prisår&"-priser",IF(figur5_valg=3,"Tabel: Udgifter til slægts- eller netværkspleje pr. barn, kr., "&Prisår&"-priser",IF(figur5_valg=4,"Tabel: Udgifter til familiepleje pr. barn, kr., "&Prisår&"-priser",IF(figur5_valg=5,"Tabel: Udgifter til institutionsanbringelser pr. barn, kr., "&Prisår&"-priser",IF(figur5_valg=6,"Tabel: Udgifter til ikke-trinspecifikke grupperinger pr. barn, kr., "&Prisår&"-priser","Tabel: Refusioner pr. barn, kr., "&Prisår&"-priser")))))) -> Tabel: Udgifter til hjemmebaserede foranstaltninger pr. barn, kr., 2023-priser
B266: ='Udgifter til figur'!K43 -> 2015 | C266: ='Udgifter til figur'!L43 -> 2016 | D266: ='Udgifter til figur'!M43 -> 2017 | E266: ='Udgifter til figur'!N43 -> 2018 | F266: ='Udgifter til figur'!O43 -> 2019 | G266: ='Udgifter til figur'!P43 -> 2020 | H266: ='Udgifter til figur'!Q43 -> 2021 | I266: ='Udgifter til figur'!R43 -> 2022 | J266: ='Udgifter til figur'!S43 -> 2023 | K266: ='Udgifter til figur'!B43 -> 0 | L266: ='Udgifter til figur'!C43 -> 2007
A267: =""&Kommune&"" -> Fredericia | B267: ='Udgifter til figur'!K44 ->  | C267: ='Udgifter til figur'!L44 ->  | D267: ='Udgifter til figur'!M44 ->  | E267: ='Udgifter til figur'!N44 ->  | F267: ='Udgifter til figur'!O44 ->  | G267: ='Udgifter til figur'!P44 ->  | H267: ='Udgifter til figur'!Q44 ->  | I267: ='Udgifter til figur'!R44 -> 0 | J267: ='Udgifter til figur'!S44 -> 0 | K267: ='Udgifter til figur'!B44 -> Fredericia | L267: ='Udgifter til figur'!C44 -> 
A268: Udgifter pr. barn | B268: ='Udgifter til figur'!K45 -> 749.7830489 | C268: ='Udgifter til figur'!L45 -> 818.5808339 | D268: ='Udgifter til figur'!M45 -> 1122.74157 | E268: ='Udgifter til figur'!N45 -> 1357.22161 | F268: ='Udgifter til figur'!O45 -> 1127.09279 | G268: ='Udgifter til figur'!P45 -> 1576.41196 | H268: ='Udgifter til figur'!Q45 -> 1652.57524 | I268: ='Udgifter til figur'!R45 -> 2216.218306 | J268: ='Udgifter til figur'!S45 -> 2728.291747 | K268: ='Udgifter til figur'!B45 -> Udgifter til hjemmebaserede foranstaltninger pr. barn, kr., 2023-priser | L268: ='Udgifter til figur'!C45 -> 919.967723
A269: Antal 0-22-årige | B269: ='Udgifter til figur'!K46 -> 13828 | C269: ='Udgifter til figur'!L46 -> 13670 | D269: ='Udgifter til figur'!M46 -> 13671 | E269: ='Udgifter til figur'!N46 -> 13605 | F269: ='Udgifter til figur'!O46 -> 13439 | G269: ='Udgifter til figur'!P46 -> 13244 | H269: ='Udgifter til figur'!Q46 -> 12892 | I269: ='Udgifter til figur'!R46 -> 12936 | J269: ='Udgifter til figur'!S46 -> 13025 | K269: ='Udgifter til figur'!B46 -> Antal 0-22-årige | L269: ='Udgifter til figur'!C46 -> 13632
A270: Sammenligningsgruppe, gns. | B270: ='Udgifter til figur'!K47 ->  | C270: ='Udgifter til figur'!L47 ->  | D270: ='Udgifter til figur'!M47 ->  | E270: ='Udgifter til figur'!N47 ->  | F270: ='Udgifter til figur'!O47 ->  | G270: ='Udgifter til figur'!P47 ->  | H270: ='Udgifter til figur'!Q47 ->  | I270: ='Udgifter til figur'!R47 -> 0 | J270: ='Udgifter til figur'!S47 -> 0 | K270: ='Udgifter til figur'!B47 -> Sammenligningsgruppe, gns. | L270: ='Udgifter til figur'!C47 -> 
A271: Udgifter pr. barn | B271: ='Udgifter til figur'!K48 -> 868.438627 | C271: ='Udgifter til figur'!L48 -> 1579.562044 | D271: ='Udgifter til figur'!M48 -> 1994.405222 | E271: ='Udgifter til figur'!N48 -> 1904.679836 | F271: ='Udgifter til figur'!O48 -> 2147.614053 | G271: ='Udgifter til figur'!P48 -> 2380.167486 | H271: ='Udgifter til figur'!Q48 -> 3185.806793 | I271: ='Udgifter til figur'!R48 -> 3397.093791 | J271: ='Udgifter til figur'!S48 -> 2965.072332 | K271: ='Udgifter til figur'!B48 -> Udgifter til hjemmebaserede foranstaltninger pr. barn, kr., 2023-priser | L271: ='Udgifter til figur'!C48 -> 2432.322685
A272: Antal 0-22-årige | B272: ='Udgifter til figur'!K49 -> 7487 | C272: ='Udgifter til figur'!L49 -> 7535 | D272: ='Udgifter til figur'!M49 -> 7507 | E272: ='Udgifter til figur'!N49 -> 7543 | F272: ='Udgifter til figur'!O49 -> 7628 | G272: ='Udgifter til figur'!P49 -> 7523 | H272: ='Udgifter til figur'!Q49 -> 7567 | I272: ='Udgifter til figur'!R49 -> 7570 | J272: ='Udgifter til figur'!S49 -> 7673 | K272: ='Udgifter til figur'!B49 -> Antal 0-22-årige | L272: ='Udgifter til figur'!C49 -> 7388
A273: =""&Region&"" -> Region Syddanmark | B273: ='Udgifter til figur'!K50 ->  | C273: ='Udgifter til figur'!L50 ->  | D273: ='Udgifter til figur'!M50 ->  | E273: ='Udgifter til figur'!N50 ->  | F273: ='Udgifter til figur'!O50 ->  | G273: ='Udgifter til figur'!P50 ->  | H273: ='Udgifter til figur'!Q50 ->  | I273: ='Udgifter til figur'!R50 -> 0 | J273: ='Udgifter til figur'!S50 -> 0 | K273: ='Udgifter til figur'!B50 -> Region Syddanmark | L273: ='Udgifter til figur'!C50 -> 
A274: Udgifter pr. barn | B274: ='Udgifter til figur'!K51 -> 2483.155335 | C274: ='Udgifter til figur'!L51 -> 2502.588733 | D274: ='Udgifter til figur'!M51 -> 2652.249257 | E274: ='Udgifter til figur'!N51 -> 2786.179311 | F274: ='Udgifter til figur'!O51 -> 2886.15894 | G274: ='Udgifter til figur'!P51 -> 3017.667666 | H274: ='Udgifter til figur'!Q51 -> 3241.784008 | I274: ='Udgifter til figur'!R51 -> 3359.817576 | J274: ='Udgifter til figur'!S51 -> 3614.315142 | K274: ='Udgifter til figur'!B51 -> Udgifter til hjemmebaserede foranstaltninger pr. barn, kr., 2023-priser | L274: ='Udgifter til figur'!C51 -> 1742.198282
A275: Antal 0-22-årige | B275: ='Udgifter til figur'!K52 -> 329778 | C275: ='Udgifter til figur'!L52 -> 328346 | D275: ='Udgifter til figur'!M52 -> 327197 | E275: ='Udgifter til figur'!N52 -> 324253 | F275: ='Udgifter til figur'!O52 -> 320763 | G275: ='Udgifter til figur'!P52 -> 317133 | H275: ='Udgifter til figur'!Q52 -> 313900 | I275: ='Udgifter til figur'!R52 -> 313117 | J275: ='Udgifter til figur'!S52 -> 313598 | K275: ='Udgifter til figur'!B52 -> Antal 0-22-årige | L275: ='Udgifter til figur'!C52 -> 336945
A276: Hele landet | B276: ='Udgifter til figur'!K53 ->  | C276: ='Udgifter til figur'!L53 ->  | D276: ='Udgifter til figur'!M53 ->  | E276: ='Udgifter til figur'!N53 ->  | F276: ='Udgifter til figur'!O53 ->  | G276: ='Udgifter til figur'!P53 ->  | H276: ='Udgifter til figur'!Q53 ->  | I276: ='Udgifter til figur'!R53 -> 0 | J276: ='Udgifter til figur'!S53 -> 0 | K276: ='Udgifter til figur'!B53 -> Hele landet | L276: ='Udgifter til figur'!C53 -> 
A277: Udgifter pr. barn | B277: ='Udgifter til figur'!K54 -> 2889.001218 | C277: ='Udgifter til figur'!L54 -> 3024.664463 | D277: ='Udgifter til figur'!M54 -> 3100.525537 | E277: ='Udgifter til figur'!N54 -> 3241.943752 | F277: ='Udgifter til figur'!O54 -> 3343.272435 | G277: ='Udgifter til figur'!P54 -> 3433.485089 | H277: ='Udgifter til figur'!Q54 -> 3642.40429 | I277: ='Udgifter til figur'!R54 -> 3919.472994 | J277: ='Udgifter til figur'!S54 -> 4193.598495 | K277: ='Udgifter til figur'!B54 -> Udgifter til hjemmebaserede foranstaltninger pr. barn, kr., 2023-priser | L277: ='Udgifter til figur'!C54 -> 2061.886214
A278: Antal 0-22-årige | B278: ='Udgifter til figur'!K55 -> 1543089 | C278: ='Udgifter til figur'!L55 -> 1543273 | D278: ='Udgifter til figur'!M55 -> 1543946 | E278: ='Udgifter til figur'!N55 -> 1537130 | F278: ='Udgifter til figur'!O55 -> 1527804 | G278: ='Udgifter til figur'!P55 -> 1518885 | H278: ='Udgifter til figur'!Q55 -> 1510267 | I278: ='Udgifter til figur'!R55 -> 1510040 | J278: ='Udgifter til figur'!S55 -> 1516081 | K278: ='Udgifter til figur'!B55 -> Antal 0-22-årige | L278: ='Udgifter til figur'!C55 -> 1515491
A279: Anm.: Antal børn er defineret som antallet af 0-22 årige pr. 1. januar i regnskabsåret.
A280: Note: Udgifterne er defineret som art>0. De valgte sammenligningskommuner er Assens Ballerup
A281: Kilde: Danmarks Statistik.
A309: ="Udgiftsfordeling for "&fordeling_tekst&"" -> Udgiftsfordeling for Fredericia
A311: ="Figur: Fordeling af serviceudgifter for "&fordeling_tekst&"" -> Figur: Fordeling af serviceudgifter for Fredericia
A337: ="Note: Udgifterne er defineret som art>0. " -> Note: Udgifterne er defineret som art>0.
A338: Kilde: Danmarks Statistik
A341: ="Tabel: Fordeling af serviceudgifter for "&fordeling_tekst&"" -> Tabel: Fordeling af serviceudgifter for Fredericia
B342: ='Udgifter til figur'!K60 -> 2015 | C342: ='Udgifter til figur'!L60 -> 2016 | D342: ='Udgifter til figur'!M60 -> 2017 | E342: ='Udgifter til figur'!N60 -> 2018 | F342: ='Udgifter til figur'!O60 -> 2019 | G342: ='Udgifter til figur'!P60 -> 2020 | H342: ='Udgifter til figur'!Q60 -> 2021 | I342: ='Udgifter til figur'!R60 -> 2022 | J342: ='Udgifter til figur'!S60 -> 2023 | K342: ='Udgifter til figur'!B60 -> 0 | L342: ='Udgifter til figur'!C60 -> 2007
A343: =""&fordeling_tekst&"" -> Fredericia | B343: ='Udgifter til figur'!K61 ->  | C343: ='Udgifter til figur'!L61 ->  | D343: ='Udgifter til figur'!M61 ->  | E343: ='Udgifter til figur'!N61 ->  | F343: ='Udgifter til figur'!O61 ->  | G343: ='Udgifter til figur'!P61 ->  | H343: ='Udgifter til figur'!Q61 ->  | I343: ='Udgifter til figur'!R61 -> 0 | J343: ='Udgifter til figur'!S61 -> 0 | K343: ='Udgifter til figur'!B61 -> Fredericia | L343: ='Udgifter til figur'!C61 -> 
A344: Trin 2: Forebyggende indsatser | B344: ='Udgifter til figur'!K62 -> 0 | C344: ='Udgifter til figur'!L62 -> 5.3931033e-05 | D344: ='Udgifter til figur'!M62 -> 0.01448932521 | E344: ='Udgifter til figur'!N62 -> 0.0103193258 | F344: ='Udgifter til figur'!O62 -> 0.01649876038 | G344: ='Udgifter til figur'!P62 -> 0.01217700656 | H344: ='Udgifter til figur'!Q62 -> 0.009654017857 | I344: ='Udgifter til figur'!R62 -> 0.01167754064 | J344: ='Udgifter til figur'!S62 -> 0.009177533205 | K344: ='Udgifter til figur'!B62 -> Trin 2: Forebyggende indsatser | L344: ='Udgifter til figur'!C62 -> 0
A345: Trin 3: Hjemmebaserede foranstaltninger | B345: ='Udgifter til figur'!K63 -> 0.1241557695 | C345: ='Udgifter til figur'!L63 -> 0.1206976518 | D345: ='Udgifter til figur'!M63 -> 0.1512902399 | E345: ='Udgifter til figur'!N63 -> 0.1764318065 | F345: ='Udgifter til figur'!O63 -> 0.1490201094 | G345: ='Udgifter til figur'!P63 -> 0.1975381064 | H345: ='Udgifter til figur'!Q63 -> 0.1981491815 | I345: ='Udgifter til figur'!R63 -> 0.2113531645 | J345: ='Udgifter til figur'!S63 -> 0.21512719 | K345: ='Udgifter til figur'!B63 -> Trin 3: Hjemmebaserede foranstaltninger | L345: ='Udgifter til figur'!C63 -> 0.1478629959
A346: Trin 4: Slægt- eller netværkspleje | B346: ='Udgifter til figur'!K64 -> 0.01665708675 | C346: ='Udgifter til figur'!L64 -> 0.01663233058 | D346: ='Udgifter til figur'!M64 -> 0.01704220632 | E346: ='Udgifter til figur'!N64 -> 0.01422729271 | F346: ='Udgifter til figur'!O64 -> 0.01317342883 | G346: ='Udgifter til figur'!P64 -> 0.01922585651 | H346: ='Udgifter til figur'!Q64 -> 0.0171968006 | I346: ='Udgifter til figur'!R64 -> 0.01380810203 | J346: ='Udgifter til figur'!S64 -> 0.01363917039 | K346: ='Udgifter til figur'!B64 -> Trin 4: Slægts- og netværkspleje | L346: ='Udgifter til figur'!C64 -> 0
A347: Trin 5: Familiepleje | B347: ='Udgifter til figur'!K65 -> 0.3614623749 | C347: ='Udgifter til figur'!L65 -> 0.3543268868 | D347: ='Udgifter til figur'!M65 -> 0.3303270448 | E347: ='Udgifter til figur'!N65 -> 0.3492709587 | F347: ='Udgifter til figur'!O65 -> 0.350615875 | G347: ='Udgifter til figur'!P65 -> 0.3404831064 | H347: ='Udgifter til figur'!Q65 -> 0.3507626488 | I347: ='Udgifter til figur'!R65 -> 0.3193482989 | J347: ='Udgifter til figur'!S65 -> 0.2970409115 | K347: ='Udgifter til figur'!B65 -> Trin 5: Familiepleje | L347: ='Udgifter til figur'!C65 -> 0.3517302364
A348: Trin 6: Institutionsanbringelser | B348: ='Udgifter til figur'!K66 -> 0.2181826891 | C348: ='Udgifter til figur'!L66 -> 0.2161124354 | D348: ='Udgifter til figur'!M66 -> 0.2321643306 | E348: ='Udgifter til figur'!N66 -> 0.2005102333 | F348: ='Udgifter til figur'!O66 -> 0.2057376727 | G348: ='Udgifter til figur'!P66 -> 0.1616126255 | H348: ='Udgifter til figur'!Q66 -> 0.1562686012 | I348: ='Udgifter til figur'!R66 -> 0.2124295035 | J348: ='Udgifter til figur'!S66 -> 0.2503178235 | K348: ='Udgifter til figur'!B66 -> Trin 6: Institutionsanbringelser | L348: ='Udgifter til figur'!C66 -> 0.5787183871
A349: Ikke-trinspecifikke grupperinger | B349: ='Udgifter til figur'!K67 -> 0.2795420798 | C349: ='Udgifter til figur'!L67 -> 0.2921767644 | D349: ='Udgifter til figur'!M67 -> 0.2546868532 | E349: ='Udgifter til figur'!N67 -> 0.249240383 | F349: ='Udgifter til figur'!O67 -> 0.2649541537 | G349: ='Udgifter til figur'!P67 -> 0.2689632987 | H349: ='Udgifter til figur'!Q67 -> 0.26796875 | I349: ='Udgifter til figur'!R67 -> 0.2313833905 | J349: ='Udgifter til figur'!S67 -> 0.2146973714 | K349: ='Udgifter til figur'!B67 -> Ikke-trinspecifikke grupperinger | L349: ='Udgifter til figur'!C67 -> -0.07831161941
A350: I alt | B350: ='Udgifter til figur'!K68 -> 1 | C350: ='Udgifter til figur'!L68 -> 1 | D350: ='Udgifter til figur'!M68 -> 1 | E350: ='Udgifter til figur'!N68 -> 1 | F350: ='Udgifter til figur'!O68 -> 1 | G350: ='Udgifter til figur'!P68 -> 1 | H350: ='Udgifter til figur'!Q68 -> 1 | I350: ='Udgifter til figur'!R68 -> 1 | J350: ='Udgifter til figur'!S68 -> 1 | K350: ='Udgifter til figur'!B68 -> I alt | L350: ='Udgifter til figur'!C68 -> 1
A351: ="Note: Udgifterne er defineret som art>0. " -> Note: Udgifterne er defineret som art>0.
A352: Kilde: Danmarks Statistik
A387: Udgiftsfordeling på tværs af aktører
A389: ="Figur: Andel udgifter til "&fordeling_trin_tekst&"" -> Figur: Andel udgifter til Trin 4: Slægt- eller netværkspleje
A414: ="Note: Udgifterne er defineret som art>0. De valgte sammenligningskommuner er "&Samkom1&" "&Samkom2&" "&Samkom3&" "&Samkom4&" "&Samkom5&" "&Samkom6&" "&Samkom7&" "&Samkom8&" "&Samkom9&" "&Samkom10&" "&Samkom11&" "&Samkom12&" "&Samkom13&" "&Samkom14&" "&Samkom15&" "&Samkom16&" "&Samkom17&" "&Samkom18&" " -> Note: Udgifterne er defineret som art>0. De valgte sammenligningskommuner er Allerød
A415: Kilde: Danmarks Statistik
A418: ="Tabel: Andel udgifter til "&fordeling_trin_tekst&"" -> Tabel: Andel udgifter til Trin 4: Slægt- eller netværkspleje
B419: ='Udgifter til figur'!K73 -> 2015 | C419: ='Udgifter til figur'!L73 -> 2016 | D419: ='Udgifter til figur'!M73 -> 2017 | E419: ='Udgifter til figur'!N73 -> 2018 | F419: ='Udgifter til figur'!O73 -> 2019 | G419: ='Udgifter til figur'!P73 -> 2020 | H419: ='Udgifter til figur'!Q73 -> 2021 | I419: ='Udgifter til figur'!R73 -> 2022 | J419: ='Udgifter til figur'!S73 -> 2023 | K419: ='Udgifter til figur'!B73 -> 0 | L419: ='Udgifter til figur'!C73 -> 2007
A420: =""&Kommune&"" -> Fredericia | B420: ='Udgifter til figur'!K74 ->  | C420: ='Udgifter til figur'!L74 ->  | D420: ='Udgifter til figur'!M74 ->  | E420: ='Udgifter til figur'!N74 ->  | F420: ='Udgifter til figur'!O74 ->  | G420: ='Udgifter til figur'!P74 ->  | H420: ='Udgifter til figur'!Q74 ->  | I420: ='Udgifter til figur'!R74 -> 0 | J420: ='Udgifter til figur'!S74 -> 0 | K420: ='Udgifter til figur'!B74 -> Fredericia | L420: ='Udgifter til figur'!C74 -> 
A421: ="Andel udgifter til "&fordeling_trin_tekst&"" -> Andel udgifter til Trin 4: Slægt- eller netværkspleje | B421: ='Udgifter til figur'!K75 -> 0.01665708675 | C421: ='Udgifter til figur'!L75 -> 0.01663233058 | D421: ='Udgifter til figur'!M75 -> 0.01704220632 | E421: ='Udgifter til figur'!N75 -> 0.01422729271 | F421: ='Udgifter til figur'!O75 -> 0.01317342883 | G421: ='Udgifter til figur'!P75 -> 0.01922585651 | H421: ='Udgifter til figur'!Q75 -> 0.0171968006 | I421: ='Udgifter til figur'!R75 -> 0.01380810203 | J421: ='Udgifter til figur'!S75 -> 0.01363917039 | K421: ='Udgifter til figur'!B75 -> Trin 4: Slægt- eller netværkspleje | L421: ='Udgifter til figur'!C75 -> 0
A422: Sammenligningsgruppe, gns. | B422: ='Udgifter til figur'!K76 ->  | C422: ='Udgifter til figur'!L76 ->  | D422: ='Udgifter til figur'!M76 ->  | E422: ='Udgifter til figur'!N76 ->  | F422: ='Udgifter til figur'!O76 ->  | G422: ='Udgifter til figur'!P76 ->  | H422: ='Udgifter til figur'!Q76 ->  | I422: ='Udgifter til figur'!R76 -> 0 | J422: ='Udgifter til figur'!S76 -> 0 | K422: ='Udgifter til figur'!B76 -> Sammenligningsgruppe, gns. | L422: ='Udgifter til figur'!C76 -> 
A423: ="Andel udgifter til "&fordeling_trin_tekst&"" -> Andel udgifter til Trin 4: Slægt- eller netværkspleje | B423: ='Udgifter til figur'!K77 -> 0.001771148916 | C423: ='Udgifter til figur'!L77 -> 0.001114464825 | D423: ='Udgifter til figur'!M77 -> 0.0007225749945 | E423: ='Udgifter til figur'!N77 -> 0.02314337604 | F423: ='Udgifter til figur'!O77 -> 0.004475992404 | G423: ='Udgifter til figur'!P77 -> 0.005405294311 | H423: ='Udgifter til figur'!Q77 -> 0.004204543243 | I423: ='Udgifter til figur'!R77 -> 0.003821223863 | J423: ='Udgifter til figur'!S77 -> 0.003128961345 | K423: ='Udgifter til figur'!B77 -> Trin 4: Slægt- eller netværkspleje | L423: ='Udgifter til figur'!C77 -> 1.984638895e-05
A424: =""&Region&"" -> Region Syddanmark | B424: ='Udgifter til figur'!K78 ->  | C424: ='Udgifter til figur'!L78 ->  | D424: ='Udgifter til figur'!M78 ->  | E424: ='Udgifter til figur'!N78 ->  | F424: ='Udgifter til figur'!O78 ->  | G424: ='Udgifter til figur'!P78 ->  | H424: ='Udgifter til figur'!Q78 ->  | I424: ='Udgifter til figur'!R78 -> 0 | J424: ='Udgifter til figur'!S78 -> 0 | K424: ='Udgifter til figur'!B78 -> Region Syddanmark | L424: ='Udgifter til figur'!C78 -> 
A425: ="Andel udgifter til "&fordeling_trin_tekst&"" -> Andel udgifter til Trin 4: Slægt- eller netværkspleje | B425: ='Udgifter til figur'!K79 -> 0.01109935896 | C425: ='Udgifter til figur'!L79 -> 0.01163518273 | D425: ='Udgifter til figur'!M79 -> 0.01170024352 | E425: ='Udgifter til figur'!N79 -> 0.01118206657 | F425: ='Udgifter til figur'!O79 -> 0.01130455108 | G425: ='Udgifter til figur'!P79 -> 0.01148182082 | H425: ='Udgifter til figur'!Q79 -> 0.01096155323 | I425: ='Udgifter til figur'!R79 -> 0.01133355298 | J425: ='Udgifter til figur'!S79 -> 0.01212280628 | K425: ='Udgifter til figur'!B79 -> Trin 4: Slægt- eller netværkspleje | L425: ='Udgifter til figur'!C79 -> 0.003218134861
A426: Hele landet | B426: ='Udgifter til figur'!K80 ->  | C426: ='Udgifter til figur'!L80 ->  | D426: ='Udgifter til figur'!M80 ->  | E426: ='Udgifter til figur'!N80 ->  | F426: ='Udgifter til figur'!O80 ->  | G426: ='Udgifter til figur'!P80 ->  | H426: ='Udgifter til figur'!Q80 ->  | I426: ='Udgifter til figur'!R80 -> 0 | J426: ='Udgifter til figur'!S80 -> 0 | K426: ='Udgifter til figur'!B80 -> Hele landet | L426: ='Udgifter til figur'!C80 -> 
A427: ="Andel udgifter til "&fordeling_trin_tekst&"" -> Andel udgifter til Trin 4: Slægt- eller netværkspleje | B427: ='Udgifter til figur'!K81 -> 0.01050950566 | C427: ='Udgifter til figur'!L81 -> 0.01039387663 | D427: ='Udgifter til figur'!M81 -> 0.01053459716 | E427: ='Udgifter til figur'!N81 -> 0.01094424849 | F427: ='Udgifter til figur'!O81 -> 0.01080757358 | G427: ='Udgifter til figur'!P81 -> 0.01152415921 | H427: ='Udgifter til figur'!Q81 -> 0.01223168347 | I427: ='Udgifter til figur'!R81 -> 0.01187165593 | J427: ='Udgifter til figur'!S81 -> 0.01248091361 | K427: ='Udgifter til figur'!B81 -> Trin 4: Slægt- eller netværkspleje | L427: ='Udgifter til figur'!C81 -> 0.005984310521
A428: ="Note: Udgifterne er defineret som art>0. De valgte sammenligningskommuner er "&Samkom1&" "&Samkom2&" "&Samkom3&" "&Samkom4&" "&Samkom5&" "&Samkom6&" "&Samkom7&" "&Samkom8&" "&Samkom9&" "&Samkom10&" "&Samkom11&" "&Samkom12&" "&Samkom13&" "&Samkom14&" "&Samkom15&" "&Samkom16&" "&Samkom17&" "&Samkom18&" " -> Note: Udgifterne er defineret som art>0. De valgte sammenligningskommuner er Allerød
A429: Kilde: Danmarks Statistik
A464: Udgiftsændring
A466: Merudgifter for service, administration og i alt
A468: ="Figur: Merudgifter for service, administration og i alt for "&Kommune&", 1.000 kr., "&Prisår&"-priser" -> Figur: Merudgifter for service, administration og i alt for Fredericia, 1.000 kr., 2023-priser
A487: ="Note: Merudgifterne er beregnet ud fra følgende basisperioder: Basisperioden for administration er "&Start_adm&"-"&Slut&", basisperioden for service er "&Start&"-"&Slut&", og basisperioden for de samlede udgifter er "&Start&"-"&Slut&". Udgifterne er defineret som art>0 og inkl. refusioner." -> Note: Merudgifterne er beregnet ud fra følgende basisperioder: Basisperioden for administration er 2015-2021, basisperioden for service er 2015-2021, og basisperioden for de samlede udgifter er 2015-2021. Udgifterne er defineret som art>0 og inkl. refusioner.
A491: ="Tabel: Merudgifter for service, administration og i alt for "&Kommune&", 1.000 kr., "&Prisår&"-priser" -> Tabel: Merudgifter for service, administration og i alt for Fredericia, 1.000 kr., 2023-priser
B492: =Analyse!C37 -> 2022 | C492: =Analyse!D37 -> 2023 | D492: =Analyse!E37 ->  | E492: =Analyse!F37 ->  | F492: =Analyse!G37 ->  | G492: =Analyse!H37 ->  | H492: =Analyse!I37 ->  | I492: =Analyse!J37 ->  | J492: =Analyse!K37 -> 
A493: I alt | B493: =Analyse!C38 -> 20749.98257 | C493: =Analyse!D38 -> 36892.91857 | D493: =Analyse!E38 ->  | E493: =Analyse!F38 ->  | F493: =Analyse!G38 ->  | G493: =Analyse!H38 ->  | H493: =Analyse!I38 ->  | I493: =Analyse!J38 ->  | J493: =Analyse!K38 -> 
A494: Administration | B494: =Analyse!C39 -> 3718.248865 | C494: =Analyse!D39 -> 9090.768865 | D494: =Analyse!E39 ->  | E494: =Analyse!F39 ->  | F494: =Analyse!G39 ->  | G494: =Analyse!H39 ->  | H494: =Analyse!I39 ->  | I494: =Analyse!J39 ->  | J494: =Analyse!K39 -> 
A495: Service | B495: =Analyse!C40 -> 17031.7337 | C495: =Analyse!D40 -> 27802.1497 | D495: =Analyse!E40 ->  | E495: =Analyse!F40 ->  | F495: =Analyse!G40 ->  | G495: =Analyse!H40 ->  | H495: =Analyse!I40 ->  | I495: =Analyse!J40 ->  | J495: =Analyse!K40 -> 
A496: ="Note: Merudgifterne er beregnet ud fra følgende basisperioder: Basisperioden for administration er "&Start_adm&"-"&Slut&", basisperioden for service er "&Start&"-"&Slut&", og basisperioden for de samlede udgifter er "&Start&"-"&Slut&". Udgifterne er defineret som art>0 og inkl. refusioner." -> Note: Merudgifterne er beregnet ud fra følgende basisperioder: Basisperioden for administration er 2015-2021, basisperioden for service er 2015-2021, og basisperioden for de samlede udgifter er 2015-2021. Udgifterne er defineret som art>0 og inkl. refusioner.
A540: Udgiftsændring
A542: ="Merudgifter indenfor og udenfor indsatstrappen "&Kommune&"" -> Merudgifter indenfor og udenfor indsatstrappen Fredericia
A544: ="Figur: Merudgifter fordelt på indsatstrappen, 1.000 kr., "&Prisår&"-priser" -> Figur: Merudgifter fordelt på indsatstrappen, 1.000 kr., 2023-priser
A561: =IF(Start<2015,"Note: Merudgifterne er beregnet ud fra basisperioden "&Start&"-"&Slut&"."&" Merudgifter for forebyggende indsatser og hjemmebaserede foranstaltninger kan ikke beregnes, når basisperioden starter før 2015. "&CONCATENATE("Det skyldes, at forebyggende indsatser indgår som en del af hjemmebaserede foranstaltninger før 2015."," Det er således ikke muligt, at lave en gennemsnitlig udgift i en basisperiode for hver af de to opgørelser forud for 2015."," Udgifterne er defineret som art>0 og ekskl. refusioner."),"Note: Merudgifterne er beregnet ud fra basisperioden "&Start&"-"&Slut&". Note: Udgifterne er defineret som art>0 og ekskl. refusioner.") -> Note: Merudgifterne er beregnet ud fra basisperioden 2015-2021. Note: Udgifterne er defineret som art>0 og ekskl. refusioner.
A567: ="Figur: Merudgifter for ikke-trinspecifikke grupperinger og refusion, 1.000 kr., "&Prisår&"-priser" -> Figur: Merudgifter for ikke-trinspecifikke grupperinger og refusion, 1.000 kr., 2023-priser
A584: ="Note: Merudgifterne er beregnet ud fra basisperioden "&Start&"-"&Slut&". Note: Udgifterne er defineret som art>0 og ekskl. refusioner." -> Note: Merudgifterne er beregnet ud fra basisperioden 2015-2021. Note: Udgifterne er defineret som art>0 og ekskl. refusioner.
A587: ="Tabel: Merudgifter indenfor og udenfor indsatstrappen, 1.000 kr., "&Prisår&"-priser" -> Tabel: Merudgifter indenfor og udenfor indsatstrappen, 1.000 kr., 2023-priser
B588: =Analyse!C86 -> 2022 | C588: =Analyse!D86 -> 2023 | D588: =Analyse!E86 ->  | E588: =Analyse!F86 ->  | F588: =Analyse!G86 ->  | G588: =Analyse!H86 ->  | H588: =Analyse!I86 ->  | I588: =Analyse!J86 ->  | J588: =Analyse!K86 -> 
A589: Indenfor indsatstrappen | B589: =Analyse!C87 ->  | C589: =Analyse!D87 ->  | D589: =Analyse!E87 ->  | E589: =Analyse!F87 ->  | F589: =Analyse!G87 ->  | G589: =Analyse!H87 ->  | H589: =Analyse!I87 ->  | I589: =Analyse!J87 ->  | J589: =Analyse!K87 -> 
A590: Trin 2: Forebyggende indsatser | B590: =Analyse!C88 -> 592.5672177 | C590: =Analyse!D88 -> 480.2152177 | D590: =Analyse!E88 ->  | E590: =Analyse!F88 ->  | F590: =Analyse!G88 ->  | G590: =Analyse!H88 ->  | H590: =Analyse!I88 ->  | I590: =Analyse!J88 ->  | J590: =Analyse!K88 -> 
A591: Trin 3: Hjemmebaserede foranstaltninger | B591: =Analyse!C89 -> 11540.8386 | C591: =Analyse!D89 -> 17605.1066 | D591: =Analyse!E89 ->  | E591: =Analyse!F89 ->  | F591: =Analyse!G89 ->  | G591: =Analyse!H89 ->  | H591: =Analyse!I89 ->  | I591: =Analyse!J89 ->  | J591: =Analyse!K89 -> 
A592: Trin 4: Slægt- eller netværkspleje | B592: =Analyse!C90 -> 107.7656132 | C592: =Analyse!D90 -> 435.3216132 | D592: =Analyse!E90 ->  | E592: =Analyse!F90 ->  | F592: =Analyse!G90 ->  | G592: =Analyse!H90 ->  | H592: =Analyse!I90 ->  | I592: =Analyse!J90 ->  | J592: =Analyse!K90 -> 
A593: Trin 5: Familiepleje | B593: =Analyse!C91 -> 5738.520212 | C593: =Analyse!D91 -> 10274.61621 | D593: =Analyse!E91 ->  | E593: =Analyse!F91 ->  | F593: =Analyse!G91 ->  | G593: =Analyse!H91 ->  | H593: =Analyse!I91 ->  | I593: =Analyse!J91 ->  | J593: =Analyse!K91 -> 
A594: Trin 6: Institutionsanbringelser | B594: =Analyse!C92 -> 7524.321677 | C594: =Analyse!D92 -> 19251.50168 | D594: =Analyse!E92 ->  | E594: =Analyse!F92 ->  | F594: =Analyse!G92 ->  | G594: =Analyse!H92 ->  | H594: =Analyse!I92 ->  | I594: =Analyse!J92 ->  | J594: =Analyse!K92 -> 
A595: Udenfor indsatstrappen | B595: =Analyse!C93 ->  | C595: =Analyse!D93 ->  | D595: =Analyse!E93 ->  | E595: =Analyse!F93 ->  | F595: =Analyse!G93 ->  | G595: =Analyse!H93 ->  | H595: =Analyse!I93 ->  | I595: =Analyse!J93 ->  | J595: =Analyse!K93 -> 
A596: Ikke-trinspecifikke grupperinger | B596: =Analyse!C94 -> 2410.267203 | C596: =Analyse!D94 -> 5610.459203 | D596: =Analyse!E94 ->  | E596: =Analyse!F94 ->  | F596: =Analyse!G94 ->  | G596: =Analyse!H94 ->  | H596: =Analyse!I94 ->  | I596: =Analyse!J94 ->  | J596: =Analyse!K94 -> 
A597: Refusioner | B597: =Analyse!C95 -> -14923.476 | C597: =Analyse!D95 -> -29896 | D597: =Analyse!E95 ->  | E597: =Analyse!F95 ->  | F597: =Analyse!G95 ->  | G597: =Analyse!H95 ->  | H597: =Analyse!I95 ->  | I597: =Analyse!J95 ->  | J597: =Analyse!K95 -> 
A598: =IF(Start<2015,"Note: Merudgifterne er beregnet ud fra basisperioden "&Start&"-"&Slut&"."&" Merudgifter for forebyggende indsatser og hjemmebaserede foranstaltninger kan ikke beregnes, når basisperioden starter før 2015. "&CONCATENATE("Det skyldes, at forebyggende indsatser indgår som en del af hjemmebaserede foranstaltninger før 2015."," Det er således ikke muligt, at lave en gennemsnitlig udgift i en basisperiode for hver af de to opgørelser forud for 2015."," Udgifterne er defineret som art>0 og ekskl. refusioner."),"Note: Merudgifterne er beregnet ud fra basisperioden "&Start&"-"&Slut&". Note: Udgifterne er defineret som art>0 og ekskl. refusioner.") -> Note: Merudgifterne er beregnet ud fra basisperioden 2015-2021. Note: Udgifterne er defineret som art>0 og ekskl. refusioner.

Sheet PL
B3: Beregning af pris- og lønregulering
B5: På denne side kan du se deflatoren, der bruges til regulering af de enkelte prisår. Deflatoren er baseret på den kommunale service-PL, som kan findes på: https://www.kl.dk/media/xt4f1yqq/pl-skema-juni-2024.pdf. Bemærk, at du selv skal vælge prisåret, som du ønsker at regne med på "Dine valg"-siden.
B9: Den kommunale service-PL | F9: ="Prisår: "&Prisår -> Prisår: 2023
B10: Regulering | C10: År, der skal reguleres | D10: PL | E10: Fremskrivningsfaktor | F10: Deflator
B11: =C11&" - "&C11+1 -> 2007 - 2008 | C11: 2007 | D11: 3.7 | E11: =D11/100+1 -> 1.037 | F11: =PRODUCT($E$11:$E$26) -> 1.40587013
B12: 2008 - 2009 | C12: =C11+1 -> 2008 | D12: 3.9 | E12: =D12/100+1 -> 1.039 | F12: =PRODUCT($E$12:$E$26) -> 1.355708901
B13: 2009 - 2010 | C13: =C12+1 -> 2009 | D13: 2.9 | E13: 1.029 | F13: =PRODUCT($E$13:$E$26) -> 1.304820886
B14: 2010 - 2011 | C14: 2010 | D14: 1.3 | E14: 1.013 | F14: =PRODUCT($E$14:$E$26) -> 1.268047509
B15: 2011 - 2012 | C15: 2011 | D15: 2.4 | E15: 1.024 | F15: =PRODUCT($E$15:$E$26) -> 1.251774441
B16: 2012 - 2013 | C16: 2012 | D16: 1 | E16: =D16/100+1 -> 1.01 | F16: =PRODUCT($E$16:$E$26) -> 1.222435977
B17: 2013 - 2014 | C17: 2013 | D17: 1.4 | E17: =D17/100+1 -> 1.014 | F17: =PRODUCT($E$17:$E$26) -> 1.210332651
B18: 2014 - 2015 | C18: 2014 | D18: 1.4 | E18: 1.014 | F18: =PRODUCT($E$18:$E$26) -> 1.193621944
B19: 2015 - 2016 | C19: 2015 | D19: 1.4 | E19: 1.014 | F19: =PRODUCT($E$19:$E$26) -> 1.177141956
B20: =C20&" - "&C20+1 -> 2016 - 2017 | C20: 2016 | D20: 1.9 | E20: 1.019 | F20: =PRODUCT($E$20:$E$26) -> 1.160889503
B21: 2017 - 2018 | C21: 2017 | D21: 1.3 | E21: 1.013 | F21: =PRODUCT($E$21:$E$26) -> 1.13924387
B22: 2018 - 2019 | C22: 2018 | D22: 1.6 | E22: 1.016 | F22: =PRODUCT($E$22:$E$26) -> 1.124623761
B23: 2019 - 2020 | C23: 2019 | D23: 2.3 | E23: =D23/100+1 -> 1.023 | F23: =PRODUCT($E$23:$E$26) -> 1.10691315
B24: 2020 - 2021 | C24: 2020 | D24: 1.5 | E24: 1.015 | F24: =PRODUCT($E$24:$E$26) -> 1.08202654
B25: 2021 - 2022 | C25: 2021 | D25: 3.7 | E25: 1.037 | F25: =PRODUCT($E$25:$E$26) -> 1.066036
B26: 2022 - 2023 | C26: 2022 | D26: 2.8 | E26: 1.028 | F26: =PRODUCT($E$26:$E$26) -> 1.028
B27: 2023 - 2024 | C27: 2023 | D27: 4.5 | E27: 1.045 | F27: 1
B28: 2024 - 2025 | C28: 2024 | D28: 3.9 | E28: 1.039 | F28: 1.005774783
B29: Anm.: PL er opdateret med PL-skema fra juni 2024.

Sheet Udgifter til figur
B1: Udgifter til figur
B3: Udgiftsudvikling
B5: Udgifter til service, administration og i alt
C6: ='Dine valg'!$J$10 -> 2007 | D6: ='Dine valg'!$J$11 -> 2008 | E6: ='Dine valg'!$J$12 -> 2009 | F6: ='Dine valg'!$J$13 -> 2010 | G6: ='Dine valg'!$J$14 -> 2011 | H6: ='Dine valg'!$J$15 -> 2012 | I6: ='Dine valg'!$J$16 -> 2013 | J6: ='Dine valg'!$K$10 -> 2014 | K6: ='Dine valg'!$K$11 -> 2015 | L6: ='Dine valg'!$K$12 -> 2016 | M6: ='Dine valg'!$K$13 -> 2017 | N6: ='Dine valg'!$K$14 -> 2018 | O6: ='Dine valg'!$K$15 -> 2019 | P6: ='Dine valg'!$K$16 -> 2020 | Q6: ='Dine valg'!$L$10 -> 2021 | R6: ='Dine valg'!$L$11 -> 2022 | S6: ='Dine valg'!$L$12 -> 2023 | T6: ='Dine valg'!$L$13 ->  | U6: ='Dine valg'!$L$14 ->  | V6: ='Dine valg'!$L$15 ->  | W6: ='Dine valg'!$L$16 -> 
B7: =""&alle_aar_tekst_valg&"" -> Fredericia | C7: ="" ->  | D7: ="" ->  | E7: ="" ->  | F7: ="" ->  | G7: ="" ->  | H7: ="" ->  | I7: ="" ->  | J7: ="" ->  | K7: ="" ->  | L7: ="" ->  | M7: ="" ->  | N7: ="" ->  | O7: ="" ->  | P7: ="" ->  | Q7: ="" -> 
B8: I alt | C8: =IF(C6="","",IF(C6='2024'!$B$2,(IF(alle_aar_valg=1,Samlede_NDU*INDEX(PL!$F$11:$F$58,MATCH(C6,PL!$C$11:$C$58,0)),"Kan ikke vises")),IF(alle_aar_valg=1,INDIRECT(C6&"!Samlede_NDU")*INDEX(PL!$F$11:$F$58,MATCH(C6,PL!$C$11:$C$58,0)),IF(alle_aar_valg=2,INDIRECT(C6&"_sam!Samlede_NDU_sam")*INDEX(PL!$F$11:$F$58,MATCH(C6,PL!$C$11:$C$58,0)),IF(alle_aar_valg=3,INDIRECT(C6&"_sam!Samlede_NDU_reg")*INDEX(PL!$F$11:$F$58,MATCH(C6,PL!$C$11:$C$58,0)),INDIRECT(C6&"_sam!Samlede_NDU")*INDEX(PL!$F$11:$F$58,MATCH(C6,PL!$C$11:$C$58,0))))))) -> 110549.1918 | D8: =IF(D6="","",IF(D6='2024'!$B$2,(IF(alle_aar_valg=1,Samlede_NDU*INDEX(PL!$F$11:$F$58,MATCH(D6,PL!$C$11:$C$58,0)),"Kan ikke vises")),IF(alle_aar_valg=1,INDIRECT(D6&"!Samlede_NDU")*INDEX(PL!$F$11:$F$58,MATCH(D6,PL!$C$11:$C$58,0)),IF(alle_aar_valg=2,INDIRECT(D6&"_sam!Samlede_NDU_sam")*INDEX(PL!$F$11:$F$58,MATCH(D6,PL!$C$11:$C$58,0)),IF(alle_aar_valg=3,INDIRECT(D6&"_sam!Samlede_NDU_reg")*INDEX(PL!$F$11:$F$58,MATCH(D6,PL!$C$11:$C$58,0)),INDIRECT(D6&"_sam!Samlede_NDU")*INDEX(PL!$F$11:$F$58,MATCH(D6,PL!$C$11:$C$58,0))))))) -> 105110.8225 | E8: =IF(E6="","",IF(E6='2024'!$B$2,(IF(alle_aar_valg=1,Samlede_NDU*INDEX(PL!$F$11:$F$58,MATCH(E6,PL!$C$11:$C$58,0)),"Kan ikke vises")),IF(alle_aar_valg=1,INDIRECT(E6&"!Samlede_NDU")*INDEX(PL!$F$11:$F$58,MATCH(E6,PL!$C$11:$C$58,0)),IF(alle_aar_valg=2,INDIRECT(E6&"_sam!Samlede_NDU_sam")*INDEX(PL!$F$11:$F$58,MATCH(E6,PL!$C$11:$C$58,0)),IF(alle_aar_valg=3,INDIRECT(E6&"_sam!Samlede_NDU_reg")*INDEX(PL!$F$11:$F$58,MATCH(E6,PL!$C$11:$C$58,0)),INDIRECT(E6&"_sam!Samlede_NDU")*INDEX(PL!$F$11:$F$58,MATCH(E6,PL!$C$11:$C$58,0))))))) -> 108935.5813 | F8: =IF(F6="","",IF(F6='2024'!$B$2,(IF(alle_aar_valg=1,Samlede_NDU*INDEX(PL!$F$11:$F$58,MATCH(F6,PL!$C$11:$C$58,0)),"Kan ikke vises")),IF(alle_aar_valg=1,INDIRECT(F6&"!Samlede_NDU")*INDEX(PL!$F$11:$F$58,MATCH(F6,PL!$C$11:$C$58,0)),IF(alle_aar_valg=2,INDIRECT(F6&"_sam!Samlede_NDU_sam")*INDEX(PL!$F$11:$F$58,MATCH(F6,PL!$C$11:$C$58,0)),IF(alle_aar_valg=3,INDIRECT(F6&"_sam!Samlede_NDU_reg")*INDEX(PL!$F$11:$F$58,MATCH(F6,PL!$C$11:$C$58,0)),INDIRECT(F6&"_sam!Samlede_NDU")*INDEX(PL!$F$11:$F$58,MATCH(F6,PL!$C$11:$C$58,0))))))) -> 105398.8409 | G8: =IF(G6="","",IF(G6='2024'!$B$2,(IF(alle_aar_valg=1,Samlede_NDU*INDEX(PL!$F$11:$F$58,MATCH(G6,PL!$C$11:$C$58,0)),"Kan ikke vises")),IF(alle_aar_valg=1,INDIRECT(G6&"!Samlede_NDU")*INDEX(PL!$F$11:$F$58,MATCH(G6,PL!$C$11:$C$58,0)),IF(alle_aar_valg=2,INDIRECT(G6&"_sam!Samlede_NDU_sam")*INDEX(PL!$F$11:$F$58,MATCH(G6,PL!$C$11:$C$58,0)),IF(alle_aar_valg=3,INDIRECT(G6&"_sam!Samlede_NDU_reg")*INDEX(PL!$F$11:$F$58,MATCH(G6,PL!$C$11:$C$58,0)),INDIRECT(G6&"_sam!Samlede_NDU")*INDEX(PL!$F$11:$F$58,MATCH(G6,PL!$C$11:$C$58,0))))))) -> 106089.1356 | H8: =IF(H6="","",IF(H6='2024'!$B$2,(IF(alle_aar_valg=1,Samlede_NDU*INDEX(PL!$F$11:$F$58,MATCH(H6,PL!$C$11:$C$58,0)),"Kan ikke vises")),IF(alle_aar_valg=1,INDIRECT(H6&"!Samlede_NDU")*INDEX(PL!$F$11:$F$58,MATCH(H6,PL!$C$11:$C$58,0)),IF(alle_aar_valg=2,INDIRECT(H6&"_sam!Samlede_NDU_sam")*INDEX(PL!$F$11:$F$58,MATCH(H6,PL!$C$11:$C$58,0)),IF(alle_aar_valg=3,INDIRECT(H6&"_sam!Samlede_NDU_reg")*INDEX(PL!$F$11:$F$58,MATCH(H6,PL!$C$11:$C$58,0)),INDIRECT(H6&"_sam!Samlede_NDU")*INDEX(PL!$F$11:$F$58,MATCH(H6,PL!$C$11:$C$58,0))))))) -> 97342.57688 | I8: =IF(I6="","",IF(I6='2024'!$B$2,(IF(alle_aar_valg=1,Samlede_NDU*INDEX(PL!$F$11:$F$58,MATCH(I6,PL!$C$11:$C$58,0)),"Kan ikke vises")),IF(alle_aar_valg=1,INDIRECT(I6&"!Samlede_NDU")*INDEX(PL!$F$11:$F$58,MATCH(I6,PL!$C$11:$C$58,0)),IF(alle_aar_valg=2,INDIRECT(I6&"_sam!Samlede_NDU_sam")*INDEX(PL!$F$11:$F$58,MATCH(I6,PL!$C$11:$C$58,0)),IF(alle_aar_valg=3,INDIRECT(I6&"_sam!Samlede_NDU_reg")*INDEX(PL!$F$11:$F$58,MATCH(I6,PL!$C$11:$C$58,0)),INDIRECT(I6&"_sam!Samlede_NDU")*INDEX(PL!$F$11:$F$58,MATCH(I6,PL!$C$11:$C$58,0))))))) -> 131167.3804 | J8: =IF(J6="","",IF(J6='2024'!$B$2,(IF(alle_aar_valg=1,Samlede_NDU*INDEX(PL!$F$11:$F$58,MATCH(J6,PL!$C$11:$C$58,0)),"Kan ikke vises")),IF(alle_aar_valg=1,INDIRECT(J6&"!Samlede_NDU")*INDEX(PL!$F$11:$F$58,MATCH(J6,PL!$C$11:$C$58,0)),IF(alle_aar_valg=2,INDIRECT(J6&"_sam!Samlede_NDU_sam")*INDEX(PL!$F$11:$F$58,MATCH(J6,PL!$C$11:$C$58,0)),IF(alle_aar_valg=3,INDIRECT(J6&"_sam!Samlede_NDU_reg")*INDEX(PL!$F$11:$F$58,MATCH(J6,PL!$C$11:$C$58,0)),INDIRECT(J6&"_sam!Samlede_NDU")*INDEX(PL!$F$11:$F$58,MATCH(J6,PL!$C$11:$C$58,0))))))) -> 115873.2374 | K8: =IF(K6="","",IF(K6='2024'!$B$2,(IF(alle_aar_valg=1,Samlede_NDU*INDEX(PL!$F$11:$F$58,MATCH(K6,PL!$C$11:$C$58,0)),"Kan ikke vises")),IF(alle_aar_valg=1,INDIRECT(K6&"!Samlede_NDU")*INDEX(PL!$F$11:$F$58,MATCH(K6,PL!$C$11:$C$58,0)),IF(alle_aar_valg=2,INDIRECT(K6&"_sam!Samlede_NDU_sam")*INDEX(PL!$F$11:$F$58,MATCH(K6,PL!$C$11:$C$58,0)),IF(alle_aar_valg=3,INDIRECT(K6&"_sam!Samlede_NDU_reg")*INDEX(PL!$F$11:$F$58,MATCH(K6,PL!$C$11:$C$58,0)),INDIRECT(K6&"_sam!Samlede_NDU")*INDEX(PL!$F$11:$F$58,MATCH(K6,PL!$C$11:$C$58,0))))))) -> 116535.8765 | L8: =IF(L6="","",IF(L6='2024'!$B$2,(IF(alle_aar_valg=1,Samlede_NDU*INDEX(PL!$F$11:$F$58,MATCH(L6,PL!$C$11:$C$58,0)),"Kan ikke vises")),IF(alle_aar_valg=1,INDIRECT(L6&"!Samlede_NDU")*INDEX(PL!$F$11:$F$58,MATCH(L6,PL!$C$11:$C$58,0)),IF(alle_aar_valg=2,INDIRECT(L6&"_sam!Samlede_NDU_sam")*INDEX(PL!$F$11:$F$58,MATCH(L6,PL!$C$11:$C$58,0)),IF(alle_aar_valg=3,INDIRECT(L6&"_sam!Samlede_NDU_reg")*INDEX(PL!$F$11:$F$58,MATCH(L6,PL!$C$11:$C$58,0)),INDIRECT(L6&"_sam!Samlede_NDU")*INDEX(PL!$F$11:$F$58,MATCH(L6,PL!$C$11:$C$58,0))))))) -> 125539.7518 | M8: =IF(M6="","",IF(M6='2024'!$B$2,(IF(alle_aar_valg=1,Samlede_NDU*INDEX(PL!$F$11:$F$58,MATCH(M6,PL!$C$11:$C$58,0)),"Kan ikke vises")),IF(alle_aar_valg=1,INDIRECT(M6&"!Samlede_NDU")*INDEX(PL!$F$11:$F$58,MATCH(M6,PL!$C$11:$C$58,0)),IF(alle_aar_valg=2,INDIRECT(M6&"_sam!Samlede_NDU_sam")*INDEX(PL!$F$11:$F$58,MATCH(M6,PL!$C$11:$C$58,0)),IF(alle_aar_valg=3,INDIRECT(M6&"_sam!Samlede_NDU_reg")*INDEX(PL!$F$11:$F$58,MATCH(M6,PL!$C$11:$C$58,0)),INDIRECT(M6&"_sam!Samlede_NDU")*INDEX(PL!$F$11:$F$58,MATCH(M6,PL!$C$11:$C$58,0))))))) -> 133564.9513 | N8: =IF(N6="","",IF(N6='2024'!$B$2,(IF(alle_aar_valg=1,Samlede_NDU*INDEX(PL!$F$11:$F$58,MATCH(N6,PL!$C$11:$C$58,0)),"Kan ikke vises")),IF(alle_aar_valg=1,INDIRECT(N6&"!Samlede_NDU")*INDEX(PL!$F$11:$F$58,MATCH(N6,PL!$C$11:$C$58,0)),IF(alle_aar_valg=2,INDIRECT(N6&"_sam!Samlede_NDU_sam")*INDEX(PL!$F$11:$F$58,MATCH(N6,PL!$C$11:$C$58,0)),IF(alle_aar_valg=3,INDIRECT(N6&"_sam!Samlede_NDU_reg")*INDEX(PL!$F$11:$F$58,MATCH(N6,PL!$C$11:$C$58,0)),INDIRECT(N6&"_sam!Samlede_NDU")*INDEX(PL!$F$11:$F$58,MATCH(N6,PL!$C$11:$C$58,0))))))) -> 137134.3721 | O8: =IF(O6="","",IF(O6='2024'!$B$2,(IF(alle_aar_valg=1,Samlede_NDU*INDEX(PL!$F$11:$F$58,MATCH(O6,PL!$C$11:$C$58,0)),"Kan ikke vises")),IF(alle_aar_valg=1,INDIRECT(O6&"!Samlede_NDU")*INDEX(PL!$F$11:$F$58,MATCH(O6,PL!$C$11:$C$58,0)),IF(alle_aar_valg=2,INDIRECT(O6&"_sam!Samlede_NDU_sam")*INDEX(PL!$F$11:$F$58,MATCH(O6,PL!$C$11:$C$58,0)),IF(alle_aar_valg=3,INDIRECT(O6&"_sam!Samlede_NDU_reg")*INDEX(PL!$F$11:$F$58,MATCH(O6,PL!$C$11:$C$58,0)),INDIRECT(O6&"_sam!Samlede_NDU")*INDEX(PL!$F$11:$F$58,MATCH(O6,PL!$C$11:$C$58,0))))))) -> 129393.7196 | P8: =IF(P6="","",IF(P6='2024'!$B$2,(IF(alle_aar_valg=1,Samlede_NDU*INDEX(PL!$F$11:$F$58,MATCH(P6,PL!$C$11:$C$58,0)),"Kan ikke vises")),IF(alle_aar_valg=1,INDIRECT(P6&"!Samlede_NDU")*INDEX(PL!$F$11:$F$58,MATCH(P6,PL!$C$11:$C$58,0)),IF(alle_aar_valg=2,INDIRECT(P6&"_sam!Samlede_NDU_sam")*INDEX(PL!$F$11:$F$58,MATCH(P6,PL!$C$11:$C$58,0)),IF(alle_aar_valg=3,INDIRECT(P6&"_sam!Samlede_NDU_reg")*INDEX(PL!$F$11:$F$58,MATCH(P6,PL!$C$11:$C$58,0)),INDIRECT(P6&"_sam!Samlede_NDU")*INDEX(PL!$F$11:$F$58,MATCH(P6,PL!$C$11:$C$58,0))))))) -> 132302.6311 | Q8: =IF(Q6="","",IF(Q6='2024'!$B$2,(IF(alle_aar_valg=1,Samlede_NDU*INDEX(PL!$F$11:$F$58,MATCH(Q6,PL!$C$11:$C$58,0)),"Kan ikke vises")),IF(alle_aar_valg=1,INDIRECT(Q6&"!Samlede_NDU")*INDEX(PL!$F$11:$F$58,MATCH(Q6,PL!$C$11:$C$58,0)),IF(alle_aar_valg=2,INDIRECT(Q6&"_sam!Samlede_NDU_sam")*INDEX(PL!$F$11:$F$58,MATCH(Q6,PL!$C$11:$C$58,0)),IF(alle_aar_valg=3,INDIRECT(Q6&"_sam!Samlede_NDU_reg")*INDEX(PL!$F$11:$F$58,MATCH(Q6,PL!$C$11:$C$58,0)),INDIRECT(Q6&"_sam!Samlede_NDU")*INDEX(PL!$F$11:$F$58,MATCH(Q6,PL!$C$11:$C$58,0))))))) -> 131168.2675 | R8: =IF(R6="","",IF(R6='2024'!$B$2,(IF(alle_aar_valg=1,Samlede_NDU*INDEX(PL!$F$11:$F$58,MATCH(R6,PL!$C$11:$C$58,0)),"Kan ikke vises")),IF(alle_aar_valg=1,INDIRECT(R6&"!Samlede_NDU")*INDEX(PL!$F$11:$F$58,MATCH(R6,PL!$C$11:$C$58,0)),IF(alle_aar_valg=2,INDIRECT(R6&"_sam!Samlede_NDU_sam")*INDEX(PL!$F$11:$F$58,MATCH(R6,PL!$C$11:$C$58,0)),IF(alle_aar_valg=3,INDIRECT(R6&"_sam!Samlede_NDU_reg")*INDEX(PL!$F$11:$F$58,MATCH(R6,PL!$C$11:$C$58,0)),INDIRECT(R6&"_sam!Samlede_NDU")*INDEX(PL!$F$11:$F$58,MATCH(R6,PL!$C$11:$C$58,0))))))) -> 150127.064 | S8: =IF(S6="","",IF(S6='2024'!$B$2,(IF(alle_aar_valg=1,Samlede_NDU*INDEX(PL!$F$11:$F$58,MATCH(S6,PL!$C$11:$C$58,0)),"Kan ikke vises")),IF(alle_aar_valg=1,INDIRECT(S6&"!Samlede_NDU")*INDEX(PL!$F$11:$F$58,MATCH(S6,PL!$C$11:$C$58,0)),IF(alle_aar_valg=2,INDIRECT(S6&"_sam!Samlede_NDU_sam")*INDEX(PL!$F$11:$F$58,MATCH(S6,PL!$C$11:$C$58,0)),IF(alle_aar_valg=3,INDIRECT(S6&"_sam!Samlede_NDU_reg")*INDEX(PL!$F$11:$F$58,MATCH(S6,PL!$C$11:$C$58,0)),INDIRECT(S6&"_sam!Samlede_NDU")*INDEX(PL!$F$11:$F$58,MATCH(S6,PL!$C$11:$C$58,0))))))) -> 166270 | T8: =IF(T6="","",IF(T6='2024'!$B$2,(IF(alle_aar_valg=1,Samlede_NDU*INDEX(PL!$F$11:$F$58,MATCH(T6,PL!$C$11:$C$58,0)),"Kan ikke vises")),IF(alle_aar_valg=1,INDIRECT(T6&"!Samlede_NDU")*INDEX(PL!$F$11:$F$58,MATCH(T6,PL!$C$11:$C$58,0)),IF(alle_aar_valg=2,INDIRECT(T6&"_sam!Samlede_NDU_sam")*INDEX(PL!$F$11:$F$58,MATCH(T6,PL!$C$11:$C$58,0)),IF(alle_aar_valg=3,INDIRECT(T6&"_sam!Samlede_NDU_reg")*INDEX(PL!$F$11:$F$58,MATCH(T6,PL!$C$11:$C$58,0)),INDIRECT(T6&"_sam!Samlede_NDU")*INDEX(PL!$F$11:$F$58,MATCH(T6,PL!$C$11:$C$58,0))))))) ->  | U8: =IF(U6="","",IF(U6='2024'!$B$2,(IF(alle_aar_valg=1,Samlede_NDU*INDEX(PL!$F$11:$F$58,MATCH(U6,PL!$C$11:$C$58,0)),"Kan ikke vises")),IF(alle_aar_valg=1,INDIRECT(U6&"!Samlede_NDU")*INDEX(PL!$F$11:$F$58,MATCH(U6,PL!$C$11:$C$58,0)),IF(alle_aar_valg=2,INDIRECT(U6&"_sam!Samlede_NDU_sam")*INDEX(PL!$F$11:$F$58,MATCH(U6,PL!$C$11:$C$58,0)),IF(alle_aar_valg=3,INDIRECT(U6&"_sam!Samlede_NDU_reg")*INDEX(PL!$F$11:$F$58,MATCH(U6,PL!$C$11:$C$58,0)),INDIRECT(U6&"_sam!Samlede_NDU")*INDEX(PL!$F$11:$F$58,MATCH(U6,PL!$C$11:$C$58,0))))))) ->  | V8: =IF(V6="","",IF(V6='2024'!$B$2,(IF(alle_aar_valg=1,Samlede_NDU*INDEX(PL!$F$11:$F$58,MATCH(V6,PL!$C$11:$C$58,0)),"Kan ikke vises")),IF(alle_aar_valg=1,INDIRECT(V6&"!Samlede_NDU")*INDEX(PL!$F$11:$F$58,MATCH(V6,PL!$C$11:$C$58,0)),IF(alle_aar_valg=2,INDIRECT(V6&"_sam!Samlede_NDU_sam")*INDEX(PL!$F$11:$F$58,MATCH(V6,PL!$C$11:$C$58,0)),IF(alle_aar_valg=3,INDIRECT(V6&"_sam!Samlede_NDU_reg")*INDEX(PL!$F$11:$F$58,MATCH(V6,PL!$C$11:$C$58,0)),INDIRECT(V6&"_sam!Samlede_NDU")*INDEX(PL!$F$11:$F$58,MATCH(V6,PL!$C$11:$C$58,0))))))) ->  | W8: =IF(W6="","",IF(W6='2024'!$B$2,(IF(alle_aar_valg=1,Samlede_NDU*INDEX(PL!$F$11:$F$58,MATCH(W6,PL!$C$11:$C$58,0)),"Kan ikke vises")),IF(alle_aar_valg=1,INDIRECT(W6&"!Samlede_NDU")*INDEX(PL!$F$11:$F$58,MATCH(W6,PL!$C$11:$C$58,0)),IF(alle_aar_valg=2,INDIRECT(W6&"_sam!Samlede_NDU_sam")*INDEX(PL!$F$11:$F$58,MATCH(W6,PL!$C$11:$C$58,0)),IF(alle_aar_valg=3,INDIRECT(W6&"_sam!Samlede_NDU_reg")*INDEX(PL!$F$11:$F$58,MATCH(W6,PL!$C$11:$C$58,0)),INDIRECT(W6&"_sam!Samlede_NDU")*INDEX(PL!$F$11:$F$58,MATCH(W6,PL!$C$11:$C$58,0))))))) -> 
B9: Administration | C9: =IF(C6="","",IF(C6='2024'!$B$2,(IF(alle_aar_valg=1,Administration*INDEX(PL!$F$11:$F$58,MATCH(C6,PL!$C$11:$C$58,0)),"Kan ikke vises")),IF(alle_aar_valg=1,INDIRECT(C6&"!Administration")*INDEX(PL!$F$11:$F$58,MATCH(C6,PL!$C$11:$C$58,0)),IF(alle_aar_valg=2,INDIRECT(C6&"_sam!Administration_sam")*INDEX(PL!$F$11:$F$58,MATCH(C6,PL!$C$11:$C$58,0)),IF(alle_aar_valg=3,INDIRECT(C6&"_sam!Administration_reg")*INDEX(PL!$F$11:$F$58,MATCH(C6,PL!$C$11:$C$58,0)),INDIRECT(C6&"_sam!Administration")*INDEX(PL!$F$11:$F$58,MATCH(C6,PL!$C$11:$C$58,0))))))) -> 0 | D9: =IF(D6="","",IF(D6='2024'!$B$2,(IF(alle_aar_valg=1,Administration*INDEX(PL!$F$11:$F$58,MATCH(D6,PL!$C$11:$C$58,0)),"Kan ikke vises")),IF(alle_aar_valg=1,INDIRECT(D6&"!Administration")*INDEX(PL!$F$11:$F$58,MATCH(D6,PL!$C$11:$C$58,0)),IF(alle_aar_valg=2,INDIRECT(D6&"_sam!Administration_sam")*INDEX(PL!$F$11:$F$58,MATCH(D6,PL!$C$11:$C$58,0)),IF(alle_aar_valg=3,INDIRECT(D6&"_sam!Administration_reg")*INDEX(PL!$F$11:$F$58,MATCH(D6,PL!$C$11:$C$58,0)),INDIRECT(D6&"_sam!Administration")*INDEX(PL!$F$11:$F$58,MATCH(D6,PL!$C$11:$C$58,0))))))) -> 0 | E9: =IF(E6="","",IF(E6='2024'!$B$2,(IF(alle_aar_valg=1,Administration*INDEX(PL!$F$11:$F$58,MATCH(E6,PL!$C$11:$C$58,0)),"Kan ikke vises")),IF(alle_aar_valg=1,INDIRECT(E6&"!Administration")*INDEX(PL!$F$11:$F$58,MATCH(E6,PL!$C$11:$C$58,0)),IF(alle_aar_valg=2,INDIRECT(E6&"_sam!Administration_sam")*INDEX(PL!$F$11:$F$58,MATCH(E6,PL!$C$11:$C$58,0)),IF(alle_aar_valg=3,INDIRECT(E6&"_sam!Administration_reg")*INDEX(PL!$F$11:$F$58,MATCH(E6,PL!$C$11:$C$58,0)),INDIRECT(E6&"_sam!Administration")*INDEX(PL!$F$11:$F$58,MATCH(E6,PL!$C$11:$C$58,0))))))) -> 0 | F9: =IF(F6="","",IF(F6='2024'!$B$2,(IF(alle_aar_valg=1,Administration*INDEX(PL!$F$11:$F$58,MATCH(F6,PL!$C$11:$C$58,0)),"Kan ikke vises")),IF(alle_aar_valg=1,INDIRECT(F6&"!Administration")*INDEX(PL!$F$11:$F$58,MATCH(F6,PL!$C$11:$C$58,0)),IF(alle_aar_valg=2,INDIRECT(F6&"_sam!Administration_sam")*INDEX(PL!$F$11:$F$58,MATCH(F6,PL!$C$11:$C$58,0)),IF(alle_aar_valg=3,INDIRECT(F6&"_sam!Administration_reg")*INDEX(PL!$F$11:$F$58,MATCH(F6,PL!$C$11:$C$58,0)),INDIRECT(F6&"_sam!Administration")*INDEX(PL!$F$11:$F$58,MATCH(F6,PL!$C$11:$C$58,0))))))) -> 0 | G9: =IF(G6="","",IF(G6='2024'!$B$2,(IF(alle_aar_valg=1,Administration*INDEX(PL!$F$11:$F$58,MATCH(G6,PL!$C$11:$C$58,0)),"Kan ikke vises")),IF(alle_aar_valg=1,INDIRECT(G6&"!Administration")*INDEX(PL!$F$11:$F$58,MATCH(G6,PL!$C$11:$C$58,0)),IF(alle_aar_valg=2,INDIRECT(G6&"_sam!Administration_sam")*INDEX(PL!$F$11:$F$58,MATCH(G6,PL!$C$11:$C$58,0)),IF(alle_aar_valg=3,INDIRECT(G6&"_sam!Administration_reg")*INDEX(PL!$F$11:$F$58,MATCH(G6,PL!$C$11:$C$58,0)),INDIRECT(G6&"_sam!Administration")*INDEX(PL!$F$11:$F$58,MATCH(G6,PL!$C$11:$C$58,0))))))) -> 0 | H9: =IF(H6="","",IF(H6='2024'!$B$2,(IF(alle_aar_valg=1,Administration*INDEX(PL!$F$11:$F$58,MATCH(H6,PL!$C$11:$C$58,0)),"Kan ikke vises")),IF(alle_aar_valg=1,INDIRECT(H6&"!Administration")*INDEX(PL!$F$11:$F$58,MATCH(H6,PL!$C$11:$C$58,0)),IF(alle_aar_valg=2,INDIRECT(H6&"_sam!Administration_sam")*INDEX(PL!$F$11:$F$58,MATCH(H6,PL!$C$11:$C$58,0)),IF(alle_aar_valg=3,INDIRECT(H6&"_sam!Administration_reg")*INDEX(PL!$F$11:$F$58,MATCH(H6,PL!$C$11:$C$58,0)),INDIRECT(H6&"_sam!Administration")*INDEX(PL!$F$11:$F$58,MATCH(H6,PL!$C$11:$C$58,0))))))) -> 0 | I9: =IF(I6="","",IF(I6='2024'!$B$2,(IF(alle_aar_valg=1,Administration*INDEX(PL!$F$11:$F$58,MATCH(I6,PL!$C$11:$C$58,0)),"Kan ikke vises")),IF(alle_aar_valg=1,INDIRECT(I6&"!Administration")*INDEX(PL!$F$11:$F$58,MATCH(I6,PL!$C$11:$C$58,0)),IF(alle_aar_valg=2,INDIRECT(I6&"_sam!Administration_sam")*INDEX(PL!$F$11:$F$58,MATCH(I6,PL!$C$11:$C$58,0)),IF(alle_aar_valg=3,INDIRECT(I6&"_sam!Administration_reg")*INDEX(PL!$F$11:$F$58,MATCH(I6,PL!$C$11:$C$58,0)),INDIRECT(I6&"_sam!Administration")*INDEX(PL!$F$11:$F$58,MATCH(I6,PL!$C$11:$C$58,0))))))) -> 19700.58456 | J9: =IF(J6="","",IF(J6='2024'!$B$2,(IF(alle_aar_valg=1,Administration*INDEX(PL!$F$11:$F$58,MATCH(J6,PL!$C$11:$C$58,0)),"Kan ikke vises")),IF(alle_aar_valg=1,INDIRECT(J6&"!Administration")*INDEX(PL!$F$11:$F$58,MATCH(J6,PL!$C$11:$C$58,0)),IF(alle_aar_valg=2,INDIRECT(J6&"_sam!Administration_sam")*INDEX(PL!$F$11:$F$58,MATCH(J6,PL!$C$11:$C$58,0)),IF(alle_aar_valg=3,INDIRECT(J6&"_sam!Administration_reg")*INDEX(PL!$F$11:$F$58,MATCH(J6,PL!$C$11:$C$58,0)),INDIRECT(J6&"_sam!Administration")*INDEX(PL!$F$11:$F$58,MATCH(J6,PL!$C$11:$C$58,0))))))) -> 22203.7554 | K9: =IF(K6="","",IF(K6='2024'!$B$2,(IF(alle_aar_valg=1,Administration*INDEX(PL!$F$11:$F$58,MATCH(K6,PL!$C$11:$C$58,0)),"Kan ikke vises")),IF(alle_aar_valg=1,INDIRECT(K6&"!Administration")*INDEX(PL!$F$11:$F$58,MATCH(K6,PL!$C$11:$C$58,0)),IF(alle_aar_valg=2,INDIRECT(K6&"_sam!Administration_sam")*INDEX(PL!$F$11:$F$58,MATCH(K6,PL!$C$11:$C$58,0)),IF(alle_aar_valg=3,INDIRECT(K6&"_sam!Administration_reg")*INDEX(PL!$F$11:$F$58,MATCH(K6,PL!$C$11:$C$58,0)),INDIRECT(K6&"_sam!Administration")*INDEX(PL!$F$11:$F$58,MATCH(K6,PL!$C$11:$C$58,0))))))) -> 20471.67576 | L9: =IF(L6="","",IF(L6='2024'!$B$2,(IF(alle_aar_valg=1,Administration*INDEX(PL!$F$11:$F$58,MATCH(L6,PL!$C$11:$C$58,0)),"Kan ikke vises")),IF(alle_aar_valg=1,INDIRECT(L6&"!Administration")*INDEX(PL!$F$11:$F$58,MATCH(L6,PL!$C$11:$C$58,0)),IF(alle_aar_valg=2,INDIRECT(L6&"_sam!Administration_sam")*INDEX(PL!$F$11:$F$58,MATCH(L6,PL!$C$11:$C$58,0)),IF(alle_aar_valg=3,INDIRECT(L6&"_sam!Administration_reg")*INDEX(PL!$F$11:$F$58,MATCH(L6,PL!$C$11:$C$58,0)),INDIRECT(L6&"_sam!Administration")*INDEX(PL!$F$11:$F$58,MATCH(L6,PL!$C$11:$C$58,0))))))) -> 22142.80638 | M9: =IF(M6="","",IF(M6='2024'!$B$2,(IF(alle_aar_valg=1,Administration*INDEX(PL!$F$11:$F$58,MATCH(M6,PL!$C$11:$C$58,0)),"Kan ikke vises")),IF(alle_aar_valg=1,INDIRECT(M6&"!Administration")*INDEX(PL!$F$11:$F$58,MATCH(M6,PL!$C$11:$C$58,0)),IF(alle_aar_valg=2,INDIRECT(M6&"_sam!Administration_sam")*INDEX(PL!$F$11:$F$58,MATCH(M6,PL!$C$11:$C$58,0)),IF(alle_aar_valg=3,INDIRECT(M6&"_sam!Administration_reg")*INDEX(PL!$F$11:$F$58,MATCH(M6,PL!$C$11:$C$58,0)),INDIRECT(M6&"_sam!Administration")*INDEX(PL!$F$11:$F$58,MATCH(M6,PL!$C$11:$C$58,0))))))) -> 21729.93757 | N9: =IF(N6="","",IF(N6='2024'!$B$2,(IF(alle_aar_valg=1,Administration*INDEX(PL!$F$11:$F$58,MATCH(N6,PL!$C$11:$C$58,0)),"Kan ikke vises")),IF(alle_aar_valg=1,INDIRECT(N6&"!Administration")*INDEX(PL!$F$11:$F$58,MATCH(N6,PL!$C$11:$C$58,0)),IF(alle_aar_valg=2,INDIRECT(N6&"_sam!Administration_sam")*INDEX(PL!$F$11:$F$58,MATCH(N6,PL!$C$11:$C$58,0)),IF(alle_aar_valg=3,INDIRECT(N6&"_sam!Administration_reg")*INDEX(PL!$F$11:$F$58,MATCH(N6,PL!$C$11:$C$58,0)),INDIRECT(N6&"_sam!Administration")*INDEX(PL!$F$11:$F$58,MATCH(N6,PL!$C$11:$C$58,0))))))) -> 22755.63718 | O9: =IF(O6="","",IF(O6='2024'!$B$2,(IF(alle_aar_valg=1,Administration*INDEX(PL!$F$11:$F$58,MATCH(O6,PL!$C$11:$C$58,0)),"Kan ikke vises")),IF(alle_aar_valg=1,INDIRECT(O6&"!Administration")*INDEX(PL!$F$11:$F$58,MATCH(O6,PL!$C$11:$C$58,0)),IF(alle_aar_valg=2,INDIRECT(O6&"_sam!Administration_sam")*INDEX(PL!$F$11:$F$58,MATCH(O6,PL!$C$11:$C$58,0)),IF(alle_aar_valg=3,INDIRECT(O6&"_sam!Administration_reg")*INDEX(PL!$F$11:$F$58,MATCH(O6,PL!$C$11:$C$58,0)),INDIRECT(O6&"_sam!Administration")*INDEX(PL!$F$11:$F$58,MATCH(O6,PL!$C$11:$C$58,0))))))) -> 21218.41818 | P9: =IF(P6="","",IF(P6='2024'!$B$2,(IF(alle_aar_valg=1,Administration*INDEX(PL!$F$11:$F$58,MATCH(P6,PL!$C$11:$C$58,0)),"Kan ikke vises")),IF(alle_aar_valg=1,INDIRECT(P6&"!Administration")*INDEX(PL!$F$11:$F$58,MATCH(P6,PL!$C$11:$C$58,0)),IF(alle_aar_valg=2,INDIRECT(P6&"_sam!Administration_sam")*INDEX(PL!$F$11:$F$58,MATCH(P6,PL!$C$11:$C$58,0)),IF(alle_aar_valg=3,INDIRECT(P6&"_sam!Administration_reg")*INDEX(PL!$F$11:$F$58,MATCH(P6,PL!$C$11:$C$58,0)),INDIRECT(P6&"_sam!Administration")*INDEX(PL!$F$11:$F$58,MATCH(P6,PL!$C$11:$C$58,0))))))) -> 21598.33176 | Q9: =IF(Q6="","",IF(Q6='2024'!$B$2,(IF(alle_aar_valg=1,Administration*INDEX(PL!$F$11:$F$58,MATCH(Q6,PL!$C$11:$C$58,0)),"Kan ikke vises")),IF(alle_aar_valg=1,INDIRECT(Q6&"!Administration")*INDEX(PL!$F$11:$F$58,MATCH(Q6,PL!$C$11:$C$58,0)),IF(alle_aar_valg=2,INDIRECT(Q6&"_sam!Administration_sam")*INDEX(PL!$F$11:$F$58,MATCH(Q6,PL!$C$11:$C$58,0)),IF(alle_aar_valg=3,INDIRECT(Q6&"_sam!Administration_reg")*INDEX(PL!$F$11:$F$58,MATCH(Q6,PL!$C$11:$C$58,0)),INDIRECT(Q6&"_sam!Administration")*INDEX(PL!$F$11:$F$58,MATCH(Q6,PL!$C$11:$C$58,0))))))) -> 23307.8111 | R9: =IF(R6="","",IF(R6='2024'!$B$2,(IF(alle_aar_valg=1,Administration*INDEX(PL!$F$11:$F$58,MATCH(R6,PL!$C$11:$C$58,0)),"Kan ikke vises")),IF(alle_aar_valg=1,INDIRECT(R6&"!Administration")*INDEX(PL!$F$11:$F$58,MATCH(R6,PL!$C$11:$C$58,0)),IF(alle_aar_valg=2,INDIRECT(R6&"_sam!Administration_sam")*INDEX(PL!$F$11:$F$58,MATCH(R6,PL!$C$11:$C$58,0)),IF(alle_aar_valg=3,INDIRECT(R6&"_sam!Administration_reg")*INDEX(PL!$F$11:$F$58,MATCH(R6,PL!$C$11:$C$58,0)),INDIRECT(R6&"_sam!Administration")*INDEX(PL!$F$11:$F$58,MATCH(R6,PL!$C$11:$C$58,0))))))) -> 25607.48 | S9: =IF(S6="","",IF(S6='2024'!$B$2,(IF(alle_aar_valg=1,Administration*INDEX(PL!$F$11:$F$58,MATCH(S6,PL!$C$11:$C$58,0)),"Kan ikke vises")),IF(alle_aar_valg=1,INDIRECT(S6&"!Administration")*INDEX(PL!$F$11:$F$58,MATCH(S6,PL!$C$11:$C$58,0)),IF(alle_aar_valg=2,INDIRECT(S6&"_sam!Administration_sam")*INDEX(PL!$F$11:$F$58,MATCH(S6,PL!$C$11:$C$58,0)),IF(alle_aar_valg=3,INDIRECT(S6&"_sam!Administration_reg")*INDEX(PL!$F$11:$F$58,MATCH(S6,PL!$C$11:$C$58,0)),INDIRECT(S6&"_sam!Administration")*INDEX(PL!$F$11:$F$58,MATCH(S6,PL!$C$11:$C$58,0))))))) -> 30980 | T9: =IF(T6="","",IF(T6='2024'!$B$2,(IF(alle_aar_valg=1,Administration*INDEX(PL!$F$11:$F$58,MATCH(T6,PL!$C$11:$C$58,0)),"Kan ikke vises")),IF(alle_aar_valg=1,INDIRECT(T6&"!Administration")*INDEX(PL!$F$11:$F$58,MATCH(T6,PL!$C$11:$C$58,0)),IF(alle_aar_valg=2,INDIRECT(T6&"_sam!Administration_sam")*INDEX(PL!$F$11:$F$58,MATCH(T6,PL!$C$11:$C$58,0)),IF(alle_aar_valg=3,INDIRECT(T6&"_sam!Administration_reg")*INDEX(PL!$F$11:$F$58,MATCH(T6,PL!$C$11:$C$58,0)),INDIRECT(T6&"_sam!Administration")*INDEX(PL!$F$11:$F$58,MATCH(T6,PL!$C$11:$C$58,0))))))) ->  | U9: =IF(U6="","",IF(U6='2024'!$B$2,(IF(alle_aar_valg=1,Administration*INDEX(PL!$F$11:$F$58,MATCH(U6,PL!$C$11:$C$58,0)),"Kan ikke vises")),IF(alle_aar_valg=1,INDIRECT(U6&"!Administration")*INDEX(PL!$F$11:$F$58,MATCH(U6,PL!$C$11:$C$58,0)),IF(alle_aar_valg=2,INDIRECT(U6&"_sam!Administration_sam")*INDEX(PL!$F$11:$F$58,MATCH(U6,PL!$C$11:$C$58,0)),IF(alle_aar_valg=3,INDIRECT(U6&"_sam!Administration_reg")*INDEX(PL!$F$11:$F$58,MATCH(U6,PL!$C$11:$C$58,0)),INDIRECT(U6&"_sam!Administration")*INDEX(PL!$F$11:$F$58,MATCH(U6,PL!$C$11:$C$58,0))))))) ->  | V9: =IF(V6="","",IF(V6='2024'!$B$2,(IF(alle_aar_valg=1,Administration*INDEX(PL!$F$11:$F$58,MATCH(V6,PL!$C$11:$C$58,0)),"Kan ikke vises")),IF(alle_aar_valg=1,INDIRECT(V6&"!Administration")*INDEX(PL!$F$11:$F$58,MATCH(V6,PL!$C$11:$C$58,0)),IF(alle_aar_valg=2,INDIRECT(V6&"_sam!Administration_sam")*INDEX(PL!$F$11:$F$58,MATCH(V6,PL!$C$11:$C$58,0)),IF(alle_aar_valg=3,INDIRECT(V6&"_sam!Administration_reg")*INDEX(PL!$F$11:$F$58,MATCH(V6,PL!$C$11:$C$58,0)),INDIRECT(V6&"_sam!Administration")*INDEX(PL!$F$11:$F$58,MATCH(V6,PL!$C$11:$C$58,0))))))) ->  | W9: =IF(W6="","",IF(W6='2024'!$B$2,(IF(alle_aar_valg=1,Administration*INDEX(PL!$F$11:$F$58,MATCH(W6,PL!$C$11:$C$58,0)),"Kan ikke vises")),IF(alle_aar_valg=1,INDIRECT(W6&"!Administration")*INDEX(PL!$F$11:$F$58,MATCH(W6,PL!$C$11:$C$58,0)),IF(alle_aar_valg=2,INDIRECT(W6&"_sam!Administration_sam")*INDEX(PL!$F$11:$F$58,MATCH(W6,PL!$C$11:$C$58,0)),IF(alle_aar_valg=3,INDIRECT(W6&"_sam!Administration_reg")*INDEX(PL!$F$11:$F$58,MATCH(W6,PL!$C$11:$C$58,0)),INDIRECT(W6&"_sam!Administration")*INDEX(PL!$F$11:$F$58,MATCH(W6,PL!$C$11:$C$58,0))))))) -> 
B10: Service | C10: =IF(C6="","",IF(C6='2024'!$B$2,(IF(alle_aar_valg=1,NDU_service*INDEX(PL!$F$11:$F$58,MATCH(C6,PL!$C$11:$C$58,0)),"Kan ikke vises")),IF(alle_aar_valg=1,INDIRECT(C6&"!NDU_service")*INDEX(PL!$F$11:$F$58,MATCH(C6,PL!$C$11:$C$58,0)),IF(alle_aar_valg=2,INDIRECT(C6&"_sam!NDU_service_sam")*INDEX(PL!$F$11:$F$58,MATCH(C6,PL!$C$11:$C$58,0)),IF(alle_aar_valg=3,INDIRECT(C6&"_sam!NDU_service_reg")*INDEX(PL!$F$11:$F$58,MATCH(C6,PL!$C$11:$C$58,0)),INDIRECT(C6&"_sam!NDU_service")*INDEX(PL!$F$11:$F$58,MATCH(C6,PL!$C$11:$C$58,0))))))) -> 110549.1918 | D10: =IF(D6="","",IF(D6='2024'!$B$2,(IF(alle_aar_valg=1,NDU_service*INDEX(PL!$F$11:$F$58,MATCH(D6,PL!$C$11:$C$58,0)),"Kan ikke vises")),IF(alle_aar_valg=1,INDIRECT(D6&"!NDU_service")*INDEX(PL!$F$11:$F$58,MATCH(D6,PL!$C$11:$C$58,0)),IF(alle_aar_valg=2,INDIRECT(D6&"_sam!NDU_service_sam")*INDEX(PL!$F$11:$F$58,MATCH(D6,PL!$C$11:$C$58,0)),IF(alle_aar_valg=3,INDIRECT(D6&"_sam!NDU_service_reg")*INDEX(PL!$F$11:$F$58,MATCH(D6,PL!$C$11:$C$58,0)),INDIRECT(D6&"_sam!NDU_service")*INDEX(PL!$F$11:$F$58,MATCH(D6,PL!$C$11:$C$58,0))))))) -> 105110.8225 | E10: =IF(E6="","",IF(E6='2024'!$B$2,(IF(alle_aar_valg=1,NDU_service*INDEX(PL!$F$11:$F$58,MATCH(E6,PL!$C$11:$C$58,0)),"Kan ikke vises")),IF(alle_aar_valg=1,INDIRECT(E6&"!NDU_service")*INDEX(PL!$F$11:$F$58,MATCH(E6,PL!$C$11:$C$58,0)),IF(alle_aar_valg=2,INDIRECT(E6&"_sam!NDU_service_sam")*INDEX(PL!$F$11:$F$58,MATCH(E6,PL!$C$11:$C$58,0)),IF(alle_aar_valg=3,INDIRECT(E6&"_sam!NDU_service_reg")*INDEX(PL!$F$11:$F$58,MATCH(E6,PL!$C$11:$C$58,0)),INDIRECT(E6&"_sam!NDU_service")*INDEX(PL!$F$11:$F$58,MATCH(E6,PL!$C$11:$C$58,0))))))) -> 108935.5813 | F10: =IF(F6="","",IF(F6='2024'!$B$2,(IF(alle_aar_valg=1,NDU_service*INDEX(PL!$F$11:$F$58,MATCH(F6,PL!$C$11:$C$58,0)),"Kan ikke vises")),IF(alle_aar_valg=1,INDIRECT(F6&"!NDU_service")*INDEX(PL!$F$11:$F$58,MATCH(F6,PL!$C$11:$C$58,0)),IF(alle_aar_valg=2,INDIRECT(F6&"_sam!NDU_service_sam")*INDEX(PL!$F$11:$F$58,MATCH(F6,PL!$C$11:$C$58,0)),IF(alle_aar_valg=3,INDIRECT(F6&"_sam!NDU_service_reg")*INDEX(PL!$F$11:$F$58,MATCH(F6,PL!$C$11:$C$58,0)),INDIRECT(F6&"_sam!NDU_service")*INDEX(PL!$F$11:$F$58,MATCH(F6,PL!$C$11:$C$58,0))))))) -> 105398.8409 | G10: =IF(G6="","",IF(G6='2024'!$B$2,(IF(alle_aar_valg=1,NDU_service*INDEX(PL!$F$11:$F$58,MATCH(G6,PL!$C$11:$C$58,0)),"Kan ikke vises")),IF(alle_aar_valg=1,INDIRECT(G6&"!NDU_service")*INDEX(PL!$F$11:$F$58,MATCH(G6,PL!$C$11:$C$58,0)),IF(alle_aar_valg=2,INDIRECT(G6&"_sam!NDU_service_sam")*INDEX(PL!$F$11:$F$58,MATCH(G6,PL!$C$11:$C$58,0)),IF(alle_aar_valg=3,INDIRECT(G6&"_sam!NDU_service_reg")*INDEX(PL!$F$11:$F$58,MATCH(G6,PL!$C$11:$C$58,0)),INDIRECT(G6&"_sam!NDU_service")*INDEX(PL!$F$11:$F$58,MATCH(G6,PL!$C$11:$C$58,0))))))) -> 106089.1356 | H10: =IF(H6="","",IF(H6='2024'!$B$2,(IF(alle_aar_valg=1,NDU_service*INDEX(PL!$F$11:$F$58,MATCH(H6,PL!$C$11:$C$58,0)),"Kan ikke vises")),IF(alle_aar_valg=1,INDIRECT(H6&"!NDU_service")*INDEX(PL!$F$11:$F$58,MATCH(H6,PL!$C$11:$C$58,0)),IF(alle_aar_valg=2,INDIRECT(H6&"_sam!NDU_service_sam")*INDEX(PL!$F$11:$F$58,MATCH(H6,PL!$C$11:$C$58,0)),IF(alle_aar_valg=3,INDIRECT(H6&"_sam!NDU_service_reg")*INDEX(PL!$F$11:$F$58,MATCH(H6,PL!$C$11:$C$58,0)),INDIRECT(H6&"_sam!NDU_service")*INDEX(PL!$F$11:$F$58,MATCH(H6,PL!$C$11:$C$58,0))))))) -> 97342.57688 | I10: =IF(I6="","",IF(I6='2024'!$B$2,(IF(alle_aar_valg=1,NDU_service*INDEX(PL!$F$11:$F$58,MATCH(I6,PL!$C$11:$C$58,0)),"Kan ikke vises")),IF(alle_aar_valg=1,INDIRECT(I6&"!NDU_service")*INDEX(PL!$F$11:$F$58,MATCH(I6,PL!$C$11:$C$58,0)),IF(alle_aar_valg=2,INDIRECT(I6&"_sam!NDU_service_sam")*INDEX(PL!$F$11:$F$58,MATCH(I6,PL!$C$11:$C$58,0)),IF(alle_aar_valg=3,INDIRECT(I6&"_sam!NDU_service_reg")*INDEX(PL!$F$11:$F$58,MATCH(I6,PL!$C$11:$C$58,0)),INDIRECT(I6&"_sam!NDU_service")*INDEX(PL!$F$11:$F$58,MATCH(I6,PL!$C$11:$C$58,0))))))) -> 111466.7958 | J10: =IF(J6="","",IF(J6='2024'!$B$2,(IF(alle_aar_valg=1,NDU_service*INDEX(PL!$F$11:$F$58,MATCH(J6,PL!$C$11:$C$58,0)),"Kan ikke vises")),IF(alle_aar_valg=1,INDIRECT(J6&"!NDU_service")*INDEX(PL!$F$11:$F$58,MATCH(J6,PL!$C$11:$C$58,0)),IF(alle_aar_valg=2,INDIRECT(J6&"_sam!NDU_service_sam")*INDEX(PL!$F$11:$F$58,MATCH(J6,PL!$C$11:$C$58,0)),IF(alle_aar_valg=3,INDIRECT(J6&"_sam!NDU_service_reg")*INDEX(PL!$F$11:$F$58,MATCH(J6,PL!$C$11:$C$58,0)),INDIRECT(J6&"_sam!NDU_service")*INDEX(PL!$F$11:$F$58,MATCH(J6,PL!$C$11:$C$58,0))))))) -> 93669.48203 | K10: =IF(K6="","",IF(K6='2024'!$B$2,(IF(alle_aar_valg=1,NDU_service*INDEX(PL!$F$11:$F$58,MATCH(K6,PL!$C$11:$C$58,0)),"Kan ikke vises")),IF(alle_aar_valg=1,INDIRECT(K6&"!NDU_service")*INDEX(PL!$F$11:$F$58,MATCH(K6,PL!$C$11:$C$58,0)),IF(alle_aar_valg=2,INDIRECT(K6&"_sam!NDU_service_sam")*INDEX(PL!$F$11:$F$58,MATCH(K6,PL!$C$11:$C$58,0)),IF(alle_aar_valg=3,INDIRECT(K6&"_sam!NDU_service_reg")*INDEX(PL!$F$11:$F$58,MATCH(K6,PL!$C$11:$C$58,0)),INDIRECT(K6&"_sam!NDU_service")*INDEX(PL!$F$11:$F$58,MATCH(K6,PL!$C$11:$C$58,0))))))) -> 96064.20077 | L10: =IF(L6="","",IF(L6='2024'!$B$2,(IF(alle_aar_valg=1,NDU_service*INDEX(PL!$F$11:$F$58,MATCH(L6,PL!$C$11:$C$58,0)),"Kan ikke vises")),IF(alle_aar_valg=1,INDIRECT(L6&"!NDU_service")*INDEX(PL!$F$11:$F$58,MATCH(L6,PL!$C$11:$C$58,0)),IF(alle_aar_valg=2,INDIRECT(L6&"_sam!NDU_service_sam")*INDEX(PL!$F$11:$F$58,MATCH(L6,PL!$C$11:$C$58,0)),IF(alle_aar_valg=3,INDIRECT(L6&"_sam!NDU_service_reg")*INDEX(PL!$F$11:$F$58,MATCH(L6,PL!$C$11:$C$58,0)),INDIRECT(L6&"_sam!NDU_service")*INDEX(PL!$F$11:$F$58,MATCH(L6,PL!$C$11:$C$58,0))))))) -> 103396.9454 | M10: =IF(M6="","",IF(M6='2024'!$B$2,(IF(alle_aar_valg=1,NDU_service*INDEX(PL!$F$11:$F$58,MATCH(M6,PL!$C$11:$C$58,0)),"Kan ikke vises")),IF(alle_aar_valg=1,INDIRECT(M6&"!NDU_service")*INDEX(PL!$F$11:$F$58,MATCH(M6,PL!$C$11:$C$58,0)),IF(alle_aar_valg=2,INDIRECT(M6&"_sam!NDU_service_sam")*INDEX(PL!$F$11:$F$58,MATCH(M6,PL!$C$11:$C$58,0)),IF(alle_aar_valg=3,INDIRECT(M6&"_sam!NDU_service_reg")*INDEX(PL!$F$11:$F$58,MATCH(M6,PL!$C$11:$C$58,0)),INDIRECT(M6&"_sam!NDU_service")*INDEX(PL!$F$11:$F$58,MATCH(M6,PL!$C$11:$C$58,0))))))) -> 111835.0137 | N10: =IF(N6="","",IF(N6='2024'!$B$2,(IF(alle_aar_valg=1,NDU_service*INDEX(PL!$F$11:$F$58,MATCH(N6,PL!$C$11:$C$58,0)),"Kan ikke vises")),IF(alle_aar_valg=1,INDIRECT(N6&"!NDU_service")*INDEX(PL!$F$11:$F$58,MATCH(N6,PL!$C$11:$C$58,0)),IF(alle_aar_valg=2,INDIRECT(N6&"_sam!NDU_service_sam")*INDEX(PL!$F$11:$F$58,MATCH(N6,PL!$C$11:$C$58,0)),IF(alle_aar_valg=3,INDIRECT(N6&"_sam!NDU_service_reg")*INDEX(PL!$F$11:$F$58,MATCH(N6,PL!$C$11:$C$58,0)),INDIRECT(N6&"_sam!NDU_service")*INDEX(PL!$F$11:$F$58,MATCH(N6,PL!$C$11:$C$58,0))))))) -> 114378.735 | O10: =IF(O6="","",IF(O6='2024'!$B$2,(IF(alle_aar_valg=1,NDU_service*INDEX(PL!$F$11:$F$58,MATCH(O6,PL!$C$11:$C$58,0)),"Kan ikke vises")),IF(alle_aar_valg=1,INDIRECT(O6&"!NDU_service")*INDEX(PL!$F$11:$F$58,MATCH(O6,PL!$C$11:$C$58,0)),IF(alle_aar_valg=2,INDIRECT(O6&"_sam!NDU_service_sam")*INDEX(PL!$F$11:$F$58,MATCH(O6,PL!$C$11:$C$58,0)),IF(alle_aar_valg=3,INDIRECT(O6&"_sam!NDU_service_reg")*INDEX(PL!$F$11:$F$58,MATCH(O6,PL!$C$11:$C$58,0)),INDIRECT(O6&"_sam!NDU_service")*INDEX(PL!$F$11:$F$58,MATCH(O6,PL!$C$11:$C$58,0))))))) -> 108175.3015 | P10: =IF(P6="","",IF(P6='2024'!$B$2,(IF(alle_aar_valg=1,NDU_service*INDEX(PL!$F$11:$F$58,MATCH(P6,PL!$C$11:$C$58,0)),"Kan ikke vises")),IF(alle_aar_valg=1,INDIRECT(P6&"!NDU_service")*INDEX(PL!$F$11:$F$58,MATCH(P6,PL!$C$11:$C$58,0)),IF(alle_aar_valg=2,INDIRECT(P6&"_sam!NDU_service_sam")*INDEX(PL!$F$11:$F$58,MATCH(P6,PL!$C$11:$C$58,0)),IF(alle_aar_valg=3,INDIRECT(P6&"_sam!NDU_service_reg")*INDEX(PL!$F$11:$F$58,MATCH(P6,PL!$C$11:$C$58,0)),INDIRECT(P6&"_sam!NDU_service")*INDEX(PL!$F$11:$F$58,MATCH(P6,PL!$C$11:$C$58,0))))))) -> 110704.2994 | Q10: =IF(Q6="","",IF(Q6='2024'!$B$2,(IF(alle_aar_valg=1,NDU_service*INDEX(PL!$F$11:$F$58,MATCH(Q6,PL!$C$11:$C$58,0)),"Kan ikke vises")),IF(alle_aar_valg=1,INDIRECT(Q6&"!NDU_service")*INDEX(PL!$F$11:$F$58,MATCH(Q6,PL!$C$11:$C$58,0)),IF(alle_aar_valg=2,INDIRECT(Q6&"_sam!NDU_service_sam")*INDEX(PL!$F$11:$F$58,MATCH(Q6,PL!$C$11:$C$58,0)),IF(alle_aar_valg=3,INDIRECT(Q6&"_sam!NDU_service_reg")*INDEX(PL!$F$11:$F$58,MATCH(Q6,PL!$C$11:$C$58,0)),INDIRECT(Q6&"_sam!NDU_service")*INDEX(PL!$F$11:$F$58,MATCH(Q6,PL!$C$11:$C$58,0))))))) -> 107860.4564 | R10: =IF(R6="","",IF(R6='2024'!$B$2,(IF(alle_aar_valg=1,NDU_service*INDEX(PL!$F$11:$F$58,MATCH(R6,PL!$C$11:$C$58,0)),"Kan ikke vises")),IF(alle_aar_valg=1,INDIRECT(R6&"!NDU_service")*INDEX(PL!$F$11:$F$58,MATCH(R6,PL!$C$11:$C$58,0)),IF(alle_aar_valg=2,INDIRECT(R6&"_sam!NDU_service_sam")*INDEX(PL!$F$11:$F$58,MATCH(R6,PL!$C$11:$C$58,0)),IF(alle_aar_valg=3,INDIRECT(R6&"_sam!NDU_service_reg")*INDEX(PL!$F$11:$F$58,MATCH(R6,PL!$C$11:$C$58,0)),INDIRECT(R6&"_sam!NDU_service")*INDEX(PL!$F$11:$F$58,MATCH(R6,PL!$C$11:$C$58,0))))))) -> 124519.584 | S10: =IF(S6="","",IF(S6='2024'!$B$2,(IF(alle_aar_valg=1,NDU_service*INDEX(PL!$F$11:$F$58,MATCH(S6,PL!$C$11:$C$58,0)),"Kan ikke vises")),IF(alle_aar_valg=1,INDIRECT(S6&"!NDU_service")*INDEX(PL!$F$11:$F$58,MATCH(S6,PL!$C$11:$C$58,0)),IF(alle_aar_valg=2,INDIRECT(S6&"_sam!NDU_service_sam")*INDEX(PL!$F$11:$F$58,MATCH(S6,PL!$C$11:$C$58,0)),IF(alle_aar_valg=3,INDIRECT(S6&"_sam!NDU_service_reg")*INDEX(PL!$F$11:$F$58,MATCH(S6,PL!$C$11:$C$58,0)),INDIRECT(S6&"_sam!NDU_service")*INDEX(PL!$F$11:$F$58,MATCH(S6,PL!$C$11:$C$58,0))))))) -> 135290 | T10: =IF(T6="","",IF(T6='2024'!$B$2,(IF(alle_aar_valg=1,NDU_service*INDEX(PL!$F$11:$F$58,MATCH(T6,PL!$C$11:$C$58,0)),"Kan ikke vises")),IF(alle_aar_valg=1,INDIRECT(T6&"!NDU_service")*INDEX(PL!$F$11:$F$58,MATCH(T6,PL!$C$11:$C$58,0)),IF(alle_aar_valg=2,INDIRECT(T6&"_sam!NDU_service_sam")*INDEX(PL!$F$11:$F$58,MATCH(T6,PL!$C$11:$C$58,0)),IF(alle_aar_valg=3,INDIRECT(T6&"_sam!NDU_service_reg")*INDEX(PL!$F$11:$F$58,MATCH(T6,PL!$C$11:$C$58,0)),INDIRECT(T6&"_sam!NDU_service")*INDEX(PL!$F$11:$F$58,MATCH(T6,PL!$C$11:$C$58,0))))))) ->  | U10: =IF(U6="","",IF(U6='2024'!$B$2,(IF(alle_aar_valg=1,NDU_service*INDEX(PL!$F$11:$F$58,MATCH(U6,PL!$C$11:$C$58,0)),"Kan ikke vises")),IF(alle_aar_valg=1,INDIRECT(U6&"!NDU_service")*INDEX(PL!$F$11:$F$58,MATCH(U6,PL!$C$11:$C$58,0)),IF(alle_aar_valg=2,INDIRECT(U6&"_sam!NDU_service_sam")*INDEX(PL!$F$11:$F$58,MATCH(U6,PL!$C$11:$C$58,0)),IF(alle_aar_valg=3,INDIRECT(U6&"_sam!NDU_service_reg")*INDEX(PL!$F$11:$F$58,MATCH(U6,PL!$C$11:$C$58,0)),INDIRECT(U6&"_sam!NDU_service")*INDEX(PL!$F$11:$F$58,MATCH(U6,PL!$C$11:$C$58,0))))))) ->  | V10: =IF(V6="","",IF(V6='2024'!$B$2,(IF(alle_aar_valg=1,NDU_service*INDEX(PL!$F$11:$F$58,MATCH(V6,PL!$C$11:$C$58,0)),"Kan ikke vises")),IF(alle_aar_valg=1,INDIRECT(V6&"!NDU_service")*INDEX(PL!$F$11:$F$58,MATCH(V6,PL!$C$11:$C$58,0)),IF(alle_aar_valg=2,INDIRECT(V6&"_sam!NDU_service_sam")*INDEX(PL!$F$11:$F$58,MATCH(V6,PL!$C$11:$C$58,0)),IF(alle_aar_valg=3,INDIRECT(V6&"_sam!NDU_service_reg")*INDEX(PL!$F$11:$F$58,MATCH(V6,PL!$C$11:$C$58,0)),INDIRECT(V6&"_sam!NDU_service")*INDEX(PL!$F$11:$F$58,MATCH(V6,PL!$C$11:$C$58,0))))))) ->  | W10: =IF(W6="","",IF(W6='2024'!$B$2,(IF(alle_aar_valg=1,NDU_service*INDEX(PL!$F$11:$F$58,MATCH(W6,PL!$C$11:$C$58,0)),"Kan ikke vises")),IF(alle_aar_valg=1,INDIRECT(W6&"!NDU_service")*INDEX(PL!$F$11:$F$58,MATCH(W6,PL!$C$11:$C$58,0)),IF(alle_aar_valg=2,INDIRECT(W6&"_sam!NDU_service_sam")*INDEX(PL!$F$11:$F$58,MATCH(W6,PL!$C$11:$C$58,0)),IF(alle_aar_valg=3,INDIRECT(W6&"_sam!NDU_service_reg")*INDEX(PL!$F$11:$F$58,MATCH(W6,PL!$C$11:$C$58,0)),INDIRECT(W6&"_sam!NDU_service")*INDEX(PL!$F$11:$F$58,MATCH(W6,PL!$C$11:$C$58,0))))))) -> 
B13: Udgifter fordelt på indsatstrappen
C14: ='Dine valg'!$J$10 -> 2007 | D14: ='Dine valg'!$J$11 -> 2008 | E14: ='Dine valg'!$J$12 -> 2009 | F14: ='Dine valg'!$J$13 -> 2010 | G14: ='Dine valg'!$J$14 -> 2011 | H14: ='Dine valg'!$J$15 -> 2012 | I14: ='Dine valg'!$J$16 -> 2013 | J14: ='Dine valg'!$K$10 -> 2014 | K14: ='Dine valg'!$K$11 -> 2015 | L14: ='Dine valg'!$K$12 -> 2016 | M14: ='Dine valg'!$K$13 -> 2017 | N14: ='Dine valg'!$K$14 -> 2018 | O14: ='Dine valg'!$K$15 -> 2019 | P14: ='Dine valg'!$K$16 -> 2020 | Q14: ='Dine valg'!$L$10 -> 2021 | R14: ='Dine valg'!$L$11 -> 2022 | S14: ='Dine valg'!$L$12 -> 2023 | T14: ='Dine valg'!$L$13 ->  | U14: ='Dine valg'!$L$14 ->  | V14: ='Dine valg'!$L$15 ->  | W14: ='Dine valg'!$L$16 -> 
B15: =""&alle_aar_tekst_valg&"" -> Fredericia | C15: ="" ->  | D15: ="" ->  | E15: ="" ->  | F15: ="" ->  | G15: ="" ->  | H15: ="" ->  | I15: ="" ->  | J15: ="" ->  | K15: ="" ->  | L15: ="" ->  | M15: ="" ->  | N15: ="" ->  | O15: ="" ->  | P15: ="" ->  | Q15: ="" -> 
B16: Trin 2: Forebyggende indsatser | C16: =IF(C6="","",IF(C6='2024'!$B$2,(IF(alle_aar_valg=1,'2024'!BDU_forebyggende*INDEX(PL!$F$11:$F$58,MATCH(C6,PL!$C$11:$C$58,0)),"Kan ikke vises")),IF(alle_aar_valg=1,INDIRECT(C6&"!BDU_forebyggende")*INDEX(PL!$F$11:$F$58,MATCH(C6,PL!$C$11:$C$58,0)),IF(alle_aar_valg=2,INDIRECT(C6&"_sam!BDU_forebyggende_sam")*INDEX(PL!$F$11:$F$58,MATCH(C6,PL!$C$11:$C$58,0)),IF(alle_aar_valg=3,INDIRECT(C6&"_sam!BDU_forebyggende_reg")*INDEX(PL!$F$11:$F$58,MATCH(C6,PL!$C$11:$C$58,0)),INDIRECT(C6&"_sam!BDU_forebyggende")*INDEX(PL!$F$11:$F$58,MATCH(C6,PL!$C$11:$C$58,0))))))) -> 0 | D16: =IF(D6="","",IF(D6='2024'!$B$2,(IF(alle_aar_valg=1,'2024'!BDU_forebyggende*INDEX(PL!$F$11:$F$58,MATCH(D6,PL!$C$11:$C$58,0)),"Kan ikke vises")),IF(alle_aar_valg=1,INDIRECT(D6&"!BDU_forebyggende")*INDEX(PL!$F$11:$F$58,MATCH(D6,PL!$C$11:$C$58,0)),IF(alle_aar_valg=2,INDIRECT(D6&"_sam!BDU_forebyggende_sam")*INDEX(PL!$F$11:$F$58,MATCH(D6,PL!$C$11:$C$58,0)),IF(alle_aar_valg=3,INDIRECT(D6&"_sam!BDU_forebyggende_reg")*INDEX(PL!$F$11:$F$58,MATCH(D6,PL!$C$11:$C$58,0)),INDIRECT(D6&"_sam!BDU_forebyggende")*INDEX(PL!$F$11:$F$58,MATCH(D6,PL!$C$11:$C$58,0))))))) -> 0 | E16: =IF(E6="","",IF(E6='2024'!$B$2,(IF(alle_aar_valg=1,'2024'!BDU_forebyggende*INDEX(PL!$F$11:$F$58,MATCH(E6,PL!$C$11:$C$58,0)),"Kan ikke vises")),IF(alle_aar_valg=1,INDIRECT(E6&"!BDU_forebyggende")*INDEX(PL!$F$11:$F$58,MATCH(E6,PL!$C$11:$C$58,0)),IF(alle_aar_valg=2,INDIRECT(E6&"_sam!BDU_forebyggende_sam")*INDEX(PL!$F$11:$F$58,MATCH(E6,PL!$C$11:$C$58,0)),IF(alle_aar_valg=3,INDIRECT(E6&"_sam!BDU_forebyggende_reg")*INDEX(PL!$F$11:$F$58,MATCH(E6,PL!$C$11:$C$58,0)),INDIRECT(E6&"_sam!BDU_forebyggende")*INDEX(PL!$F$11:$F$58,MATCH(E6,PL!$C$11:$C$58,0))))))) -> 0 | F16: =IF(F6="","",IF(F6='2024'!$B$2,(IF(alle_aar_valg=1,'2024'!BDU_forebyggende*INDEX(PL!$F$11:$F$58,MATCH(F6,PL!$C$11:$C$58,0)),"Kan ikke vises")),IF(alle_aar_valg=1,INDIRECT(F6&"!BDU_forebyggende")*INDEX(PL!$F$11:$F$58,MATCH(F6,PL!$C$11:$C$58,0)),IF(alle_aar_valg=2,INDIRECT(F6&"_sam!BDU_forebyggende_sam")*INDEX(PL!$F$11:$F$58,MATCH(F6,PL!$C$11:$C$58,0)),IF(alle_aar_valg=3,INDIRECT(F6&"_sam!BDU_forebyggende_reg")*INDEX(PL!$F$11:$F$58,MATCH(F6,PL!$C$11:$C$58,0)),INDIRECT(F6&"_sam!BDU_forebyggende")*INDEX(PL!$F$11:$F$58,MATCH(F6,PL!$C$11:$C$58,0))))))) -> 0 | G16: =IF(G6="","",IF(G6='2024'!$B$2,(IF(alle_aar_valg=1,'2024'!BDU_forebyggende*INDEX(PL!$F$11:$F$58,MATCH(G6,PL!$C$11:$C$58,0)),"Kan ikke vises")),IF(alle_aar_valg=1,INDIRECT(G6&"!BDU_forebyggende")*INDEX(PL!$F$11:$F$58,MATCH(G6,PL!$C$11:$C$58,0)),IF(alle_aar_valg=2,INDIRECT(G6&"_sam!BDU_forebyggende_sam")*INDEX(PL!$F$11:$F$58,MATCH(G6,PL!$C$11:$C$58,0)),IF(alle_aar_valg=3,INDIRECT(G6&"_sam!BDU_forebyggende_reg")*INDEX(PL!$F$11:$F$58,MATCH(G6,PL!$C$11:$C$58,0)),INDIRECT(G6&"_sam!BDU_forebyggende")*INDEX(PL!$F$11:$F$58,MATCH(G6,PL!$C$11:$C$58,0))))))) -> 0 | H16: =IF(H6="","",IF(H6='2024'!$B$2,(IF(alle_aar_valg=1,'2024'!BDU_forebyggende*INDEX(PL!$F$11:$F$58,MATCH(H6,PL!$C$11:$C$58,0)),"Kan ikke vises")),IF(alle_aar_valg=1,INDIRECT(H6&"!BDU_forebyggende")*INDEX(PL!$F$11:$F$58,MATCH(H6,PL!$C$11:$C$58,0)),IF(alle_aar_valg=2,INDIRECT(H6&"_sam!BDU_forebyggende_sam")*INDEX(PL!$F$11:$F$58,MATCH(H6,PL!$C$11:$C$58,0)),IF(alle_aar_valg=3,INDIRECT(H6&"_sam!BDU_forebyggende_reg")*INDEX(PL!$F$11:$F$58,MATCH(H6,PL!$C$11:$C$58,0)),INDIRECT(H6&"_sam!BDU_forebyggende")*INDEX(PL!$F$11:$F$58,MATCH(H6,PL!$C$11:$C$58,0))))))) -> 0 | I16: =IF(I6="","",IF(I6='2024'!$B$2,(IF(alle_aar_valg=1,'2024'!BDU_forebyggende*INDEX(PL!$F$11:$F$58,MATCH(I6,PL!$C$11:$C$58,0)),"Kan ikke vises")),IF(alle_aar_valg=1,INDIRECT(I6&"!BDU_forebyggende")*INDEX(PL!$F$11:$F$58,MATCH(I6,PL!$C$11:$C$58,0)),IF(alle_aar_valg=2,INDIRECT(I6&"_sam!BDU_forebyggende_sam")*INDEX(PL!$F$11:$F$58,MATCH(I6,PL!$C$11:$C$58,0)),IF(alle_aar_valg=3,INDIRECT(I6&"_sam!BDU_forebyggende_reg")*INDEX(PL!$F$11:$F$58,MATCH(I6,PL!$C$11:$C$58,0)),INDIRECT(I6&"_sam!BDU_forebyggende")*INDEX(PL!$F$11:$F$58,MATCH(I6,PL!$C$11:$C$58,0))))))) -> 0 | J16: =IF(J6="","",IF(J6='2024'!$B$2,(IF(alle_aar_valg=1,'2024'!BDU_forebyggende*INDEX(PL!$F$11:$F$58,MATCH(J6,PL!$C$11:$C$58,0)),"Kan ikke vises")),IF(alle_aar_valg=1,INDIRECT(J6&"!BDU_forebyggende")*INDEX(PL!$F$11:$F$58,MATCH(J6,PL!$C$11:$C$58,0)),IF(alle_aar_valg=2,INDIRECT(J6&"_sam!BDU_forebyggende_sam")*INDEX(PL!$F$11:$F$58,MATCH(J6,PL!$C$11:$C$58,0)),IF(alle_aar_valg=3,INDIRECT(J6&"_sam!BDU_forebyggende_reg")*INDEX(PL!$F$11:$F$58,MATCH(J6,PL!$C$11:$C$58,0)),INDIRECT(J6&"_sam!BDU_forebyggende")*INDEX(PL!$F$11:$F$58,MATCH(J6,PL!$C$11:$C$58,0))))))) -> 0 | K16: =IF(K6="","",IF(K6='2024'!$B$2,(IF(alle_aar_valg=1,'2024'!BDU_forebyggende*INDEX(PL!$F$11:$F$58,MATCH(K6,PL!$C$11:$C$58,0)),"Kan ikke vises")),IF(alle_aar_valg=1,INDIRECT(K6&"!BDU_forebyggende")*INDEX(PL!$F$11:$F$58,MATCH(K6,PL!$C$11:$C$58,0)),IF(alle_aar_valg=2,INDIRECT(K6&"_sam!BDU_forebyggende_sam")*INDEX(PL!$F$11:$F$58,MATCH(K6,PL!$C$11:$C$58,0)),IF(alle_aar_valg=3,INDIRECT(K6&"_sam!BDU_forebyggende_reg")*INDEX(PL!$F$11:$F$58,MATCH(K6,PL!$C$11:$C$58,0)),INDIRECT(K6&"_sam!BDU_forebyggende")*INDEX(PL!$F$11:$F$58,MATCH(K6,PL!$C$11:$C$58,0))))))) -> 0 | L16: =IF(L6="","",IF(L6='2024'!$B$2,(IF(alle_aar_valg=1,'2024'!BDU_forebyggende*INDEX(PL!$F$11:$F$58,MATCH(L6,PL!$C$11:$C$58,0)),"Kan ikke vises")),IF(alle_aar_valg=1,INDIRECT(L6&"!BDU_forebyggende")*INDEX(PL!$F$11:$F$58,MATCH(L6,PL!$C$11:$C$58,0)),IF(alle_aar_valg=2,INDIRECT(L6&"_sam!BDU_forebyggende_sam")*INDEX(PL!$F$11:$F$58,MATCH(L6,PL!$C$11:$C$58,0)),IF(alle_aar_valg=3,INDIRECT(L6&"_sam!BDU_forebyggende_reg")*INDEX(PL!$F$11:$F$58,MATCH(L6,PL!$C$11:$C$58,0)),INDIRECT(L6&"_sam!BDU_forebyggende")*INDEX(PL!$F$11:$F$58,MATCH(L6,PL!$C$11:$C$58,0))))))) -> 5.804447516 | M16: =IF(M6="","",IF(M6='2024'!$B$2,(IF(alle_aar_valg=1,'2024'!BDU_forebyggende*INDEX(PL!$F$11:$F$58,MATCH(M6,PL!$C$11:$C$58,0)),"Kan ikke vises")),IF(alle_aar_valg=1,INDIRECT(M6&"!BDU_forebyggende")*INDEX(PL!$F$11:$F$58,MATCH(M6,PL!$C$11:$C$58,0)),IF(alle_aar_valg=2,INDIRECT(M6&"_sam!BDU_forebyggende_sam")*INDEX(PL!$F$11:$F$58,MATCH(M6,PL!$C$11:$C$58,0)),IF(alle_aar_valg=3,INDIRECT(M6&"_sam!BDU_forebyggende_reg")*INDEX(PL!$F$11:$F$58,MATCH(M6,PL!$C$11:$C$58,0)),INDIRECT(M6&"_sam!BDU_forebyggende")*INDEX(PL!$F$11:$F$58,MATCH(M6,PL!$C$11:$C$58,0))))))) -> 1674.688488 | N16: =IF(N6="","",IF(N6='2024'!$B$2,(IF(alle_aar_valg=1,'2024'!BDU_forebyggende*INDEX(PL!$F$11:$F$58,MATCH(N6,PL!$C$11:$C$58,0)),"Kan ikke vises")),IF(alle_aar_valg=1,INDIRECT(N6&"!BDU_forebyggende")*INDEX(PL!$F$11:$F$58,MATCH(N6,PL!$C$11:$C$58,0)),IF(alle_aar_valg=2,INDIRECT(N6&"_sam!BDU_forebyggende_sam")*INDEX(PL!$F$11:$F$58,MATCH(N6,PL!$C$11:$C$58,0)),IF(alle_aar_valg=3,INDIRECT(N6&"_sam!BDU_forebyggende_reg")*INDEX(PL!$F$11:$F$58,MATCH(N6,PL!$C$11:$C$58,0)),INDIRECT(N6&"_sam!BDU_forebyggende")*INDEX(PL!$F$11:$F$58,MATCH(N6,PL!$C$11:$C$58,0))))))) -> 1214.593662 | O16: =IF(O6="","",IF(O6='2024'!$B$2,(IF(alle_aar_valg=1,'2024'!BDU_forebyggende*INDEX(PL!$F$11:$F$58,MATCH(O6,PL!$C$11:$C$58,0)),"Kan ikke vises")),IF(alle_aar_valg=1,INDIRECT(O6&"!BDU_forebyggende")*INDEX(PL!$F$11:$F$58,MATCH(O6,PL!$C$11:$C$58,0)),IF(alle_aar_valg=2,INDIRECT(O6&"_sam!BDU_forebyggende_sam")*INDEX(PL!$F$11:$F$58,MATCH(O6,PL!$C$11:$C$58,0)),IF(alle_aar_valg=3,INDIRECT(O6&"_sam!BDU_forebyggende_reg")*INDEX(PL!$F$11:$F$58,MATCH(O6,PL!$C$11:$C$58,0)),INDIRECT(O6&"_sam!BDU_forebyggende")*INDEX(PL!$F$11:$F$58,MATCH(O6,PL!$C$11:$C$58,0))))))) -> 1856.293353 | P16: =IF(P6="","",IF(P6='2024'!$B$2,(IF(alle_aar_valg=1,'2024'!BDU_forebyggende*INDEX(PL!$F$11:$F$58,MATCH(P6,PL!$C$11:$C$58,0)),"Kan ikke vises")),IF(alle_aar_valg=1,INDIRECT(P6&"!BDU_forebyggende")*INDEX(PL!$F$11:$F$58,MATCH(P6,PL!$C$11:$C$58,0)),IF(alle_aar_valg=2,INDIRECT(P6&"_sam!BDU_forebyggende_sam")*INDEX(PL!$F$11:$F$58,MATCH(P6,PL!$C$11:$C$58,0)),IF(alle_aar_valg=3,INDIRECT(P6&"_sam!BDU_forebyggende_reg")*INDEX(PL!$F$11:$F$58,MATCH(P6,PL!$C$11:$C$58,0)),INDIRECT(P6&"_sam!BDU_forebyggende")*INDEX(PL!$F$11:$F$58,MATCH(P6,PL!$C$11:$C$58,0))))))) -> 1392.568157 | Q16: =IF(Q6="","",IF(Q6='2024'!$B$2,(IF(alle_aar_valg=1,'2024'!BDU_forebyggende*INDEX(PL!$F$11:$F$58,MATCH(Q6,PL!$C$11:$C$58,0)),"Kan ikke vises")),IF(alle_aar_valg=1,INDIRECT(Q6&"!BDU_forebyggende")*INDEX(PL!$F$11:$F$58,MATCH(Q6,PL!$C$11:$C$58,0)),IF(alle_aar_valg=2,INDIRECT(Q6&"_sam!BDU_forebyggende_sam")*INDEX(PL!$F$11:$F$58,MATCH(Q6,PL!$C$11:$C$58,0)),IF(alle_aar_valg=3,INDIRECT(Q6&"_sam!BDU_forebyggende_reg")*INDEX(PL!$F$11:$F$58,MATCH(Q6,PL!$C$11:$C$58,0)),INDIRECT(Q6&"_sam!BDU_forebyggende")*INDEX(PL!$F$11:$F$58,MATCH(Q6,PL!$C$11:$C$58,0))))))) -> 1106.545368 | R16: =IF(R6="","",IF(R6='2024'!$B$2,(IF(alle_aar_valg=1,'2024'!BDU_forebyggende*INDEX(PL!$F$11:$F$58,MATCH(R6,PL!$C$11:$C$58,0)),"Kan ikke vises")),IF(alle_aar_valg=1,INDIRECT(R6&"!BDU_forebyggende")*INDEX(PL!$F$11:$F$58,MATCH(R6,PL!$C$11:$C$58,0)),IF(alle_aar_valg=2,INDIRECT(R6&"_sam!BDU_forebyggende_sam")*INDEX(PL!$F$11:$F$58,MATCH(R6,PL!$C$11:$C$58,0)),IF(alle_aar_valg=3,INDIRECT(R6&"_sam!BDU_forebyggende_reg")*INDEX(PL!$F$11:$F$58,MATCH(R6,PL!$C$11:$C$58,0)),INDIRECT(R6&"_sam!BDU_forebyggende")*INDEX(PL!$F$11:$F$58,MATCH(R6,PL!$C$11:$C$58,0))))))) -> 1628.352 | S16: =IF(S6="","",IF(S6='2024'!$B$2,(IF(alle_aar_valg=1,'2024'!BDU_forebyggende*INDEX(PL!$F$11:$F$58,MATCH(S6,PL!$C$11:$C$58,0)),"Kan ikke vises")),IF(alle_aar_valg=1,INDIRECT(S6&"!BDU_forebyggende")*INDEX(PL!$F$11:$F$58,MATCH(S6,PL!$C$11:$C$58,0)),IF(alle_aar_valg=2,INDIRECT(S6&"_sam!BDU_forebyggende_sam")*INDEX(PL!$F$11:$F$58,MATCH(S6,PL!$C$11:$C$58,0)),IF(alle_aar_valg=3,INDIRECT(S6&"_sam!BDU_forebyggende_reg")*INDEX(PL!$F$11:$F$58,MATCH(S6,PL!$C$11:$C$58,0)),INDIRECT(S6&"_sam!BDU_forebyggende")*INDEX(PL!$F$11:$F$58,MATCH(S6,PL!$C$11:$C$58,0))))))) -> 1516 | T16: =IF(T6="","",IF(T6='2024'!$B$2,(IF(alle_aar_valg=1,'2024'!BDU_forebyggende*INDEX(PL!$F$11:$F$58,MATCH(T6,PL!$C$11:$C$58,0)),"Kan ikke vises")),IF(alle_aar_valg=1,INDIRECT(T6&"!BDU_forebyggende")*INDEX(PL!$F$11:$F$58,MATCH(T6,PL!$C$11:$C$58,0)),IF(alle_aar_valg=2,INDIRECT(T6&"_sam!BDU_forebyggende_sam")*INDEX(PL!$F$11:$F$58,MATCH(T6,PL!$C$11:$C$58,0)),IF(alle_aar_valg=3,INDIRECT(T6&"_sam!BDU_forebyggende_reg")*INDEX(PL!$F$11:$F$58,MATCH(T6,PL!$C$11:$C$58,0)),INDIRECT(T6&"_sam!BDU_forebyggende")*INDEX(PL!$F$11:$F$58,MATCH(T6,PL!$C$11:$C$58,0))))))) ->  | U16: =IF(U6="","",IF(U6='2024'!$B$2,(IF(alle_aar_valg=1,'2024'!BDU_forebyggende*INDEX(PL!$F$11:$F$58,MATCH(U6,PL!$C$11:$C$58,0)),"Kan ikke vises")),IF(alle_aar_valg=1,INDIRECT(U6&"!BDU_forebyggende")*INDEX(PL!$F$11:$F$58,MATCH(U6,PL!$C$11:$C$58,0)),IF(alle_aar_valg=2,INDIRECT(U6&"_sam!BDU_forebyggende_sam")*INDEX(PL!$F$11:$F$58,MATCH(U6,PL!$C$11:$C$58,0)),IF(alle_aar_valg=3,INDIRECT(U6&"_sam!BDU_forebyggende_reg")*INDEX(PL!$F$11:$F$58,MATCH(U6,PL!$C$11:$C$58,0)),INDIRECT(U6&"_sam!BDU_forebyggende")*INDEX(PL!$F$11:$F$58,MATCH(U6,PL!$C$11:$C$58,0))))))) ->  | V16: =IF(V6="","",IF(V6='2024'!$B$2,(IF(alle_aar_valg=1,'2024'!BDU_forebyggende*INDEX(PL!$F$11:$F$58,MATCH(V6,PL!$C$11:$C$58,0)),"Kan ikke vises")),IF(alle_aar_valg=1,INDIRECT(V6&"!BDU_forebyggende")*INDEX(PL!$F$11:$F$58,MATCH(V6,PL!$C$11:$C$58,0)),IF(alle_aar_valg=2,INDIRECT(V6&"_sam!BDU_forebyggende_sam")*INDEX(PL!$F$11:$F$58,MATCH(V6,PL!$C$11:$C$58,0)),IF(alle_aar_valg=3,INDIRECT(V6&"_sam!BDU_forebyggende_reg")*INDEX(PL!$F$11:$F$58,MATCH(V6,PL!$C$11:$C$58,0)),INDIRECT(V6&"_sam!BDU_forebyggende")*INDEX(PL!$F$11:$F$58,MATCH(V6,PL!$C$11:$C$58,0))))))) ->  | W16: =IF(W6="","",IF(W6='2024'!$B$2,(IF(alle_aar_valg=1,'2024'!BDU_forebyggende*INDEX(PL!$F$11:$F$58,MATCH(W6,PL!$C$11:$C$58,0)),"Kan ikke vises")),IF(alle_aar_valg=1,INDIRECT(W6&"!BDU_forebyggende")*INDEX(PL!$F$11:$F$58,MATCH(W6,PL!$C$11:$C$58,0)),IF(alle_aar_valg=2,INDIRECT(W6&"_sam!BDU_forebyggende_sam")*INDEX(PL!$F$11:$F$58,MATCH(W6,PL!$C$11:$C$58,0)),IF(alle_aar_valg=3,INDIRECT(W6&"_sam!BDU_forebyggende_reg")*INDEX(PL!$F$11:$F$58,MATCH(W6,PL!$C$11:$C$58,0)),INDIRECT(W6&"_sam!BDU_forebyggende")*INDEX(PL!$F$11:$F$58,MATCH(W6,PL!$C$11:$C$58,0))))))) -> 
B17: Trin 3: Hjemmebaserede foranstaltninger | C17: =IF(C$6="","",IF(C6='2024'!$B$2,(IF(alle_aar_valg=1,'2024'!BDU_hjemme*INDEX(PL!$F$11:$F$58,MATCH(C6,PL!$C$11:$C$58,0)),"Kan ikke vises")),IF(alle_aar_valg=1,INDIRECT(C$6&"!BDU_hjemme")*INDEX(PL!$F$11:$F$58,MATCH(C6,PL!$C$11:$C$58,0)),IF(alle_aar_valg=2,INDIRECT(C$6&"_sam!BDU_hjemme_sam")*INDEX(PL!$F$11:$F$58,MATCH(C6,PL!$C$11:$C$58,0)),IF(alle_aar_valg=3,INDIRECT(C$6&"_sam!BDU_hjemme_reg")*INDEX(PL!$F$11:$F$58,MATCH(C6,PL!$C$11:$C$58,0)),INDIRECT(C$6&"_sam!BDU_hjemme")*INDEX(PL!$F$11:$F$58,MATCH(C6,PL!$C$11:$C$58,0))))))) -> 17631.0173 | D17: =IF(D$6="","",IF(D6='2024'!$B$2,(IF(alle_aar_valg=1,'2024'!BDU_hjemme*INDEX(PL!$F$11:$F$58,MATCH(D6,PL!$C$11:$C$58,0)),"Kan ikke vises")),IF(alle_aar_valg=1,INDIRECT(D$6&"!BDU_hjemme")*INDEX(PL!$F$11:$F$58,MATCH(D6,PL!$C$11:$C$58,0)),IF(alle_aar_valg=2,INDIRECT(D$6&"_sam!BDU_hjemme_sam")*INDEX(PL!$F$11:$F$58,MATCH(D6,PL!$C$11:$C$58,0)),IF(alle_aar_valg=3,INDIRECT(D$6&"_sam!BDU_hjemme_reg")*INDEX(PL!$F$11:$F$58,MATCH(D6,PL!$C$11:$C$58,0)),INDIRECT(D$6&"_sam!BDU_hjemme")*INDEX(PL!$F$11:$F$58,MATCH(D6,PL!$C$11:$C$58,0))))))) -> 17134.8048 | E17: =IF(E$6="","",IF(E6='2024'!$B$2,(IF(alle_aar_valg=1,'2024'!BDU_hjemme*INDEX(PL!$F$11:$F$58,MATCH(E6,PL!$C$11:$C$58,0)),"Kan ikke vises")),IF(alle_aar_valg=1,INDIRECT(E$6&"!BDU_hjemme")*INDEX(PL!$F$11:$F$58,MATCH(E6,PL!$C$11:$C$58,0)),IF(alle_aar_valg=2,INDIRECT(E$6&"_sam!BDU_hjemme_sam")*INDEX(PL!$F$11:$F$58,MATCH(E6,PL!$C$11:$C$58,0)),IF(alle_aar_valg=3,INDIRECT(E$6&"_sam!BDU_hjemme_reg")*INDEX(PL!$F$11:$F$58,MATCH(E6,PL!$C$11:$C$58,0)),INDIRECT(E$6&"_sam!BDU_hjemme")*INDEX(PL!$F$11:$F$58,MATCH(E6,PL!$C$11:$C$58,0))))))) -> 13949.8401 | F17: =IF(F$6="","",IF(F6='2024'!$B$2,(IF(alle_aar_valg=1,'2024'!BDU_hjemme*INDEX(PL!$F$11:$F$58,MATCH(F6,PL!$C$11:$C$58,0)),"Kan ikke vises")),IF(alle_aar_valg=1,INDIRECT(F$6&"!BDU_hjemme")*INDEX(PL!$F$11:$F$58,MATCH(F6,PL!$C$11:$C$58,0)),IF(alle_aar_valg=2,INDIRECT(F$6&"_sam!BDU_hjemme_sam")*INDEX(PL!$F$11:$F$58,MATCH(F6,PL!$C$11:$C$58,0)),IF(alle_aar_valg=3,INDIRECT(F$6&"_sam!BDU_hjemme_reg")*INDEX(PL!$F$11:$F$58,MATCH(F6,PL!$C$11:$C$58,0)),INDIRECT(F$6&"_sam!BDU_hjemme")*INDEX(PL!$F$11:$F$58,MATCH(F6,PL!$C$11:$C$58,0))))))) -> 13866.09951 | G17: =IF(G$6="","",IF(G6='2024'!$B$2,(IF(alle_aar_valg=1,'2024'!BDU_hjemme*INDEX(PL!$F$11:$F$58,MATCH(G6,PL!$C$11:$C$58,0)),"Kan ikke vises")),IF(alle_aar_valg=1,INDIRECT(G$6&"!BDU_hjemme")*INDEX(PL!$F$11:$F$58,MATCH(G6,PL!$C$11:$C$58,0)),IF(alle_aar_valg=2,INDIRECT(G$6&"_sam!BDU_hjemme_sam")*INDEX(PL!$F$11:$F$58,MATCH(G6,PL!$C$11:$C$58,0)),IF(alle_aar_valg=3,INDIRECT(G$6&"_sam!BDU_hjemme_reg")*INDEX(PL!$F$11:$F$58,MATCH(G6,PL!$C$11:$C$58,0)),INDIRECT(G$6&"_sam!BDU_hjemme")*INDEX(PL!$F$11:$F$58,MATCH(G6,PL!$C$11:$C$58,0))))))) -> 12587.84378 | H17: =IF(H$6="","",IF(H6='2024'!$B$2,(IF(alle_aar_valg=1,'2024'!BDU_hjemme*INDEX(PL!$F$11:$F$58,MATCH(H6,PL!$C$11:$C$58,0)),"Kan ikke vises")),IF(alle_aar_valg=1,INDIRECT(H$6&"!BDU_hjemme")*INDEX(PL!$F$11:$F$58,MATCH(H6,PL!$C$11:$C$58,0)),IF(alle_aar_valg=2,INDIRECT(H$6&"_sam!BDU_hjemme_sam")*INDEX(PL!$F$11:$F$58,MATCH(H6,PL!$C$11:$C$58,0)),IF(alle_aar_valg=3,INDIRECT(H$6&"_sam!BDU_hjemme_reg")*INDEX(PL!$F$11:$F$58,MATCH(H6,PL!$C$11:$C$58,0)),INDIRECT(H$6&"_sam!BDU_hjemme")*INDEX(PL!$F$11:$F$58,MATCH(H6,PL!$C$11:$C$58,0))))))) -> 8947.008919 | I17: =IF(I$6="","",IF(I6='2024'!$B$2,(IF(alle_aar_valg=1,'2024'!BDU_hjemme*INDEX(PL!$F$11:$F$58,MATCH(I6,PL!$C$11:$C$58,0)),"Kan ikke vises")),IF(alle_aar_valg=1,INDIRECT(I$6&"!BDU_hjemme")*INDEX(PL!$F$11:$F$58,MATCH(I6,PL!$C$11:$C$58,0)),IF(alle_aar_valg=2,INDIRECT(I$6&"_sam!BDU_hjemme_sam")*INDEX(PL!$F$11:$F$58,MATCH(I6,PL!$C$11:$C$58,0)),IF(alle_aar_valg=3,INDIRECT(I$6&"_sam!BDU_hjemme_reg")*INDEX(PL!$F$11:$F$58,MATCH(I6,PL!$C$11:$C$58,0)),INDIRECT(I$6&"_sam!BDU_hjemme")*INDEX(PL!$F$11:$F$58,MATCH(I6,PL!$C$11:$C$58,0))))))) -> 13628.34565 | J17: =IF(J$6="","",IF(J6='2024'!$B$2,(IF(alle_aar_valg=1,'2024'!BDU_hjemme*INDEX(PL!$F$11:$F$58,MATCH(J6,PL!$C$11:$C$58,0)),"Kan ikke vises")),IF(alle_aar_valg=1,INDIRECT(J$6&"!BDU_hjemme")*INDEX(PL!$F$11:$F$58,MATCH(J6,PL!$C$11:$C$58,0)),IF(alle_aar_valg=2,INDIRECT(J$6&"_sam!BDU_hjemme_sam")*INDEX(PL!$F$11:$F$58,MATCH(J6,PL!$C$11:$C$58,0)),IF(alle_aar_valg=3,INDIRECT(J$6&"_sam!BDU_hjemme_reg")*INDEX(PL!$F$11:$F$58,MATCH(J6,PL!$C$11:$C$58,0)),INDIRECT(J$6&"_sam!BDU_hjemme")*INDEX(PL!$F$11:$F$58,MATCH(J6,PL!$C$11:$C$58,0))))))) -> 12815.91881 | K17: =IF(K$6="","",IF(K6='2024'!$B$2,(IF(alle_aar_valg=1,'2024'!BDU_hjemme*INDEX(PL!$F$11:$F$58,MATCH(K6,PL!$C$11:$C$58,0)),"Kan ikke vises")),IF(alle_aar_valg=1,INDIRECT(K$6&"!BDU_hjemme")*INDEX(PL!$F$11:$F$58,MATCH(K6,PL!$C$11:$C$58,0)),IF(alle_aar_valg=2,INDIRECT(K$6&"_sam!BDU_hjemme_sam")*INDEX(PL!$F$11:$F$58,MATCH(K6,PL!$C$11:$C$58,0)),IF(alle_aar_valg=3,INDIRECT(K$6&"_sam!BDU_hjemme_reg")*INDEX(PL!$F$11:$F$58,MATCH(K6,PL!$C$11:$C$58,0)),INDIRECT(K$6&"_sam!BDU_hjemme")*INDEX(PL!$F$11:$F$58,MATCH(K6,PL!$C$11:$C$58,0))))))) -> 12204.6078 | L17: =IF(L$6="","",IF(L6='2024'!$B$2,(IF(alle_aar_valg=1,'2024'!BDU_hjemme*INDEX(PL!$F$11:$F$58,MATCH(L6,PL!$C$11:$C$58,0)),"Kan ikke vises")),IF(alle_aar_valg=1,INDIRECT(L$6&"!BDU_hjemme")*INDEX(PL!$F$11:$F$58,MATCH(L6,PL!$C$11:$C$58,0)),IF(alle_aar_valg=2,INDIRECT(L$6&"_sam!BDU_hjemme_sam")*INDEX(PL!$F$11:$F$58,MATCH(L6,PL!$C$11:$C$58,0)),IF(alle_aar_valg=3,INDIRECT(L$6&"_sam!BDU_hjemme_reg")*INDEX(PL!$F$11:$F$58,MATCH(L6,PL!$C$11:$C$58,0)),INDIRECT(L$6&"_sam!BDU_hjemme")*INDEX(PL!$F$11:$F$58,MATCH(L6,PL!$C$11:$C$58,0))))))) -> 12990.35354 | M17: =IF(M$6="","",IF(M6='2024'!$B$2,(IF(alle_aar_valg=1,'2024'!BDU_hjemme*INDEX(PL!$F$11:$F$58,MATCH(M6,PL!$C$11:$C$58,0)),"Kan ikke vises")),IF(alle_aar_valg=1,INDIRECT(M$6&"!BDU_hjemme")*INDEX(PL!$F$11:$F$58,MATCH(M6,PL!$C$11:$C$58,0)),IF(alle_aar_valg=2,INDIRECT(M$6&"_sam!BDU_hjemme_sam")*INDEX(PL!$F$11:$F$58,MATCH(M6,PL!$C$11:$C$58,0)),IF(alle_aar_valg=3,INDIRECT(M$6&"_sam!BDU_hjemme_reg")*INDEX(PL!$F$11:$F$58,MATCH(M6,PL!$C$11:$C$58,0)),INDIRECT(M$6&"_sam!BDU_hjemme")*INDEX(PL!$F$11:$F$58,MATCH(M6,PL!$C$11:$C$58,0))))))) -> 17486.25416 | N17: =IF(N$6="","",IF(N6='2024'!$B$2,(IF(alle_aar_valg=1,'2024'!BDU_hjemme*INDEX(PL!$F$11:$F$58,MATCH(N6,PL!$C$11:$C$58,0)),"Kan ikke vises")),IF(alle_aar_valg=1,INDIRECT(N$6&"!BDU_hjemme")*INDEX(PL!$F$11:$F$58,MATCH(N6,PL!$C$11:$C$58,0)),IF(alle_aar_valg=2,INDIRECT(N$6&"_sam!BDU_hjemme_sam")*INDEX(PL!$F$11:$F$58,MATCH(N6,PL!$C$11:$C$58,0)),IF(alle_aar_valg=3,INDIRECT(N$6&"_sam!BDU_hjemme_reg")*INDEX(PL!$F$11:$F$58,MATCH(N6,PL!$C$11:$C$58,0)),INDIRECT(N$6&"_sam!BDU_hjemme")*INDEX(PL!$F$11:$F$58,MATCH(N6,PL!$C$11:$C$58,0))))))) -> 20766.17774 | O17: =IF(O$6="","",IF(O6='2024'!$B$2,(IF(alle_aar_valg=1,'2024'!BDU_hjemme*INDEX(PL!$F$11:$F$58,MATCH(O6,PL!$C$11:$C$58,0)),"Kan ikke vises")),IF(alle_aar_valg=1,INDIRECT(O$6&"!BDU_hjemme")*INDEX(PL!$F$11:$F$58,MATCH(O6,PL!$C$11:$C$58,0)),IF(alle_aar_valg=2,INDIRECT(O$6&"_sam!BDU_hjemme_sam")*INDEX(PL!$F$11:$F$58,MATCH(O6,PL!$C$11:$C$58,0)),IF(alle_aar_valg=3,INDIRECT(O$6&"_sam!BDU_hjemme_reg")*INDEX(PL!$F$11:$F$58,MATCH(O6,PL!$C$11:$C$58,0)),INDIRECT(O$6&"_sam!BDU_hjemme")*INDEX(PL!$F$11:$F$58,MATCH(O6,PL!$C$11:$C$58,0))))))) -> 16766.41349 | P17: =IF(P$6="","",IF(P6='2024'!$B$2,(IF(alle_aar_valg=1,'2024'!BDU_hjemme*INDEX(PL!$F$11:$F$58,MATCH(P6,PL!$C$11:$C$58,0)),"Kan ikke vises")),IF(alle_aar_valg=1,INDIRECT(P$6&"!BDU_hjemme")*INDEX(PL!$F$11:$F$58,MATCH(P6,PL!$C$11:$C$58,0)),IF(alle_aar_valg=2,INDIRECT(P$6&"_sam!BDU_hjemme_sam")*INDEX(PL!$F$11:$F$58,MATCH(P6,PL!$C$11:$C$58,0)),IF(alle_aar_valg=3,INDIRECT(P$6&"_sam!BDU_hjemme_reg")*INDEX(PL!$F$11:$F$58,MATCH(P6,PL!$C$11:$C$58,0)),INDIRECT(P$6&"_sam!BDU_hjemme")*INDEX(PL!$F$11:$F$58,MATCH(P6,PL!$C$11:$C$58,0))))))) -> 22590.5501 | Q17: =IF(Q$6="","",IF(Q6='2024'!$B$2,(IF(alle_aar_valg=1,'2024'!BDU_hjemme*INDEX(PL!$F$11:$F$58,MATCH(Q6,PL!$C$11:$C$58,0)),"Kan ikke vises")),IF(alle_aar_valg=1,INDIRECT(Q$6&"!BDU_hjemme")*INDEX(PL!$F$11:$F$58,MATCH(Q6,PL!$C$11:$C$58,0)),IF(alle_aar_valg=2,INDIRECT(Q$6&"_sam!BDU_hjemme_sam")*INDEX(PL!$F$11:$F$58,MATCH(Q6,PL!$C$11:$C$58,0)),IF(alle_aar_valg=3,INDIRECT(Q$6&"_sam!BDU_hjemme_reg")*INDEX(PL!$F$11:$F$58,MATCH(Q6,PL!$C$11:$C$58,0)),INDIRECT(Q$6&"_sam!BDU_hjemme")*INDEX(PL!$F$11:$F$58,MATCH(Q6,PL!$C$11:$C$58,0))))))) -> 22711.89698 | R17: =IF(R$6="","",IF(R6='2024'!$B$2,(IF(alle_aar_valg=1,'2024'!BDU_hjemme*INDEX(PL!$F$11:$F$58,MATCH(R6,PL!$C$11:$C$58,0)),"Kan ikke vises")),IF(alle_aar_valg=1,INDIRECT(R$6&"!BDU_hjemme")*INDEX(PL!$F$11:$F$58,MATCH(R6,PL!$C$11:$C$58,0)),IF(alle_aar_valg=2,INDIRECT(R$6&"_sam!BDU_hjemme_sam")*INDEX(PL!$F$11:$F$58,MATCH(R6,PL!$C$11:$C$58,0)),IF(alle_aar_valg=3,INDIRECT(R$6&"_sam!BDU_hjemme_reg")*INDEX(PL!$F$11:$F$58,MATCH(R6,PL!$C$11:$C$58,0)),INDIRECT(R$6&"_sam!BDU_hjemme")*INDEX(PL!$F$11:$F$58,MATCH(R6,PL!$C$11:$C$58,0))))))) -> 29471.732 | S17: =IF(S$6="","",IF(S6='2024'!$B$2,(IF(alle_aar_valg=1,'2024'!BDU_hjemme*INDEX(PL!$F$11:$F$58,MATCH(S6,PL!$C$11:$C$58,0)),"Kan ikke vises")),IF(alle_aar_valg=1,INDIRECT(S$6&"!BDU_hjemme")*INDEX(PL!$F$11:$F$58,MATCH(S6,PL!$C$11:$C$58,0)),IF(alle_aar_valg=2,INDIRECT(S$6&"_sam!BDU_hjemme_sam")*INDEX(PL!$F$11:$F$58,MATCH(S6,PL!$C$11:$C$58,0)),IF(alle_aar_valg=3,INDIRECT(S$6&"_sam!BDU_hjemme_reg")*INDEX(PL!$F$11:$F$58,MATCH(S6,PL!$C$11:$C$58,0)),INDIRECT(S$6&"_sam!BDU_hjemme")*INDEX(PL!$F$11:$F$58,MATCH(S6,PL!$C$11:$C$58,0))))))) -> 35536 | T17: =IF(T$6="","",IF(T6='2024'!$B$2,(IF(alle_aar_valg=1,'2024'!BDU_hjemme*INDEX(PL!$F$11:$F$58,MATCH(T6,PL!$C$11:$C$58,0)),"Kan ikke vises")),IF(alle_aar_valg=1,INDIRECT(T$6&"!BDU_hjemme")*INDEX(PL!$F$11:$F$58,MATCH(T6,PL!$C$11:$C$58,0)),IF(alle_aar_valg=2,INDIRECT(T$6&"_sam!BDU_hjemme_sam")*INDEX(PL!$F$11:$F$58,MATCH(T6,PL!$C$11:$C$58,0)),IF(alle_aar_valg=3,INDIRECT(T$6&"_sam!BDU_hjemme_reg")*INDEX(PL!$F$11:$F$58,MATCH(T6,PL!$C$11:$C$58,0)),INDIRECT(T$6&"_sam!BDU_hjemme")*INDEX(PL!$F$11:$F$58,MATCH(T6,PL!$C$11:$C$58,0))))))) ->  | U17: =IF(U$6="","",IF(U6='2024'!$B$2,(IF(alle_aar_valg=1,'2024'!BDU_hjemme*INDEX(PL!$F$11:$F$58,MATCH(U6,PL!$C$11:$C$58,0)),"Kan ikke vises")),IF(alle_aar_valg=1,INDIRECT(U$6&"!BDU_hjemme")*INDEX(PL!$F$11:$F$58,MATCH(U6,PL!$C$11:$C$58,0)),IF(alle_aar_valg=2,INDIRECT(U$6&"_sam!BDU_hjemme_sam")*INDEX(PL!$F$11:$F$58,MATCH(U6,PL!$C$11:$C$58,0)),IF(alle_aar_valg=3,INDIRECT(U$6&"_sam!BDU_hjemme_reg")*INDEX(PL!$F$11:$F$58,MATCH(U6,PL!$C$11:$C$58,0)),INDIRECT(U$6&"_sam!BDU_hjemme")*INDEX(PL!$F$11:$F$58,MATCH(U6,PL!$C$11:$C$58,0))))))) ->  | V17: =IF(V$6="","",IF(V6='2024'!$B$2,(IF(alle_aar_valg=1,'2024'!BDU_hjemme*INDEX(PL!$F$11:$F$58,MATCH(V6,PL!$C$11:$C$58,0)),"Kan ikke vises")),IF(alle_aar_valg=1,INDIRECT(V$6&"!BDU_hjemme")*INDEX(PL!$F$11:$F$58,MATCH(V6,PL!$C$11:$C$58,0)),IF(alle_aar_valg=2,INDIRECT(V$6&"_sam!BDU_hjemme_sam")*INDEX(PL!$F$11:$F$58,MATCH(V6,PL!$C$11:$C$58,0)),IF(alle_aar_valg=3,INDIRECT(V$6&"_sam!BDU_hjemme_reg")*INDEX(PL!$F$11:$F$58,MATCH(V6,PL!$C$11:$C$58,0)),INDIRECT(V$6&"_sam!BDU_hjemme")*INDEX(PL!$F$11:$F$58,MATCH(V6,PL!$C$11:$C$58,0))))))) ->  | W17: =IF(W$6="","",IF(W6='2024'!$B$2,(IF(alle_aar_valg=1,'2024'!BDU_hjemme*INDEX(PL!$F$11:$F$58,MATCH(W6,PL!$C$11:$C$58,0)),"Kan ikke vises")),IF(alle_aar_valg=1,INDIRECT(W$6&"!BDU_hjemme")*INDEX(PL!$F$11:$F$58,MATCH(W6,PL!$C$11:$C$58,0)),IF(alle_aar_valg=2,INDIRECT(W$6&"_sam!BDU_hjemme_sam")*INDEX(PL!$F$11:$F$58,MATCH(W6,PL!$C$11:$C$58,0)),IF(alle_aar_valg=3,INDIRECT(W$6&"_sam!BDU_hjemme_reg")*INDEX(PL!$F$11:$F$58,MATCH(W6,PL!$C$11:$C$58,0)),INDIRECT(W$6&"_sam!BDU_hjemme")*INDEX(PL!$F$11:$F$58,MATCH(W6,PL!$C$11:$C$58,0))))))) -> 
B18: Trin 4: Slægt- eller netværkspleje | C18: =IF(C$6="","",IF(C6='2024'!$B$2,(IF(alle_aar_valg=1,'2024'!BDU_netværk*INDEX(PL!$F$11:$F$58,MATCH(C6,PL!$C$11:$C$58,0)),"Kan ikke vises")),IF(alle_aar_valg=1,INDIRECT(C$6&"!BDU_netværk")*INDEX(PL!$F$11:$F$58,MATCH(C6,PL!$C$11:$C$58,0)),IF(alle_aar_valg=2,INDIRECT(C$6&"_sam!BDU_netværk_sam")*INDEX(PL!$F$11:$F$58,MATCH(C6,PL!$C$11:$C$58,0)),IF(alle_aar_valg=3,INDIRECT(C$6&"_sam!BDU_netværk_reg")*INDEX(PL!$F$11:$F$58,MATCH(C6,PL!$C$11:$C$58,0)),INDIRECT(C$6&"_sam!BDU_netværk")*INDEX(PL!$F$11:$F$58,MATCH(C6,PL!$C$11:$C$58,0))))))) -> 0 | D18: =IF(D$6="","",IF(D6='2024'!$B$2,(IF(alle_aar_valg=1,'2024'!BDU_netværk*INDEX(PL!$F$11:$F$58,MATCH(D6,PL!$C$11:$C$58,0)),"Kan ikke vises")),IF(alle_aar_valg=1,INDIRECT(D$6&"!BDU_netværk")*INDEX(PL!$F$11:$F$58,MATCH(D6,PL!$C$11:$C$58,0)),IF(alle_aar_valg=2,INDIRECT(D$6&"_sam!BDU_netværk_sam")*INDEX(PL!$F$11:$F$58,MATCH(D6,PL!$C$11:$C$58,0)),IF(alle_aar_valg=3,INDIRECT(D$6&"_sam!BDU_netværk_reg")*INDEX(PL!$F$11:$F$58,MATCH(D6,PL!$C$11:$C$58,0)),INDIRECT(D$6&"_sam!BDU_netværk")*INDEX(PL!$F$11:$F$58,MATCH(D6,PL!$C$11:$C$58,0))))))) -> 0 | E18: =IF(E$6="","",IF(E6='2024'!$B$2,(IF(alle_aar_valg=1,'2024'!BDU_netværk*INDEX(PL!$F$11:$F$58,MATCH(E6,PL!$C$11:$C$58,0)),"Kan ikke vises")),IF(alle_aar_valg=1,INDIRECT(E$6&"!BDU_netværk")*INDEX(PL!$F$11:$F$58,MATCH(E6,PL!$C$11:$C$58,0)),IF(alle_aar_valg=2,INDIRECT(E$6&"_sam!BDU_netværk_sam")*INDEX(PL!$F$11:$F$58,MATCH(E6,PL!$C$11:$C$58,0)),IF(alle_aar_valg=3,INDIRECT(E$6&"_sam!BDU_netværk_reg")*INDEX(PL!$F$11:$F$58,MATCH(E6,PL!$C$11:$C$58,0)),INDIRECT(E$6&"_sam!BDU_netværk")*INDEX(PL!$F$11:$F$58,MATCH(E6,PL!$C$11:$C$58,0))))))) -> 0 | F18: =IF(F$6="","",IF(F6='2024'!$B$2,(IF(alle_aar_valg=1,'2024'!BDU_netværk*INDEX(PL!$F$11:$F$58,MATCH(F6,PL!$C$11:$C$58,0)),"Kan ikke vises")),IF(alle_aar_valg=1,INDIRECT(F$6&"!BDU_netværk")*INDEX(PL!$F$11:$F$58,MATCH(F6,PL!$C$11:$C$58,0)),IF(alle_aar_valg=2,INDIRECT(F$6&"_sam!BDU_netværk_sam")*INDEX(PL!$F$11:$F$58,MATCH(F6,PL!$C$11:$C$58,0)),IF(alle_aar_valg=3,INDIRECT(F$6&"_sam!BDU_netværk_reg")*INDEX(PL!$F$11:$F$58,MATCH(F6,PL!$C$11:$C$58,0)),INDIRECT(F$6&"_sam!BDU_netværk")*INDEX(PL!$F$11:$F$58,MATCH(F6,PL!$C$11:$C$58,0))))))) -> 0 | G18: =IF(G$6="","",IF(G6='2024'!$B$2,(IF(alle_aar_valg=1,'2024'!BDU_netværk*INDEX(PL!$F$11:$F$58,MATCH(G6,PL!$C$11:$C$58,0)),"Kan ikke vises")),IF(alle_aar_valg=1,INDIRECT(G$6&"!BDU_netværk")*INDEX(PL!$F$11:$F$58,MATCH(G6,PL!$C$11:$C$58,0)),IF(alle_aar_valg=2,INDIRECT(G$6&"_sam!BDU_netværk_sam")*INDEX(PL!$F$11:$F$58,MATCH(G6,PL!$C$11:$C$58,0)),IF(alle_aar_valg=3,INDIRECT(G$6&"_sam!BDU_netværk_reg")*INDEX(PL!$F$11:$F$58,MATCH(G6,PL!$C$11:$C$58,0)),INDIRECT(G$6&"_sam!BDU_netværk")*INDEX(PL!$F$11:$F$58,MATCH(G6,PL!$C$11:$C$58,0))))))) -> 0 | H18: =IF(H$6="","",IF(H6='2024'!$B$2,(IF(alle_aar_valg=1,'2024'!BDU_netværk*INDEX(PL!$F$11:$F$58,MATCH(H6,PL!$C$11:$C$58,0)),"Kan ikke vises")),IF(alle_aar_valg=1,INDIRECT(H$6&"!BDU_netværk")*INDEX(PL!$F$11:$F$58,MATCH(H6,PL!$C$11:$C$58,0)),IF(alle_aar_valg=2,INDIRECT(H$6&"_sam!BDU_netværk_sam")*INDEX(PL!$F$11:$F$58,MATCH(H6,PL!$C$11:$C$58,0)),IF(alle_aar_valg=3,INDIRECT(H$6&"_sam!BDU_netværk_reg")*INDEX(PL!$F$11:$F$58,MATCH(H6,PL!$C$11:$C$58,0)),INDIRECT(H$6&"_sam!BDU_netværk")*INDEX(PL!$F$11:$F$58,MATCH(H6,PL!$C$11:$C$58,0))))))) -> 0 | I18: =IF(I$6="","",IF(I6='2024'!$B$2,(IF(alle_aar_valg=1,'2024'!BDU_netværk*INDEX(PL!$F$11:$F$58,MATCH(I6,PL!$C$11:$C$58,0)),"Kan ikke vises")),IF(alle_aar_valg=1,INDIRECT(I$6&"!BDU_netværk")*INDEX(PL!$F$11:$F$58,MATCH(I6,PL!$C$11:$C$58,0)),IF(alle_aar_valg=2,INDIRECT(I$6&"_sam!BDU_netværk_sam")*INDEX(PL!$F$11:$F$58,MATCH(I6,PL!$C$11:$C$58,0)),IF(alle_aar_valg=3,INDIRECT(I$6&"_sam!BDU_netværk_reg")*INDEX(PL!$F$11:$F$58,MATCH(I6,PL!$C$11:$C$58,0)),INDIRECT(I$6&"_sam!BDU_netværk")*INDEX(PL!$F$11:$F$58,MATCH(I6,PL!$C$11:$C$58,0))))))) -> 703.2032702 | J18: =IF(J$6="","",IF(J6='2024'!$B$2,(IF(alle_aar_valg=1,'2024'!BDU_netværk*INDEX(PL!$F$11:$F$58,MATCH(J6,PL!$C$11:$C$58,0)),"Kan ikke vises")),IF(alle_aar_valg=1,INDIRECT(J$6&"!BDU_netværk")*INDEX(PL!$F$11:$F$58,MATCH(J6,PL!$C$11:$C$58,0)),IF(alle_aar_valg=2,INDIRECT(J$6&"_sam!BDU_netværk_sam")*INDEX(PL!$F$11:$F$58,MATCH(J6,PL!$C$11:$C$58,0)),IF(alle_aar_valg=3,INDIRECT(J$6&"_sam!BDU_netværk_reg")*INDEX(PL!$F$11:$F$58,MATCH(J6,PL!$C$11:$C$58,0)),INDIRECT(J$6&"_sam!BDU_netværk")*INDEX(PL!$F$11:$F$58,MATCH(J6,PL!$C$11:$C$58,0))))))) -> 1384.601455 | K18: =IF(K$6="","",IF(K6='2024'!$B$2,(IF(alle_aar_valg=1,'2024'!BDU_netværk*INDEX(PL!$F$11:$F$58,MATCH(K6,PL!$C$11:$C$58,0)),"Kan ikke vises")),IF(alle_aar_valg=1,INDIRECT(K$6&"!BDU_netværk")*INDEX(PL!$F$11:$F$58,MATCH(K6,PL!$C$11:$C$58,0)),IF(alle_aar_valg=2,INDIRECT(K$6&"_sam!BDU_netværk_sam")*INDEX(PL!$F$11:$F$58,MATCH(K6,PL!$C$11:$C$58,0)),IF(alle_aar_valg=3,INDIRECT(K$6&"_sam!BDU_netværk_reg")*INDEX(PL!$F$11:$F$58,MATCH(K6,PL!$C$11:$C$58,0)),INDIRECT(K$6&"_sam!BDU_netværk")*INDEX(PL!$F$11:$F$58,MATCH(K6,PL!$C$11:$C$58,0))))))) -> 1637.404461 | L18: =IF(L$6="","",IF(L6='2024'!$B$2,(IF(alle_aar_valg=1,'2024'!BDU_netværk*INDEX(PL!$F$11:$F$58,MATCH(L6,PL!$C$11:$C$58,0)),"Kan ikke vises")),IF(alle_aar_valg=1,INDIRECT(L$6&"!BDU_netværk")*INDEX(PL!$F$11:$F$58,MATCH(L6,PL!$C$11:$C$58,0)),IF(alle_aar_valg=2,INDIRECT(L$6&"_sam!BDU_netværk_sam")*INDEX(PL!$F$11:$F$58,MATCH(L6,PL!$C$11:$C$58,0)),IF(alle_aar_valg=3,INDIRECT(L$6&"_sam!BDU_netværk_reg")*INDEX(PL!$F$11:$F$58,MATCH(L6,PL!$C$11:$C$58,0)),INDIRECT(L$6&"_sam!BDU_netværk")*INDEX(PL!$F$11:$F$58,MATCH(L6,PL!$C$11:$C$58,0))))))) -> 1790.091614 | M18: =IF(M$6="","",IF(M6='2024'!$B$2,(IF(alle_aar_valg=1,'2024'!BDU_netværk*INDEX(PL!$F$11:$F$58,MATCH(M6,PL!$C$11:$C$58,0)),"Kan ikke vises")),IF(alle_aar_valg=1,INDIRECT(M$6&"!BDU_netværk")*INDEX(PL!$F$11:$F$58,MATCH(M6,PL!$C$11:$C$58,0)),IF(alle_aar_valg=2,INDIRECT(M$6&"_sam!BDU_netværk_sam")*INDEX(PL!$F$11:$F$58,MATCH(M6,PL!$C$11:$C$58,0)),IF(alle_aar_valg=3,INDIRECT(M$6&"_sam!BDU_netværk_reg")*INDEX(PL!$F$11:$F$58,MATCH(M6,PL!$C$11:$C$58,0)),INDIRECT(M$6&"_sam!BDU_netværk")*INDEX(PL!$F$11:$F$58,MATCH(M6,PL!$C$11:$C$58,0))))))) -> 1969.752651 | N18: =IF(N$6="","",IF(N6='2024'!$B$2,(IF(alle_aar_valg=1,'2024'!BDU_netværk*INDEX(PL!$F$11:$F$58,MATCH(N6,PL!$C$11:$C$58,0)),"Kan ikke vises")),IF(alle_aar_valg=1,INDIRECT(N$6&"!BDU_netværk")*INDEX(PL!$F$11:$F$58,MATCH(N6,PL!$C$11:$C$58,0)),IF(alle_aar_valg=2,INDIRECT(N$6&"_sam!BDU_netværk_sam")*INDEX(PL!$F$11:$F$58,MATCH(N6,PL!$C$11:$C$58,0)),IF(alle_aar_valg=3,INDIRECT(N$6&"_sam!BDU_netværk_reg")*INDEX(PL!$F$11:$F$58,MATCH(N6,PL!$C$11:$C$58,0)),INDIRECT(N$6&"_sam!BDU_netværk")*INDEX(PL!$F$11:$F$58,MATCH(N6,PL!$C$11:$C$58,0))))))) -> 1674.56478 | O18: =IF(O$6="","",IF(O6='2024'!$B$2,(IF(alle_aar_valg=1,'2024'!BDU_netværk*INDEX(PL!$F$11:$F$58,MATCH(O6,PL!$C$11:$C$58,0)),"Kan ikke vises")),IF(alle_aar_valg=1,INDIRECT(O$6&"!BDU_netværk")*INDEX(PL!$F$11:$F$58,MATCH(O6,PL!$C$11:$C$58,0)),IF(alle_aar_valg=2,INDIRECT(O$6&"_sam!BDU_netværk_sam")*INDEX(PL!$F$11:$F$58,MATCH(O6,PL!$C$11:$C$58,0)),IF(alle_aar_valg=3,INDIRECT(O$6&"_sam!BDU_netværk_reg")*INDEX(PL!$F$11:$F$58,MATCH(O6,PL!$C$11:$C$58,0)),INDIRECT(O$6&"_sam!BDU_netværk")*INDEX(PL!$F$11:$F$58,MATCH(O6,PL!$C$11:$C$58,0))))))) -> 1482.156708 | P18: =IF(P$6="","",IF(P6='2024'!$B$2,(IF(alle_aar_valg=1,'2024'!BDU_netværk*INDEX(PL!$F$11:$F$58,MATCH(P6,PL!$C$11:$C$58,0)),"Kan ikke vises")),IF(alle_aar_valg=1,INDIRECT(P$6&"!BDU_netværk")*INDEX(PL!$F$11:$F$58,MATCH(P6,PL!$C$11:$C$58,0)),IF(alle_aar_valg=2,INDIRECT(P$6&"_sam!BDU_netværk_sam")*INDEX(PL!$F$11:$F$58,MATCH(P6,PL!$C$11:$C$58,0)),IF(alle_aar_valg=3,INDIRECT(P$6&"_sam!BDU_netværk_reg")*INDEX(PL!$F$11:$F$58,MATCH(P6,PL!$C$11:$C$58,0)),INDIRECT(P$6&"_sam!BDU_netværk")*INDEX(PL!$F$11:$F$58,MATCH(P6,PL!$C$11:$C$58,0))))))) -> 2198.677929 | Q18: =IF(Q$6="","",IF(Q6='2024'!$B$2,(IF(alle_aar_valg=1,'2024'!BDU_netværk*INDEX(PL!$F$11:$F$58,MATCH(Q6,PL!$C$11:$C$58,0)),"Kan ikke vises")),IF(alle_aar_valg=1,INDIRECT(Q$6&"!BDU_netværk")*INDEX(PL!$F$11:$F$58,MATCH(Q6,PL!$C$11:$C$58,0)),IF(alle_aar_valg=2,INDIRECT(Q$6&"_sam!BDU_netværk_sam")*INDEX(PL!$F$11:$F$58,MATCH(Q6,PL!$C$11:$C$58,0)),IF(alle_aar_valg=3,INDIRECT(Q$6&"_sam!BDU_netværk_reg")*INDEX(PL!$F$11:$F$58,MATCH(Q6,PL!$C$11:$C$58,0)),INDIRECT(Q$6&"_sam!BDU_netværk")*INDEX(PL!$F$11:$F$58,MATCH(Q6,PL!$C$11:$C$58,0))))))) -> 1971.100564 | R18: =IF(R$6="","",IF(R6='2024'!$B$2,(IF(alle_aar_valg=1,'2024'!BDU_netværk*INDEX(PL!$F$11:$F$58,MATCH(R6,PL!$C$11:$C$58,0)),"Kan ikke vises")),IF(alle_aar_valg=1,INDIRECT(R$6&"!BDU_netværk")*INDEX(PL!$F$11:$F$58,MATCH(R6,PL!$C$11:$C$58,0)),IF(alle_aar_valg=2,INDIRECT(R$6&"_sam!BDU_netværk_sam")*INDEX(PL!$F$11:$F$58,MATCH(R6,PL!$C$11:$C$58,0)),IF(alle_aar_valg=3,INDIRECT(R$6&"_sam!BDU_netværk_reg")*INDEX(PL!$F$11:$F$58,MATCH(R6,PL!$C$11:$C$58,0)),INDIRECT(R$6&"_sam!BDU_netværk")*INDEX(PL!$F$11:$F$58,MATCH(R6,PL!$C$11:$C$58,0))))))) -> 1925.444 | S18: =IF(S$6="","",IF(S6='2024'!$B$2,(IF(alle_aar_valg=1,'2024'!BDU_netværk*INDEX(PL!$F$11:$F$58,MATCH(S6,PL!$C$11:$C$58,0)),"Kan ikke vises")),IF(alle_aar_valg=1,INDIRECT(S$6&"!BDU_netværk")*INDEX(PL!$F$11:$F$58,MATCH(S6,PL!$C$11:$C$58,0)),IF(alle_aar_valg=2,INDIRECT(S$6&"_sam!BDU_netværk_sam")*INDEX(PL!$F$11:$F$58,MATCH(S6,PL!$C$11:$C$58,0)),IF(alle_aar_valg=3,INDIRECT(S$6&"_sam!BDU_netværk_reg")*INDEX(PL!$F$11:$F$58,MATCH(S6,PL!$C$11:$C$58,0)),INDIRECT(S$6&"_sam!BDU_netværk")*INDEX(PL!$F$11:$F$58,MATCH(S6,PL!$C$11:$C$58,0))))))) -> 2253 | T18: =IF(T$6="","",IF(T6='2024'!$B$2,(IF(alle_aar_valg=1,'2024'!BDU_netværk*INDEX(PL!$F$11:$F$58,MATCH(T6,PL!$C$11:$C$58,0)),"Kan ikke vises")),IF(alle_aar_valg=1,INDIRECT(T$6&"!BDU_netværk")*INDEX(PL!$F$11:$F$58,MATCH(T6,PL!$C$11:$C$58,0)),IF(alle_aar_valg=2,INDIRECT(T$6&"_sam!BDU_netværk_sam")*INDEX(PL!$F$11:$F$58,MATCH(T6,PL!$C$11:$C$58,0)),IF(alle_aar_valg=3,INDIRECT(T$6&"_sam!BDU_netværk_reg")*INDEX(PL!$F$11:$F$58,MATCH(T6,PL!$C$11:$C$58,0)),INDIRECT(T$6&"_sam!BDU_netværk")*INDEX(PL!$F$11:$F$58,MATCH(T6,PL!$C$11:$C$58,0))))))) ->  | U18: =IF(U$6="","",IF(U6='2024'!$B$2,(IF(alle_aar_valg=1,'2024'!BDU_netværk*INDEX(PL!$F$11:$F$58,MATCH(U6,PL!$C$11:$C$58,0)),"Kan ikke vises")),IF(alle_aar_valg=1,INDIRECT(U$6&"!BDU_netværk")*INDEX(PL!$F$11:$F$58,MATCH(U6,PL!$C$11:$C$58,0)),IF(alle_aar_valg=2,INDIRECT(U$6&"_sam!BDU_netværk_sam")*INDEX(PL!$F$11:$F$58,MATCH(U6,PL!$C$11:$C$58,0)),IF(alle_aar_valg=3,INDIRECT(U$6&"_sam!BDU_netværk_reg")*INDEX(PL!$F$11:$F$58,MATCH(U6,PL!$C$11:$C$58,0)),INDIRECT(U$6&"_sam!BDU_netværk")*INDEX(PL!$F$11:$F$58,MATCH(U6,PL!$C$11:$C$58,0))))))) ->  | V18: =IF(V$6="","",IF(V6='2024'!$B$2,(IF(alle_aar_valg=1,'2024'!BDU_netværk*INDEX(PL!$F$11:$F$58,MATCH(V6,PL!$C$11:$C$58,0)),"Kan ikke vises")),IF(alle_aar_valg=1,INDIRECT(V$6&"!BDU_netværk")*INDEX(PL!$F$11:$F$58,MATCH(V6,PL!$C$11:$C$58,0)),IF(alle_aar_valg=2,INDIRECT(V$6&"_sam!BDU_netværk_sam")*INDEX(PL!$F$11:$F$58,MATCH(V6,PL!$C$11:$C$58,0)),IF(alle_aar_valg=3,INDIRECT(V$6&"_sam!BDU_netværk_reg")*INDEX(PL!$F$11:$F$58,MATCH(V6,PL!$C$11:$C$58,0)),INDIRECT(V$6&"_sam!BDU_netværk")*INDEX(PL!$F$11:$F$58,MATCH(V6,PL!$C$11:$C$58,0))))))) ->  | W18: =IF(W$6="","",IF(W6='2024'!$B$2,(IF(alle_aar_valg=1,'2024'!BDU_netværk*INDEX(PL!$F$11:$F$58,MATCH(W6,PL!$C$11:$C$58,0)),"Kan ikke vises")),IF(alle_aar_valg=1,INDIRECT(W$6&"!BDU_netværk")*INDEX(PL!$F$11:$F$58,MATCH(W6,PL!$C$11:$C$58,0)),IF(alle_aar_valg=2,INDIRECT(W$6&"_sam!BDU_netværk_sam")*INDEX(PL!$F$11:$F$58,MATCH(W6,PL!$C$11:$C$58,0)),IF(alle_aar_valg=3,INDIRECT(W$6&"_sam!BDU_netværk_reg")*INDEX(PL!$F$11:$F$58,MATCH(W6,PL!$C$11:$C$58,0)),INDIRECT(W$6&"_sam!BDU_netværk")*INDEX(PL!$F$11:$F$58,MATCH(W6,PL!$C$11:$C$58,0))))))) -> 
B19: Trin 5: Familiepleje | C19: =IF(C$6="","",IF(C6='2024'!$B$2,(IF(alle_aar_valg=1,'2024'!BDU_familiepleje*INDEX(PL!$F$11:$F$58,MATCH(C6,PL!$C$11:$C$58,0)),"Kan ikke vises")),IF(alle_aar_valg=1,INDIRECT(C$6&"!BDU_familiepleje")*INDEX(PL!$F$11:$F$58,MATCH(C6,PL!$C$11:$C$58,0)),IF(alle_aar_valg=2,INDIRECT(C$6&"_sam!BDU_familiepleje_sam")*INDEX(PL!$F$11:$F$58,MATCH(C6,PL!$C$11:$C$58,0)),IF(alle_aar_valg=3,INDIRECT(C$6&"_sam!BDU_familiepleje_reg")*INDEX(PL!$F$11:$F$58,MATCH(C6,PL!$C$11:$C$58,0)),INDIRECT(C$6&"_sam!BDU_familiepleje")*INDEX(PL!$F$11:$F$58,MATCH(C6,PL!$C$11:$C$58,0))))))) -> 41939.91773 | D19: =IF(D$6="","",IF(D6='2024'!$B$2,(IF(alle_aar_valg=1,'2024'!BDU_familiepleje*INDEX(PL!$F$11:$F$58,MATCH(D6,PL!$C$11:$C$58,0)),"Kan ikke vises")),IF(alle_aar_valg=1,INDIRECT(D$6&"!BDU_familiepleje")*INDEX(PL!$F$11:$F$58,MATCH(D6,PL!$C$11:$C$58,0)),IF(alle_aar_valg=2,INDIRECT(D$6&"_sam!BDU_familiepleje_sam")*INDEX(PL!$F$11:$F$58,MATCH(D6,PL!$C$11:$C$58,0)),IF(alle_aar_valg=3,INDIRECT(D$6&"_sam!BDU_familiepleje_reg")*INDEX(PL!$F$11:$F$58,MATCH(D6,PL!$C$11:$C$58,0)),INDIRECT(D$6&"_sam!BDU_familiepleje")*INDEX(PL!$F$11:$F$58,MATCH(D6,PL!$C$11:$C$58,0))))))) -> 39659.90819 | E19: =IF(E$6="","",IF(E6='2024'!$B$2,(IF(alle_aar_valg=1,'2024'!BDU_familiepleje*INDEX(PL!$F$11:$F$58,MATCH(E6,PL!$C$11:$C$58,0)),"Kan ikke vises")),IF(alle_aar_valg=1,INDIRECT(E$6&"!BDU_familiepleje")*INDEX(PL!$F$11:$F$58,MATCH(E6,PL!$C$11:$C$58,0)),IF(alle_aar_valg=2,INDIRECT(E$6&"_sam!BDU_familiepleje_sam")*INDEX(PL!$F$11:$F$58,MATCH(E6,PL!$C$11:$C$58,0)),IF(alle_aar_valg=3,INDIRECT(E$6&"_sam!BDU_familiepleje_reg")*INDEX(PL!$F$11:$F$58,MATCH(E6,PL!$C$11:$C$58,0)),INDIRECT(E$6&"_sam!BDU_familiepleje")*INDEX(PL!$F$11:$F$58,MATCH(E6,PL!$C$11:$C$58,0))))))) -> 43284.82326 | F19: =IF(F$6="","",IF(F6='2024'!$B$2,(IF(alle_aar_valg=1,'2024'!BDU_familiepleje*INDEX(PL!$F$11:$F$58,MATCH(F6,PL!$C$11:$C$58,0)),"Kan ikke vises")),IF(alle_aar_valg=1,INDIRECT(F$6&"!BDU_familiepleje")*INDEX(PL!$F$11:$F$58,MATCH(F6,PL!$C$11:$C$58,0)),IF(alle_aar_valg=2,INDIRECT(F$6&"_sam!BDU_familiepleje_sam")*INDEX(PL!$F$11:$F$58,MATCH(F6,PL!$C$11:$C$58,0)),IF(alle_aar_valg=3,INDIRECT(F$6&"_sam!BDU_familiepleje_reg")*INDEX(PL!$F$11:$F$58,MATCH(F6,PL!$C$11:$C$58,0)),INDIRECT(F$6&"_sam!BDU_familiepleje")*INDEX(PL!$F$11:$F$58,MATCH(F6,PL!$C$11:$C$58,0))))))) -> 45784.12334 | G19: =IF(G$6="","",IF(G6='2024'!$B$2,(IF(alle_aar_valg=1,'2024'!BDU_familiepleje*INDEX(PL!$F$11:$F$58,MATCH(G6,PL!$C$11:$C$58,0)),"Kan ikke vises")),IF(alle_aar_valg=1,INDIRECT(G$6&"!BDU_familiepleje")*INDEX(PL!$F$11:$F$58,MATCH(G6,PL!$C$11:$C$58,0)),IF(alle_aar_valg=2,INDIRECT(G$6&"_sam!BDU_familiepleje_sam")*INDEX(PL!$F$11:$F$58,MATCH(G6,PL!$C$11:$C$58,0)),IF(alle_aar_valg=3,INDIRECT(G$6&"_sam!BDU_familiepleje_reg")*INDEX(PL!$F$11:$F$58,MATCH(G6,PL!$C$11:$C$58,0)),INDIRECT(G$6&"_sam!BDU_familiepleje")*INDEX(PL!$F$11:$F$58,MATCH(G6,PL!$C$11:$C$58,0))))))) -> 48807.93722 | H19: =IF(H$6="","",IF(H6='2024'!$B$2,(IF(alle_aar_valg=1,'2024'!BDU_familiepleje*INDEX(PL!$F$11:$F$58,MATCH(H6,PL!$C$11:$C$58,0)),"Kan ikke vises")),IF(alle_aar_valg=1,INDIRECT(H$6&"!BDU_familiepleje")*INDEX(PL!$F$11:$F$58,MATCH(H6,PL!$C$11:$C$58,0)),IF(alle_aar_valg=2,INDIRECT(H$6&"_sam!BDU_familiepleje_sam")*INDEX(PL!$F$11:$F$58,MATCH(H6,PL!$C$11:$C$58,0)),IF(alle_aar_valg=3,INDIRECT(H$6&"_sam!BDU_familiepleje_reg")*INDEX(PL!$F$11:$F$58,MATCH(H6,PL!$C$11:$C$58,0)),INDIRECT(H$6&"_sam!BDU_familiepleje")*INDEX(PL!$F$11:$F$58,MATCH(H6,PL!$C$11:$C$58,0))))))) -> 47919.49031 | I19: =IF(I$6="","",IF(I6='2024'!$B$2,(IF(alle_aar_valg=1,'2024'!BDU_familiepleje*INDEX(PL!$F$11:$F$58,MATCH(I6,PL!$C$11:$C$58,0)),"Kan ikke vises")),IF(alle_aar_valg=1,INDIRECT(I$6&"!BDU_familiepleje")*INDEX(PL!$F$11:$F$58,MATCH(I6,PL!$C$11:$C$58,0)),IF(alle_aar_valg=2,INDIRECT(I$6&"_sam!BDU_familiepleje_sam")*INDEX(PL!$F$11:$F$58,MATCH(I6,PL!$C$11:$C$58,0)),IF(alle_aar_valg=3,INDIRECT(I$6&"_sam!BDU_familiepleje_reg")*INDEX(PL!$F$11:$F$58,MATCH(I6,PL!$C$11:$C$58,0)),INDIRECT(I$6&"_sam!BDU_familiepleje")*INDEX(PL!$F$11:$F$58,MATCH(I6,PL!$C$11:$C$58,0))))))) -> 42440.3144 | J19: =IF(J$6="","",IF(J6='2024'!$B$2,(IF(alle_aar_valg=1,'2024'!BDU_familiepleje*INDEX(PL!$F$11:$F$58,MATCH(J6,PL!$C$11:$C$58,0)),"Kan ikke vises")),IF(alle_aar_valg=1,INDIRECT(J$6&"!BDU_familiepleje")*INDEX(PL!$F$11:$F$58,MATCH(J6,PL!$C$11:$C$58,0)),IF(alle_aar_valg=2,INDIRECT(J$6&"_sam!BDU_familiepleje_sam")*INDEX(PL!$F$11:$F$58,MATCH(J6,PL!$C$11:$C$58,0)),IF(alle_aar_valg=3,INDIRECT(J$6&"_sam!BDU_familiepleje_reg")*INDEX(PL!$F$11:$F$58,MATCH(J6,PL!$C$11:$C$58,0)),INDIRECT(J$6&"_sam!BDU_familiepleje")*INDEX(PL!$F$11:$F$58,MATCH(J6,PL!$C$11:$C$58,0))))))) -> 38802.26215 | K19: =IF(K$6="","",IF(K6='2024'!$B$2,(IF(alle_aar_valg=1,'2024'!BDU_familiepleje*INDEX(PL!$F$11:$F$58,MATCH(K6,PL!$C$11:$C$58,0)),"Kan ikke vises")),IF(alle_aar_valg=1,INDIRECT(K$6&"!BDU_familiepleje")*INDEX(PL!$F$11:$F$58,MATCH(K6,PL!$C$11:$C$58,0)),IF(alle_aar_valg=2,INDIRECT(K$6&"_sam!BDU_familiepleje_sam")*INDEX(PL!$F$11:$F$58,MATCH(K6,PL!$C$11:$C$58,0)),IF(alle_aar_valg=3,INDIRECT(K$6&"_sam!BDU_familiepleje_reg")*INDEX(PL!$F$11:$F$58,MATCH(K6,PL!$C$11:$C$58,0)),INDIRECT(K$6&"_sam!BDU_familiepleje")*INDEX(PL!$F$11:$F$58,MATCH(K6,PL!$C$11:$C$58,0))))))) -> 35532.02995 | L19: =IF(L$6="","",IF(L6='2024'!$B$2,(IF(alle_aar_valg=1,'2024'!BDU_familiepleje*INDEX(PL!$F$11:$F$58,MATCH(L6,PL!$C$11:$C$58,0)),"Kan ikke vises")),IF(alle_aar_valg=1,INDIRECT(L$6&"!BDU_familiepleje")*INDEX(PL!$F$11:$F$58,MATCH(L6,PL!$C$11:$C$58,0)),IF(alle_aar_valg=2,INDIRECT(L$6&"_sam!BDU_familiepleje_sam")*INDEX(PL!$F$11:$F$58,MATCH(L6,PL!$C$11:$C$58,0)),IF(alle_aar_valg=3,INDIRECT(L$6&"_sam!BDU_familiepleje_reg")*INDEX(PL!$F$11:$F$58,MATCH(L6,PL!$C$11:$C$58,0)),INDIRECT(L$6&"_sam!BDU_familiepleje")*INDEX(PL!$F$11:$F$58,MATCH(L6,PL!$C$11:$C$58,0))))))) -> 38135.22018 | M19: =IF(M$6="","",IF(M6='2024'!$B$2,(IF(alle_aar_valg=1,'2024'!BDU_familiepleje*INDEX(PL!$F$11:$F$58,MATCH(M6,PL!$C$11:$C$58,0)),"Kan ikke vises")),IF(alle_aar_valg=1,INDIRECT(M$6&"!BDU_familiepleje")*INDEX(PL!$F$11:$F$58,MATCH(M6,PL!$C$11:$C$58,0)),IF(alle_aar_valg=2,INDIRECT(M$6&"_sam!BDU_familiepleje_sam")*INDEX(PL!$F$11:$F$58,MATCH(M6,PL!$C$11:$C$58,0)),IF(alle_aar_valg=3,INDIRECT(M$6&"_sam!BDU_familiepleje_reg")*INDEX(PL!$F$11:$F$58,MATCH(M6,PL!$C$11:$C$58,0)),INDIRECT(M$6&"_sam!BDU_familiepleje")*INDEX(PL!$F$11:$F$58,MATCH(M6,PL!$C$11:$C$58,0))))))) -> 38179.47981 | N19: =IF(N$6="","",IF(N6='2024'!$B$2,(IF(alle_aar_valg=1,'2024'!BDU_familiepleje*INDEX(PL!$F$11:$F$58,MATCH(N6,PL!$C$11:$C$58,0)),"Kan ikke vises")),IF(alle_aar_valg=1,INDIRECT(N$6&"!BDU_familiepleje")*INDEX(PL!$F$11:$F$58,MATCH(N6,PL!$C$11:$C$58,0)),IF(alle_aar_valg=2,INDIRECT(N$6&"_sam!BDU_familiepleje_sam")*INDEX(PL!$F$11:$F$58,MATCH(N6,PL!$C$11:$C$58,0)),IF(alle_aar_valg=3,INDIRECT(N$6&"_sam!BDU_familiepleje_reg")*INDEX(PL!$F$11:$F$58,MATCH(N6,PL!$C$11:$C$58,0)),INDIRECT(N$6&"_sam!BDU_familiepleje")*INDEX(PL!$F$11:$F$58,MATCH(N6,PL!$C$11:$C$58,0))))))) -> 41109.49695 | O19: =IF(O$6="","",IF(O6='2024'!$B$2,(IF(alle_aar_valg=1,'2024'!BDU_familiepleje*INDEX(PL!$F$11:$F$58,MATCH(O6,PL!$C$11:$C$58,0)),"Kan ikke vises")),IF(alle_aar_valg=1,INDIRECT(O$6&"!BDU_familiepleje")*INDEX(PL!$F$11:$F$58,MATCH(O6,PL!$C$11:$C$58,0)),IF(alle_aar_valg=2,INDIRECT(O$6&"_sam!BDU_familiepleje_sam")*INDEX(PL!$F$11:$F$58,MATCH(O6,PL!$C$11:$C$58,0)),IF(alle_aar_valg=3,INDIRECT(O$6&"_sam!BDU_familiepleje_reg")*INDEX(PL!$F$11:$F$58,MATCH(O6,PL!$C$11:$C$58,0)),INDIRECT(O$6&"_sam!BDU_familiepleje")*INDEX(PL!$F$11:$F$58,MATCH(O6,PL!$C$11:$C$58,0))))))) -> 39448.17085 | P19: =IF(P$6="","",IF(P6='2024'!$B$2,(IF(alle_aar_valg=1,'2024'!BDU_familiepleje*INDEX(PL!$F$11:$F$58,MATCH(P6,PL!$C$11:$C$58,0)),"Kan ikke vises")),IF(alle_aar_valg=1,INDIRECT(P$6&"!BDU_familiepleje")*INDEX(PL!$F$11:$F$58,MATCH(P6,PL!$C$11:$C$58,0)),IF(alle_aar_valg=2,INDIRECT(P$6&"_sam!BDU_familiepleje_sam")*INDEX(PL!$F$11:$F$58,MATCH(P6,PL!$C$11:$C$58,0)),IF(alle_aar_valg=3,INDIRECT(P$6&"_sam!BDU_familiepleje_reg")*INDEX(PL!$F$11:$F$58,MATCH(P6,PL!$C$11:$C$58,0)),INDIRECT(P$6&"_sam!BDU_familiepleje")*INDEX(PL!$F$11:$F$58,MATCH(P6,PL!$C$11:$C$58,0))))))) -> 38937.80707 | Q19: =IF(Q$6="","",IF(Q6='2024'!$B$2,(IF(alle_aar_valg=1,'2024'!BDU_familiepleje*INDEX(PL!$F$11:$F$58,MATCH(Q6,PL!$C$11:$C$58,0)),"Kan ikke vises")),IF(alle_aar_valg=1,INDIRECT(Q$6&"!BDU_familiepleje")*INDEX(PL!$F$11:$F$58,MATCH(Q6,PL!$C$11:$C$58,0)),IF(alle_aar_valg=2,INDIRECT(Q$6&"_sam!BDU_familiepleje_sam")*INDEX(PL!$F$11:$F$58,MATCH(Q6,PL!$C$11:$C$58,0)),IF(alle_aar_valg=3,INDIRECT(Q$6&"_sam!BDU_familiepleje_reg")*INDEX(PL!$F$11:$F$58,MATCH(Q6,PL!$C$11:$C$58,0)),INDIRECT(Q$6&"_sam!BDU_familiepleje")*INDEX(PL!$F$11:$F$58,MATCH(Q6,PL!$C$11:$C$58,0))))))) -> 40204.4817 | R19: =IF(R$6="","",IF(R6='2024'!$B$2,(IF(alle_aar_valg=1,'2024'!BDU_familiepleje*INDEX(PL!$F$11:$F$58,MATCH(R6,PL!$C$11:$C$58,0)),"Kan ikke vises")),IF(alle_aar_valg=1,INDIRECT(R$6&"!BDU_familiepleje")*INDEX(PL!$F$11:$F$58,MATCH(R6,PL!$C$11:$C$58,0)),IF(alle_aar_valg=2,INDIRECT(R$6&"_sam!BDU_familiepleje_sam")*INDEX(PL!$F$11:$F$58,MATCH(R6,PL!$C$11:$C$58,0)),IF(alle_aar_valg=3,INDIRECT(R$6&"_sam!BDU_familiepleje_reg")*INDEX(PL!$F$11:$F$58,MATCH(R6,PL!$C$11:$C$58,0)),INDIRECT(R$6&"_sam!BDU_familiepleje")*INDEX(PL!$F$11:$F$58,MATCH(R6,PL!$C$11:$C$58,0))))))) -> 44530.904 | S19: =IF(S$6="","",IF(S6='2024'!$B$2,(IF(alle_aar_valg=1,'2024'!BDU_familiepleje*INDEX(PL!$F$11:$F$58,MATCH(S6,PL!$C$11:$C$58,0)),"Kan ikke vises")),IF(alle_aar_valg=1,INDIRECT(S$6&"!BDU_familiepleje")*INDEX(PL!$F$11:$F$58,MATCH(S6,PL!$C$11:$C$58,0)),IF(alle_aar_valg=2,INDIRECT(S$6&"_sam!BDU_familiepleje_sam")*INDEX(PL!$F$11:$F$58,MATCH(S6,PL!$C$11:$C$58,0)),IF(alle_aar_valg=3,INDIRECT(S$6&"_sam!BDU_familiepleje_reg")*INDEX(PL!$F$11:$F$58,MATCH(S6,PL!$C$11:$C$58,0)),INDIRECT(S$6&"_sam!BDU_familiepleje")*INDEX(PL!$F$11:$F$58,MATCH(S6,PL!$C$11:$C$58,0))))))) -> 49067 | T19: =IF(T$6="","",IF(T6='2024'!$B$2,(IF(alle_aar_valg=1,'2024'!BDU_familiepleje*INDEX(PL!$F$11:$F$58,MATCH(T6,PL!$C$11:$C$58,0)),"Kan ikke vises")),IF(alle_aar_valg=1,INDIRECT(T$6&"!BDU_familiepleje")*INDEX(PL!$F$11:$F$58,MATCH(T6,PL!$C$11:$C$58,0)),IF(alle_aar_valg=2,INDIRECT(T$6&"_sam!BDU_familiepleje_sam")*INDEX(PL!$F$11:$F$58,MATCH(T6,PL!$C$11:$C$58,0)),IF(alle_aar_valg=3,INDIRECT(T$6&"_sam!BDU_familiepleje_reg")*INDEX(PL!$F$11:$F$58,MATCH(T6,PL!$C$11:$C$58,0)),INDIRECT(T$6&"_sam!BDU_familiepleje")*INDEX(PL!$F$11:$F$58,MATCH(T6,PL!$C$11:$C$58,0))))))) ->  | U19: =IF(U$6="","",IF(U6='2024'!$B$2,(IF(alle_aar_valg=1,'2024'!BDU_familiepleje*INDEX(PL!$F$11:$F$58,MATCH(U6,PL!$C$11:$C$58,0)),"Kan ikke vises")),IF(alle_aar_valg=1,INDIRECT(U$6&"!BDU_familiepleje")*INDEX(PL!$F$11:$F$58,MATCH(U6,PL!$C$11:$C$58,0)),IF(alle_aar_valg=2,INDIRECT(U$6&"_sam!BDU_familiepleje_sam")*INDEX(PL!$F$11:$F$58,MATCH(U6,PL!$C$11:$C$58,0)),IF(alle_aar_valg=3,INDIRECT(U$6&"_sam!BDU_familiepleje_reg")*INDEX(PL!$F$11:$F$58,MATCH(U6,PL!$C$11:$C$58,0)),INDIRECT(U$6&"_sam!BDU_familiepleje")*INDEX(PL!$F$11:$F$58,MATCH(U6,PL!$C$11:$C$58,0))))))) ->  | V19: =IF(V$6="","",IF(V6='2024'!$B$2,(IF(alle_aar_valg=1,'2024'!BDU_familiepleje*INDEX(PL!$F$11:$F$58,MATCH(V6,PL!$C$11:$C$58,0)),"Kan ikke vises")),IF(alle_aar_valg=1,INDIRECT(V$6&"!BDU_familiepleje")*INDEX(PL!$F$11:$F$58,MATCH(V6,PL!$C$11:$C$58,0)),IF(alle_aar_valg=2,INDIRECT(V$6&"_sam!BDU_familiepleje_sam")*INDEX(PL!$F$11:$F$58,MATCH(V6,PL!$C$11:$C$58,0)),IF(alle_aar_valg=3,INDIRECT(V$6&"_sam!BDU_familiepleje_reg")*INDEX(PL!$F$11:$F$58,MATCH(V6,PL!$C$11:$C$58,0)),INDIRECT(V$6&"_sam!BDU_familiepleje")*INDEX(PL!$F$11:$F$58,MATCH(V6,PL!$C$11:$C$58,0))))))) ->  | W19: =IF(W$6="","",IF(W6='2024'!$B$2,(IF(alle_aar_valg=1,'2024'!BDU_familiepleje*INDEX(PL!$F$11:$F$58,MATCH(W6,PL!$C$11:$C$58,0)),"Kan ikke vises")),IF(alle_aar_valg=1,INDIRECT(W$6&"!BDU_familiepleje")*INDEX(PL!$F$11:$F$58,MATCH(W6,PL!$C$11:$C$58,0)),IF(alle_aar_valg=2,INDIRECT(W$6&"_sam!BDU_familiepleje_sam")*INDEX(PL!$F$11:$F$58,MATCH(W6,PL!$C$11:$C$58,0)),IF(alle_aar_valg=3,INDIRECT(W$6&"_sam!BDU_familiepleje_reg")*INDEX(PL!$F$11:$F$58,MATCH(W6,PL!$C$11:$C$58,0)),INDIRECT(W$6&"_sam!BDU_familiepleje")*INDEX(PL!$F$11:$F$58,MATCH(W6,PL!$C$11:$C$58,0))))))) -> 
B20: Trin 6: Institutionsanbringelser | C20: =IF(C$6="","",IF(C6='2024'!$B$2,(IF(alle_aar_valg=1,'2024'!BDU_institution*INDEX(PL!$F$11:$F$58,MATCH(C6,PL!$C$11:$C$58,0)),"Kan ikke vises")),IF(alle_aar_valg=1,INDIRECT(C$6&"!BDU_institution")*INDEX(PL!$F$11:$F$58,MATCH(C6,PL!$C$11:$C$58,0)),IF(alle_aar_valg=2,INDIRECT(C$6&"_sam!BDU_institution_sam")*INDEX(PL!$F$11:$F$58,MATCH(C6,PL!$C$11:$C$58,0)),IF(alle_aar_valg=3,INDIRECT(C$6&"_sam!BDU_institution_reg")*INDEX(PL!$F$11:$F$58,MATCH(C6,PL!$C$11:$C$58,0)),INDIRECT(C$6&"_sam!BDU_institution")*INDEX(PL!$F$11:$F$58,MATCH(C6,PL!$C$11:$C$58,0))))))) -> 69005.72947 | D20: =IF(D$6="","",IF(D6='2024'!$B$2,(IF(alle_aar_valg=1,'2024'!BDU_institution*INDEX(PL!$F$11:$F$58,MATCH(D6,PL!$C$11:$C$58,0)),"Kan ikke vises")),IF(alle_aar_valg=1,INDIRECT(D$6&"!BDU_institution")*INDEX(PL!$F$11:$F$58,MATCH(D6,PL!$C$11:$C$58,0)),IF(alle_aar_valg=2,INDIRECT(D$6&"_sam!BDU_institution_sam")*INDEX(PL!$F$11:$F$58,MATCH(D6,PL!$C$11:$C$58,0)),IF(alle_aar_valg=3,INDIRECT(D$6&"_sam!BDU_institution_reg")*INDEX(PL!$F$11:$F$58,MATCH(D6,PL!$C$11:$C$58,0)),INDIRECT(D$6&"_sam!BDU_institution")*INDEX(PL!$F$11:$F$58,MATCH(D6,PL!$C$11:$C$58,0))))))) -> 63318.38422 | E20: =IF(E$6="","",IF(E6='2024'!$B$2,(IF(alle_aar_valg=1,'2024'!BDU_institution*INDEX(PL!$F$11:$F$58,MATCH(E6,PL!$C$11:$C$58,0)),"Kan ikke vises")),IF(alle_aar_valg=1,INDIRECT(E$6&"!BDU_institution")*INDEX(PL!$F$11:$F$58,MATCH(E6,PL!$C$11:$C$58,0)),IF(alle_aar_valg=2,INDIRECT(E$6&"_sam!BDU_institution_sam")*INDEX(PL!$F$11:$F$58,MATCH(E6,PL!$C$11:$C$58,0)),IF(alle_aar_valg=3,INDIRECT(E$6&"_sam!BDU_institution_reg")*INDEX(PL!$F$11:$F$58,MATCH(E6,PL!$C$11:$C$58,0)),INDIRECT(E$6&"_sam!BDU_institution")*INDEX(PL!$F$11:$F$58,MATCH(E6,PL!$C$11:$C$58,0))))))) -> 41097.94346 | F20: =IF(F$6="","",IF(F6='2024'!$B$2,(IF(alle_aar_valg=1,'2024'!BDU_institution*INDEX(PL!$F$11:$F$58,MATCH(F6,PL!$C$11:$C$58,0)),"Kan ikke vises")),IF(alle_aar_valg=1,INDIRECT(F$6&"!BDU_institution")*INDEX(PL!$F$11:$F$58,MATCH(F6,PL!$C$11:$C$58,0)),IF(alle_aar_valg=2,INDIRECT(F$6&"_sam!BDU_institution_sam")*INDEX(PL!$F$11:$F$58,MATCH(F6,PL!$C$11:$C$58,0)),IF(alle_aar_valg=3,INDIRECT(F$6&"_sam!BDU_institution_reg")*INDEX(PL!$F$11:$F$58,MATCH(F6,PL!$C$11:$C$58,0)),INDIRECT(F$6&"_sam!BDU_institution")*INDEX(PL!$F$11:$F$58,MATCH(F6,PL!$C$11:$C$58,0))))))) -> 28993.90628 | G20: =IF(G$6="","",IF(G6='2024'!$B$2,(IF(alle_aar_valg=1,'2024'!BDU_institution*INDEX(PL!$F$11:$F$58,MATCH(G6,PL!$C$11:$C$58,0)),"Kan ikke vises")),IF(alle_aar_valg=1,INDIRECT(G$6&"!BDU_institution")*INDEX(PL!$F$11:$F$58,MATCH(G6,PL!$C$11:$C$58,0)),IF(alle_aar_valg=2,INDIRECT(G$6&"_sam!BDU_institution_sam")*INDEX(PL!$F$11:$F$58,MATCH(G6,PL!$C$11:$C$58,0)),IF(alle_aar_valg=3,INDIRECT(G$6&"_sam!BDU_institution_reg")*INDEX(PL!$F$11:$F$58,MATCH(G6,PL!$C$11:$C$58,0)),INDIRECT(G$6&"_sam!BDU_institution")*INDEX(PL!$F$11:$F$58,MATCH(G6,PL!$C$11:$C$58,0))))))) -> 28381.4819 | H20: =IF(H$6="","",IF(H6='2024'!$B$2,(IF(alle_aar_valg=1,'2024'!BDU_institution*INDEX(PL!$F$11:$F$58,MATCH(H6,PL!$C$11:$C$58,0)),"Kan ikke vises")),IF(alle_aar_valg=1,INDIRECT(H$6&"!BDU_institution")*INDEX(PL!$F$11:$F$58,MATCH(H6,PL!$C$11:$C$58,0)),IF(alle_aar_valg=2,INDIRECT(H$6&"_sam!BDU_institution_sam")*INDEX(PL!$F$11:$F$58,MATCH(H6,PL!$C$11:$C$58,0)),IF(alle_aar_valg=3,INDIRECT(H$6&"_sam!BDU_institution_reg")*INDEX(PL!$F$11:$F$58,MATCH(H6,PL!$C$11:$C$58,0)),INDIRECT(H$6&"_sam!BDU_institution")*INDEX(PL!$F$11:$F$58,MATCH(H6,PL!$C$11:$C$58,0))))))) -> 24706.65354 | I20: =IF(I$6="","",IF(I6='2024'!$B$2,(IF(alle_aar_valg=1,'2024'!BDU_institution*INDEX(PL!$F$11:$F$58,MATCH(I6,PL!$C$11:$C$58,0)),"Kan ikke vises")),IF(alle_aar_valg=1,INDIRECT(I$6&"!BDU_institution")*INDEX(PL!$F$11:$F$58,MATCH(I6,PL!$C$11:$C$58,0)),IF(alle_aar_valg=2,INDIRECT(I$6&"_sam!BDU_institution_sam")*INDEX(PL!$F$11:$F$58,MATCH(I6,PL!$C$11:$C$58,0)),IF(alle_aar_valg=3,INDIRECT(I$6&"_sam!BDU_institution_reg")*INDEX(PL!$F$11:$F$58,MATCH(I6,PL!$C$11:$C$58,0)),INDIRECT(I$6&"_sam!BDU_institution")*INDEX(PL!$F$11:$F$58,MATCH(I6,PL!$C$11:$C$58,0))))))) -> 31258.05104 | J20: =IF(J$6="","",IF(J6='2024'!$B$2,(IF(alle_aar_valg=1,'2024'!BDU_institution*INDEX(PL!$F$11:$F$58,MATCH(J6,PL!$C$11:$C$58,0)),"Kan ikke vises")),IF(alle_aar_valg=1,INDIRECT(J$6&"!BDU_institution")*INDEX(PL!$F$11:$F$58,MATCH(J6,PL!$C$11:$C$58,0)),IF(alle_aar_valg=2,INDIRECT(J$6&"_sam!BDU_institution_sam")*INDEX(PL!$F$11:$F$58,MATCH(J6,PL!$C$11:$C$58,0)),IF(alle_aar_valg=3,INDIRECT(J$6&"_sam!BDU_institution_reg")*INDEX(PL!$F$11:$F$58,MATCH(J6,PL!$C$11:$C$58,0)),INDIRECT(J$6&"_sam!BDU_institution")*INDEX(PL!$F$11:$F$58,MATCH(J6,PL!$C$11:$C$58,0))))))) -> 23568.06528 | K20: =IF(K$6="","",IF(K6='2024'!$B$2,(IF(alle_aar_valg=1,'2024'!BDU_institution*INDEX(PL!$F$11:$F$58,MATCH(K6,PL!$C$11:$C$58,0)),"Kan ikke vises")),IF(alle_aar_valg=1,INDIRECT(K$6&"!BDU_institution")*INDEX(PL!$F$11:$F$58,MATCH(K6,PL!$C$11:$C$58,0)),IF(alle_aar_valg=2,INDIRECT(K$6&"_sam!BDU_institution_sam")*INDEX(PL!$F$11:$F$58,MATCH(K6,PL!$C$11:$C$58,0)),IF(alle_aar_valg=3,INDIRECT(K$6&"_sam!BDU_institution_reg")*INDEX(PL!$F$11:$F$58,MATCH(K6,PL!$C$11:$C$58,0)),INDIRECT(K$6&"_sam!BDU_institution")*INDEX(PL!$F$11:$F$58,MATCH(K6,PL!$C$11:$C$58,0))))))) -> 21447.52644 | L20: =IF(L$6="","",IF(L6='2024'!$B$2,(IF(alle_aar_valg=1,'2024'!BDU_institution*INDEX(PL!$F$11:$F$58,MATCH(L6,PL!$C$11:$C$58,0)),"Kan ikke vises")),IF(alle_aar_valg=1,INDIRECT(L$6&"!BDU_institution")*INDEX(PL!$F$11:$F$58,MATCH(L6,PL!$C$11:$C$58,0)),IF(alle_aar_valg=2,INDIRECT(L$6&"_sam!BDU_institution_sam")*INDEX(PL!$F$11:$F$58,MATCH(L6,PL!$C$11:$C$58,0)),IF(alle_aar_valg=3,INDIRECT(L$6&"_sam!BDU_institution_reg")*INDEX(PL!$F$11:$F$58,MATCH(L6,PL!$C$11:$C$58,0)),INDIRECT(L$6&"_sam!BDU_institution")*INDEX(PL!$F$11:$F$58,MATCH(L6,PL!$C$11:$C$58,0))))))) -> 23259.58209 | M20: =IF(M$6="","",IF(M6='2024'!$B$2,(IF(alle_aar_valg=1,'2024'!BDU_institution*INDEX(PL!$F$11:$F$58,MATCH(M6,PL!$C$11:$C$58,0)),"Kan ikke vises")),IF(alle_aar_valg=1,INDIRECT(M$6&"!BDU_institution")*INDEX(PL!$F$11:$F$58,MATCH(M6,PL!$C$11:$C$58,0)),IF(alle_aar_valg=2,INDIRECT(M$6&"_sam!BDU_institution_sam")*INDEX(PL!$F$11:$F$58,MATCH(M6,PL!$C$11:$C$58,0)),IF(alle_aar_valg=3,INDIRECT(M$6&"_sam!BDU_institution_reg")*INDEX(PL!$F$11:$F$58,MATCH(M6,PL!$C$11:$C$58,0)),INDIRECT(M$6&"_sam!BDU_institution")*INDEX(PL!$F$11:$F$58,MATCH(M6,PL!$C$11:$C$58,0))))))) -> 26833.75011 | N20: =IF(N$6="","",IF(N6='2024'!$B$2,(IF(alle_aar_valg=1,'2024'!BDU_institution*INDEX(PL!$F$11:$F$58,MATCH(N6,PL!$C$11:$C$58,0)),"Kan ikke vises")),IF(alle_aar_valg=1,INDIRECT(N$6&"!BDU_institution")*INDEX(PL!$F$11:$F$58,MATCH(N6,PL!$C$11:$C$58,0)),IF(alle_aar_valg=2,INDIRECT(N$6&"_sam!BDU_institution_sam")*INDEX(PL!$F$11:$F$58,MATCH(N6,PL!$C$11:$C$58,0)),IF(alle_aar_valg=3,INDIRECT(N$6&"_sam!BDU_institution_reg")*INDEX(PL!$F$11:$F$58,MATCH(N6,PL!$C$11:$C$58,0)),INDIRECT(N$6&"_sam!BDU_institution")*INDEX(PL!$F$11:$F$58,MATCH(N6,PL!$C$11:$C$58,0))))))) -> 23600.22962 | O20: =IF(O$6="","",IF(O6='2024'!$B$2,(IF(alle_aar_valg=1,'2024'!BDU_institution*INDEX(PL!$F$11:$F$58,MATCH(O6,PL!$C$11:$C$58,0)),"Kan ikke vises")),IF(alle_aar_valg=1,INDIRECT(O$6&"!BDU_institution")*INDEX(PL!$F$11:$F$58,MATCH(O6,PL!$C$11:$C$58,0)),IF(alle_aar_valg=2,INDIRECT(O$6&"_sam!BDU_institution_sam")*INDEX(PL!$F$11:$F$58,MATCH(O6,PL!$C$11:$C$58,0)),IF(alle_aar_valg=3,INDIRECT(O$6&"_sam!BDU_institution_reg")*INDEX(PL!$F$11:$F$58,MATCH(O6,PL!$C$11:$C$58,0)),INDIRECT(O$6&"_sam!BDU_institution")*INDEX(PL!$F$11:$F$58,MATCH(O6,PL!$C$11:$C$58,0))))))) -> 23147.7678 | P20: =IF(P$6="","",IF(P6='2024'!$B$2,(IF(alle_aar_valg=1,'2024'!BDU_institution*INDEX(PL!$F$11:$F$58,MATCH(P6,PL!$C$11:$C$58,0)),"Kan ikke vises")),IF(alle_aar_valg=1,INDIRECT(P$6&"!BDU_institution")*INDEX(PL!$F$11:$F$58,MATCH(P6,PL!$C$11:$C$58,0)),IF(alle_aar_valg=2,INDIRECT(P$6&"_sam!BDU_institution_sam")*INDEX(PL!$F$11:$F$58,MATCH(P6,PL!$C$11:$C$58,0)),IF(alle_aar_valg=3,INDIRECT(P$6&"_sam!BDU_institution_reg")*INDEX(PL!$F$11:$F$58,MATCH(P6,PL!$C$11:$C$58,0)),INDIRECT(P$6&"_sam!BDU_institution")*INDEX(PL!$F$11:$F$58,MATCH(P6,PL!$C$11:$C$58,0))))))) -> 18482.09533 | Q20: =IF(Q$6="","",IF(Q6='2024'!$B$2,(IF(alle_aar_valg=1,'2024'!BDU_institution*INDEX(PL!$F$11:$F$58,MATCH(Q6,PL!$C$11:$C$58,0)),"Kan ikke vises")),IF(alle_aar_valg=1,INDIRECT(Q$6&"!BDU_institution")*INDEX(PL!$F$11:$F$58,MATCH(Q6,PL!$C$11:$C$58,0)),IF(alle_aar_valg=2,INDIRECT(Q$6&"_sam!BDU_institution_sam")*INDEX(PL!$F$11:$F$58,MATCH(Q6,PL!$C$11:$C$58,0)),IF(alle_aar_valg=3,INDIRECT(Q$6&"_sam!BDU_institution_reg")*INDEX(PL!$F$11:$F$58,MATCH(Q6,PL!$C$11:$C$58,0)),INDIRECT(Q$6&"_sam!BDU_institution")*INDEX(PL!$F$11:$F$58,MATCH(Q6,PL!$C$11:$C$58,0))))))) -> 17911.53687 | R20: =IF(R$6="","",IF(R6='2024'!$B$2,(IF(alle_aar_valg=1,'2024'!BDU_institution*INDEX(PL!$F$11:$F$58,MATCH(R6,PL!$C$11:$C$58,0)),"Kan ikke vises")),IF(alle_aar_valg=1,INDIRECT(R$6&"!BDU_institution")*INDEX(PL!$F$11:$F$58,MATCH(R6,PL!$C$11:$C$58,0)),IF(alle_aar_valg=2,INDIRECT(R$6&"_sam!BDU_institution_sam")*INDEX(PL!$F$11:$F$58,MATCH(R6,PL!$C$11:$C$58,0)),IF(alle_aar_valg=3,INDIRECT(R$6&"_sam!BDU_institution_reg")*INDEX(PL!$F$11:$F$58,MATCH(R6,PL!$C$11:$C$58,0)),INDIRECT(R$6&"_sam!BDU_institution")*INDEX(PL!$F$11:$F$58,MATCH(R6,PL!$C$11:$C$58,0))))))) -> 29621.82 | S20: =IF(S$6="","",IF(S6='2024'!$B$2,(IF(alle_aar_valg=1,'2024'!BDU_institution*INDEX(PL!$F$11:$F$58,MATCH(S6,PL!$C$11:$C$58,0)),"Kan ikke vises")),IF(alle_aar_valg=1,INDIRECT(S$6&"!BDU_institution")*INDEX(PL!$F$11:$F$58,MATCH(S6,PL!$C$11:$C$58,0)),IF(alle_aar_valg=2,INDIRECT(S$6&"_sam!BDU_institution_sam")*INDEX(PL!$F$11:$F$58,MATCH(S6,PL!$C$11:$C$58,0)),IF(alle_aar_valg=3,INDIRECT(S$6&"_sam!BDU_institution_reg")*INDEX(PL!$F$11:$F$58,MATCH(S6,PL!$C$11:$C$58,0)),INDIRECT(S$6&"_sam!BDU_institution")*INDEX(PL!$F$11:$F$58,MATCH(S6,PL!$C$11:$C$58,0))))))) -> 41349 | T20: =IF(T$6="","",IF(T6='2024'!$B$2,(IF(alle_aar_valg=1,'2024'!BDU_institution*INDEX(PL!$F$11:$F$58,MATCH(T6,PL!$C$11:$C$58,0)),"Kan ikke vises")),IF(alle_aar_valg=1,INDIRECT(T$6&"!BDU_institution")*INDEX(PL!$F$11:$F$58,MATCH(T6,PL!$C$11:$C$58,0)),IF(alle_aar_valg=2,INDIRECT(T$6&"_sam!BDU_institution_sam")*INDEX(PL!$F$11:$F$58,MATCH(T6,PL!$C$11:$C$58,0)),IF(alle_aar_valg=3,INDIRECT(T$6&"_sam!BDU_institution_reg")*INDEX(PL!$F$11:$F$58,MATCH(T6,PL!$C$11:$C$58,0)),INDIRECT(T$6&"_sam!BDU_institution")*INDEX(PL!$F$11:$F$58,MATCH(T6,PL!$C$11:$C$58,0))))))) ->  | U20: =IF(U$6="","",IF(U6='2024'!$B$2,(IF(alle_aar_valg=1,'2024'!BDU_institution*INDEX(PL!$F$11:$F$58,MATCH(U6,PL!$C$11:$C$58,0)),"Kan ikke vises")),IF(alle_aar_valg=1,INDIRECT(U$6&"!BDU_institution")*INDEX(PL!$F$11:$F$58,MATCH(U6,PL!$C$11:$C$58,0)),IF(alle_aar_valg=2,INDIRECT(U$6&"_sam!BDU_institution_sam")*INDEX(PL!$F$11:$F$58,MATCH(U6,PL!$C$11:$C$58,0)),IF(alle_aar_valg=3,INDIRECT(U$6&"_sam!BDU_institution_reg")*INDEX(PL!$F$11:$F$58,MATCH(U6,PL!$C$11:$C$58,0)),INDIRECT(U$6&"_sam!BDU_institution")*INDEX(PL!$F$11:$F$58,MATCH(U6,PL!$C$11:$C$58,0))))))) ->  | V20: =IF(V$6="","",IF(V6='2024'!$B$2,(IF(alle_aar_valg=1,'2024'!BDU_institution*INDEX(PL!$F$11:$F$58,MATCH(V6,PL!$C$11:$C$58,0)),"Kan ikke vises")),IF(alle_aar_valg=1,INDIRECT(V$6&"!BDU_institution")*INDEX(PL!$F$11:$F$58,MATCH(V6,PL!$C$11:$C$58,0)),IF(alle_aar_valg=2,INDIRECT(V$6&"_sam!BDU_institution_sam")*INDEX(PL!$F$11:$F$58,MATCH(V6,PL!$C$11:$C$58,0)),IF(alle_aar_valg=3,INDIRECT(V$6&"_sam!BDU_institution_reg")*INDEX(PL!$F$11:$F$58,MATCH(V6,PL!$C$11:$C$58,0)),INDIRECT(V$6&"_sam!BDU_institution")*INDEX(PL!$F$11:$F$58,MATCH(V6,PL!$C$11:$C$58,0))))))) ->  | W20: =IF(W$6="","",IF(W6='2024'!$B$2,(IF(alle_aar_valg=1,'2024'!BDU_institution*INDEX(PL!$F$11:$F$58,MATCH(W6,PL!$C$11:$C$58,0)),"Kan ikke vises")),IF(alle_aar_valg=1,INDIRECT(W$6&"!BDU_institution")*INDEX(PL!$F$11:$F$58,MATCH(W6,PL!$C$11:$C$58,0)),IF(alle_aar_valg=2,INDIRECT(W$6&"_sam!BDU_institution_sam")*INDEX(PL!$F$11:$F$58,MATCH(W6,PL!$C$11:$C$58,0)),IF(alle_aar_valg=3,INDIRECT(W$6&"_sam!BDU_institution_reg")*INDEX(PL!$F$11:$F$58,MATCH(W6,PL!$C$11:$C$58,0)),INDIRECT(W$6&"_sam!BDU_institution")*INDEX(PL!$F$11:$F$58,MATCH(W6,PL!$C$11:$C$58,0))))))) -> 
B21: Ikke-trinspecifikke grupperinger | C21: =IF(C$6="","",IF(C6='2024'!$B$2,(IF(alle_aar_valg=1,'2024'!BDU_universal*INDEX(PL!$F$11:$F$58,MATCH(C6,PL!$C$11:$C$58,0)),"Kan ikke vises")),IF(alle_aar_valg=1,INDIRECT(C$6&"!BDU_universal")*INDEX(PL!$F$11:$F$58,MATCH(C6,PL!$C$11:$C$58,0)),IF(alle_aar_valg=2,INDIRECT(C$6&"_sam!BDU_universal_sam")*INDEX(PL!$F$11:$F$58,MATCH(C6,PL!$C$11:$C$58,0)),IF(alle_aar_valg=3,INDIRECT(C$6&"_sam!BDU_universal_reg")*INDEX(PL!$F$11:$F$58,MATCH(C6,PL!$C$11:$C$58,0)),INDIRECT(C$6&"_sam!BDU_universal")*INDEX(PL!$F$11:$F$58,MATCH(C6,PL!$C$11:$C$58,0))))))) -> -9337.789405 | D21: =IF(D$6="","",IF(D6='2024'!$B$2,(IF(alle_aar_valg=1,'2024'!BDU_universal*INDEX(PL!$F$11:$F$58,MATCH(D6,PL!$C$11:$C$58,0)),"Kan ikke vises")),IF(alle_aar_valg=1,INDIRECT(D$6&"!BDU_universal")*INDEX(PL!$F$11:$F$58,MATCH(D6,PL!$C$11:$C$58,0)),IF(alle_aar_valg=2,INDIRECT(D$6&"_sam!BDU_universal_sam")*INDEX(PL!$F$11:$F$58,MATCH(D6,PL!$C$11:$C$58,0)),IF(alle_aar_valg=3,INDIRECT(D$6&"_sam!BDU_universal_reg")*INDEX(PL!$F$11:$F$58,MATCH(D6,PL!$C$11:$C$58,0)),INDIRECT(D$6&"_sam!BDU_universal")*INDEX(PL!$F$11:$F$58,MATCH(D6,PL!$C$11:$C$58,0))))))) -> -7309.982394 | E21: =IF(E$6="","",IF(E6='2024'!$B$2,(IF(alle_aar_valg=1,'2024'!BDU_universal*INDEX(PL!$F$11:$F$58,MATCH(E6,PL!$C$11:$C$58,0)),"Kan ikke vises")),IF(alle_aar_valg=1,INDIRECT(E$6&"!BDU_universal")*INDEX(PL!$F$11:$F$58,MATCH(E6,PL!$C$11:$C$58,0)),IF(alle_aar_valg=2,INDIRECT(E$6&"_sam!BDU_universal_sam")*INDEX(PL!$F$11:$F$58,MATCH(E6,PL!$C$11:$C$58,0)),IF(alle_aar_valg=3,INDIRECT(E$6&"_sam!BDU_universal_reg")*INDEX(PL!$F$11:$F$58,MATCH(E6,PL!$C$11:$C$58,0)),INDIRECT(E$6&"_sam!BDU_universal")*INDEX(PL!$F$11:$F$58,MATCH(E6,PL!$C$11:$C$58,0))))))) -> 14088.15111 | F21: =IF(F$6="","",IF(F6='2024'!$B$2,(IF(alle_aar_valg=1,'2024'!BDU_universal*INDEX(PL!$F$11:$F$58,MATCH(F6,PL!$C$11:$C$58,0)),"Kan ikke vises")),IF(alle_aar_valg=1,INDIRECT(F$6&"!BDU_universal")*INDEX(PL!$F$11:$F$58,MATCH(F6,PL!$C$11:$C$58,0)),IF(alle_aar_valg=2,INDIRECT(F$6&"_sam!BDU_universal_sam")*INDEX(PL!$F$11:$F$58,MATCH(F6,PL!$C$11:$C$58,0)),IF(alle_aar_valg=3,INDIRECT(F$6&"_sam!BDU_universal_reg")*INDEX(PL!$F$11:$F$58,MATCH(F6,PL!$C$11:$C$58,0)),INDIRECT(F$6&"_sam!BDU_universal")*INDEX(PL!$F$11:$F$58,MATCH(F6,PL!$C$11:$C$58,0))))))) -> 18819.09307 | G21: =IF(G$6="","",IF(G6='2024'!$B$2,(IF(alle_aar_valg=1,'2024'!BDU_universal*INDEX(PL!$F$11:$F$58,MATCH(G6,PL!$C$11:$C$58,0)),"Kan ikke vises")),IF(alle_aar_valg=1,INDIRECT(G$6&"!BDU_universal")*INDEX(PL!$F$11:$F$58,MATCH(G6,PL!$C$11:$C$58,0)),IF(alle_aar_valg=2,INDIRECT(G$6&"_sam!BDU_universal_sam")*INDEX(PL!$F$11:$F$58,MATCH(G6,PL!$C$11:$C$58,0)),IF(alle_aar_valg=3,INDIRECT(G$6&"_sam!BDU_universal_reg")*INDEX(PL!$F$11:$F$58,MATCH(G6,PL!$C$11:$C$58,0)),INDIRECT(G$6&"_sam!BDU_universal")*INDEX(PL!$F$11:$F$58,MATCH(G6,PL!$C$11:$C$58,0))))))) -> 17742.65092 | H21: =IF(H$6="","",IF(H6='2024'!$B$2,(IF(alle_aar_valg=1,'2024'!BDU_universal*INDEX(PL!$F$11:$F$58,MATCH(H6,PL!$C$11:$C$58,0)),"Kan ikke vises")),IF(alle_aar_valg=1,INDIRECT(H$6&"!BDU_universal")*INDEX(PL!$F$11:$F$58,MATCH(H6,PL!$C$11:$C$58,0)),IF(alle_aar_valg=2,INDIRECT(H$6&"_sam!BDU_universal_sam")*INDEX(PL!$F$11:$F$58,MATCH(H6,PL!$C$11:$C$58,0)),IF(alle_aar_valg=3,INDIRECT(H$6&"_sam!BDU_universal_reg")*INDEX(PL!$F$11:$F$58,MATCH(H6,PL!$C$11:$C$58,0)),INDIRECT(H$6&"_sam!BDU_universal")*INDEX(PL!$F$11:$F$58,MATCH(H6,PL!$C$11:$C$58,0))))))) -> 17323.14024 | I21: =IF(I$6="","",IF(I6='2024'!$B$2,(IF(alle_aar_valg=1,'2024'!BDU_universal*INDEX(PL!$F$11:$F$58,MATCH(I6,PL!$C$11:$C$58,0)),"Kan ikke vises")),IF(alle_aar_valg=1,INDIRECT(I$6&"!BDU_universal")*INDEX(PL!$F$11:$F$58,MATCH(I6,PL!$C$11:$C$58,0)),IF(alle_aar_valg=2,INDIRECT(I$6&"_sam!BDU_universal_sam")*INDEX(PL!$F$11:$F$58,MATCH(I6,PL!$C$11:$C$58,0)),IF(alle_aar_valg=3,INDIRECT(I$6&"_sam!BDU_universal_reg")*INDEX(PL!$F$11:$F$58,MATCH(I6,PL!$C$11:$C$58,0)),INDIRECT(I$6&"_sam!BDU_universal")*INDEX(PL!$F$11:$F$58,MATCH(I6,PL!$C$11:$C$58,0))))))) -> 27947.79124 | J21: =IF(J$6="","",IF(J6='2024'!$B$2,(IF(alle_aar_valg=1,'2024'!BDU_universal*INDEX(PL!$F$11:$F$58,MATCH(J6,PL!$C$11:$C$58,0)),"Kan ikke vises")),IF(alle_aar_valg=1,INDIRECT(J$6&"!BDU_universal")*INDEX(PL!$F$11:$F$58,MATCH(J6,PL!$C$11:$C$58,0)),IF(alle_aar_valg=2,INDIRECT(J$6&"_sam!BDU_universal_sam")*INDEX(PL!$F$11:$F$58,MATCH(J6,PL!$C$11:$C$58,0)),IF(alle_aar_valg=3,INDIRECT(J$6&"_sam!BDU_universal_reg")*INDEX(PL!$F$11:$F$58,MATCH(J6,PL!$C$11:$C$58,0)),INDIRECT(J$6&"_sam!BDU_universal")*INDEX(PL!$F$11:$F$58,MATCH(J6,PL!$C$11:$C$58,0))))))) -> 20611.46372 | K21: =IF(K$6="","",IF(K6='2024'!$B$2,(IF(alle_aar_valg=1,'2024'!BDU_universal*INDEX(PL!$F$11:$F$58,MATCH(K6,PL!$C$11:$C$58,0)),"Kan ikke vises")),IF(alle_aar_valg=1,INDIRECT(K$6&"!BDU_universal")*INDEX(PL!$F$11:$F$58,MATCH(K6,PL!$C$11:$C$58,0)),IF(alle_aar_valg=2,INDIRECT(K$6&"_sam!BDU_universal_sam")*INDEX(PL!$F$11:$F$58,MATCH(K6,PL!$C$11:$C$58,0)),IF(alle_aar_valg=3,INDIRECT(K$6&"_sam!BDU_universal_reg")*INDEX(PL!$F$11:$F$58,MATCH(K6,PL!$C$11:$C$58,0)),INDIRECT(K$6&"_sam!BDU_universal")*INDEX(PL!$F$11:$F$58,MATCH(K6,PL!$C$11:$C$58,0))))))) -> 27479.20183 | L21: =IF(L$6="","",IF(L6='2024'!$B$2,(IF(alle_aar_valg=1,'2024'!BDU_universal*INDEX(PL!$F$11:$F$58,MATCH(L6,PL!$C$11:$C$58,0)),"Kan ikke vises")),IF(alle_aar_valg=1,INDIRECT(L$6&"!BDU_universal")*INDEX(PL!$F$11:$F$58,MATCH(L6,PL!$C$11:$C$58,0)),IF(alle_aar_valg=2,INDIRECT(L$6&"_sam!BDU_universal_sam")*INDEX(PL!$F$11:$F$58,MATCH(L6,PL!$C$11:$C$58,0)),IF(alle_aar_valg=3,INDIRECT(L$6&"_sam!BDU_universal_reg")*INDEX(PL!$F$11:$F$58,MATCH(L6,PL!$C$11:$C$58,0)),INDIRECT(L$6&"_sam!BDU_universal")*INDEX(PL!$F$11:$F$58,MATCH(L6,PL!$C$11:$C$58,0))))))) -> 31446.17486 | M21: =IF(M$6="","",IF(M6='2024'!$B$2,(IF(alle_aar_valg=1,'2024'!BDU_universal*INDEX(PL!$F$11:$F$58,MATCH(M6,PL!$C$11:$C$58,0)),"Kan ikke vises")),IF(alle_aar_valg=1,INDIRECT(M$6&"!BDU_universal")*INDEX(PL!$F$11:$F$58,MATCH(M6,PL!$C$11:$C$58,0)),IF(alle_aar_valg=2,INDIRECT(M$6&"_sam!BDU_universal_sam")*INDEX(PL!$F$11:$F$58,MATCH(M6,PL!$C$11:$C$58,0)),IF(alle_aar_valg=3,INDIRECT(M$6&"_sam!BDU_universal_reg")*INDEX(PL!$F$11:$F$58,MATCH(M6,PL!$C$11:$C$58,0)),INDIRECT(M$6&"_sam!BDU_universal")*INDEX(PL!$F$11:$F$58,MATCH(M6,PL!$C$11:$C$58,0))))))) -> 29436.92235 | N21: =IF(N$6="","",IF(N6='2024'!$B$2,(IF(alle_aar_valg=1,'2024'!BDU_universal*INDEX(PL!$F$11:$F$58,MATCH(N6,PL!$C$11:$C$58,0)),"Kan ikke vises")),IF(alle_aar_valg=1,INDIRECT(N$6&"!BDU_universal")*INDEX(PL!$F$11:$F$58,MATCH(N6,PL!$C$11:$C$58,0)),IF(alle_aar_valg=2,INDIRECT(N$6&"_sam!BDU_universal_sam")*INDEX(PL!$F$11:$F$58,MATCH(N6,PL!$C$11:$C$58,0)),IF(alle_aar_valg=3,INDIRECT(N$6&"_sam!BDU_universal_reg")*INDEX(PL!$F$11:$F$58,MATCH(N6,PL!$C$11:$C$58,0)),INDIRECT(N$6&"_sam!BDU_universal")*INDEX(PL!$F$11:$F$58,MATCH(N6,PL!$C$11:$C$58,0))))))) -> 29335.8108 | O21: =IF(O$6="","",IF(O6='2024'!$B$2,(IF(alle_aar_valg=1,'2024'!BDU_universal*INDEX(PL!$F$11:$F$58,MATCH(O6,PL!$C$11:$C$58,0)),"Kan ikke vises")),IF(alle_aar_valg=1,INDIRECT(O$6&"!BDU_universal")*INDEX(PL!$F$11:$F$58,MATCH(O6,PL!$C$11:$C$58,0)),IF(alle_aar_valg=2,INDIRECT(O$6&"_sam!BDU_universal_sam")*INDEX(PL!$F$11:$F$58,MATCH(O6,PL!$C$11:$C$58,0)),IF(alle_aar_valg=3,INDIRECT(O$6&"_sam!BDU_universal_reg")*INDEX(PL!$F$11:$F$58,MATCH(O6,PL!$C$11:$C$58,0)),INDIRECT(O$6&"_sam!BDU_universal")*INDEX(PL!$F$11:$F$58,MATCH(O6,PL!$C$11:$C$58,0))))))) -> 29810.27805 | P21: =IF(P$6="","",IF(P6='2024'!$B$2,(IF(alle_aar_valg=1,'2024'!BDU_universal*INDEX(PL!$F$11:$F$58,MATCH(P6,PL!$C$11:$C$58,0)),"Kan ikke vises")),IF(alle_aar_valg=1,INDIRECT(P$6&"!BDU_universal")*INDEX(PL!$F$11:$F$58,MATCH(P6,PL!$C$11:$C$58,0)),IF(alle_aar_valg=2,INDIRECT(P$6&"_sam!BDU_universal_sam")*INDEX(PL!$F$11:$F$58,MATCH(P6,PL!$C$11:$C$58,0)),IF(alle_aar_valg=3,INDIRECT(P$6&"_sam!BDU_universal_reg")*INDEX(PL!$F$11:$F$58,MATCH(P6,PL!$C$11:$C$58,0)),INDIRECT(P$6&"_sam!BDU_universal")*INDEX(PL!$F$11:$F$58,MATCH(P6,PL!$C$11:$C$58,0))))))) -> 30758.76845 | Q21: =IF(Q$6="","",IF(Q6='2024'!$B$2,(IF(alle_aar_valg=1,'2024'!BDU_universal*INDEX(PL!$F$11:$F$58,MATCH(Q6,PL!$C$11:$C$58,0)),"Kan ikke vises")),IF(alle_aar_valg=1,INDIRECT(Q$6&"!BDU_universal")*INDEX(PL!$F$11:$F$58,MATCH(Q6,PL!$C$11:$C$58,0)),IF(alle_aar_valg=2,INDIRECT(Q$6&"_sam!BDU_universal_sam")*INDEX(PL!$F$11:$F$58,MATCH(Q6,PL!$C$11:$C$58,0)),IF(alle_aar_valg=3,INDIRECT(Q$6&"_sam!BDU_universal_reg")*INDEX(PL!$F$11:$F$58,MATCH(Q6,PL!$C$11:$C$58,0)),INDIRECT(Q$6&"_sam!BDU_universal")*INDEX(PL!$F$11:$F$58,MATCH(Q6,PL!$C$11:$C$58,0))))))) -> 30714.62923 | R21: =IF(R$6="","",IF(R6='2024'!$B$2,(IF(alle_aar_valg=1,'2024'!BDU_universal*INDEX(PL!$F$11:$F$58,MATCH(R6,PL!$C$11:$C$58,0)),"Kan ikke vises")),IF(alle_aar_valg=1,INDIRECT(R$6&"!BDU_universal")*INDEX(PL!$F$11:$F$58,MATCH(R6,PL!$C$11:$C$58,0)),IF(alle_aar_valg=2,INDIRECT(R$6&"_sam!BDU_universal_sam")*INDEX(PL!$F$11:$F$58,MATCH(R6,PL!$C$11:$C$58,0)),IF(alle_aar_valg=3,INDIRECT(R$6&"_sam!BDU_universal_reg")*INDEX(PL!$F$11:$F$58,MATCH(R6,PL!$C$11:$C$58,0)),INDIRECT(R$6&"_sam!BDU_universal")*INDEX(PL!$F$11:$F$58,MATCH(R6,PL!$C$11:$C$58,0))))))) -> 32264.808 | S21: =IF(S$6="","",IF(S6='2024'!$B$2,(IF(alle_aar_valg=1,'2024'!BDU_universal*INDEX(PL!$F$11:$F$58,MATCH(S6,PL!$C$11:$C$58,0)),"Kan ikke vises")),IF(alle_aar_valg=1,INDIRECT(S$6&"!BDU_universal")*INDEX(PL!$F$11:$F$58,MATCH(S6,PL!$C$11:$C$58,0)),IF(alle_aar_valg=2,INDIRECT(S$6&"_sam!BDU_universal_sam")*INDEX(PL!$F$11:$F$58,MATCH(S6,PL!$C$11:$C$58,0)),IF(alle_aar_valg=3,INDIRECT(S$6&"_sam!BDU_universal_reg")*INDEX(PL!$F$11:$F$58,MATCH(S6,PL!$C$11:$C$58,0)),INDIRECT(S$6&"_sam!BDU_universal")*INDEX(PL!$F$11:$F$58,MATCH(S6,PL!$C$11:$C$58,0))))))) -> 35465 | T21: =IF(T$6="","",IF(T6='2024'!$B$2,(IF(alle_aar_valg=1,'2024'!BDU_universal*INDEX(PL!$F$11:$F$58,MATCH(T6,PL!$C$11:$C$58,0)),"Kan ikke vises")),IF(alle_aar_valg=1,INDIRECT(T$6&"!BDU_universal")*INDEX(PL!$F$11:$F$58,MATCH(T6,PL!$C$11:$C$58,0)),IF(alle_aar_valg=2,INDIRECT(T$6&"_sam!BDU_universal_sam")*INDEX(PL!$F$11:$F$58,MATCH(T6,PL!$C$11:$C$58,0)),IF(alle_aar_valg=3,INDIRECT(T$6&"_sam!BDU_universal_reg")*INDEX(PL!$F$11:$F$58,MATCH(T6,PL!$C$11:$C$58,0)),INDIRECT(T$6&"_sam!BDU_universal")*INDEX(PL!$F$11:$F$58,MATCH(T6,PL!$C$11:$C$58,0))))))) ->  | U21: =IF(U$6="","",IF(U6='2024'!$B$2,(IF(alle_aar_valg=1,'2024'!BDU_universal*INDEX(PL!$F$11:$F$58,MATCH(U6,PL!$C$11:$C$58,0)),"Kan ikke vises")),IF(alle_aar_valg=1,INDIRECT(U$6&"!BDU_universal")*INDEX(PL!$F$11:$F$58,MATCH(U6,PL!$C$11:$C$58,0)),IF(alle_aar_valg=2,INDIRECT(U$6&"_sam!BDU_universal_sam")*INDEX(PL!$F$11:$F$58,MATCH(U6,PL!$C$11:$C$58,0)),IF(alle_aar_valg=3,INDIRECT(U$6&"_sam!BDU_universal_reg")*INDEX(PL!$F$11:$F$58,MATCH(U6,PL!$C$11:$C$58,0)),INDIRECT(U$6&"_sam!BDU_universal")*INDEX(PL!$F$11:$F$58,MATCH(U6,PL!$C$11:$C$58,0))))))) ->  | V21: =IF(V$6="","",IF(V6='2024'!$B$2,(IF(alle_aar_valg=1,'2024'!BDU_universal*INDEX(PL!$F$11:$F$58,MATCH(V6,PL!$C$11:$C$58,0)),"Kan ikke vises")),IF(alle_aar_valg=1,INDIRECT(V$6&"!BDU_universal")*INDEX(PL!$F$11:$F$58,MATCH(V6,PL!$C$11:$C$58,0)),IF(alle_aar_valg=2,INDIRECT(V$6&"_sam!BDU_universal_sam")*INDEX(PL!$F$11:$F$58,MATCH(V6,PL!$C$11:$C$58,0)),IF(alle_aar_valg=3,INDIRECT(V$6&"_sam!BDU_universal_reg")*INDEX(PL!$F$11:$F$58,MATCH(V6,PL!$C$11:$C$58,0)),INDIRECT(V$6&"_sam!BDU_universal")*INDEX(PL!$F$11:$F$58,MATCH(V6,PL!$C$11:$C$58,0))))))) ->  | W21: =IF(W$6="","",IF(W6='2024'!$B$2,(IF(alle_aar_valg=1,'2024'!BDU_universal*INDEX(PL!$F$11:$F$58,MATCH(W6,PL!$C$11:$C$58,0)),"Kan ikke vises")),IF(alle_aar_valg=1,INDIRECT(W$6&"!BDU_universal")*INDEX(PL!$F$11:$F$58,MATCH(W6,PL!$C$11:$C$58,0)),IF(alle_aar_valg=2,INDIRECT(W$6&"_sam!BDU_universal_sam")*INDEX(PL!$F$11:$F$58,MATCH(W6,PL!$C$11:$C$58,0)),IF(alle_aar_valg=3,INDIRECT(W$6&"_sam!BDU_universal_reg")*INDEX(PL!$F$11:$F$58,MATCH(W6,PL!$C$11:$C$58,0)),INDIRECT(W$6&"_sam!BDU_universal")*INDEX(PL!$F$11:$F$58,MATCH(W6,PL!$C$11:$C$58,0))))))) -> 
B22: Refusioner | C22: =IF(C$6="","",IF(C6='2024'!$B$2,(IF(alle_aar_valg=1,[0]!Ref*INDEX(PL!$F$11:$F$58,MATCH(C6,PL!$C$11:$C$58,0)),"Kan ikke vises")),IF(alle_aar_valg=1,INDIRECT(C$6&"!Ref")*INDEX(PL!$F$11:$F$58,MATCH(C6,PL!$C$11:$C$58,0)),IF(alle_aar_valg=2,INDIRECT(C$6&"_sam!Ref_sam")*INDEX(PL!$F$11:$F$58,MATCH(C6,PL!$C$11:$C$58,0)),IF(alle_aar_valg=3,INDIRECT(C$6&"_sam!Ref_reg")*INDEX(PL!$F$11:$F$58,MATCH(C6,PL!$C$11:$C$58,0)),INDIRECT(C$6&"_sam!Ref")*INDEX(PL!$F$11:$F$58,MATCH(C6,PL!$C$11:$C$58,0))))))) -> -8689.683275 | D22: =IF(D$6="","",IF(D6='2024'!$B$2,(IF(alle_aar_valg=1,[0]!Ref*INDEX(PL!$F$11:$F$58,MATCH(D6,PL!$C$11:$C$58,0)),"Kan ikke vises")),IF(alle_aar_valg=1,INDIRECT(D$6&"!Ref")*INDEX(PL!$F$11:$F$58,MATCH(D6,PL!$C$11:$C$58,0)),IF(alle_aar_valg=2,INDIRECT(D$6&"_sam!Ref_sam")*INDEX(PL!$F$11:$F$58,MATCH(D6,PL!$C$11:$C$58,0)),IF(alle_aar_valg=3,INDIRECT(D$6&"_sam!Ref_reg")*INDEX(PL!$F$11:$F$58,MATCH(D6,PL!$C$11:$C$58,0)),INDIRECT(D$6&"_sam!Ref")*INDEX(PL!$F$11:$F$58,MATCH(D6,PL!$C$11:$C$58,0))))))) -> -7692.292304 | E22: =IF(E$6="","",IF(E6='2024'!$B$2,(IF(alle_aar_valg=1,[0]!Ref*INDEX(PL!$F$11:$F$58,MATCH(E6,PL!$C$11:$C$58,0)),"Kan ikke vises")),IF(alle_aar_valg=1,INDIRECT(E$6&"!Ref")*INDEX(PL!$F$11:$F$58,MATCH(E6,PL!$C$11:$C$58,0)),IF(alle_aar_valg=2,INDIRECT(E$6&"_sam!Ref_sam")*INDEX(PL!$F$11:$F$58,MATCH(E6,PL!$C$11:$C$58,0)),IF(alle_aar_valg=3,INDIRECT(E$6&"_sam!Ref_reg")*INDEX(PL!$F$11:$F$58,MATCH(E6,PL!$C$11:$C$58,0)),INDIRECT(E$6&"_sam!Ref")*INDEX(PL!$F$11:$F$58,MATCH(E6,PL!$C$11:$C$58,0))))))) -> -3485.176587 | F22: =IF(F$6="","",IF(F6='2024'!$B$2,(IF(alle_aar_valg=1,[0]!Ref*INDEX(PL!$F$11:$F$58,MATCH(F6,PL!$C$11:$C$58,0)),"Kan ikke vises")),IF(alle_aar_valg=1,INDIRECT(F$6&"!Ref")*INDEX(PL!$F$11:$F$58,MATCH(F6,PL!$C$11:$C$58,0)),IF(alle_aar_valg=2,INDIRECT(F$6&"_sam!Ref_sam")*INDEX(PL!$F$11:$F$58,MATCH(F6,PL!$C$11:$C$58,0)),IF(alle_aar_valg=3,INDIRECT(F$6&"_sam!Ref_reg")*INDEX(PL!$F$11:$F$58,MATCH(F6,PL!$C$11:$C$58,0)),INDIRECT(F$6&"_sam!Ref")*INDEX(PL!$F$11:$F$58,MATCH(F6,PL!$C$11:$C$58,0))))))) -> -2064.381344 | G22: =IF(G$6="","",IF(G6='2024'!$B$2,(IF(alle_aar_valg=1,[0]!Ref*INDEX(PL!$F$11:$F$58,MATCH(G6,PL!$C$11:$C$58,0)),"Kan ikke vises")),IF(alle_aar_valg=1,INDIRECT(G$6&"!Ref")*INDEX(PL!$F$11:$F$58,MATCH(G6,PL!$C$11:$C$58,0)),IF(alle_aar_valg=2,INDIRECT(G$6&"_sam!Ref_sam")*INDEX(PL!$F$11:$F$58,MATCH(G6,PL!$C$11:$C$58,0)),IF(alle_aar_valg=3,INDIRECT(G$6&"_sam!Ref_reg")*INDEX(PL!$F$11:$F$58,MATCH(G6,PL!$C$11:$C$58,0)),INDIRECT(G$6&"_sam!Ref")*INDEX(PL!$F$11:$F$58,MATCH(G6,PL!$C$11:$C$58,0))))))) -> -1430.778186 | H22: =IF(H$6="","",IF(H6='2024'!$B$2,(IF(alle_aar_valg=1,[0]!Ref*INDEX(PL!$F$11:$F$58,MATCH(H6,PL!$C$11:$C$58,0)),"Kan ikke vises")),IF(alle_aar_valg=1,INDIRECT(H$6&"!Ref")*INDEX(PL!$F$11:$F$58,MATCH(H6,PL!$C$11:$C$58,0)),IF(alle_aar_valg=2,INDIRECT(H$6&"_sam!Ref_sam")*INDEX(PL!$F$11:$F$58,MATCH(H6,PL!$C$11:$C$58,0)),IF(alle_aar_valg=3,INDIRECT(H$6&"_sam!Ref_reg")*INDEX(PL!$F$11:$F$58,MATCH(H6,PL!$C$11:$C$58,0)),INDIRECT(H$6&"_sam!Ref")*INDEX(PL!$F$11:$F$58,MATCH(H6,PL!$C$11:$C$58,0))))))) -> -1553.716127 | I22: =IF(I$6="","",IF(I6='2024'!$B$2,(IF(alle_aar_valg=1,[0]!Ref*INDEX(PL!$F$11:$F$58,MATCH(I6,PL!$C$11:$C$58,0)),"Kan ikke vises")),IF(alle_aar_valg=1,INDIRECT(I$6&"!Ref")*INDEX(PL!$F$11:$F$58,MATCH(I6,PL!$C$11:$C$58,0)),IF(alle_aar_valg=2,INDIRECT(I$6&"_sam!Ref_sam")*INDEX(PL!$F$11:$F$58,MATCH(I6,PL!$C$11:$C$58,0)),IF(alle_aar_valg=3,INDIRECT(I$6&"_sam!Ref_reg")*INDEX(PL!$F$11:$F$58,MATCH(I6,PL!$C$11:$C$58,0)),INDIRECT(I$6&"_sam!Ref")*INDEX(PL!$F$11:$F$58,MATCH(I6,PL!$C$11:$C$58,0))))))) -> -4510.90979 | J22: =IF(J$6="","",IF(J6='2024'!$B$2,(IF(alle_aar_valg=1,[0]!Ref*INDEX(PL!$F$11:$F$58,MATCH(J6,PL!$C$11:$C$58,0)),"Kan ikke vises")),IF(alle_aar_valg=1,INDIRECT(J$6&"!Ref")*INDEX(PL!$F$11:$F$58,MATCH(J6,PL!$C$11:$C$58,0)),IF(alle_aar_valg=2,INDIRECT(J$6&"_sam!Ref_sam")*INDEX(PL!$F$11:$F$58,MATCH(J6,PL!$C$11:$C$58,0)),IF(alle_aar_valg=3,INDIRECT(J$6&"_sam!Ref_reg")*INDEX(PL!$F$11:$F$58,MATCH(J6,PL!$C$11:$C$58,0)),INDIRECT(J$6&"_sam!Ref")*INDEX(PL!$F$11:$F$58,MATCH(J6,PL!$C$11:$C$58,0))))))) -> -3512.82938 | K22: =IF(K$6="","",IF(K6='2024'!$B$2,(IF(alle_aar_valg=1,[0]!Ref*INDEX(PL!$F$11:$F$58,MATCH(K6,PL!$C$11:$C$58,0)),"Kan ikke vises")),IF(alle_aar_valg=1,INDIRECT(K$6&"!Ref")*INDEX(PL!$F$11:$F$58,MATCH(K6,PL!$C$11:$C$58,0)),IF(alle_aar_valg=2,INDIRECT(K$6&"_sam!Ref_sam")*INDEX(PL!$F$11:$F$58,MATCH(K6,PL!$C$11:$C$58,0)),IF(alle_aar_valg=3,INDIRECT(K$6&"_sam!Ref_reg")*INDEX(PL!$F$11:$F$58,MATCH(K6,PL!$C$11:$C$58,0)),INDIRECT(K$6&"_sam!Ref")*INDEX(PL!$F$11:$F$58,MATCH(K6,PL!$C$11:$C$58,0))))))) -> -2236.569717 | L22: =IF(L$6="","",IF(L6='2024'!$B$2,(IF(alle_aar_valg=1,[0]!Ref*INDEX(PL!$F$11:$F$58,MATCH(L6,PL!$C$11:$C$58,0)),"Kan ikke vises")),IF(alle_aar_valg=1,INDIRECT(L$6&"!Ref")*INDEX(PL!$F$11:$F$58,MATCH(L6,PL!$C$11:$C$58,0)),IF(alle_aar_valg=2,INDIRECT(L$6&"_sam!Ref_sam")*INDEX(PL!$F$11:$F$58,MATCH(L6,PL!$C$11:$C$58,0)),IF(alle_aar_valg=3,INDIRECT(L$6&"_sam!Ref_reg")*INDEX(PL!$F$11:$F$58,MATCH(L6,PL!$C$11:$C$58,0)),INDIRECT(L$6&"_sam!Ref")*INDEX(PL!$F$11:$F$58,MATCH(L6,PL!$C$11:$C$58,0))))))) -> -4230.28135 | M22: =IF(M$6="","",IF(M6='2024'!$B$2,(IF(alle_aar_valg=1,[0]!Ref*INDEX(PL!$F$11:$F$58,MATCH(M6,PL!$C$11:$C$58,0)),"Kan ikke vises")),IF(alle_aar_valg=1,INDIRECT(M$6&"!Ref")*INDEX(PL!$F$11:$F$58,MATCH(M6,PL!$C$11:$C$58,0)),IF(alle_aar_valg=2,INDIRECT(M$6&"_sam!Ref_sam")*INDEX(PL!$F$11:$F$58,MATCH(M6,PL!$C$11:$C$58,0)),IF(alle_aar_valg=3,INDIRECT(M$6&"_sam!Ref_reg")*INDEX(PL!$F$11:$F$58,MATCH(M6,PL!$C$11:$C$58,0)),INDIRECT(M$6&"_sam!Ref")*INDEX(PL!$F$11:$F$58,MATCH(M6,PL!$C$11:$C$58,0))))))) -> -3745.833844 | N22: =IF(N$6="","",IF(N6='2024'!$B$2,(IF(alle_aar_valg=1,[0]!Ref*INDEX(PL!$F$11:$F$58,MATCH(N6,PL!$C$11:$C$58,0)),"Kan ikke vises")),IF(alle_aar_valg=1,INDIRECT(N$6&"!Ref")*INDEX(PL!$F$11:$F$58,MATCH(N6,PL!$C$11:$C$58,0)),IF(alle_aar_valg=2,INDIRECT(N$6&"_sam!Ref_sam")*INDEX(PL!$F$11:$F$58,MATCH(N6,PL!$C$11:$C$58,0)),IF(alle_aar_valg=3,INDIRECT(N$6&"_sam!Ref_reg")*INDEX(PL!$F$11:$F$58,MATCH(N6,PL!$C$11:$C$58,0)),INDIRECT(N$6&"_sam!Ref")*INDEX(PL!$F$11:$F$58,MATCH(N6,PL!$C$11:$C$58,0))))))) -> -3322.138589 | O22: =IF(O$6="","",IF(O6='2024'!$B$2,(IF(alle_aar_valg=1,[0]!Ref*INDEX(PL!$F$11:$F$58,MATCH(O6,PL!$C$11:$C$58,0)),"Kan ikke vises")),IF(alle_aar_valg=1,INDIRECT(O$6&"!Ref")*INDEX(PL!$F$11:$F$58,MATCH(O6,PL!$C$11:$C$58,0)),IF(alle_aar_valg=2,INDIRECT(O$6&"_sam!Ref_sam")*INDEX(PL!$F$11:$F$58,MATCH(O6,PL!$C$11:$C$58,0)),IF(alle_aar_valg=3,INDIRECT(O$6&"_sam!Ref_reg")*INDEX(PL!$F$11:$F$58,MATCH(O6,PL!$C$11:$C$58,0)),INDIRECT(O$6&"_sam!Ref")*INDEX(PL!$F$11:$F$58,MATCH(O6,PL!$C$11:$C$58,0))))))) -> -4335.77881 | P22: =IF(P$6="","",IF(P6='2024'!$B$2,(IF(alle_aar_valg=1,[0]!Ref*INDEX(PL!$F$11:$F$58,MATCH(P6,PL!$C$11:$C$58,0)),"Kan ikke vises")),IF(alle_aar_valg=1,INDIRECT(P$6&"!Ref")*INDEX(PL!$F$11:$F$58,MATCH(P6,PL!$C$11:$C$58,0)),IF(alle_aar_valg=2,INDIRECT(P$6&"_sam!Ref_sam")*INDEX(PL!$F$11:$F$58,MATCH(P6,PL!$C$11:$C$58,0)),IF(alle_aar_valg=3,INDIRECT(P$6&"_sam!Ref_reg")*INDEX(PL!$F$11:$F$58,MATCH(P6,PL!$C$11:$C$58,0)),INDIRECT(P$6&"_sam!Ref")*INDEX(PL!$F$11:$F$58,MATCH(P6,PL!$C$11:$C$58,0))))))) -> -3656.167679 | Q22: =IF(Q$6="","",IF(Q6='2024'!$B$2,(IF(alle_aar_valg=1,[0]!Ref*INDEX(PL!$F$11:$F$58,MATCH(Q6,PL!$C$11:$C$58,0)),"Kan ikke vises")),IF(alle_aar_valg=1,INDIRECT(Q$6&"!Ref")*INDEX(PL!$F$11:$F$58,MATCH(Q6,PL!$C$11:$C$58,0)),IF(alle_aar_valg=2,INDIRECT(Q$6&"_sam!Ref_sam")*INDEX(PL!$F$11:$F$58,MATCH(Q6,PL!$C$11:$C$58,0)),IF(alle_aar_valg=3,INDIRECT(Q$6&"_sam!Ref_reg")*INDEX(PL!$F$11:$F$58,MATCH(Q6,PL!$C$11:$C$58,0)),INDIRECT(Q$6&"_sam!Ref")*INDEX(PL!$F$11:$F$58,MATCH(Q6,PL!$C$11:$C$58,0))))))) -> -6759.734276 | R22: =IF(R$6="","",IF(R6='2024'!$B$2,(IF(alle_aar_valg=1,[0]!Ref*INDEX(PL!$F$11:$F$58,MATCH(R6,PL!$C$11:$C$58,0)),"Kan ikke vises")),IF(alle_aar_valg=1,INDIRECT(R$6&"!Ref")*INDEX(PL!$F$11:$F$58,MATCH(R6,PL!$C$11:$C$58,0)),IF(alle_aar_valg=2,INDIRECT(R$6&"_sam!Ref_sam")*INDEX(PL!$F$11:$F$58,MATCH(R6,PL!$C$11:$C$58,0)),IF(alle_aar_valg=3,INDIRECT(R$6&"_sam!Ref_reg")*INDEX(PL!$F$11:$F$58,MATCH(R6,PL!$C$11:$C$58,0)),INDIRECT(R$6&"_sam!Ref")*INDEX(PL!$F$11:$F$58,MATCH(R6,PL!$C$11:$C$58,0))))))) -> -14923.476 | S22: =IF(S$6="","",IF(S6='2024'!$B$2,(IF(alle_aar_valg=1,[0]!Ref*INDEX(PL!$F$11:$F$58,MATCH(S6,PL!$C$11:$C$58,0)),"Kan ikke vises")),IF(alle_aar_valg=1,INDIRECT(S$6&"!Ref")*INDEX(PL!$F$11:$F$58,MATCH(S6,PL!$C$11:$C$58,0)),IF(alle_aar_valg=2,INDIRECT(S$6&"_sam!Ref_sam")*INDEX(PL!$F$11:$F$58,MATCH(S6,PL!$C$11:$C$58,0)),IF(alle_aar_valg=3,INDIRECT(S$6&"_sam!Ref_reg")*INDEX(PL!$F$11:$F$58,MATCH(S6,PL!$C$11:$C$58,0)),INDIRECT(S$6&"_sam!Ref")*INDEX(PL!$F$11:$F$58,MATCH(S6,PL!$C$11:$C$58,0))))))) -> -29896 | T22: =IF(T$6="","",IF(T6='2024'!$B$2,(IF(alle_aar_valg=1,[0]!Ref*INDEX(PL!$F$11:$F$58,MATCH(T6,PL!$C$11:$C$58,0)),"Kan ikke vises")),IF(alle_aar_valg=1,INDIRECT(T$6&"!Ref")*INDEX(PL!$F$11:$F$58,MATCH(T6,PL!$C$11:$C$58,0)),IF(alle_aar_valg=2,INDIRECT(T$6&"_sam!Ref_sam")*INDEX(PL!$F$11:$F$58,MATCH(T6,PL!$C$11:$C$58,0)),IF(alle_aar_valg=3,INDIRECT(T$6&"_sam!Ref_reg")*INDEX(PL!$F$11:$F$58,MATCH(T6,PL!$C$11:$C$58,0)),INDIRECT(T$6&"_sam!Ref")*INDEX(PL!$F$11:$F$58,MATCH(T6,PL!$C$11:$C$58,0))))))) ->  | U22: =IF(U$6="","",IF(U6='2024'!$B$2,(IF(alle_aar_valg=1,[0]!Ref*INDEX(PL!$F$11:$F$58,MATCH(U6,PL!$C$11:$C$58,0)),"Kan ikke vises")),IF(alle_aar_valg=1,INDIRECT(U$6&"!Ref")*INDEX(PL!$F$11:$F$58,MATCH(U6,PL!$C$11:$C$58,0)),IF(alle_aar_valg=2,INDIRECT(U$6&"_sam!Ref_sam")*INDEX(PL!$F$11:$F$58,MATCH(U6,PL!$C$11:$C$58,0)),IF(alle_aar_valg=3,INDIRECT(U$6&"_sam!Ref_reg")*INDEX(PL!$F$11:$F$58,MATCH(U6,PL!$C$11:$C$58,0)),INDIRECT(U$6&"_sam!Ref")*INDEX(PL!$F$11:$F$58,MATCH(U6,PL!$C$11:$C$58,0))))))) ->  | V22: =IF(V$6="","",IF(V6='2024'!$B$2,(IF(alle_aar_valg=1,[0]!Ref*INDEX(PL!$F$11:$F$58,MATCH(V6,PL!$C$11:$C$58,0)),"Kan ikke vises")),IF(alle_aar_valg=1,INDIRECT(V$6&"!Ref")*INDEX(PL!$F$11:$F$58,MATCH(V6,PL!$C$11:$C$58,0)),IF(alle_aar_valg=2,INDIRECT(V$6&"_sam!Ref_sam")*INDEX(PL!$F$11:$F$58,MATCH(V6,PL!$C$11:$C$58,0)),IF(alle_aar_valg=3,INDIRECT(V$6&"_sam!Ref_reg")*INDEX(PL!$F$11:$F$58,MATCH(V6,PL!$C$11:$C$58,0)),INDIRECT(V$6&"_sam!Ref")*INDEX(PL!$F$11:$F$58,MATCH(V6,PL!$C$11:$C$58,0))))))) ->  | W22: =IF(W$6="","",IF(W6='2024'!$B$2,(IF(alle_aar_valg=1,[0]!Ref*INDEX(PL!$F$11:$F$58,MATCH(W6,PL!$C$11:$C$58,0)),"Kan ikke vises")),IF(alle_aar_valg=1,INDIRECT(W$6&"!Ref")*INDEX(PL!$F$11:$F$58,MATCH(W6,PL!$C$11:$C$58,0)),IF(alle_aar_valg=2,INDIRECT(W$6&"_sam!Ref_sam")*INDEX(PL!$F$11:$F$58,MATCH(W6,PL!$C$11:$C$58,0)),IF(alle_aar_valg=3,INDIRECT(W$6&"_sam!Ref_reg")*INDEX(PL!$F$11:$F$58,MATCH(W6,PL!$C$11:$C$58,0)),INDIRECT(W$6&"_sam!Ref")*INDEX(PL!$F$11:$F$58,MATCH(W6,PL!$C$11:$C$58,0))))))) -> 
B26: =IF(figur4_valg=1,"Udgifter i alt pr. barn, kr., "&Prisår&"-priser",IF(figur4_valg=2,"Administrationsudgifter pr. barn, kr., "&Prisår&"-priser","Serviceudgifter pr. barn, kr., "&Prisår&"-priser")) -> Serviceudgifter pr. barn, kr., 2023-priser
C27: ='Dine valg'!$J$10 -> 2007 | D27: ='Dine valg'!$J$11 -> 2008 | E27: ='Dine valg'!$J$12 -> 2009 | F27: ='Dine valg'!$J$13 -> 2010 | G27: ='Dine valg'!$J$14 -> 2011 | H27: ='Dine valg'!$J$15 -> 2012 | I27: ='Dine valg'!$J$16 -> 2013 | J27: ='Dine valg'!$K$10 -> 2014 | K27: ='Dine valg'!$K$11 -> 2015 | L27: ='Dine valg'!$K$12 -> 2016 | M27: ='Dine valg'!$K$13 -> 2017 | N27: ='Dine valg'!$K$14 -> 2018 | O27: ='Dine valg'!$K$15 -> 2019 | P27: ='Dine valg'!$K$16 -> 2020 | Q27: ='Dine valg'!$L$10 -> 2021 | R27: ='Dine valg'!$L$11 -> 2022 | S27: ='Dine valg'!$L$12 -> 2023 | T27: ='Dine valg'!$L$13 ->  | U27: ='Dine valg'!$L$14 ->  | V27: ='Dine valg'!$L$15 ->  | W27: ='Dine valg'!$L$16 -> 
B28: =""&Kommune&"" -> Fredericia | C28: ="" ->  | D28: ="" ->  | E28: ="" ->  | F28: ="" ->  | G28: ="" ->  | H28: ="" ->  | I28: ="" ->  | J28: ="" ->  | K28: ="" ->  | L28: ="" ->  | M28: ="" ->  | N28: ="" ->  | O28: ="" ->  | P28: ="" ->  | Q28: ="" -> 
B29: =IF(figur4_valg=1,"Udgifter i alt pr. barn, kr., "&Prisår&"-priser",IF(figur4_valg=2,"Administrationsudgifter pr. barn, kr., "&Prisår&"-priser","Serviceudgifter pr. barn, kr., "&Prisår&"-priser")) -> Serviceudgifter pr. barn, kr., 2023-priser | C29: =IF(figur4_valg=1,(INDIRECT(C$6&"!Samlede_NDU")*1000)/C$30,IF(figur4_valg=2,(INDIRECT(C$6&"!Administration")*1000)/C$30,(INDIRECT(C$6&"!NDU_service")*1000)/C$30)) -> 5768.339202 | D29: =IF(figur4_valg=1,(INDIRECT(D$6&"!Samlede_NDU")*1000)/D$30,IF(figur4_valg=2,(INDIRECT(D$6&"!Administration")*1000)/D$30,(INDIRECT(D$6&"!NDU_service")*1000)/D$30)) -> 5613.37967 | E29: =IF(figur4_valg=1,(INDIRECT(E$6&"!Samlede_NDU")*1000)/E$30,IF(figur4_valg=2,(INDIRECT(E$6&"!Administration")*1000)/E$30,(INDIRECT(E$6&"!NDU_service")*1000)/E$30)) -> 5979.587452 | F29: =IF(figur4_valg=1,(INDIRECT(F$6&"!Samlede_NDU")*1000)/F$30,IF(figur4_valg=2,(INDIRECT(F$6&"!Administration")*1000)/F$30,(INDIRECT(F$6&"!NDU_service")*1000)/F$30)) -> 5924.798631 | G29: =IF(figur4_valg=1,(INDIRECT(G$6&"!Samlede_NDU")*1000)/G$30,IF(figur4_valg=2,(INDIRECT(G$6&"!Administration")*1000)/G$30,(INDIRECT(G$6&"!NDU_service")*1000)/G$30)) -> 5989.04671 | H29: =IF(figur4_valg=1,(INDIRECT(H$6&"!Samlede_NDU")*1000)/H$30,IF(figur4_valg=2,(INDIRECT(H$6&"!Administration")*1000)/H$30,(INDIRECT(H$6&"!NDU_service")*1000)/H$30)) -> 5661.168776 | I29: =IF(figur4_valg=1,(INDIRECT(I$6&"!Samlede_NDU")*1000)/I$30,IF(figur4_valg=2,(INDIRECT(I$6&"!Administration")*1000)/I$30,(INDIRECT(I$6&"!NDU_service")*1000)/I$30)) -> 6530.704865 | J29: =IF(figur4_valg=1,(INDIRECT(J$6&"!Samlede_NDU")*1000)/J$30,IF(figur4_valg=2,(INDIRECT(J$6&"!Administration")*1000)/J$30,(INDIRECT(J$6&"!NDU_service")*1000)/J$30)) -> 5622.223814 | K29: =IF(figur4_valg=1,(INDIRECT(K$6&"!Samlede_NDU")*1000)/K$30,IF(figur4_valg=2,(INDIRECT(K$6&"!Administration")*1000)/K$30,(INDIRECT(K$6&"!NDU_service")*1000)/K$30)) -> 5901.648828 | L29: =IF(figur4_valg=1,(INDIRECT(L$6&"!Samlede_NDU")*1000)/L$30,IF(figur4_valg=2,(INDIRECT(L$6&"!Administration")*1000)/L$30,(INDIRECT(L$6&"!NDU_service")*1000)/L$30)) -> 6515.508413 | M29: =IF(figur4_valg=1,(INDIRECT(M$6&"!Samlede_NDU")*1000)/M$30,IF(figur4_valg=2,(INDIRECT(M$6&"!Administration")*1000)/M$30,(INDIRECT(M$6&"!NDU_service")*1000)/M$30)) -> 7180.601273 | N29: =IF(figur4_valg=1,(INDIRECT(N$6&"!Samlede_NDU")*1000)/N$30,IF(figur4_valg=2,(INDIRECT(N$6&"!Administration")*1000)/N$30,(INDIRECT(N$6&"!NDU_service")*1000)/N$30)) -> 7475.486953 | O29: =IF(figur4_valg=1,(INDIRECT(O$6&"!Samlede_NDU")*1000)/O$30,IF(figur4_valg=2,(INDIRECT(O$6&"!Administration")*1000)/O$30,(INDIRECT(O$6&"!NDU_service")*1000)/O$30)) -> 7271.89523 | P29: =IF(figur4_valg=1,(INDIRECT(P$6&"!Samlede_NDU")*1000)/P$30,IF(figur4_valg=2,(INDIRECT(P$6&"!Administration")*1000)/P$30,(INDIRECT(P$6&"!NDU_service")*1000)/P$30)) -> 7725.158562 | Q29: =IF(figur4_valg=1,(INDIRECT(Q$6&"!Samlede_NDU")*1000)/Q$30,IF(figur4_valg=2,(INDIRECT(Q$6&"!Administration")*1000)/Q$30,(INDIRECT(Q$6&"!NDU_service")*1000)/Q$30)) -> 7848.200434 | R29: =IF(figur4_valg=1,(INDIRECT(R$6&"!Samlede_NDU")*1000)/R$30,IF(figur4_valg=2,(INDIRECT(R$6&"!Administration")*1000)/R$30,(INDIRECT(R$6&"!NDU_service")*1000)/R$30)) -> 9363.636364 | S29: =IF(figur4_valg=1,(INDIRECT(S$6&"!Samlede_NDU")*1000)/S$30,IF(figur4_valg=2,(INDIRECT(S$6&"!Administration")*1000)/S$30,(INDIRECT(S$6&"!NDU_service")*1000)/S$30)) -> 10386.94818 | T29: =IF(figur4_valg=1,(INDIRECT(T$6&"!Samlede_NDU")*1000)/T$30,IF(figur4_valg=2,(INDIRECT(T$6&"!Administration")*1000)/T$30,(INDIRECT(T$6&"!NDU_service")*1000)/T$30)) ->  | U29: =IF(figur4_valg=1,(INDIRECT(U$6&"!Samlede_NDU")*1000)/U$30,IF(figur4_valg=2,(INDIRECT(U$6&"!Administration")*1000)/U$30,(INDIRECT(U$6&"!NDU_service")*1000)/U$30)) ->  | V29: =IF(figur4_valg=1,(INDIRECT(V$6&"!Samlede_NDU")*1000)/V$30,IF(figur4_valg=2,(INDIRECT(V$6&"!Administration")*1000)/V$30,(INDIRECT(V$6&"!NDU_service")*1000)/V$30)) ->  | W29: =IF(figur4_valg=1,(INDIRECT(W$6&"!Samlede_NDU")*1000)/W$30,IF(figur4_valg=2,(INDIRECT(W$6&"!Administration")*1000)/W$30,(INDIRECT(W$6&"!NDU_service")*1000)/W$30)) -> 
B30: Antal 0-22-årige | C30: =(IF(ISNA(INDEX(befolkning,MATCH(1,(bef_kom=Kommune)*(bef_aar=C$6),0),3))=TRUE,0,INDEX(befolkning,MATCH(1,(bef_kom=Kommune)*(bef_aar=C$6),0),3))) -> 13632 | D30: =(IF(ISNA(INDEX(befolkning,MATCH(1,(bef_kom=Kommune)*(bef_aar=D$6),0),3))=TRUE,0,INDEX(befolkning,MATCH(1,(bef_kom=Kommune)*(bef_aar=D$6),0),3))) -> 13812 | E30: =(IF(ISNA(INDEX(befolkning,MATCH(1,(bef_kom=Kommune)*(bef_aar=E$6),0),3))=TRUE,0,INDEX(befolkning,MATCH(1,(bef_kom=Kommune)*(bef_aar=E$6),0),3))) -> 13962 | F30: =(IF(ISNA(INDEX(befolkning,MATCH(1,(bef_kom=Kommune)*(bef_aar=F$6),0),3))=TRUE,0,INDEX(befolkning,MATCH(1,(bef_kom=Kommune)*(bef_aar=F$6),0),3))) -> 14029 | G30: =(IF(ISNA(INDEX(befolkning,MATCH(1,(bef_kom=Kommune)*(bef_aar=G$6),0),3))=TRUE,0,INDEX(befolkning,MATCH(1,(bef_kom=Kommune)*(bef_aar=G$6),0),3))) -> 14151 | H30: =(IF(ISNA(INDEX(befolkning,MATCH(1,(bef_kom=Kommune)*(bef_aar=H$6),0),3))=TRUE,0,INDEX(befolkning,MATCH(1,(bef_kom=Kommune)*(bef_aar=H$6),0),3))) -> 14066 | I30: =(IF(ISNA(INDEX(befolkning,MATCH(1,(bef_kom=Kommune)*(bef_aar=I$6),0),3))=TRUE,0,INDEX(befolkning,MATCH(1,(bef_kom=Kommune)*(bef_aar=I$6),0),3))) -> 14102 | J30: =(IF(ISNA(INDEX(befolkning,MATCH(1,(bef_kom=Kommune)*(bef_aar=J$6),0),3))=TRUE,0,INDEX(befolkning,MATCH(1,(bef_kom=Kommune)*(bef_aar=J$6),0),3))) -> 13958 | K30: =(IF(ISNA(INDEX(befolkning,MATCH(1,(bef_kom=Kommune)*(bef_aar=K$6),0),3))=TRUE,0,INDEX(befolkning,MATCH(1,(bef_kom=Kommune)*(bef_aar=K$6),0),3))) -> 13828 | L30: =(IF(ISNA(INDEX(befolkning,MATCH(1,(bef_kom=Kommune)*(bef_aar=L$6),0),3))=TRUE,0,INDEX(befolkning,MATCH(1,(bef_kom=Kommune)*(bef_aar=L$6),0),3))) -> 13670 | M30: =(IF(ISNA(INDEX(befolkning,MATCH(1,(bef_kom=Kommune)*(bef_aar=M$6),0),3))=TRUE,0,INDEX(befolkning,MATCH(1,(bef_kom=Kommune)*(bef_aar=M$6),0),3))) -> 13671 | N30: =(IF(ISNA(INDEX(befolkning,MATCH(1,(bef_kom=Kommune)*(bef_aar=N$6),0),3))=TRUE,0,INDEX(befolkning,MATCH(1,(bef_kom=Kommune)*(bef_aar=N$6),0),3))) -> 13605 | O30: =(IF(ISNA(INDEX(befolkning,MATCH(1,(bef_kom=Kommune)*(bef_aar=O$6),0),3))=TRUE,0,INDEX(befolkning,MATCH(1,(bef_kom=Kommune)*(bef_aar=O$6),0),3))) -> 13439 | P30: =(IF(ISNA(INDEX(befolkning,MATCH(1,(bef_kom=Kommune)*(bef_aar=P$6),0),3))=TRUE,0,INDEX(befolkning,MATCH(1,(bef_kom=Kommune)*(bef_aar=P$6),0),3))) -> 13244 | Q30: =(IF(ISNA(INDEX(befolkning,MATCH(1,(bef_kom=Kommune)*(bef_aar=Q$6),0),3))=TRUE,0,INDEX(befolkning,MATCH(1,(bef_kom=Kommune)*(bef_aar=Q$6),0),3))) -> 12892 | R30: =(IF(ISNA(INDEX(befolkning,MATCH(1,(bef_kom=Kommune)*(bef_aar=R$6),0),3))=TRUE,0,INDEX(befolkning,MATCH(1,(bef_kom=Kommune)*(bef_aar=R$6),0),3))) -> 12936 | S30: =(IF(ISNA(INDEX(befolkning,MATCH(1,(bef_kom=Kommune)*(bef_aar=S$6),0),3))=TRUE,0,INDEX(befolkning,MATCH(1,(bef_kom=Kommune)*(bef_aar=S$6),0),3))) -> 13025 | T30: =(IF(ISNA(INDEX(befolkning,MATCH(1,(bef_kom=Kommune)*(bef_aar=T$6),0),3))=TRUE,0,INDEX(befolkning,MATCH(1,(bef_kom=Kommune)*(bef_aar=T$6),0),3))) -> 0 | U30: =(IF(ISNA(INDEX(befolkning,MATCH(1,(bef_kom=Kommune)*(bef_aar=U$6),0),3))=TRUE,0,INDEX(befolkning,MATCH(1,(bef_kom=Kommune)*(bef_aar=U$6),0),3))) -> 0 | V30: =(IF(ISNA(INDEX(befolkning,MATCH(1,(bef_kom=Kommune)*(bef_aar=V$6),0),3))=TRUE,0,INDEX(befolkning,MATCH(1,(bef_kom=Kommune)*(bef_aar=V$6),0),3))) -> 0 | W30: =(IF(ISNA(INDEX(befolkning,MATCH(1,(bef_kom=Kommune)*(bef_aar=W$6),0),3))=TRUE,0,INDEX(befolkning,MATCH(1,(bef_kom=Kommune)*(bef_aar=W$6),0),3))) -> 0
B31: Sammenligningsgruppe, gns. | C31: ="" ->  | D31: ="" ->  | E31: ="" ->  | F31: ="" ->  | G31: ="" ->  | H31: ="" ->  | I31: ="" ->  | J31: ="" ->  | K31: ="" ->  | L31: ="" ->  | M31: ="" ->  | N31: ="" ->  | O31: ="" ->  | P31: ="" ->  | Q31: ="" -> 
